{"text_format":"1","workbook":"xlsx","n_sheets":11,"sheets":["Instructions","Presentation","God Makes The Rivers To Flow","Timeless Wisdom","Other Passages","My Name","My Notes","Version","Statistics","Lists","Backend"],"not_rendered":{"charts":0,"images":1,"macros":1,"external_links":0,"defined_names":126,"comments":1,"pivot_tables":0},"unopened":[],"bounds":{"document_bytes":16777216,"sheet_cells":100000,"rows_first":2000,"rows_last":500,"rows_between":2000,"halvings":0,"cell_chars":16384,"cell_head_chars":4096},"cells_cut":0,"cells_raw":0,"read":"whole","date_system":"1900"}

{"sheet":"Instructions","index":0,"n_rows":46,"n_cols":9,"rows_kept":46,"cut":false,"hidden":false,"merged":[[39,1,39,6],[45,1,45,6],[15,2,15,6],[23,2,23,6],[24,2,24,6],[25,4,25,6],[27,4,27,6],[4,1,4,6],[23,8,29,12],[33,4,33,6],[35,2,35,6],[36,2,36,6],[16,2,16,6]]}
[null,null,null,null,null,null,"Instructions for Using the Passage Portfolio"]
[]
[null,"For the portfolio to work, you must have Macros Enabled in your Excel options."]
[]
[null,"A video overview of how to use the passage portfolio is available here."]
[]
[null,"For any questions about the passage portfolio, feel free to email: PassagePortfolio@gmail.com"]
[]
[null,"Viewing Your Passages"]
[null,1,"Select the 'Presentation' worksheet from the tabs below."]
[null,2,"To sort your passages in different ways, use the dropdown list on row 4."]
[null,3,"To choose which columns to display, you have two options:"]
[null,null,null,"a.","To turn columns on or off, enter Yes or No using the controls on lines 7 to 12."]
[null,null,null,"b.","To chose which column are available, use the dropdowns on the right side of rows 10 to 12."]
[null,4,"To highlight passages that meet certain criteria, use the controls on rows 15 to 22."]
[null,5,"To filter the display so as to show only passages that meet certain criteria, use the controls on rows 25 to 36. By default, all passages for which you have entered any information will be displayed."]
[null,6,"To reset all display settings, click the 'Reset Display' button at top right. This resets the controls in the 'Presentation' worksheet's blue toolbox, but does not change any information you have entered about your passages."]
[]
[null,"Printing Your Passage Portfolio"]
[null,1,"Select the 'Presentation' worksheet from the tabs below."]
[null,2,"Click the 'Print' button at top right, or select Print in the normal way from the Excel menu."]
[]
[null,"Listing Your Passages"]
[null,1,"Select the worksheet for the book of passages you use most, either 'God Makes The Rivers To Flow' or 'Timeless Wisdom.'",null,null,null,null,null,"Note:\nThe passage portfolio is not affiliated with the BMCM. Easwaran never gave a particular system for managing passages.\n\nThe passage portfolio is maintained by your fellow passage meditators. Feel free to use it however is most helpful to you!"]
[null,2,"Enter information for each passage in your repetoire. Entering any one of the fields is enough to make a passage appear on the 'Presentation' sheet. Entering additional informaiton allows extra flexibility in choosing which passages to display."]
[null,null,null,"a.","Enter the approximate date you began learning or meditating on the passage by typing into column D. You can skip this if it isn't useful for you (the same goes for the other fields!)."]
[null,null,null,"b.","Enter the percent of the passage you have memorized by using the dropdown list in column E."]
[null,null,null,"c.","Enter your level of expertise with the passage by using the dropdown list in column F to select the highest level that applies. These ratings are subjective and entirely up to you! Below are suggestions for using the ratings:"]
[null,null,null,null,null,"i.","Planning to learn:  you intend to learn the passage in the near future."]
[null,null,null,null,null,"ii.","Knowledge:  you have begun memorizing or studying the passage."]
[null,null,null,null,null,"iii.","Production:  you can recite or meditate on the passage but  you need to consciously think through the words as you go, or you need to spend considerable time reviewing before use."]
[null,null,null,null,null,"iv.","Skill:  you can recite or meditate on the passage with fewer errors, and without having to review extensively or think through the words in your head."]
[null,null,null,null,null,"v.","Habit:  you can recite or meditate on the passage automatically. You readily identify opportunities to use the passage outside of meditation, and you can adapt its message to help you in specific situations."]
[null,null,null,"d.","Enter any \"custom categories\" by typing into column G. You can enter any categories you want, and they will be available on the Presentation sheet for sorting, filtering, and highlighing your passage portfolio. Examples of categories meditators have suggested include: \"joy and gratitude,\" \"kids,\" and \"reassurance.\" You can use more than one category per passage, if you'd like, for example by adding a comma, e.g., \"kids, reassurance.\""]
[null,null,null,"e.","To remove information previously entered, click the cell and press the Delete or Backspace key."]
[null,3,"You can enter information for passages in both books using their respective worksheets, and can enter passages not found in either book using the 'Other Passages' worksheet. All passages with information entered will show on the Presentation."]
[null,4,"On the 'God Makes The Rivers To Flow' and 'Timeless Wisdom' worksheets, you can use the control in cell D4 to display only certain types of passages."]
[]
[null,"Entering Your Name"]
[null,"Select the 'My Name' worksheet from the tab below, and enter your name. Your name will then appear in the title at the top of the 'Presentation' worksheet."]
[]
[null,"Notes"]
[null,"The 'My Notes' worksheet is open space that allows you to record any additional information of interest."]
[]
[null,"Advanced:  Editing the Passage Portfolio"]
[null,"The passage portfolio is protected to prevent folks from accidentally making changes that would cause it to stop working. Advanced users are welcome to unprotect it and make any changes. The password is \"RamaRamaRama\"."]

{"sheet":"Presentation","index":1,"n_rows":318,"n_cols":13,"rows_kept":318,"cut":false,"hidden":false,"merged":[[25,10,25,11],[35,10,35,12],[17,10,17,11],[19,10,19,11],[21,10,21,12],[3,8,3,12],[9,10,9,12],[10,10,10,12],[11,10,11,12],[15,10,15,11]]}
[{"$f":"IF(ISTEXT('My Name'!B1),'My Name'!B1&\"'s Passage Portfolio\",\"Passage Portfolio\")","v":"Larry's Passage Portfolio"}]
["Author","Passage","Page","Years in Repertoire","Percent Memorized","Custom Categories"]
[null,null,null,"",null,null,null,"Sort Passages by:"]
["God Makes The Rivers To Flow ",null,null,"",null,null,null,null,"Book and page number"]
["","","","","",""]
["PART ONE","At the Source","","","","",null,"Columns to Display:"]
["","","","","","",null,null,"Yes",null,"Author"]
["Rabbi Abraham Isaac Kook","Radiant Is the World Soul",39,0.99383983572895274,1,"Joy",null,null,"Yes",null,"Passage"]
["","","","","","",null,null,"Yes",null,"Page"]
["PART TWO","Deep Currents","","","","",null,null,"Yes",null,"Years in Repertoire"]
["","","","","","",null,null,"Yes",null,"Percent Memorized"]
["Saint Francis of Assisi","The Prayer of Saint Francis",109,1.160848733744011,1,"Core",null,null,"Yes",null,"Custom Categories"]
["Lao Tzu","The Best",141,0.39698836413415467,1,""]
["Sri Sarada Devi","The Whole World Is Your Own",147,0.68993839835728954,0.5,"Reassurance, Joy",null,"Highlight Passages:"]
["","","","","","",null,null,"No","Years in repertoire of:"]
["PART THREE","Joining the Sea","","","","",null,null,null,null,1,null,"or less"]
["","","","","","",null,null,"No","Percent memorized of:"]
["Saint Teresa of Avila","Let Nothing Upset You",206,"","","Reassurance",null,null,null,null,0.75,null,"or less"]
[null,null,null,"",null,null,null,null,"No","Expertise level of:"]
["Timeless Wisdom",null,null,"",null,null,null,null,null,null,"Knowledge",null,"or less"]
[null,null,null,"",null,null,null,null,"Yes","Custom category includes:"]
["Abu Sa 'id","If You Want to Draw Near to God",196,0.9117043121149897,"","",null,null,null,null,"Reassurance"]
[null,null,null,""]
["Other Passages",null,null,"",null,null,null,"Filter Passages:"]
[null,null,null,"",null,null,null,null,"No"," Years in repertoire of:"]
["Eknath Easwaran","A Prayer for Meditation","",0.24366872005475701,1,"",null,null,null,null,1,null,"or less"]
["","Paramahamsa Upanishad","","","","Long",null,null,"No"," Percent memorized of:"]
[null,null,null,"",null,null,null,null,null,null,0.75,"or less"]
[null,null,null,"",null,null,null,null,"No"," Expertise level of:"]
[null,null,null,"",null,null,null,null,null,null,"Yes","Planning to learn"]
[null,null,null,"",null,null,null,null,null,null,"Yes","Knowledge"]
[null,null,null,"",null,null,null,null,null,null,"Yes","Production"]
[null,null,null,"",null,null,null,null,null,null,"Yes","Skill"]
[null,null,null,"",null,null,null,null,null,null,"Yes","Habit"]
[null,null,null,"",null,null,null,null,"No"," Custom categories includes:"]
[null,null,null,"",null,null,null,null,null,null,"[Enter a category]"]
[null,null,null,""]
[null,null,null,""]
[null,null,null,""]
[null,null,null,""]
[null,null,null,""]
[null,null,null,""]
[null,null,null,""]
[null,null,null,""]
[null,null,null,""]
[null,null,null,""]
[null,null,null,""]
[null,null,null,""]
[null,null,null,""]
[null,null,null,""]
[null,null,null,""]
[null,null,null,""]
[null,null,null,""]
[null,null,null,""]
[null,null,null,""]
[null,null,null,""]
[null,null,null,""]
[null,null,null,""]
[null,null,null,""]
[null,null,null,""]
[null,null,null,""]
[null,null,null,""]
[null,null,null,""]
[null,null,null,""]
[null,null,null,""]
[null,null,null,""]
[null,null,null,""]
[null,null,null,""]
[null,null,null,""]
[null,null,null,""]
[null,null,null,""]
[null,null,null,""]
[null,null,null,""]
[null,null,null,""]
[null,null,null,""]
[null,null,null,""]
[null,null,null,""]
[null,null,null,""]
[null,null,null,""]
[null,null,null,""]
[null,null,null,""]
[null,null,null,""]
[null,null,null,""]
[null,null,null,""]
[null,null,null,""]
[null,null,null,""]
[null,null,null,""]
[null,null,null,""]
[null,null,null,""]
[null,null,null,""]
[null,null,null,""]
[null,null,null,""]
[null,null,null,""]
[null,null,null,""]
[null,null,null,""]
[null,null,null,""]
[null,null,null,""]
[null,null,null,""]
[null,null,null,""]
[null,null,null,""]
[null,null,null,""]
[null,null,null,""]
[null,null,null,""]
[null,null,null,""]
[null,null,null,""]
[null,null,null,""]
[null,null,null,""]
[null,null,null,""]
[null,null,null,""]
[null,null,null,""]
[null,null,null,""]
[null,null,null,""]
[null,null,null,""]
[null,null,null,""]
[null,null,null,""]
[null,null,null,""]
[null,null,null,""]
[null,null,null,""]
[null,null,null,""]
[null,null,null,""]
[null,null,null,""]
[null,null,null,""]
[null,null,null,""]
[null,null,null,""]
[null,null,null,""]
[null,null,null,""]
[null,null,null,""]
[null,null,null,""]
[null,null,null,""]
[null,null,null,""]
[null,null,null,""]
[null,null,null,""]
[null,null,null,""]
[null,null,null,""]
[null,null,null,""]
[null,null,null,""]
[null,null,null,""]
[null,null,null,""]
[null,null,null,""]
[null,null,null,""]
[null,null,null,""]
[null,null,null,""]
[null,null,null,""]
[null,null,null,""]
[null,null,null,""]
[null,null,null,""]
[null,null,null,""]
[null,null,null,""]
[null,null,null,""]
[null,null,null,""]
[null,null,null,""]
[null,null,null,""]
[null,null,null,""]
[null,null,null,""]
[null,null,null,""]
[null,null,null,""]
[null,null,null,""]
[null,null,null,""]
[null,null,null,""]
[null,null,null,""]
[null,null,null,""]
[null,null,null,""]
[null,null,null,""]
[null,null,null,""]
[null,null,null,""]
[null,null,null,""]
[null,null,null,""]
[null,null,null,""]
[null,null,null,""]
[null,null,null,""]
[null,null,null,""]
[null,null,null,""]
[null,null,null,""]
[null,null,null,""]
[null,null,null,""]
[null,null,null,""]
[null,null,null,""]
[null,null,null,""]
[null,null,null,""]
[null,null,null,""]
[null,null,null,""]
[null,null,null,""]
[null,null,null,""]
[null,null,null,""]
[null,null,null,""]
[null,null,null,""]
[null,null,null,""]
[null,null,null,""]
[null,null,null,""]
[null,null,null,""]
[null,null,null,""]
[null,null,null,""]
[null,null,null,""]
[null,null,null,""]
[null,null,null,""]
[null,null,null,""]
[null,null,null,""]
[null,null,null,""]
[null,null,null,""]
[null,null,null,""]
[null,null,null,""]
[null,null,null,""]
[null,null,null,""]
[null,null,null,""]
[null,null,null,""]
[null,null,null,""]
[null,null,null,""]
[null,null,null,""]
[null,null,null,""]
[null,null,null,""]
[null,null,null,""]
[null,null,null,""]
[null,null,null,""]
[null,null,null,""]
[null,null,null,""]
[null,null,null,""]
[null,null,null,""]
[null,null,null,""]
[null,null,null,""]
[null,null,null,""]
[null,null,null,""]
[null,null,null,""]
[null,null,null,""]
[null,null,null,""]
[null,null,null,""]
[null,null,null,""]
[null,null,null,""]
[null,null,null,""]
[null,null,null,""]
[null,null,null,""]
[null,null,null,""]
[null,null,null,""]
[null,null,null,""]
[null,null,null,""]
[null,null,null,""]
[null,null,null,""]
[null,null,null,""]
[null,null,null,""]
[null,null,null,""]
[null,null,null,""]
[null,null,null,""]
[null,null,null,""]
[null,null,null,""]
[null,null,null,""]
[null,null,null,""]
[null,null,null,""]
[null,null,null,""]
[null,null,null,""]
[null,null,null,""]
[null,null,null,""]
[null,null,null,""]
[null,null,null,""]
[null,null,null,""]
[null,null,null,""]
[null,null,null,""]
[null,null,null,""]
[null,null,null,""]
[null,null,null,""]
[null,null,null,""]
[null,null,null,""]
[null,null,null,""]
[null,null,null,""]
[null,null,null,""]
[null,null,null,""]
[null,null,null,""]
[null,null,null,""]
[null,null,null,""]
[null,null,null,""]
[null,null,null,""]
[null,null,null,""]
[null,null,null,""]
[null,null,null,""]
[null,null,null,""]
[null,null,null,""]
[null,null,null,""]
[null,null,null,""]
[null,null,null,""]
[null,null,null,""]
[null,null,null,""]
[null,null,null,""]
[null,null,null,""]
[null,null,null,""]
[null,null,null,""]
[null,null,null,""]
[null,null,null,""]
[null,null,null,""]
[null,null,null,""]
[null,null,null,""]
[null,null,null,""]
[null,null,null,""]
[null,null,null,""]
[null,null,null,""]
[null,null,null,""]
[null,null,null,""]
[null,null,null,""]
[null,null,null,""]
[null,null,null,""]
[null,null,null,""]
[null,null,null,""]
[null,null,null,""]
[null,null,null,""]
[null,null,null,""]
[null,null,null,""]
[null,null,null,""]
[null,null,null,""]
[null,null,null,""]
[null,null,null,""]
[null,null,null,""]
[null,null,null,""]
[null,null,null,""]
[null,null,null,""]
[null,null,null,""]
[null,null,null,""]
[null,null,null,""]
[null,null,null,""]
[null,null,null,""]
[null,null,null,""]
[null,null,null,""]

{"sheet":"God Makes The Rivers To Flow","index":2,"n_rows":163,"n_cols":53,"rows_kept":163,"cut":false,"hidden":false,"merged":[[0,0,3,1],[3,3,3,6]]}
["God Makes The Rivers To Flow"]
[null,null,"Choose Passages to Diplay:"]
[null,null,null,null,null,null,null,null,null,"Show1",null,null,null,null,null,null,null,null,null,null,null,null,null,null,null,null,null,null,null,null,null,null,null,null,null,null,null,null,null,null,null,null,null,null,null,null,null,null,null,null,null,"Show1","Show2"]
[null,null,null,"All passages",null,null,null,null,null,{"$f":"\"*\"&D4&\"*\"","v":"*All passages*"},null,null,null,null,null,null,null,null,null,null,null,null,null,null,null,null,null,null,null,null,null,null,null,null,null,null,null,null,null,null,null,null,null,null,null,null,null,null,null,null,null,{"$f":"\"*\"&D4&\"*\"","v":"*All passages*"}]
[null,null,null,null,null,null,null,null,null,null,null,null,null,null,null,null,null,null,null,null,null,null,null,null,null,null,null,null,null,null,null,null,null,null,null,null,null,null,null,null,null,null,null,null,null,null,null,null,null,null,null,null,"Special"]
[]
["Author","Passage","Page","Date Begun\n(approximate)","Percent\nMemorized","Expertise\nLevel","Custom\nCategories","  ","Show1","Show2",null,null,null,null,null,null,null,null,null,null,null,null,null,null,null,null,null,null,null,null,null,null,null,null,null,null,null,null,null,null,null,null,null,null,null,null,null,null,null,null,null,"Show2"]
[null,null,null,null,null,null,null,null,null,"Special",null,null,null,null,null,null,null,null,null,null,null,null,null,null,null,null,null,null,null,null,null,null,null,null,null,null,null,null,null,null,null,null,null,null,null,null,null,null,null,null,null,"Special"]
["PART ONE","At the Source",null,null,null,null,null,null,null,"Special",null,null,null,null,null,null,null,null,null,null,null,null,null,null,null,null,null,null,null,null,null,null,null,null,null,null,null,null,null,null,null,null,null,null,null,null,null,null,null,null,null,"Special"]
[null,null,null,null,null,null,null,null,null,"Special",null,null,null,null,null,null,null,null,null,null,null,null,null,null,null,null,null,null,null,null,null,null,null,null,null,null,null,null,null,null,null,null,null,null,null,null,null,null,null,null,null,"Special"]
["The Upanishads","Invocations",29,null,null,null,null,null,"All passages"]
["Psalm 100","Worship the Lord in Gladness",30,null,null,null,null,null,"All passages, Changing Negativity: Dwelling on oneself, depression"]
["The Isha Upanishad","The Inner Ruler",31,null,null,null,null,null,"All passages, Positive Qualities: Courage, Changing Negativity: Greed, craving, selfish desire"]
["Lao Tzu","Holding to the Constant",34,null,null,null,null,null,"All passages, Positive Qualities: Compassion and generosity"]
["Lao Tzu","Mother of All Things",35,null,null,null,null,null,"All passages, Stage of Life: Families with small children, Positive Qualities: Courage"]
["The Chandi","Hymn to the Divine Mother",36,null,null,null,null,null,"All passages"]
["Swami Ramdas","Divine Mystery",37,null,null,null,null,null,"All passages"]
["Mahmud Shabestari","The Mirror of This World",38,null,null,null,null,null,"All passages, Positive Qualities: Patience"]
["Rabbi Abraham Isaac Kook","Radiant Is the World Soul",39,"2015-11-01",1,"Skill","Joy",null,"All passages, Stage of Life: Grief and loss"]
["Kabir","The Temple of the Lord",40,null,null,null,null,null,"All passages"]
["The Shvetashvatara Upanishad","The River of God",42,null,null,null,null,null,"All passages"]
["Swami Paramananda","Source of Our Existence",45,null,null,null,null,null,"All passages"]
["Swami Paramananda","O Infinite Being! ",46,null,null,null,null,null,"All passages, Positive Qualities: Faith"]
["Swami Paramananda","Origin of All",47,null,null,null,null,null,"All passages"]
["William Law","The Deepest Part of Thy Soul",48,null,null,null,null,null,"All passages"]
["The Chandogya Upanishad","This Is the Self",49,null,null,null,null,null,"All passages, Stage of Life: Expectant mothers & families with babies"]
["Fakhruddin Araqi","The Shining Essence",50,null,null,null,null,null,"All passages, Positive Qualities: Courage, Changing Negativity: Dwelling on oneself, depression"]
["Psalm 139","Lord, Thou Hast Searched Me",52,null,null,null,null,null,"All passages"]
["Saint Anselm","Teach Me",54,null,null,null,null,null,"All passages"]
["Swami Sivananda","Universal Prayer",55,null,null,null,null,null,"All passages"]
["The Kena Upanishad","That Invisible One",56,null,null,null,null,null,"All passages"]
["Seng Ts'an","Believing in Mind",58,null,null,null,null,null,"All passages"]
["Saint Symeon the New Theologian","I Know That He Reveals Himself",60,null,null,null,null,null,"All passages, Positive Qualities: Faith"]
["Dov Baer of Mezhirech","You Must Forget Yourself in Prayer",61,null,null,null,null,null,"All passages, Positive Qualities: Putting others first, Changing Negativity: Greed, craving, selfish desire"]
["The Katha Upanishad","Perennial Joy",62,null,null,null,null,null,"All passages, Stage of Life: Caregivers"]
["Solomon ibn Gabirol","The Living God",67,null,null,null,null,null,"All passages"]
["Shantideva","The Miracle of Illumination",68,null,null,null,null,null,"All passages"]
["A Song of Sri Ramakrishna","Dwell, O Mind, Within Yourself",69,null,null,null,null,null,"All passages"]
["The Tejobindu Upanishad","The Shining Self",70,null,null,null,null,null,"All passages"]
["Tukaram","In Me Thou Livest",72,null,null,null,null,null,"All passages, Positive Qualities: Courage"]
["Tukaram","When I Lose Myself in Thee",73,null,null,null,null,null,"All passages"]
["The Bhagavad Gita","Living in Wisdom",74,null,null,null,null,null,"All passages, Positive Qualities: Patience"]
["Baba Kuhi of Shiraz","Only God I Saw",77,null,null,null,null,null,"All passages, Positive Qualities: Faith"]
["The Dhammapada","The Saint",78,null,null,null,null,null,"All passages"]
["Meister Eckhart","One with God",79,null,null,null,null,null,"All passages"]
["The Katha Upanishad","The Razor's Edge",80,null,null,null,null,null,"All passages, Changing Negativity: Fear, anxiety, inadequacy"]
["Jewish Liturgy","Sabbath Prayer",83,null,null,null,null,null,"All passages"]
["The Amritabindu Upanishad","The Nectar of Immortality",84,null,null,null,null,null,"All passages"]
["The Dhammapada","Twin Verses",86,null,null,null,null,null,"All passages, Changing Negativity: Dwelling on oneself, depression, Changing Negativity: Negative thinking in general"]
["Psalm 24","The Earth Is the Lord's",89,null,null,null,null,null,"All passages"]
["The Shvetashvatara Upanishad","The Lord of Life",90,null,null,null,null,null,"All passages"]
["Saint Clare of Assisi","The Mirror of Eternity",93,null,null,null,null,null,"All passages"]
["Swami Ramdas","Such Is a Saint!",94,null,null,null,null,null,"All passages, Stage of Life: Caregivers"]
["Swami Ramdas","The Central Truth",95,null,null,null,null,null,"All passages"]
["Hazrat Inayat Khan","Prayer for the Peace of the World",96,null,null,null,null,null,"All passages"]
["Hazrat Inayat Khan","Khatum",97,null,null,null,null,null,"All passages, Changing Negativity: Anger, hostility, resentment, ill will"]
[null,null,null,null,null,null,null,null,null,"Special",null,null,null,null,null,null,null,null,null,null,null,null,null,null,null,null,null,null,null,null,null,null,null,null,null,null,null,null,null,null,null,null,null,null,null,null,null,null,null,null,null,"Special"]
["PART TWO","Deep Currents",null,null,null,null,null,null,null,"Special",null,null,null,null,null,null,null,null,null,null,null,null,null,null,null,null,null,null,null,null,null,null,null,null,null,null,null,null,null,null,null,null,null,null,null,null,null,null,null,null,null,"Special"]
[null,null,null,null,null,null,null,null,null,"Special",null,null,null,null,null,null,null,null,null,null,null,null,null,null,null,null,null,null,null,null,null,null,null,null,null,null,null,null,null,null,null,null,null,null,null,null,null,null,null,null,null,"Special"]
["The Upanishads","Invocations",101,null,null,null,null,null,"All passages, Stage of Life: Families with small children"]
["The Rig Veda","United in Heart",102,null,null,null,null,null,"All passages, Positive Qualities: Putting others first"]
["The Torah","The Shema",103,null,null,null,null,null,"All passages, Stage of Life: Families with small children"]
["The Sutta Nipata","Discourse on Good Will",104,null,null,null,null,null,"All passages, Stage of Life: Expectant mothers & families with babies, Changing Negativity: Anger, hostility, resentment, ill will"]
["The Gospel of Saint Matthew","The Sermon on the Mount",106,null,null,null,null,null,"All passages, Stage of Life: Families with small children"]
["Saint Francis of Assisi","The Prayer of Saint Francis",109,"2015-09-01",1,"Habit","Core",null,"All passages, Changing Negativity: Negative thinking in general"]
["The Bhagavad Gita","The Way of Love",110,null,null,null,null,null,"All passages, Positive Qualities: Devotion to God, Changing Negativity: Negative thinking in general"]
["A Song of Sri Ramakrishna","Dive Deep, O Mind",113,null,null,null,null,null,"All passages"]
["A Song of Sri Ramakrishna","I Have Joined My Heart to Thee",114,null,null,null,null,null,"All passages"]
["Elizabeth of the Trinity","O My God, Trinity Whom I Adore",115,null,null,null,null,null,"All passages, Changing Negativity: Unfinished business, disloyalty, procrastination"]
["Meera","The Path to Your Dwelling",116,null,null,null,null,null,"All passages"]
["Meera","Come, Beloved",117,null,null,null,null,null,"All passages"]
["Meera","Life of My Life",118,null,null,null,null,null,"All passages"]
["Mechthild of Magdeburg","Lord, I Bring Thee My Treasure",119,null,null,null,null,null,"All passages"]
["Rabi' a","Night Prayer",120,null,null,null,null,null,"All passages"]
["Rabi' a","Dawn Prayer",121,null,null,null,null,null,"All passages"]
["Saint Francis de Sales","I Am Thine, Lord",122,null,null,null,null,null,"All passages, Changing Negativity: Unfinished business, disloyalty, procrastination"]
["Rabbi Eleazar Azikri","Beloved of the Soul",123,null,null,null,null,null,"All passages"]
["Thomas à Kempis","The Wonderful Effect of Divine Love",124,null,null,null,null,null,"All passages, Changing Negativity: Greed, craving, selfish desire"]
["Jewish Liturgy","Evening Prayer for the Sabbath",128,null,null,null,null,null,"All passages, Stage of Life: Caregivers, Changing Negativity: Unfinished business, disloyalty, procrastination"]
["Saint Ignatius of Loyola","Just Because You Are My God",129,null,null,null,null,null,"All passages"]
["Cardinal Newman","Shine through Us",130,null,null,null,null,null,"All passages, Stage of Life: Teens"]
["Ansari of Herat","Invocations",131,null,null,null,null,null,"All passages, Changing Negativity: Jealousy, Changing Negativity: Negative thinking in general"]
["Swami Omkar","Prayer for Peace",138,null,null,null,null,null,"All passages, Positive Qualities: Compassion and generosity"]
["Hazrat Inayat Khan","Prayer for Peace",139,null,null,null,null,null,"All passages, Stage of Life: Expectant mothers & families with babies"]
["Saint Paul","Epistle on Love",140,null,null,null,null,null,"All passages, Positive Qualities: Compassion and generosity, Changing Negativity: Jealousy"]
["Lao Tzu","The Best",141,"2016-06-06",1,"Skill",null,null,"All passages, Stage of Life: Teens, Changing Negativity: Jealousy"]
["The Dhammapada","Give Up Anger",142,null,null,null,null,null,"All passages, Positive Qualities: Compassion and generosity"]
["Swami Sivananda","The Way to Peace",144,null,null,null,null,null,"All passages, Positive Qualities: Putting others first"]
["Lao Tzu","Finding Unity",145,null,null,null,null,null,"All passages, Positive Qualities: Patience"]
["Isaiah","When You Call",146,null,null,null,null,null,"All passages, Positive Qualities: Compassion and generosity"]
["Sri Sarada Devi","The Whole World Is Your Own",147,"2016-02-20",0.5,"Production","Reassurance, Joy",null,"All passages, Stage of Life: Families with small children, Positive Qualities: Putting others first"]
["Narsinha Mehta","The Real Lovers of God",148,null,null,null,null,null,"All passages"]
["Saint Patrick","Christ Be with Me",149,null,null,null,null,null,"All passages, Stage of Life: Illness, pain, loss of function"]
["The Ortha nan Gaidheal","Silence",150,null,null,null,null,null,"All passages, Stage of Life: Teens"]
["The Ortha nan Gaidheal","This Morning I Pray",151,null,null,null,null,null,"All passages"]
["Brother Lawrence","The Practice of the Presence of God",152,null,null,null,null,null,"All passages, Positive Qualities: Courage"]
["Rabbi Bahya ibn Pakuda","Duties of the Heart",154,null,null,null,null,null,"All passages, Changing Negativity: Unfinished business, disloyalty, procrastination"]
["Saint Teresa of Avila","You Are Christ's Hands",156,null,null,null,null,null,"All passages, Stage of Life: Caregivers"]
["Swami Ramdas","Unshakable Faith",157,null,null,null,null,null,"All passages, Positive Qualities: Faith"]
["Hasan Kaimi Baba","The Path of Love",158,null,null,null,null,null,"All passages, Positive Qualities: Devotion to God"]
["The Shvetashvatara Upanishad","Hidden in the Heart",159,null,null,null,null,null,"All passages"]
["Saint Thérèse of Lisieux","Living on Love",162,null,null,null,null,null,"All passages, Positive Qualities: Putting others first"]
["Hildegard of Bingen","In Your Midst",165,null,null,null,null,null,"All passages, Positive Qualities: Devotion to God"]
["The Bhagavad Gita","Whatever You Do",166,null,null,null,null,null,"All passages, Stage of Life: Families with small children, Changing Negativity: Jealousy"]
["Kabir","The Unstruck Bells & Drums",168,null,null,null,null,null,"All passages"]
["Kabir","The River of Love",169,null,null,null,null,null,"All passages"]
["Kabir","Simple Union",170,null,null,null,null,null,"All passages, Changing Negativity: Greed, craving, selfish desire"]
["Swami Ramdas","He Is Omnipresent",171,null,null,null,null,null,"All passages"]
["Saint Teresa of Avila","I Gave All My Heart",172,null,null,null,null,null,"All passages"]
["Saint Teresa of Avila","Her Heart Is Full of Joy",173,null,null,null,null,null,"All passages, Stage of Life: Expectant mothers & families with babies"]
[null,null,null,null,null,null,null,null,null,"Special",null,null,null,null,null,null,null,null,null,null,null,null,null,null,null,null,null,null,null,null,null,null,null,null,null,null,null,null,null,null,null,null,null,null,null,null,null,null,null,null,null,"Special"]
["PART THREE","Joining the Sea",null,null,null,null,null,null,null,"Special",null,null,null,null,null,null,null,null,null,null,null,null,null,null,null,null,null,null,null,null,null,null,null,null,null,null,null,null,null,null,null,null,null,null,null,null,null,null,null,null,null,"Special"]
[null,null,null,null,null,null,null,null,null,"Special",null,null,null,null,null,null,null,null,null,null,null,null,null,null,null,null,null,null,null,null,null,null,null,null,null,null,null,null,null,null,null,null,null,null,null,null,null,null,null,null,null,"Special"]
["The Upanishads","Invocations",177,null,null,null,null,null,"All passages"]
["The Rig Veda","God Makes the Rivers to Flow",178,null,null,null,null,null,"All passages"]
["The Book of Common Prayer","I Am the Resurrection & the Life",179,null,null,null,null,null,"All passages, Stage of Life: Grief and loss"]
["The Mishkat al-Masabih","I Come to Him Running",181,null,null,null,null,null,"All passages, Stage of Life: Teens"]
["The Bhagavad Gita","All Paths Lead to Me",182,null,null,null,null,null,"All passages"]
["The Dhammapada","The Blessing of a Well-Trained Mind",183,null,null,null,null,null,"All passages, Changing Negativity: Unfinished business, disloyalty, procrastination"]
["Jewish Liturgy","Mourner's Kaddish",184,null,null,null,null,null,"All passages, Stage of Life: Grief and loss, Mantram theme"]
["Solomon ibn Gabirol","Adon Olam",185,null,null,null,null,null,"All passages, Stage of Life: Death and Dying"]
["Native American Tradition","Great Life-Giving Spirit",186,null,null,null,null,null,"All passages, Stage of Life: Illness, pain, loss of function"]
["Chief Yellow Lark","Let Me Walk in Beauty",188,null,null,null,null,null,"All passages, Stage of Life: Teens"]
["The Bhagavad Gita","What Is Real Never Ceases",189,null,null,null,null,null,"All passages, Stage of Life: Illness, pain, loss of function"]
["The Shvetashvatara Upanishad","The One Appearing as Many",192,null,null,null,null,null,"All passages"]
["Thomas à Kempis","Lord That Giveth Strength",196,null,null,null,null,null,"All passages, Changing Negativity: Fear, anxiety, inadequacy"]
["Thomas à Kempis","Four Things That Bring Much Inward Peace",199,null,null,null,null,null,"All passages, Changing Negativity: Anger, hostility, resentment, ill will, Changing Negativity: Dwelling on oneself, depression"]
["The Sutta Nipata","The Island",200,null,null,null,null,null,"All passages, Stage of Life: Grief and loss, Changing Negativity: Fear, anxiety, inadequacy"]
["Psalm 23","The Lord Is My Shepherd",201,null,null,null,null,null,"All passages, Changing Negativity: Fear, anxiety, inadequacy, Changing Negativity: Negative thinking in general"]
["Mahatma Gandhi","The Path",202,null,null,null,null,null,"All passages, Changing Negativity: Fear, anxiety, inadequacy"]
["Mahatma Gandhi","In the Midst of Darkness",203,null,null,null,null,null,"All passages, Stage of Life: Illness, pain, loss of function"]
["Saint Bernard of Clairvaux","That Wondrous Star",204,null,null,null,null,null,"All passages, Stage of Life: Grief and loss, Mantram theme"]
["Saint Teresa of Avila","Let Nothing Upset You",206,null,null,"Planning to learn","Reassurance",null,"All passages, Stage of Life: Illness, pain, loss of function"]
["Saint Francis de Sales","Do Not Look with Fear",207,null,null,null,null,null,"All passages, Stage of Life: Grief and loss"]
["Tukaram","The One Thing Needed",208,null,null,null,null,null,"All passages, Changing Negativity: Unfinished business, disloyalty, procrastination, Changing Negativity: Dwelling on oneself, depression"]
["Shankara","Soul of My Soul",209,null,null,null,null,null,"All passages, Changing Negativity: Anger, hostility, resentment, ill will, Changing Negativity: Negative thinking in general"]
["The Bhagavad Gita","The Eternal Godhead",210,null,null,null,null,null,"All passages, Stage of Life: Death and Dying"]
["The Katha Upanishad","The Immortal",212,null,null,null,null,null,"All passages, Stage of Life: Illness, pain, loss of function"]
["Meera","The Power of the Holy Name",215,null,null,null,null,null,"All passages, Mantram theme"]
["Meera","Even with Your Last Breath",216,null,null,null,null,null,"All passages, Mantram theme"]
["Meera","Singing Your Name",217,null,null,null,null,null,"All passages, Changing Negativity: Jealousy, Mantram theme"]
["Tukaram","Think on His Name",218,null,null,null,null,null,"All passages, Changing Negativity: Greed, craving, selfish desire, Mantram theme"]
["Swami Ramdas","How Great Is His Name!",219,null,null,null,null,null,"All passages, Mantram theme"]
["Sri Chaitanya","O Name, Stream Down in Moonlight",220,null,null,null,null,null,"All passages, Mantram theme"]
["Kabir","Weaving Your Name",221,null,null,null,null,null,"All passages, Mantram theme"]
["A Song of Sri Ramakrishna","Chant the Sweet Name of God",222,null,null,null,null,null,"All passages, Mantram theme"]
["Shankara","Thy Holy Name",223,null,null,null,null,null,"All passages, Stage of Life: Death and Dying, Mantram theme"]
["The Chandogya Upanishad","You Are That",224,null,null,null,null,null,"All passages"]
["Saint Catherine of Genoa","A Sea of Peace",226,null,null,null,null,null,"All passages"]
["The Katha Upanishad","The Tree of Eternity",227,null,null,null,null,null,"All passages"]
["Saint Augustine","Entering into Joy",230,null,null,null,null,null,"All passages, Positive Qualities: Faith"]
["A Song of Sri Ramakrishna","Thou One without a Second",231,null,null,null,null,null,"All passages"]
["The Shvetashvatara Upanishad","Love the Lord & Be Free",232,null,null,null,null,null,"All passages, Positive Qualities: Devotion to God"]
["Kabir","The Fruit of the Tree",234,null,null,null,null,null,"All passages"]
["The Yoga Vasishtha","The Lamp of Wisdom",235,null,null,null,null,null,"All passages"]
["The Dhammapada","Cross the River Bravely",236,null,null,null,null,null,"All passages"]
["The Bhagavad Gita","Be Aware of Me Always",241,null,null,null,null,null,"All passages"]
["The Chandogya Upanishad","The City of Brahman",244,null,null,null,null,null,"All passages, Stage of Life: Death and Dying, Changing Negativity: Negative thinking in general"]
["Jalaluddin Rumi","A Garden beyond Paradise",246,null,null,null,null,null,"All passages, Stage of Life: Death and Dying"]
["Mahatma Gandhi","Self-Surrender",248,null,null,null,null,null,"All passages, Positive Qualities: Patience"]
["Ravidas","The City of God",249,null,null,null,null,null,"All passages"]
["The Shvetashvatara Upanishad","The Bridge to Immortality",250,null,null,null,null,null,"All passages, Positive Qualities: Patience, Mantram theme"]
["Eknath Easwaran","Setu Prayer",253,null,null,null,null,null,"All passages, Stage of Life: Expectant mothers & families with babies, Stage of Life: Death and Dying"]

{"sheet":"Timeless Wisdom","index":3,"n_rows":111,"n_cols":10,"rows_kept":111,"cut":false,"hidden":false,"merged":[[0,0,3,1],[3,3,3,7]]}
["Timeless Wisdom"]
[null,null,"Choose Passages to Diplay:"]
[null,null,"Show1","Show2"]
[null,null,null,"All passages"]
[null,null,"Passages not in God Makes the Rivers to Flow"]
[]
["Author","Passage","Page","Date Begun\n(approximate)","Percent\nMemorized","Expertise\nLevel","Custom\nCategories","  ","Show1","Show2"]
["St. Francis of Assisi","The Prayer of St. Francis",33,null,null,null,null,null,null,"All passages"]
["Isha Upanishad","The Inner Ruler",34,null,null,null,null,null,null,"All passages"]
["Lao Tzu","Holding to the Constant",37,null,null,null,null,null,null,"All passages"]
["Abraham Isaac Kook","Radiant Is the World Soul",38,null,null,null,null,null,null,"All passages"]
["Hasan Kaimi Baba","The Path of Love",39,null,null,null,null,null,null,"All passages"]
["St. Teresa of Avila","Let Nothing Upset You",40,null,null,null,null,null,null,"All passages"]
["The Buddha","Twin Verses",41,null,null,null,null,null,null,"All passages"]
["St. Symeon the New Theologian","I Know That He Reveals Himself",44,null,null,null,null,null,null,"All passages"]
["Dov Baer of Mezhirech","Cast Aside What Limits You",45,null,null,null,null,null,"Passages not in God Makes the Rivers to Flow","All passages"]
["Bhagavad Gita","The Way of Love",46,null,null,null,null,null,null,"All passages"]
["Gospel of St. Matthew","The Beatitudes",49,null,null,null,null,null,null,"All passages"]
["Kabir","The Unstruck Bells and Drums",51,null,null,null,null,null,null,"All passages"]
["Thomas à Kempis","The Wonderful Effect of Divine Love",53,null,null,null,null,null,null,"All passages"]
["Swami Omkar","Prayer for Peace",57,null,null,null,null,null,null,"All passages"]
["Rabi'a","Dawn Prayer",58,null,null,null,null,null,null,"All passages"]
["Eleazar Azikri","Beloved of the Soul",59,null,null,null,null,null,null,"All passages"]
["Psalm 23","The Lord Is My Shepherd",60,null,null,null,null,null,null,"All passages"]
["The Buddha","Discourse on Good Will",61,null,null,null,null,null,null,"All passages"]
["Ansari ofHerat","Invocations",63,null,null,null,null,null,null,"All passages"]
["Bhagavad Gita","Whatever You Do",72,null,null,null,null,null,null,"All passages"]
["Brother Lawrence","Practicing the Presence of God",74,null,null,null,null,null,null,"All passages"]
["Shantideva","The Miracle of Illumination",76,null,null,null,null,null,null,"All passages"]
["Psalm 119","I Am the One Who Will Never Forget You",77,null,null,null,null,null,"Passages not in God Makes the Rivers to Flow","All passages"]
["Sarada Devi","The Whole World Is Your Own",84,null,null,null,null,null,null,"All passages"]
["St. Paul","Epistle on Love",85,null,null,null,null,null,null,"All passages"]
["Bhagavad Gita","What Is Real Never Ceases",86,null,null,null,null,null,null,"All passages"]
["Lao Tzu","The Best",89,null,null,null,null,null,null,"All passages"]
["St. Patrick","Christ Be With Me",90,null,null,null,null,null,null,"All passages"]
["Jewish Liturgy","Sabbath Prayer",91,null,null,null,null,null,null,"All passages"]
["Thomas à Kempis","Lord That Giveth Strength",92,null,null,null,null,null,null,"All passages"]
["Mahmud Shabestari","The Mirror of this World",96,null,null,null,null,null,null,"All passages"]
["Katha Upanishad","Perennial Joy",97,null,null,null,null,null,null,"All passages"]
["Solomon ibn Gabirol","The Living God",103,null,null,null,null,null,null,"All passages"]
["St. Catherine of Genoa","A Sea of Peace",104,null,null,null,null,null,null,"All passages"]
["Chandogya Upanishad","You Are That",105,null,null,null,null,null,null,"All passages"]
["The Buddha","Cross the River Bravely",108,null,null,null,null,null,null,"All passages"]
["St. Francis de Sales","Do Not Look with Fear",114,null,null,null,null,null,null,"All passages"]
["Bhagavad Gita","Living in Wisdom",115,null,null,null,null,null,null,"All passages"]
["Native American","Great Life-Giving Spirit",116,null,null,null,null,null,null,"All passages"]
["Gospel of St. Matthew","The Lord's Prayer",121,null,null,null,null,null,null,"All passages"]
["Mahatma Gandhi","The Path",122,null,null,null,null,null,null,"All passages"]
["Baba Kuhi ofShiraz","Only God I Saw",123,null,null,null,null,null,null,"All passages"]
["Psalm 139","Lord, Thou Hast Searched Me",124,null,null,null,null,null,null,"All passages"]
["Chandogya Upanishad","The City of Brahman",127,null,null,null,null,null,null,"All passages"]
["Lao Tzu","Finding Unity",130,null,null,null,null,null,null,"All passages"]
["Book of Common Prayer","I Am the Resurrection and the Life",131,null,null,null,null,null,null,"All passages"]
["The Qur'an","The Opening",133,null,null,null,null,null,"Passages not in God Makes the Rivers to Flow","All passages"]
["Psalm 100","Worship the Lord in Gladness",134,null,null,null,null,null,null,"All passages"]
["RigVeda","United in Heart",135,null,null,null,null,null,null,"All passages"]
["Hazrat Inayat Khan","Prayer for the Peace of the World",136,null,null,null,null,null,null,"All passages"]
["Solomon ibn Gabirol","Adon Olam",137,null,null,null,null,null,null,"All passages"]
["Saint Thérèse of Lisieux","Living on Love",138,null,null,null,null,null,null,"All passages"]
["Lao Tzu","Mother of All Things",141,null,null,null,null,null,null,"All passages"]
["Katha Upanishad","The Razor's Edge",142,null,null,null,null,null,null,"All passages"]
["St. Augustine","Entering into Joy",145,null,null,null,null,null,null,"All passages"]
["Hazrat Inayat Khan","Prayer for Peace",147,null,null,null,null,null,null,"All passages"]
["Psalm 63","Lord, You Are My God",148,null,null,null,null,null,"Passages not in God Makes the Rivers to Flow","All passages"]
["Jalaluddin Rumi","A Garden Beyond Paradise",149,null,null,null,null,null,null,"All passages"]
["Gaelic Tradition","Silence",151,null,null,null,null,null,null,"All passages"]
["Fakhruddin Araqi","The Shining Essence",152,null,null,null,null,null,null,"All passages"]
["Psalm 24","The Earth Is the Lord's",154,null,null,null,null,null,null,"All passages"]
["Bhagavad Gita","Be Aware of Me Always",155,null,null,null,null,null,null,"All passages"]
["Gospel of St. Matthew","The Sermon on the Mount",159,null,null,null,null,null,null,"All passages"]
["Hasan al-Basri","Remembrance of God",160,null,null,null,null,null,"Passages not in God Makes the Rivers to Flow","All passages"]
["Seng Ts'an","Believing in Mind",161,null,null,null,null,null,null,"All passages"]
["Bahya ibn Pakuda","Duties of the Heart",164,null,null,null,null,null,null,"All passages"]
["Isaiah","When You Call",166,null,null,null,null,null,null,"All passages"]
["Shvetashvatara Upanishad","The One Appearing as Many",167,null,null,null,null,null,null,"All passages"]
["Judah Halevy","Lord, Where Shall I Find You?",171,null,null,null,null,null,"Passages not in God Makes the Rivers to Flow","All passages"]
["Upanishads","Invocation",172,null,null,null,null,null,null,"All passages"]
["Gaelic Tradition","This Morning I Pray",173,null,null,null,null,null,null,"All passages"]
["Katha Upanishad","The Immortal",174,null,null,null,null,null,null,"All passages"]
["Kabir","The Temple of the Lord",177,null,null,null,null,null,null,"All passages"]
["Fakhraddin ar-Razi","Remember Me Through Grace",179,null,null,null,null,null,"Passages not in God Makes the Rivers to Flow","All passages"]
["Songs of Sri Ramakrishna","Dwell, O Mind, Within Yourself",180,null,null,null,null,null,null,"All passages"]
["St. Clare of Assisi","The Mirror of Eternity",181,null,null,null,null,null,null,"All passages"]
["Mishkat al-Masabih","I Come to Him Running",182,null,null,null,null,null,null,"All passages"]
["The Buddha","The Saint",183,null,null,null,null,null,null,"All passages"]
["Meera","Come, Beloved",185,null,null,null,null,null,null,"All passages"]
["Meera","The Path to Your Dwelling",186,null,null,null,null,null,null,"All passages"]
["Meera","Life of My Life",187,null,null,null,null,null,null,"All passages"]
["Chief Yellow Lark","Let Me Walk in Beauty",188,null,null,null,null,null,null,"All passages"]
["St. Teresa of Avila","Her Heart Is Full ofJoy",189,null,null,null,null,null,null,"All passages"]
["Katha Upanishad","The Tree of Eternity",190,null,null,null,null,null,null,"All passages"]
["TheBuddha","The Island",193,null,null,null,null,null,null,"All passages"]
["Bhagavad Gita","All Paths Lead to Me",194,null,null,null,null,null,null,"All passages"]
["Torah","The Shema",195,null,null,null,null,null,null,"All passages"]
["Abu Sa 'id","If You Want to Draw Near to God",196,"2015-12-01",null,null,null,null,"Passages not in God Makes the Rivers to Flow","All passages"]
["Mechthild of Magdeburg","Lord, I Bring Thee My Treasure",197,null,null,null,null,null,null,"All passages"]
["Kabir","Simple Union",198,null,null,null,null,null,null,"All passages"]
["Tukaram","Think on His Name",199,null,null,null,null,null,null,"All passages"]
["Jewish Liturgy","Evening Prayer for the Sabbath",200,null,null,null,null,null,null,"All passages"]
["Kabir","The River of Love",201,null,null,null,null,null,null,"All passages"]
["Thomas à Kempis","Four Things that Bring Much Inward Peace",202,null,null,null,null,null,null,"All passages"]
["Guru Nanak","There Is But One God",203,null,null,null,null,null,"Passages not in God Makes the Rivers to Flow","All passages"]
["St. Teresa of Avila","I Gave All My Heart",204,null,null,null,null,null,null,"All passages"]
["Rabi'a","Night Prayer",205,null,null,null,null,null,null,"All passages"]
["Rig Veda","God Makes the Rivers to Flow",206,null,null,null,null,null,null,"All passages"]
["St. Bernard of Clairvaux","That Wondrous Star",207,null,null,null,null,null,null,"All passages"]
["Meera","Singing Your Name",209,null,null,null,null,null,null,"All passages"]
["Jewish Liturgy","Mourner's Kaddish",210,null,null,null,null,null,null,"All passages"]
["Kabir","Weaving Your Name",211,null,null,null,null,null,null,"All passages"]
["Kabir","The Fruit of the Tree",212,null,null,null,null,null,null,"All passages"]
["Ravidas","Grieve Not",213,null,null,null,null,null,null,"All passages"]

{"sheet":"Other Passages","index":4,"n_rows":58,"n_cols":7,"rows_kept":58,"cut":false,"hidden":false,"merged":[[0,0,3,1]]}
["Other Passages"]
[]
[]
[]
[]
[]
["Author","Passage",null,"Date Begun\n(approximate)","Percent\nMemorized","Expertise\nLevel","Custom\nCategories"]
["Eknath Easwaran","A Prayer for Meditation",null,"2016-08-01",1,"Skill"]
[null,"Paramahamsa Upanishad",null,null,null,"Planning to learn","Long"]
[]
[]
[]
[]
[]
[]
[]
[]
[]
[]
[]
[]
[]
[]
[]
[]
[]
[]
[]
[]
[]
[]
[]
[]
[]
[]
[]
[]
[]
[]
[]
[]
[]
[]
[]
[]
[]
[]
[]
[]
[]
[]
[]
[]
[]
[]
[]
[]
[" "," "," "," "," "," "," "]

{"sheet":"My Name","index":5,"n_rows":2,"n_cols":2,"rows_kept":2,"cut":false,"hidden":false,"merged":[[1,0,1,1]]}
["My name:","Larry"]
["Your name will be displayed at the top of the Presentation sheet."]

{"sheet":"My Notes","index":6,"n_rows":1,"n_cols":1,"rows_kept":1,"cut":false,"hidden":false,"merged":[]}
["Notes Page"]

{"sheet":"Version","index":7,"n_rows":1,"n_cols":2,"rows_kept":1,"cut":false,"hidden":true,"merged":[]}
["Portfolio version:","2016_10_29"]

{"sheet":"Statistics","index":8,"n_rows":10,"n_cols":2,"rows_kept":10,"cut":false,"hidden":true,"merged":[[0,0,0,1],[6,0,6,1]]}
["Passages in Repertoire: All\n(i.e., with any Date Begun, Percent Memorized, Expertise Level, or Other)"]
["God Makes The Rivers To Flow",{"$f":"COUNTIF(BackendFilterMirrorGMRF, \"\\\\SHOW\")","v":5}]
["Timeless Wisdom",{"$f":"COUNTIF(BackendFilterMirrorTW, \"\\\\SHOW\")","v":1}]
["Other Passages",{"$f":"COUNTIF(BackendFilterMirrorOP, \"\\\\SHOW\")","v":2}]
[]
[]
["Passages in Repertoire: Meeting Current Display Criteria"]
["God Makes The Rivers To Flow"]
["Timeless Wisdom"]
["Other Passages"]

{"sheet":"Lists","index":9,"n_rows":308,"n_cols":13,"rows_kept":308,"cut":false,"hidden":true,"merged":[]}
["Levels of Expertise","Levels of Expertise Order","Percent Memorized","Yes/No","Or More/Less","Sort Orders","Timeless Wisdom","God Makes The Rivers To Flow","Custom Categories: Mirror","Custom Categories: List","CustomCategoriesListCount","Columns To Display Choice"," "]
["Planning to learn",1,0,"Yes","or more","Book and page number","All passages","All passages",{"$f":"IF(ISBLANK(INDEX(GMTRTFCustomCategories,ROW()-1)),\"\",INDEX(GMTRTFCustomCategories,ROW()-1))","v":""},{"$f":"IFERROR(INDEX(FilterUniqueSort(ListsCustomCategoriesMirror),ROW()-1),NA())","v":"Core"},{"$f":"COUNTA(ListsCustomCategoriesList)-SUM(IF(ISNA(ListsCustomCategoriesList),1))","v":5},"Custom Categories"," "]
["Knowledge",2,0.25,"No","or less","Custom categories: A to Z","Passages not in God Makes the Rivers to Flow","Stage of Life: Expectant mothers & families with babies","",{"$f":"IFERROR(INDEX(FilterUniqueSort(ListsCustomCategoriesMirror),ROW()-1),NA())","v":"Joy"},null,"Expertise Level"," "]
["Production",3,0.5,null,null,"Custom categories: Z to A",null,"Stage of Life: Families with small children","",{"$f":"IFERROR(INDEX(FilterUniqueSort(ListsCustomCategoriesMirror),ROW()-1),NA())","v":"Long"},null,"Percent Memorized"," "]
["Skill",4,0.75,null,null,"Expertise level: lowest to highest",null,"Stage of Life: Teens","",{"$f":"IFERROR(INDEX(FilterUniqueSort(ListsCustomCategoriesMirror),ROW()-1),NA())","v":"Reassurance"},null,"Years in Repertoire"," "]
["Habit",5,1,null,null,"Expertise level: highest to lowest",null,"Stage of Life: Illness, pain, loss of function","",{"$f":"IFERROR(INDEX(FilterUniqueSort(ListsCustomCategoriesMirror),ROW()-1),NA())","v":"Reassurance, Joy"},null,null," "]
[null,null,null,null,null,"Percent memorized: lowest to highest",null,"Stage of Life: Caregivers","",{"$f":"IFERROR(INDEX(FilterUniqueSort(ListsCustomCategoriesMirror),ROW()-1),NA())","v":{"$error":"#N/A"}},null,null," "]
[null,null,null,null,null,"Percent memorized: highest to lowest",null,"Stage of Life: Death and Dying","",{"$f":"IFERROR(INDEX(FilterUniqueSort(ListsCustomCategoriesMirror),ROW()-1),NA())","v":{"$error":"#N/A"}},null,null," "]
[null,null,null,null,null,"Years in repertoire: newest to oldest",null,"Stage of Life: Grief and loss","",{"$f":"IFERROR(INDEX(FilterUniqueSort(ListsCustomCategoriesMirror),ROW()-1),NA())","v":{"$error":"#N/A"}},null,null," "]
[null,null,null,null,null,"Years in repertoire: oldest to newest",null,"Positive Qualities: Patience","Joy",{"$f":"IFERROR(INDEX(FilterUniqueSort(ListsCustomCategoriesMirror),ROW()-1),NA())","v":{"$error":"#N/A"}},null,null," "]
[null,null,null,null,null,null,null,"Positive Qualities: Compassion and generosity","",{"$f":"IFERROR(INDEX(FilterUniqueSort(ListsCustomCategoriesMirror),ROW()-1),NA())","v":{"$error":"#N/A"}},null,null," "]
[null,null,null,null,null,null,null,"Positive Qualities: Courage","",{"$f":"IFERROR(INDEX(FilterUniqueSort(ListsCustomCategoriesMirror),ROW()-1),NA())","v":{"$error":"#N/A"}},null,null," "]
[null,null,null,null,null,null,null,"Positive Qualities: Faith","",{"$f":"IFERROR(INDEX(FilterUniqueSort(ListsCustomCategoriesMirror),ROW()-1),NA())","v":{"$error":"#N/A"}},null,null," "]
[null,null,null,null,null,null,null,"Positive Qualities: Devotion to God","",{"$f":"IFERROR(INDEX(FilterUniqueSort(ListsCustomCategoriesMirror),ROW()-1),NA())","v":{"$error":"#N/A"}},null,null," "]
[null,null,null,null,null,null,null,"Positive Qualities: Putting others first","",{"$f":"IFERROR(INDEX(FilterUniqueSort(ListsCustomCategoriesMirror),ROW()-1),NA())","v":{"$error":"#N/A"}},null,null," "]
[null,null,null,null,null,null,null,"Changing Negativity: Anger, hostility, resentment, ill will","",{"$f":"IFERROR(INDEX(FilterUniqueSort(ListsCustomCategoriesMirror),ROW()-1),NA())","v":{"$error":"#N/A"}},null,null," "]
[null,null,null,null,null,null,null,"Changing Negativity: Unfinished business, disloyalty, procrastination","",{"$f":"IFERROR(INDEX(FilterUniqueSort(ListsCustomCategoriesMirror),ROW()-1),NA())","v":{"$error":"#N/A"}},null,null," "]
[null,null,null,null,null,null,null,"Changing Negativity: Fear, anxiety, inadequacy","",{"$f":"IFERROR(INDEX(FilterUniqueSort(ListsCustomCategoriesMirror),ROW()-1),NA())","v":{"$error":"#N/A"}},null,null," "]
[null,null,null,null,null,null,null,"Changing Negativity: Greed, craving, selfish desire","",{"$f":"IFERROR(INDEX(FilterUniqueSort(ListsCustomCategoriesMirror),ROW()-1),NA())","v":{"$error":"#N/A"}},null,null," "]
[null,null,null,null,null,null,null,"Changing Negativity: Jealousy","",{"$f":"IFERROR(INDEX(FilterUniqueSort(ListsCustomCategoriesMirror),ROW()-1),NA())","v":{"$error":"#N/A"}},null,null," "]
[null,null,null,null,null,null,null,"Changing Negativity: Dwelling on oneself, depression","",{"$f":"IFERROR(INDEX(FilterUniqueSort(ListsCustomCategoriesMirror),ROW()-1),NA())","v":{"$error":"#N/A"}},null,null," "]
[null,null,null,null,null,null,null,"Changing Negativity: Negative thinking in general","",{"$f":"IFERROR(INDEX(FilterUniqueSort(ListsCustomCategoriesMirror),ROW()-1),NA())","v":{"$error":"#N/A"}},null,null," "]
[null,null,null,null,null,null,null,"Mantram theme","",{"$f":"IFERROR(INDEX(FilterUniqueSort(ListsCustomCategoriesMirror),ROW()-1),NA())","v":{"$error":"#N/A"}},null,null," "]
[null,null,null,null,null,null,null,null,"",{"$f":"IFERROR(INDEX(FilterUniqueSort(ListsCustomCategoriesMirror),ROW()-1),NA())","v":{"$error":"#N/A"}},null,null," "]
[null,null,null,null,null,null,null,null,"",{"$f":"IFERROR(INDEX(FilterUniqueSort(ListsCustomCategoriesMirror),ROW()-1),NA())","v":{"$error":"#N/A"}},null,null," "]
[null,null,null,null,null,null,null,null,"",{"$f":"IFERROR(INDEX(FilterUniqueSort(ListsCustomCategoriesMirror),ROW()-1),NA())","v":{"$error":"#N/A"}},null,null," "]
[null,null,null,null,null,null,null,null,"",{"$f":"IFERROR(INDEX(FilterUniqueSort(ListsCustomCategoriesMirror),ROW()-1),NA())","v":{"$error":"#N/A"}},null,null," "]
[null,null,null,null,null,null,null,null,"",{"$f":"IFERROR(INDEX(FilterUniqueSort(ListsCustomCategoriesMirror),ROW()-1),NA())","v":{"$error":"#N/A"}},null,null," "]
[null,null,null,null,null,null,null,null,"",{"$f":"IFERROR(INDEX(FilterUniqueSort(ListsCustomCategoriesMirror),ROW()-1),NA())","v":{"$error":"#N/A"}},null,null," "]
[null,null,null,null,null,null,null,null,"",{"$f":"IFERROR(INDEX(FilterUniqueSort(ListsCustomCategoriesMirror),ROW()-1),NA())","v":{"$error":"#N/A"}},null,null," "]
[null,null,null,null,null,null,null,null,"",{"$f":"IFERROR(INDEX(FilterUniqueSort(ListsCustomCategoriesMirror),ROW()-1),NA())","v":{"$error":"#N/A"}},null,null," "]
[null,null,null,null,null,null,null,null,"",{"$f":"IFERROR(INDEX(FilterUniqueSort(ListsCustomCategoriesMirror),ROW()-1),NA())","v":{"$error":"#N/A"}},null,null," "]
[null,null,null,null,null,null,null,null,"",{"$f":"IFERROR(INDEX(FilterUniqueSort(ListsCustomCategoriesMirror),ROW()-1),NA())","v":{"$error":"#N/A"}},null,null," "]
[null,null,null,null,null,null,null,null,{"$f":"IF(ISBLANK(INDEX(GMTRTFCustomCategories,ROW()-1)),\"\",INDEX(GMTRTFCustomCategories,ROW()-1))","v":""},{"$f":"IFERROR(INDEX(FilterUniqueSort(ListsCustomCategoriesMirror),ROW()-1),NA())","v":{"$error":"#N/A"}},null,null," "]
[null,null,null,null,null,null,null,null,"",{"$f":"IFERROR(INDEX(FilterUniqueSort(ListsCustomCategoriesMirror),ROW()-1),NA())","v":{"$error":"#N/A"}},null,null," "]
[null,null,null,null,null,null,null,null,"",{"$f":"IFERROR(INDEX(FilterUniqueSort(ListsCustomCategoriesMirror),ROW()-1),NA())","v":{"$error":"#N/A"}},null,null," "]
[null,null,null,null,null,null,null,null,"",{"$f":"IFERROR(INDEX(FilterUniqueSort(ListsCustomCategoriesMirror),ROW()-1),NA())","v":{"$error":"#N/A"}},null,null," "]
[null,null,null,null,null,null,null,null,"",{"$f":"IFERROR(INDEX(FilterUniqueSort(ListsCustomCategoriesMirror),ROW()-1),NA())","v":{"$error":"#N/A"}},null,null," "]
[null,null,null,null,null,null,null,null,"",{"$f":"IFERROR(INDEX(FilterUniqueSort(ListsCustomCategoriesMirror),ROW()-1),NA())","v":{"$error":"#N/A"}},null,null," "]
[null,null,null,null,null,null,null,null,"",{"$f":"IFERROR(INDEX(FilterUniqueSort(ListsCustomCategoriesMirror),ROW()-1),NA())","v":{"$error":"#N/A"}},null,null," "]
[null,null,null,null,null,null,null,null,"",{"$f":"IFERROR(INDEX(FilterUniqueSort(ListsCustomCategoriesMirror),ROW()-1),NA())","v":{"$error":"#N/A"}},null,null," "]
[null,null,null,null,null,null,null,null,"",{"$f":"IFERROR(INDEX(FilterUniqueSort(ListsCustomCategoriesMirror),ROW()-1),NA())","v":{"$error":"#N/A"}},null,null," "]
[null,null,null,null,null,null,null,null,"",{"$f":"IFERROR(INDEX(FilterUniqueSort(ListsCustomCategoriesMirror),ROW()-1),NA())","v":{"$error":"#N/A"}},null,null," "]
[null,null,null,null,null,null,null,null,"",{"$f":"IFERROR(INDEX(FilterUniqueSort(ListsCustomCategoriesMirror),ROW()-1),NA())","v":{"$error":"#N/A"}},null,null," "]
[null,null,null,null,null,null,null,null,"",{"$f":"IFERROR(INDEX(FilterUniqueSort(ListsCustomCategoriesMirror),ROW()-1),NA())","v":{"$error":"#N/A"}},null,null," "]
[null,null,null,null,null,null,null,null,"",{"$f":"IFERROR(INDEX(FilterUniqueSort(ListsCustomCategoriesMirror),ROW()-1),NA())","v":{"$error":"#N/A"}},null,null," "]
[null,null,null,null,null,null,null,null,"",{"$f":"IFERROR(INDEX(FilterUniqueSort(ListsCustomCategoriesMirror),ROW()-1),NA())","v":{"$error":"#N/A"}},null,null," "]
[null,null,null,null,null,null,null,null,"",{"$f":"IFERROR(INDEX(FilterUniqueSort(ListsCustomCategoriesMirror),ROW()-1),NA())","v":{"$error":"#N/A"}},null,null," "]
[null,null,null,null,null,null,null,null,"",{"$f":"IFERROR(INDEX(FilterUniqueSort(ListsCustomCategoriesMirror),ROW()-1),NA())","v":{"$error":"#N/A"}},null,null," "]
[null,null,null,null,null,null,null,null,"",{"$f":"IFERROR(INDEX(FilterUniqueSort(ListsCustomCategoriesMirror),ROW()-1),NA())","v":{"$error":"#N/A"}},null,null," "]
[null,null,null,null,null,null,null,null,"",{"$f":"IFERROR(INDEX(FilterUniqueSort(ListsCustomCategoriesMirror),ROW()-1),NA())","v":{"$error":"#N/A"}},null,null," "]
[null,null,null,null,null,null,null,null,"",{"$f":"IFERROR(INDEX(FilterUniqueSort(ListsCustomCategoriesMirror),ROW()-1),NA())","v":{"$error":"#N/A"}},null,null," "]
[null,null,null,null,null,null,null,null,"",{"$f":"IFERROR(INDEX(FilterUniqueSort(ListsCustomCategoriesMirror),ROW()-1),NA())","v":{"$error":"#N/A"}},null,null," "]
[null,null,null,null,null,null,null,null,"",{"$f":"IFERROR(INDEX(FilterUniqueSort(ListsCustomCategoriesMirror),ROW()-1),NA())","v":{"$error":"#N/A"}},null,null," "]
[null,null,null,null,null,null,null,null,"",{"$f":"IFERROR(INDEX(FilterUniqueSort(ListsCustomCategoriesMirror),ROW()-1),NA())","v":{"$error":"#N/A"}},null,null," "]
[null,null,null,null,null,null,null,null,"Core",{"$f":"IFERROR(INDEX(FilterUniqueSort(ListsCustomCategoriesMirror),ROW()-1),NA())","v":{"$error":"#N/A"}},null,null," "]
[null,null,null,null,null,null,null,null,"",{"$f":"IFERROR(INDEX(FilterUniqueSort(ListsCustomCategoriesMirror),ROW()-1),NA())","v":{"$error":"#N/A"}},null,null," "]
[null,null,null,null,null,null,null,null,"",{"$f":"IFERROR(INDEX(FilterUniqueSort(ListsCustomCategoriesMirror),ROW()-1),NA())","v":{"$error":"#N/A"}},null,null," "]
[null,null,null,null,null,null,null,null,"",{"$f":"IFERROR(INDEX(FilterUniqueSort(ListsCustomCategoriesMirror),ROW()-1),NA())","v":{"$error":"#N/A"}},null,null," "]
[null,null,null,null,null,null,null,null,"",{"$f":"IFERROR(INDEX(FilterUniqueSort(ListsCustomCategoriesMirror),ROW()-1),NA())","v":{"$error":"#N/A"}},null,null," "]
[null,null,null,null,null,null,null,null,"",{"$f":"IFERROR(INDEX(FilterUniqueSort(ListsCustomCategoriesMirror),ROW()-1),NA())","v":{"$error":"#N/A"}},null,null," "]
[null,null,null,null,null,null,null,null,"",{"$f":"IFERROR(INDEX(FilterUniqueSort(ListsCustomCategoriesMirror),ROW()-1),NA())","v":{"$error":"#N/A"}},null,null," "]
[null,null,null,null,null,null,null,null,"",{"$f":"IFERROR(INDEX(FilterUniqueSort(ListsCustomCategoriesMirror),ROW()-1),NA())","v":{"$error":"#N/A"}},null,null," "]
[null,null,null,null,null,null,null,null,"",{"$f":"IFERROR(INDEX(FilterUniqueSort(ListsCustomCategoriesMirror),ROW()-1),NA())","v":{"$error":"#N/A"}},null,null," "]
[null,null,null,null,null,null,null,null,"",{"$f":"IFERROR(INDEX(FilterUniqueSort(ListsCustomCategoriesMirror),ROW()-1),NA())","v":{"$error":"#N/A"}},null,null," "]
[null,null,null,null,null,null,null,null,{"$f":"IF(ISBLANK(INDEX(GMTRTFCustomCategories,ROW()-1)),\"\",INDEX(GMTRTFCustomCategories,ROW()-1))","v":""},{"$f":"IFERROR(INDEX(FilterUniqueSort(ListsCustomCategoriesMirror),ROW()-1),NA())","v":{"$error":"#N/A"}},null,null," "]
[null,null,null,null,null,null,null,null,"",{"$f":"IFERROR(INDEX(FilterUniqueSort(ListsCustomCategoriesMirror),ROW()-1),NA())","v":{"$error":"#N/A"}},null,null," "]
[null,null,null,null,null,null,null,null,"",{"$f":"IFERROR(INDEX(FilterUniqueSort(ListsCustomCategoriesMirror),ROW()-1),NA())","v":{"$error":"#N/A"}},null,null," "]
[null,null,null,null,null,null,null,null,"",{"$f":"IFERROR(INDEX(FilterUniqueSort(ListsCustomCategoriesMirror),ROW()-1),NA())","v":{"$error":"#N/A"}},null,null," "]
[null,null,null,null,null,null,null,null,"",{"$f":"IFERROR(INDEX(FilterUniqueSort(ListsCustomCategoriesMirror),ROW()-1),NA())","v":{"$error":"#N/A"}},null,null," "]
[null,null,null,null,null,null,null,null,"",{"$f":"IFERROR(INDEX(FilterUniqueSort(ListsCustomCategoriesMirror),ROW()-1),NA())","v":{"$error":"#N/A"}},null,null," "]
[null,null,null,null,null,null,null,null,"",{"$f":"IFERROR(INDEX(FilterUniqueSort(ListsCustomCategoriesMirror),ROW()-1),NA())","v":{"$error":"#N/A"}},null,null," "]
[null,null,null,null,null,null,null,null,"",{"$f":"IFERROR(INDEX(FilterUniqueSort(ListsCustomCategoriesMirror),ROW()-1),NA())","v":{"$error":"#N/A"}},null,null," "]
[null,null,null,null,null,null,null,null,"",{"$f":"IFERROR(INDEX(FilterUniqueSort(ListsCustomCategoriesMirror),ROW()-1),NA())","v":{"$error":"#N/A"}},null,null," "]
[null,null,null,null,null,null,null,null,"",{"$f":"IFERROR(INDEX(FilterUniqueSort(ListsCustomCategoriesMirror),ROW()-1),NA())","v":{"$error":"#N/A"}},null,null," "]
[null,null,null,null,null,null,null,null,"",{"$f":"IFERROR(INDEX(FilterUniqueSort(ListsCustomCategoriesMirror),ROW()-1),NA())","v":{"$error":"#N/A"}},null,null," "]
[null,null,null,null,null,null,null,null,"",{"$f":"IFERROR(INDEX(FilterUniqueSort(ListsCustomCategoriesMirror),ROW()-1),NA())","v":{"$error":"#N/A"}},null,null," "]
[null,null,null,null,null,null,null,null,"",{"$f":"IFERROR(INDEX(FilterUniqueSort(ListsCustomCategoriesMirror),ROW()-1),NA())","v":{"$error":"#N/A"}},null,null," "]
[null,null,null,null,null,null,null,null,"",{"$f":"IFERROR(INDEX(FilterUniqueSort(ListsCustomCategoriesMirror),ROW()-1),NA())","v":{"$error":"#N/A"}},null,null," "]
[null,null,null,null,null,null,null,null,"",{"$f":"IFERROR(INDEX(FilterUniqueSort(ListsCustomCategoriesMirror),ROW()-1),NA())","v":{"$error":"#N/A"}},null,null," "]
[null,null,null,null,null,null,null,null,"",{"$f":"IFERROR(INDEX(FilterUniqueSort(ListsCustomCategoriesMirror),ROW()-1),NA())","v":{"$error":"#N/A"}},null,null," "]
[null,null,null,null,null,null,null,null,"Reassurance, Joy",{"$f":"IFERROR(INDEX(FilterUniqueSort(ListsCustomCategoriesMirror),ROW()-1),NA())","v":{"$error":"#N/A"}},null,null," "]
[null,null,null,null,null,null,null,null,"",{"$f":"IFERROR(INDEX(FilterUniqueSort(ListsCustomCategoriesMirror),ROW()-1),NA())","v":{"$error":"#N/A"}},null,null," "]
[null,null,null,null,null,null,null,null,"",{"$f":"IFERROR(INDEX(FilterUniqueSort(ListsCustomCategoriesMirror),ROW()-1),NA())","v":{"$error":"#N/A"}},null,null," "]
[null,null,null,null,null,null,null,null,"",{"$f":"IFERROR(INDEX(FilterUniqueSort(ListsCustomCategoriesMirror),ROW()-1),NA())","v":{"$error":"#N/A"}},null,null," "]
[null,null,null,null,null,null,null,null,"",{"$f":"IFERROR(INDEX(FilterUniqueSort(ListsCustomCategoriesMirror),ROW()-1),NA())","v":{"$error":"#N/A"}},null,null," "]
[null,null,null,null,null,null,null,null,"",{"$f":"IFERROR(INDEX(FilterUniqueSort(ListsCustomCategoriesMirror),ROW()-1),NA())","v":{"$error":"#N/A"}},null,null," "]
[null,null,null,null,null,null,null,null,"",{"$f":"IFERROR(INDEX(FilterUniqueSort(ListsCustomCategoriesMirror),ROW()-1),NA())","v":{"$error":"#N/A"}},null,null," "]
[null,null,null,null,null,null,null,null,"",{"$f":"IFERROR(INDEX(FilterUniqueSort(ListsCustomCategoriesMirror),ROW()-1),NA())","v":{"$error":"#N/A"}},null,null," "]
[null,null,null,null,null,null,null,null,"",{"$f":"IFERROR(INDEX(FilterUniqueSort(ListsCustomCategoriesMirror),ROW()-1),NA())","v":{"$error":"#N/A"}},null,null," "]
[null,null,null,null,null,null,null,null,"",{"$f":"IFERROR(INDEX(FilterUniqueSort(ListsCustomCategoriesMirror),ROW()-1),NA())","v":{"$error":"#N/A"}},null,null," "]
[null,null,null,null,null,null,null,null,"",{"$f":"IFERROR(INDEX(FilterUniqueSort(ListsCustomCategoriesMirror),ROW()-1),NA())","v":{"$error":"#N/A"}},null,null," "]
[null,null,null,null,null,null,null,null,"",{"$f":"IFERROR(INDEX(FilterUniqueSort(ListsCustomCategoriesMirror),ROW()-1),NA())","v":{"$error":"#N/A"}},null,null," "]
[null,null,null,null,null,null,null,null,"",{"$f":"IFERROR(INDEX(FilterUniqueSort(ListsCustomCategoriesMirror),ROW()-1),NA())","v":{"$error":"#N/A"}},null,null," "]
[null,null,null,null,null,null,null,null,"",{"$f":"IFERROR(INDEX(FilterUniqueSort(ListsCustomCategoriesMirror),ROW()-1),NA())","v":{"$error":"#N/A"}},null,null," "]
[null,null,null,null,null,null,null,null,"",{"$f":"IFERROR(INDEX(FilterUniqueSort(ListsCustomCategoriesMirror),ROW()-1),NA())","v":{"$error":"#N/A"}},null,null," "]
[null,null,null,null,null,null,null,null,"",{"$f":"IFERROR(INDEX(FilterUniqueSort(ListsCustomCategoriesMirror),ROW()-1),NA())","v":{"$error":"#N/A"}},null,null," "]
[null,null,null,null,null,null,null,null,{"$f":"IF(ISBLANK(INDEX(GMTRTFCustomCategories,ROW()-1)),\"\",INDEX(GMTRTFCustomCategories,ROW()-1))","v":""},{"$f":"IFERROR(INDEX(FilterUniqueSort(ListsCustomCategoriesMirror),ROW()-1),NA())","v":{"$error":"#N/A"}},null,null," "]
[null,null,null,null,null,null,null,null,"",{"$f":"IFERROR(INDEX(FilterUniqueSort(ListsCustomCategoriesMirror),ROW()-1),NA())","v":{"$error":"#N/A"}},null,null," "]
[null,null,null,null,null,null,null,null,"",{"$f":"IFERROR(INDEX(FilterUniqueSort(ListsCustomCategoriesMirror),ROW()-1),NA())","v":{"$error":"#N/A"}},null,null," "]
[null,null,null,null,null,null,null,null,"",{"$f":"IFERROR(INDEX(FilterUniqueSort(ListsCustomCategoriesMirror),ROW()-1),NA())","v":{"$error":"#N/A"}}]
[null,null,null,null,null,null,null,null,"",{"$f":"IFERROR(INDEX(FilterUniqueSort(ListsCustomCategoriesMirror),ROW()-1),NA())","v":{"$error":"#N/A"}}]
[null,null,null,null,null,null,null,null,"",{"$f":"IFERROR(INDEX(FilterUniqueSort(ListsCustomCategoriesMirror),ROW()-1),NA())","v":{"$error":"#N/A"}}]
[null,null,null,null,null,null,null,null,"",{"$f":"IFERROR(INDEX(FilterUniqueSort(ListsCustomCategoriesMirror),ROW()-1),NA())","v":{"$error":"#N/A"}}]
[null,null,null,null,null,null,null,null,"",{"$f":"IFERROR(INDEX(FilterUniqueSort(ListsCustomCategoriesMirror),ROW()-1),NA())","v":{"$error":"#N/A"}}]
[null,null,null,null,null,null,null,null,"",{"$f":"IFERROR(INDEX(FilterUniqueSort(ListsCustomCategoriesMirror),ROW()-1),NA())","v":{"$error":"#N/A"}}]
[null,null,null,null,null,null,null,null,"",{"$f":"IFERROR(INDEX(FilterUniqueSort(ListsCustomCategoriesMirror),ROW()-1),NA())","v":{"$error":"#N/A"}}]
[null,null,null,null,null,null,null,null,"",{"$f":"IFERROR(INDEX(FilterUniqueSort(ListsCustomCategoriesMirror),ROW()-1),NA())","v":{"$error":"#N/A"}}]
[null,null,null,null,null,null,null,null,"",{"$f":"IFERROR(INDEX(FilterUniqueSort(ListsCustomCategoriesMirror),ROW()-1),NA())","v":{"$error":"#N/A"}}]
[null,null,null,null,null,null,null,null,"",{"$f":"IFERROR(INDEX(FilterUniqueSort(ListsCustomCategoriesMirror),ROW()-1),NA())","v":{"$error":"#N/A"}}]
[null,null,null,null,null,null,null,null,"",{"$f":"IFERROR(INDEX(FilterUniqueSort(ListsCustomCategoriesMirror),ROW()-1),NA())","v":{"$error":"#N/A"}}]
[null,null,null,null,null,null,null,null,"",{"$f":"IFERROR(INDEX(FilterUniqueSort(ListsCustomCategoriesMirror),ROW()-1),NA())","v":{"$error":"#N/A"}}]
[null,null,null,null,null,null,null,null,"",{"$f":"IFERROR(INDEX(FilterUniqueSort(ListsCustomCategoriesMirror),ROW()-1),NA())","v":{"$error":"#N/A"}}]
[null,null,null,null,null,null,null,null,"",{"$f":"IFERROR(INDEX(FilterUniqueSort(ListsCustomCategoriesMirror),ROW()-1),NA())","v":{"$error":"#N/A"}}]
[null,null,null,null,null,null,null,null,"",{"$f":"IFERROR(INDEX(FilterUniqueSort(ListsCustomCategoriesMirror),ROW()-1),NA())","v":{"$error":"#N/A"}}]
[null,null,null,null,null,null,null,null,"",{"$f":"IFERROR(INDEX(FilterUniqueSort(ListsCustomCategoriesMirror),ROW()-1),NA())","v":{"$error":"#N/A"}}]
[null,null,null,null,null,null,null,null,"",{"$f":"IFERROR(INDEX(FilterUniqueSort(ListsCustomCategoriesMirror),ROW()-1),NA())","v":{"$error":"#N/A"}}]
[null,null,null,null,null,null,null,null,"",{"$f":"IFERROR(INDEX(FilterUniqueSort(ListsCustomCategoriesMirror),ROW()-1),NA())","v":{"$error":"#N/A"}}]
[null,null,null,null,null,null,null,null,"",{"$f":"IFERROR(INDEX(FilterUniqueSort(ListsCustomCategoriesMirror),ROW()-1),NA())","v":{"$error":"#N/A"}}]
[null,null,null,null,null,null,null,null,"",{"$f":"IFERROR(INDEX(FilterUniqueSort(ListsCustomCategoriesMirror),ROW()-1),NA())","v":{"$error":"#N/A"}}]
[null,null,null,null,null,null,null,null,"",{"$f":"IFERROR(INDEX(FilterUniqueSort(ListsCustomCategoriesMirror),ROW()-1),NA())","v":{"$error":"#N/A"}}]
[null,null,null,null,null,null,null,null,"",{"$f":"IFERROR(INDEX(FilterUniqueSort(ListsCustomCategoriesMirror),ROW()-1),NA())","v":{"$error":"#N/A"}}]
[null,null,null,null,null,null,null,null,"",{"$f":"IFERROR(INDEX(FilterUniqueSort(ListsCustomCategoriesMirror),ROW()-1),NA())","v":{"$error":"#N/A"}}]
[null,null,null,null,null,null,null,null,"Reassurance",{"$f":"IFERROR(INDEX(FilterUniqueSort(ListsCustomCategoriesMirror),ROW()-1),NA())","v":{"$error":"#N/A"}}]
[null,null,null,null,null,null,null,null,"",{"$f":"IFERROR(INDEX(FilterUniqueSort(ListsCustomCategoriesMirror),ROW()-1),NA())","v":{"$error":"#N/A"}}]
[null,null,null,null,null,null,null,null,"",{"$f":"IFERROR(INDEX(FilterUniqueSort(ListsCustomCategoriesMirror),ROW()-1),NA())","v":{"$error":"#N/A"}}]
[null,null,null,null,null,null,null,null,"",{"$f":"IFERROR(INDEX(FilterUniqueSort(ListsCustomCategoriesMirror),ROW()-1),NA())","v":{"$error":"#N/A"}}]
[null,null,null,null,null,null,null,null,"",{"$f":"IFERROR(INDEX(FilterUniqueSort(ListsCustomCategoriesMirror),ROW()-1),NA())","v":{"$error":"#N/A"}}]
[null,null,null,null,null,null,null,null,"",{"$f":"IFERROR(INDEX(FilterUniqueSort(ListsCustomCategoriesMirror),ROW()-1),NA())","v":{"$error":"#N/A"}}]
[null,null,null,null,null,null,null,null,{"$f":"IF(ISBLANK(INDEX(GMTRTFCustomCategories,ROW()-1)),\"\",INDEX(GMTRTFCustomCategories,ROW()-1))","v":""},{"$f":"IFERROR(INDEX(FilterUniqueSort(ListsCustomCategoriesMirror),ROW()-1),NA())","v":{"$error":"#N/A"}}]
[null,null,null,null,null,null,null,null,"",{"$f":"IFERROR(INDEX(FilterUniqueSort(ListsCustomCategoriesMirror),ROW()-1),NA())","v":{"$error":"#N/A"}}]
[null,null,null,null,null,null,null,null,"",{"$f":"IFERROR(INDEX(FilterUniqueSort(ListsCustomCategoriesMirror),ROW()-1),NA())","v":{"$error":"#N/A"}}]
[null,null,null,null,null,null,null,null,"",{"$f":"IFERROR(INDEX(FilterUniqueSort(ListsCustomCategoriesMirror),ROW()-1),NA())","v":{"$error":"#N/A"}}]
[null,null,null,null,null,null,null,null,"",{"$f":"IFERROR(INDEX(FilterUniqueSort(ListsCustomCategoriesMirror),ROW()-1),NA())","v":{"$error":"#N/A"}}]
[null,null,null,null,null,null,null,null,"",{"$f":"IFERROR(INDEX(FilterUniqueSort(ListsCustomCategoriesMirror),ROW()-1),NA())","v":{"$error":"#N/A"}}]
[null,null,null,null,null,null,null,null,"",{"$f":"IFERROR(INDEX(FilterUniqueSort(ListsCustomCategoriesMirror),ROW()-1),NA())","v":{"$error":"#N/A"}}]
[null,null,null,null,null,null,null,null,"",{"$f":"IFERROR(INDEX(FilterUniqueSort(ListsCustomCategoriesMirror),ROW()-1),NA())","v":{"$error":"#N/A"}}]
[null,null,null,null,null,null,null,null,"",{"$f":"IFERROR(INDEX(FilterUniqueSort(ListsCustomCategoriesMirror),ROW()-1),NA())","v":{"$error":"#N/A"}}]
[null,null,null,null,null,null,null,null,"",{"$f":"IFERROR(INDEX(FilterUniqueSort(ListsCustomCategoriesMirror),ROW()-1),NA())","v":{"$error":"#N/A"}}]
[null,null,null,null,null,null,null,null,"",{"$f":"IFERROR(INDEX(FilterUniqueSort(ListsCustomCategoriesMirror),ROW()-1),NA())","v":{"$error":"#N/A"}}]
[null,null,null,null,null,null,null,null,"",{"$f":"IFERROR(INDEX(FilterUniqueSort(ListsCustomCategoriesMirror),ROW()-1),NA())","v":{"$error":"#N/A"}}]
[null,null,null,null,null,null,null,null,"",{"$f":"IFERROR(INDEX(FilterUniqueSort(ListsCustomCategoriesMirror),ROW()-1),NA())","v":{"$error":"#N/A"}}]
[null,null,null,null,null,null,null,null,"",{"$f":"IFERROR(INDEX(FilterUniqueSort(ListsCustomCategoriesMirror),ROW()-1),NA())","v":{"$error":"#N/A"}}]
[null,null,null,null,null,null,null,null,"",{"$f":"IFERROR(INDEX(FilterUniqueSort(ListsCustomCategoriesMirror),ROW()-1),NA())","v":{"$error":"#N/A"}}]
[null,null,null,null,null,null,null,null,"",{"$f":"IFERROR(INDEX(FilterUniqueSort(ListsCustomCategoriesMirror),ROW()-1),NA())","v":{"$error":"#N/A"}}]
[null,null,null,null,null,null,null,null,"",{"$f":"IFERROR(INDEX(FilterUniqueSort(ListsCustomCategoriesMirror),ROW()-1),NA())","v":{"$error":"#N/A"}}]
[null,null,null,null,null,null,null,null,"",{"$f":"IFERROR(INDEX(FilterUniqueSort(ListsCustomCategoriesMirror),ROW()-1),NA())","v":{"$error":"#N/A"}}]
[null,null,null,null,null,null,null,null,"",{"$f":"IFERROR(INDEX(FilterUniqueSort(ListsCustomCategoriesMirror),ROW()-1),NA())","v":{"$error":"#N/A"}}]
[null,null,null,null,null,null,null,null,"",{"$f":"IFERROR(INDEX(FilterUniqueSort(ListsCustomCategoriesMirror),ROW()-1),NA())","v":{"$error":"#N/A"}}]
[null,null,null,null,null,null,null,null,"",{"$f":"IFERROR(INDEX(FilterUniqueSort(ListsCustomCategoriesMirror),ROW()-1),NA())","v":{"$error":"#N/A"}}]
[null,null,null,null,null,null,null,null,"",{"$f":"IFERROR(INDEX(FilterUniqueSort(ListsCustomCategoriesMirror),ROW()-1),NA())","v":{"$error":"#N/A"}}]
[null,null,null,null,null,null,null,null,"",{"$f":"IFERROR(INDEX(FilterUniqueSort(ListsCustomCategoriesMirror),ROW()-1),NA())","v":{"$error":"#N/A"}}]
[null,null,null,null,null,null,null,null,"",{"$f":"IFERROR(INDEX(FilterUniqueSort(ListsCustomCategoriesMirror),ROW()-1),NA())","v":{"$error":"#N/A"}}]
[null,null,null,null,null,null,null,null,"",{"$f":"IFERROR(INDEX(FilterUniqueSort(ListsCustomCategoriesMirror),ROW()-1),NA())","v":{"$error":"#N/A"}}]
[null,null,null,null,null,null,null,null,{"$f":"IF(ISBLANK(INDEX(TimelessWisdomCustomCategories,ROW()-154)),\"\",INDEX(TimelessWisdomCustomCategories,ROW()-154))","v":""},{"$f":"IFERROR(INDEX(FilterUniqueSort(ListsCustomCategoriesMirror),ROW()-1),NA())","v":{"$error":"#N/A"}}]
[null,null,null,null,null,null,null,null,"",{"$f":"IFERROR(INDEX(FilterUniqueSort(ListsCustomCategoriesMirror),ROW()-1),NA())","v":{"$error":"#N/A"}}]
[null,null,null,null,null,null,null,null,"",{"$f":"IFERROR(INDEX(FilterUniqueSort(ListsCustomCategoriesMirror),ROW()-1),NA())","v":{"$error":"#N/A"}}]
[null,null,null,null,null,null,null,null,"",{"$f":"IFERROR(INDEX(FilterUniqueSort(ListsCustomCategoriesMirror),ROW()-1),NA())","v":{"$error":"#N/A"}}]
[null,null,null,null,null,null,null,null,"",{"$f":"IFERROR(INDEX(FilterUniqueSort(ListsCustomCategoriesMirror),ROW()-1),NA())","v":{"$error":"#N/A"}}]
[null,null,null,null,null,null,null,null,"",{"$f":"IFERROR(INDEX(FilterUniqueSort(ListsCustomCategoriesMirror),ROW()-1),NA())","v":{"$error":"#N/A"}}]
[null,null,null,null,null,null,null,null,"",{"$f":"IFERROR(INDEX(FilterUniqueSort(ListsCustomCategoriesMirror),ROW()-1),NA())","v":{"$error":"#N/A"}}]
[null,null,null,null,null,null,null,null,"",{"$f":"IFERROR(INDEX(FilterUniqueSort(ListsCustomCategoriesMirror),ROW()-1),NA())","v":{"$error":"#N/A"}}]
[null,null,null,null,null,null,null,null,"",{"$f":"IFERROR(INDEX(FilterUniqueSort(ListsCustomCategoriesMirror),ROW()-1),NA())","v":{"$error":"#N/A"}}]
[null,null,null,null,null,null,null,null,"",{"$f":"IFERROR(INDEX(FilterUniqueSort(ListsCustomCategoriesMirror),ROW()-1),NA())","v":{"$error":"#N/A"}}]
[null,null,null,null,null,null,null,null,"",{"$f":"IFERROR(INDEX(FilterUniqueSort(ListsCustomCategoriesMirror),ROW()-1),NA())","v":{"$error":"#N/A"}}]
[null,null,null,null,null,null,null,null,"",{"$f":"IFERROR(INDEX(FilterUniqueSort(ListsCustomCategoriesMirror),ROW()-1),NA())","v":{"$error":"#N/A"}}]
[null,null,null,null,null,null,null,null,"",{"$f":"IFERROR(INDEX(FilterUniqueSort(ListsCustomCategoriesMirror),ROW()-1),NA())","v":{"$error":"#N/A"}}]
[null,null,null,null,null,null,null,null,"",{"$f":"IFERROR(INDEX(FilterUniqueSort(ListsCustomCategoriesMirror),ROW()-1),NA())","v":{"$error":"#N/A"}}]
[null,null,null,null,null,null,null,null,"",{"$f":"IFERROR(INDEX(FilterUniqueSort(ListsCustomCategoriesMirror),ROW()-1),NA())","v":{"$error":"#N/A"}}]
[null,null,null,null,null,null,null,null,"",{"$f":"IFERROR(INDEX(FilterUniqueSort(ListsCustomCategoriesMirror),ROW()-1),NA())","v":{"$error":"#N/A"}}]
[null,null,null,null,null,null,null,null,"",{"$f":"IFERROR(INDEX(FilterUniqueSort(ListsCustomCategoriesMirror),ROW()-1),NA())","v":{"$error":"#N/A"}}]
[null,null,null,null,null,null,null,null,"",{"$f":"IFERROR(INDEX(FilterUniqueSort(ListsCustomCategoriesMirror),ROW()-1),NA())","v":{"$error":"#N/A"}}]
[null,null,null,null,null,null,null,null,"",{"$f":"IFERROR(INDEX(FilterUniqueSort(ListsCustomCategoriesMirror),ROW()-1),NA())","v":{"$error":"#N/A"}}]
[null,null,null,null,null,null,null,null,"",{"$f":"IFERROR(INDEX(FilterUniqueSort(ListsCustomCategoriesMirror),ROW()-1),NA())","v":{"$error":"#N/A"}}]
[null,null,null,null,null,null,null,null,"",{"$f":"IFERROR(INDEX(FilterUniqueSort(ListsCustomCategoriesMirror),ROW()-1),NA())","v":{"$error":"#N/A"}}]
[null,null,null,null,null,null,null,null,"",{"$f":"IFERROR(INDEX(FilterUniqueSort(ListsCustomCategoriesMirror),ROW()-1),NA())","v":{"$error":"#N/A"}}]
[null,null,null,null,null,null,null,null,"",{"$f":"IFERROR(INDEX(FilterUniqueSort(ListsCustomCategoriesMirror),ROW()-1),NA())","v":{"$error":"#N/A"}}]
[null,null,null,null,null,null,null,null,"",{"$f":"IFERROR(INDEX(FilterUniqueSort(ListsCustomCategoriesMirror),ROW()-1),NA())","v":{"$error":"#N/A"}}]
[null,null,null,null,null,null,null,null,"",{"$f":"IFERROR(INDEX(FilterUniqueSort(ListsCustomCategoriesMirror),ROW()-1),NA())","v":{"$error":"#N/A"}}]
[null,null,null,null,null,null,null,null,"",{"$f":"IFERROR(INDEX(FilterUniqueSort(ListsCustomCategoriesMirror),ROW()-1),NA())","v":{"$error":"#N/A"}}]
[null,null,null,null,null,null,null,null,"",{"$f":"IFERROR(INDEX(FilterUniqueSort(ListsCustomCategoriesMirror),ROW()-1),NA())","v":{"$error":"#N/A"}}]
[null,null,null,null,null,null,null,null,"",{"$f":"IFERROR(INDEX(FilterUniqueSort(ListsCustomCategoriesMirror),ROW()-1),NA())","v":{"$error":"#N/A"}}]
[null,null,null,null,null,null,null,null,"",{"$f":"IFERROR(INDEX(FilterUniqueSort(ListsCustomCategoriesMirror),ROW()-1),NA())","v":{"$error":"#N/A"}}]
[null,null,null,null,null,null,null,null,"",{"$f":"IFERROR(INDEX(FilterUniqueSort(ListsCustomCategoriesMirror),ROW()-1),NA())","v":{"$error":"#N/A"}}]
[null,null,null,null,null,null,null,null,"",{"$f":"IFERROR(INDEX(FilterUniqueSort(ListsCustomCategoriesMirror),ROW()-1),NA())","v":{"$error":"#N/A"}}]
[null,null,null,null,null,null,null,null,"",{"$f":"IFERROR(INDEX(FilterUniqueSort(ListsCustomCategoriesMirror),ROW()-1),NA())","v":{"$error":"#N/A"}}]
[null,null,null,null,null,null,null,null,{"$f":"IF(ISBLANK(INDEX(TimelessWisdomCustomCategories,ROW()-154)),\"\",INDEX(TimelessWisdomCustomCategories,ROW()-154))","v":""},{"$f":"IFERROR(INDEX(FilterUniqueSort(ListsCustomCategoriesMirror),ROW()-1),NA())","v":{"$error":"#N/A"}}]
[null,null,null,null,null,null,null,null,"",{"$f":"IFERROR(INDEX(FilterUniqueSort(ListsCustomCategoriesMirror),ROW()-1),NA())","v":{"$error":"#N/A"}}]
[null,null,null,null,null,null,null,null,"",{"$f":"IFERROR(INDEX(FilterUniqueSort(ListsCustomCategoriesMirror),ROW()-1),NA())","v":{"$error":"#N/A"}}]
[null,null,null,null,null,null,null,null,"",{"$f":"IFERROR(INDEX(FilterUniqueSort(ListsCustomCategoriesMirror),ROW()-1),NA())","v":{"$error":"#N/A"}}]
[null,null,null,null,null,null,null,null,"",{"$f":"IFERROR(INDEX(FilterUniqueSort(ListsCustomCategoriesMirror),ROW()-1),NA())","v":{"$error":"#N/A"}}]
[null,null,null,null,null,null,null,null,"",{"$f":"IFERROR(INDEX(FilterUniqueSort(ListsCustomCategoriesMirror),ROW()-1),NA())","v":{"$error":"#N/A"}}]
[null,null,null,null,null,null,null,null,"",{"$f":"IFERROR(INDEX(FilterUniqueSort(ListsCustomCategoriesMirror),ROW()-1),NA())","v":{"$error":"#N/A"}}]
[null,null,null,null,null,null,null,null,"",{"$f":"IFERROR(INDEX(FilterUniqueSort(ListsCustomCategoriesMirror),ROW()-1),NA())","v":{"$error":"#N/A"}}]
[null,null,null,null,null,null,null,null,"",{"$f":"IFERROR(INDEX(FilterUniqueSort(ListsCustomCategoriesMirror),ROW()-1),NA())","v":{"$error":"#N/A"}}]
[null,null,null,null,null,null,null,null,"",{"$f":"IFERROR(INDEX(FilterUniqueSort(ListsCustomCategoriesMirror),ROW()-1),NA())","v":{"$error":"#N/A"}}]
[null,null,null,null,null,null,null,null,"",{"$f":"IFERROR(INDEX(FilterUniqueSort(ListsCustomCategoriesMirror),ROW()-1),NA())","v":{"$error":"#N/A"}}]
[null,null,null,null,null,null,null,null,"",{"$f":"IFERROR(INDEX(FilterUniqueSort(ListsCustomCategoriesMirror),ROW()-1),NA())","v":{"$error":"#N/A"}}]
[null,null,null,null,null,null,null,null,"",{"$f":"IFERROR(INDEX(FilterUniqueSort(ListsCustomCategoriesMirror),ROW()-1),NA())","v":{"$error":"#N/A"}}]
[null,null,null,null,null,null,null,null,"",{"$f":"IFERROR(INDEX(FilterUniqueSort(ListsCustomCategoriesMirror),ROW()-1),NA())","v":{"$error":"#N/A"}}]
[null,null,null,null,null,null,null,null,"",{"$f":"IFERROR(INDEX(FilterUniqueSort(ListsCustomCategoriesMirror),ROW()-1),NA())","v":{"$error":"#N/A"}}]
[null,null,null,null,null,null,null,null,"",{"$f":"IFERROR(INDEX(FilterUniqueSort(ListsCustomCategoriesMirror),ROW()-1),NA())","v":{"$error":"#N/A"}}]
[null,null,null,null,null,null,null,null,"",{"$f":"IFERROR(INDEX(FilterUniqueSort(ListsCustomCategoriesMirror),ROW()-1),NA())","v":{"$error":"#N/A"}}]
[null,null,null,null,null,null,null,null,"",{"$f":"IFERROR(INDEX(FilterUniqueSort(ListsCustomCategoriesMirror),ROW()-1),NA())","v":{"$error":"#N/A"}}]
[null,null,null,null,null,null,null,null,"",{"$f":"IFERROR(INDEX(FilterUniqueSort(ListsCustomCategoriesMirror),ROW()-1),NA())","v":{"$error":"#N/A"}}]
[null,null,null,null,null,null,null,null,"",{"$f":"IFERROR(INDEX(FilterUniqueSort(ListsCustomCategoriesMirror),ROW()-1),NA())","v":{"$error":"#N/A"}}]
[null,null,null,null,null,null,null,null,"",{"$f":"IFERROR(INDEX(FilterUniqueSort(ListsCustomCategoriesMirror),ROW()-1),NA())","v":{"$error":"#N/A"}}]
[null,null,null,null,null,null,null,null,"",{"$f":"IFERROR(INDEX(FilterUniqueSort(ListsCustomCategoriesMirror),ROW()-1),NA())","v":{"$error":"#N/A"}}]
[null,null,null,null,null,null,null,null,"",{"$f":"IFERROR(INDEX(FilterUniqueSort(ListsCustomCategoriesMirror),ROW()-1),NA())","v":{"$error":"#N/A"}}]
[null,null,null,null,null,null,null,null,"",{"$f":"IFERROR(INDEX(FilterUniqueSort(ListsCustomCategoriesMirror),ROW()-1),NA())","v":{"$error":"#N/A"}}]
[null,null,null,null,null,null,null,null,"",{"$f":"IFERROR(INDEX(FilterUniqueSort(ListsCustomCategoriesMirror),ROW()-1),NA())","v":{"$error":"#N/A"}}]
[null,null,null,null,null,null,null,null,"",{"$f":"IFERROR(INDEX(FilterUniqueSort(ListsCustomCategoriesMirror),ROW()-1),NA())","v":{"$error":"#N/A"}}]
[null,null,null,null,null,null,null,null,"",{"$f":"IFERROR(INDEX(FilterUniqueSort(ListsCustomCategoriesMirror),ROW()-1),NA())","v":{"$error":"#N/A"}}]
[null,null,null,null,null,null,null,null,"",{"$f":"IFERROR(INDEX(FilterUniqueSort(ListsCustomCategoriesMirror),ROW()-1),NA())","v":{"$error":"#N/A"}}]
[null,null,null,null,null,null,null,null,"",{"$f":"IFERROR(INDEX(FilterUniqueSort(ListsCustomCategoriesMirror),ROW()-1),NA())","v":{"$error":"#N/A"}}]
[null,null,null,null,null,null,null,null,"",{"$f":"IFERROR(INDEX(FilterUniqueSort(ListsCustomCategoriesMirror),ROW()-1),NA())","v":{"$error":"#N/A"}}]
[null,null,null,null,null,null,null,null,"",{"$f":"IFERROR(INDEX(FilterUniqueSort(ListsCustomCategoriesMirror),ROW()-1),NA())","v":{"$error":"#N/A"}}]
[null,null,null,null,null,null,null,null,"",{"$f":"IFERROR(INDEX(FilterUniqueSort(ListsCustomCategoriesMirror),ROW()-1),NA())","v":{"$error":"#N/A"}}]
[null,null,null,null,null,null,null,null,{"$f":"IF(ISBLANK(INDEX(TimelessWisdomCustomCategories,ROW()-154)),\"\",INDEX(TimelessWisdomCustomCategories,ROW()-154))","v":""},{"$f":"IFERROR(INDEX(FilterUniqueSort(ListsCustomCategoriesMirror),ROW()-1),NA())","v":{"$error":"#N/A"}}]
[null,null,null,null,null,null,null,null,"",{"$f":"IFERROR(INDEX(FilterUniqueSort(ListsCustomCategoriesMirror),ROW()-1),NA())","v":{"$error":"#N/A"}}]
[null,null,null,null,null,null,null,null,"",{"$f":"IFERROR(INDEX(FilterUniqueSort(ListsCustomCategoriesMirror),ROW()-1),NA())","v":{"$error":"#N/A"}}]
[null,null,null,null,null,null,null,null,"",{"$f":"IFERROR(INDEX(FilterUniqueSort(ListsCustomCategoriesMirror),ROW()-1),NA())","v":{"$error":"#N/A"}}]
[null,null,null,null,null,null,null,null,"",{"$f":"IFERROR(INDEX(FilterUniqueSort(ListsCustomCategoriesMirror),ROW()-1),NA())","v":{"$error":"#N/A"}}]
[null,null,null,null,null,null,null,null,"",{"$f":"IFERROR(INDEX(FilterUniqueSort(ListsCustomCategoriesMirror),ROW()-1),NA())","v":{"$error":"#N/A"}}]
[null,null,null,null,null,null,null,null,"",{"$f":"IFERROR(INDEX(FilterUniqueSort(ListsCustomCategoriesMirror),ROW()-1),NA())","v":{"$error":"#N/A"}}]
[null,null,null,null,null,null,null,null,"",{"$f":"IFERROR(INDEX(FilterUniqueSort(ListsCustomCategoriesMirror),ROW()-1),NA())","v":{"$error":"#N/A"}}]
[null,null,null,null,null,null,null,null,"",{"$f":"IFERROR(INDEX(FilterUniqueSort(ListsCustomCategoriesMirror),ROW()-1),NA())","v":{"$error":"#N/A"}}]
[null,null,null,null,null,null,null,null,"",{"$f":"IFERROR(INDEX(FilterUniqueSort(ListsCustomCategoriesMirror),ROW()-1),NA())","v":{"$error":"#N/A"}}]
[null,null,null,null,null,null,null,null,"",{"$f":"IFERROR(INDEX(FilterUniqueSort(ListsCustomCategoriesMirror),ROW()-1),NA())","v":{"$error":"#N/A"}}]
[null,null,null,null,null,null,null,null,"",{"$f":"IFERROR(INDEX(FilterUniqueSort(ListsCustomCategoriesMirror),ROW()-1),NA())","v":{"$error":"#N/A"}}]
[null,null,null,null,null,null,null,null,"",{"$f":"IFERROR(INDEX(FilterUniqueSort(ListsCustomCategoriesMirror),ROW()-1),NA())","v":{"$error":"#N/A"}}]
[null,null,null,null,null,null,null,null,"",{"$f":"IFERROR(INDEX(FilterUniqueSort(ListsCustomCategoriesMirror),ROW()-1),NA())","v":{"$error":"#N/A"}}]
[null,null,null,null,null,null,null,null,"",{"$f":"IFERROR(INDEX(FilterUniqueSort(ListsCustomCategoriesMirror),ROW()-1),NA())","v":{"$error":"#N/A"}}]
[null,null,null,null,null,null,null,null,"",{"$f":"IFERROR(INDEX(FilterUniqueSort(ListsCustomCategoriesMirror),ROW()-1),NA())","v":{"$error":"#N/A"}}]
[null,null,null,null,null,null,null,null,"",{"$f":"IFERROR(INDEX(FilterUniqueSort(ListsCustomCategoriesMirror),ROW()-1),NA())","v":{"$error":"#N/A"}}]
[null,null,null,null,null,null,null,null,"",{"$f":"IFERROR(INDEX(FilterUniqueSort(ListsCustomCategoriesMirror),ROW()-1),NA())","v":{"$error":"#N/A"}}]
[null,null,null,null,null,null,null,null,"",{"$f":"IFERROR(INDEX(FilterUniqueSort(ListsCustomCategoriesMirror),ROW()-1),NA())","v":{"$error":"#N/A"}}]
[null,null,null,null,null,null,null,null,"",{"$f":"IFERROR(INDEX(FilterUniqueSort(ListsCustomCategoriesMirror),ROW()-1),NA())","v":{"$error":"#N/A"}}]
[null,null,null,null,null,null,null,null,"",{"$f":"IFERROR(INDEX(FilterUniqueSort(ListsCustomCategoriesMirror),ROW()-1),NA())","v":{"$error":"#N/A"}}]
[null,null,null,null,null,null,null,null,"",{"$f":"IFERROR(INDEX(FilterUniqueSort(ListsCustomCategoriesMirror),ROW()-1),NA())","v":{"$error":"#N/A"}}]
[null,null,null,null,null,null,null,null,"",{"$f":"IFERROR(INDEX(FilterUniqueSort(ListsCustomCategoriesMirror),ROW()-1),NA())","v":{"$error":"#N/A"}}]
[null,null,null,null,null,null,null,null,"",{"$f":"IFERROR(INDEX(FilterUniqueSort(ListsCustomCategoriesMirror),ROW()-1),NA())","v":{"$error":"#N/A"}}]
[null,null,null,null,null,null,null,null,"",{"$f":"IFERROR(INDEX(FilterUniqueSort(ListsCustomCategoriesMirror),ROW()-1),NA())","v":{"$error":"#N/A"}}]
[null,null,null,null,null,null,null,null,"",{"$f":"IFERROR(INDEX(FilterUniqueSort(ListsCustomCategoriesMirror),ROW()-1),NA())","v":{"$error":"#N/A"}}]
[null,null,null,null,null,null,null,null,"",{"$f":"IFERROR(INDEX(FilterUniqueSort(ListsCustomCategoriesMirror),ROW()-1),NA())","v":{"$error":"#N/A"}}]
[null,null,null,null,null,null,null,null,"",{"$f":"IFERROR(INDEX(FilterUniqueSort(ListsCustomCategoriesMirror),ROW()-1),NA())","v":{"$error":"#N/A"}}]
[null,null,null,null,null,null,null,null,"",{"$f":"IFERROR(INDEX(FilterUniqueSort(ListsCustomCategoriesMirror),ROW()-1),NA())","v":{"$error":"#N/A"}}]
[null,null,null,null,null,null,null,null,"",{"$f":"IFERROR(INDEX(FilterUniqueSort(ListsCustomCategoriesMirror),ROW()-1),NA())","v":{"$error":"#N/A"}}]
[null,null,null,null,null,null,null,null,"",{"$f":"IFERROR(INDEX(FilterUniqueSort(ListsCustomCategoriesMirror),ROW()-1),NA())","v":{"$error":"#N/A"}}]
[null,null,null,null,null,null,null,null,"",{"$f":"IFERROR(INDEX(FilterUniqueSort(ListsCustomCategoriesMirror),ROW()-1),NA())","v":{"$error":"#N/A"}}]
[null,null,null,null,null,null,null,null,{"$f":"IF(ISBLANK(INDEX(TimelessWisdomCustomCategories,ROW()-154)),\"\",INDEX(TimelessWisdomCustomCategories,ROW()-154))","v":""},{"$f":"IFERROR(INDEX(FilterUniqueSort(ListsCustomCategoriesMirror),ROW()-1),NA())","v":{"$error":"#N/A"}}]
[null,null,null,null,null,null,null,null,"",{"$f":"IFERROR(INDEX(FilterUniqueSort(ListsCustomCategoriesMirror),ROW()-1),NA())","v":{"$error":"#N/A"}}]
[null,null,null,null,null,null,null,null,"",{"$f":"IFERROR(INDEX(FilterUniqueSort(ListsCustomCategoriesMirror),ROW()-1),NA())","v":{"$error":"#N/A"}}]
[null,null,null,null,null,null,null,null,"",{"$f":"IFERROR(INDEX(FilterUniqueSort(ListsCustomCategoriesMirror),ROW()-1),NA())","v":{"$error":"#N/A"}}]
[null,null,null,null,null,null,null,null,"",{"$f":"IFERROR(INDEX(FilterUniqueSort(ListsCustomCategoriesMirror),ROW()-1),NA())","v":{"$error":"#N/A"}}]
[null,null,null,null,null,null,null,null,"",{"$f":"IFERROR(INDEX(FilterUniqueSort(ListsCustomCategoriesMirror),ROW()-1),NA())","v":{"$error":"#N/A"}}]
[null,null,null,null,null,null,null,null,"",{"$f":"IFERROR(INDEX(FilterUniqueSort(ListsCustomCategoriesMirror),ROW()-1),NA())","v":{"$error":"#N/A"}}]
[null,null,null,null,null,null,null,null,"",{"$f":"IFERROR(INDEX(FilterUniqueSort(ListsCustomCategoriesMirror),ROW()-1),NA())","v":{"$error":"#N/A"}}]
[null,null,null,null,null,null,null,null,{"$f":"IF(ISBLANK(INDEX(OtherPassagesCustomCategories,ROW()-258)),\"\",INDEX(OtherPassagesCustomCategories,ROW()-258))","v":""},{"$f":"IFERROR(INDEX(FilterUniqueSort(ListsCustomCategoriesMirror),ROW()-1),NA())","v":{"$error":"#N/A"}}]
[null,null,null,null,null,null,null,null,"Long",{"$f":"IFERROR(INDEX(FilterUniqueSort(ListsCustomCategoriesMirror),ROW()-1),NA())","v":{"$error":"#N/A"}}]
[null,null,null,null,null,null,null,null,"",{"$f":"IFERROR(INDEX(FilterUniqueSort(ListsCustomCategoriesMirror),ROW()-1),NA())","v":{"$error":"#N/A"}}]
[null,null,null,null,null,null,null,null,"",{"$f":"IFERROR(INDEX(FilterUniqueSort(ListsCustomCategoriesMirror),ROW()-1),NA())","v":{"$error":"#N/A"}}]
[null,null,null,null,null,null,null,null,"",{"$f":"IFERROR(INDEX(FilterUniqueSort(ListsCustomCategoriesMirror),ROW()-1),NA())","v":{"$error":"#N/A"}}]
[null,null,null,null,null,null,null,null,"",{"$f":"IFERROR(INDEX(FilterUniqueSort(ListsCustomCategoriesMirror),ROW()-1),NA())","v":{"$error":"#N/A"}}]
[null,null,null,null,null,null,null,null,"",{"$f":"IFERROR(INDEX(FilterUniqueSort(ListsCustomCategoriesMirror),ROW()-1),NA())","v":{"$error":"#N/A"}}]
[null,null,null,null,null,null,null,null,"",{"$f":"IFERROR(INDEX(FilterUniqueSort(ListsCustomCategoriesMirror),ROW()-1),NA())","v":{"$error":"#N/A"}}]
[null,null,null,null,null,null,null,null,"",{"$f":"IFERROR(INDEX(FilterUniqueSort(ListsCustomCategoriesMirror),ROW()-1),NA())","v":{"$error":"#N/A"}}]
[null,null,null,null,null,null,null,null,"",{"$f":"IFERROR(INDEX(FilterUniqueSort(ListsCustomCategoriesMirror),ROW()-1),NA())","v":{"$error":"#N/A"}}]
[null,null,null,null,null,null,null,null,"",{"$f":"IFERROR(INDEX(FilterUniqueSort(ListsCustomCategoriesMirror),ROW()-1),NA())","v":{"$error":"#N/A"}}]
[null,null,null,null,null,null,null,null,"",{"$f":"IFERROR(INDEX(FilterUniqueSort(ListsCustomCategoriesMirror),ROW()-1),NA())","v":{"$error":"#N/A"}}]
[null,null,null,null,null,null,null,null,"",{"$f":"IFERROR(INDEX(FilterUniqueSort(ListsCustomCategoriesMirror),ROW()-1),NA())","v":{"$error":"#N/A"}}]
[null,null,null,null,null,null,null,null,"",{"$f":"IFERROR(INDEX(FilterUniqueSort(ListsCustomCategoriesMirror),ROW()-1),NA())","v":{"$error":"#N/A"}}]
[null,null,null,null,null,null,null,null,"",{"$f":"IFERROR(INDEX(FilterUniqueSort(ListsCustomCategoriesMirror),ROW()-1),NA())","v":{"$error":"#N/A"}}]
[null,null,null,null,null,null,null,null,"",{"$f":"IFERROR(INDEX(FilterUniqueSort(ListsCustomCategoriesMirror),ROW()-1),NA())","v":{"$error":"#N/A"}}]
[null,null,null,null,null,null,null,null,"",{"$f":"IFERROR(INDEX(FilterUniqueSort(ListsCustomCategoriesMirror),ROW()-1),NA())","v":{"$error":"#N/A"}}]
[null,null,null,null,null,null,null,null,"",{"$f":"IFERROR(INDEX(FilterUniqueSort(ListsCustomCategoriesMirror),ROW()-1),NA())","v":{"$error":"#N/A"}}]
[null,null,null,null,null,null,null,null,"",{"$f":"IFERROR(INDEX(FilterUniqueSort(ListsCustomCategoriesMirror),ROW()-1),NA())","v":{"$error":"#N/A"}}]
[null,null,null,null,null,null,null,null,"",{"$f":"IFERROR(INDEX(FilterUniqueSort(ListsCustomCategoriesMirror),ROW()-1),NA())","v":{"$error":"#N/A"}}]
[null,null,null,null,null,null,null,null,"",{"$f":"IFERROR(INDEX(FilterUniqueSort(ListsCustomCategoriesMirror),ROW()-1),NA())","v":{"$error":"#N/A"}}]
[null,null,null,null,null,null,null,null,"",{"$f":"IFERROR(INDEX(FilterUniqueSort(ListsCustomCategoriesMirror),ROW()-1),NA())","v":{"$error":"#N/A"}}]
[null,null,null,null,null,null,null,null,"",{"$f":"IFERROR(INDEX(FilterUniqueSort(ListsCustomCategoriesMirror),ROW()-1),NA())","v":{"$error":"#N/A"}}]
[null,null,null,null,null,null,null,null,"",{"$f":"IFERROR(INDEX(FilterUniqueSort(ListsCustomCategoriesMirror),ROW()-1),NA())","v":{"$error":"#N/A"}}]
[null,null,null,null,null,null,null,null,"",{"$f":"IFERROR(INDEX(FilterUniqueSort(ListsCustomCategoriesMirror),ROW()-1),NA())","v":{"$error":"#N/A"}}]
[null,null,null,null,null,null,null,null,"",{"$f":"IFERROR(INDEX(FilterUniqueSort(ListsCustomCategoriesMirror),ROW()-1),NA())","v":{"$error":"#N/A"}}]
[null,null,null,null,null,null,null,null,"",{"$f":"IFERROR(INDEX(FilterUniqueSort(ListsCustomCategoriesMirror),ROW()-1),NA())","v":{"$error":"#N/A"}}]
[null,null,null,null,null,null,null,null,"",{"$f":"IFERROR(INDEX(FilterUniqueSort(ListsCustomCategoriesMirror),ROW()-1),NA())","v":{"$error":"#N/A"}}]
[null,null,null,null,null,null,null,null,"",{"$f":"IFERROR(INDEX(FilterUniqueSort(ListsCustomCategoriesMirror),ROW()-1),NA())","v":{"$error":"#N/A"}}]
[null,null,null,null,null,null,null,null,"",{"$f":"IFERROR(INDEX(FilterUniqueSort(ListsCustomCategoriesMirror),ROW()-1),NA())","v":{"$error":"#N/A"}}]
[null,null,null,null,null,null,null,null,"",{"$f":"IFERROR(INDEX(FilterUniqueSort(ListsCustomCategoriesMirror),ROW()-1),NA())","v":{"$error":"#N/A"}}]
[null,null,null,null,null,null,null,null,"",{"$f":"IFERROR(INDEX(FilterUniqueSort(ListsCustomCategoriesMirror),ROW()-1),NA())","v":{"$error":"#N/A"}}]
[null,null,null,null,null,null,null,null,{"$f":"IF(ISBLANK(INDEX(OtherPassagesCustomCategories,ROW()-258)),\"\",INDEX(OtherPassagesCustomCategories,ROW()-258))","v":""},{"$f":"IFERROR(INDEX(FilterUniqueSort(ListsCustomCategoriesMirror),ROW()-1),NA())","v":{"$error":"#N/A"}}]
[null,null,null,null,null,null,null,null,"",{"$f":"IFERROR(INDEX(FilterUniqueSort(ListsCustomCategoriesMirror),ROW()-1),NA())","v":{"$error":"#N/A"}}]
[null,null,null,null,null,null,null,null,"",{"$f":"IFERROR(INDEX(FilterUniqueSort(ListsCustomCategoriesMirror),ROW()-1),NA())","v":{"$error":"#N/A"}}]
[null,null,null,null,null,null,null,null,"",{"$f":"IFERROR(INDEX(FilterUniqueSort(ListsCustomCategoriesMirror),ROW()-1),NA())","v":{"$error":"#N/A"}}]
[null,null,null,null,null,null,null,null,"",{"$f":"IFERROR(INDEX(FilterUniqueSort(ListsCustomCategoriesMirror),ROW()-1),NA())","v":{"$error":"#N/A"}}]
[null,null,null,null,null,null,null,null,"",{"$f":"IFERROR(INDEX(FilterUniqueSort(ListsCustomCategoriesMirror),ROW()-1),NA())","v":{"$error":"#N/A"}}]
[null,null,null,null,null,null,null,null,"",{"$f":"IFERROR(INDEX(FilterUniqueSort(ListsCustomCategoriesMirror),ROW()-1),NA())","v":{"$error":"#N/A"}}]
[null,null,null,null,null,null,null,null,"",{"$f":"IFERROR(INDEX(FilterUniqueSort(ListsCustomCategoriesMirror),ROW()-1),NA())","v":{"$error":"#N/A"}}]
[null,null,null,null,null,null,null,null,"",{"$f":"IFERROR(INDEX(FilterUniqueSort(ListsCustomCategoriesMirror),ROW()-1),NA())","v":{"$error":"#N/A"}}]
[null,null,null,null,null,null,null,null,"",{"$f":"IFERROR(INDEX(FilterUniqueSort(ListsCustomCategoriesMirror),ROW()-1),NA())","v":{"$error":"#N/A"}}]
[null,null,null,null,null,null,null,null,"",{"$f":"IFERROR(INDEX(FilterUniqueSort(ListsCustomCategoriesMirror),ROW()-1),NA())","v":{"$error":"#N/A"}}]
[null,null,null,null,null,null,null,null,"",{"$f":"IFERROR(INDEX(FilterUniqueSort(ListsCustomCategoriesMirror),ROW()-1),NA())","v":{"$error":"#N/A"}}]
[null,null,null,null,null,null,null,null,"",{"$f":"IFERROR(INDEX(FilterUniqueSort(ListsCustomCategoriesMirror),ROW()-1),NA())","v":{"$error":"#N/A"}}]
[null,null,null,null,null,null,null,null,"",{"$f":"IFERROR(INDEX(FilterUniqueSort(ListsCustomCategoriesMirror),ROW()-1),NA())","v":{"$error":"#N/A"}}]
[null,null,null,null,null,null,null,null,"",{"$f":"IFERROR(INDEX(FilterUniqueSort(ListsCustomCategoriesMirror),ROW()-1),NA())","v":{"$error":"#N/A"}}]
[null,null,null,null,null,null,null,null,"",{"$f":"IFERROR(INDEX(FilterUniqueSort(ListsCustomCategoriesMirror),ROW()-1),NA())","v":{"$error":"#N/A"}}]
[null,null,null,null,null,null,null,null,"",{"$f":"IFERROR(INDEX(FilterUniqueSort(ListsCustomCategoriesMirror),ROW()-1),NA())","v":{"$error":"#N/A"}}]
[null,null,null,null,null,null,null,null,"",{"$f":"IFERROR(INDEX(FilterUniqueSort(ListsCustomCategoriesMirror),ROW()-1),NA())","v":{"$error":"#N/A"}}]

{"sheet":"Backend","index":10,"n_rows":500,"n_cols":34,"rows_kept":500,"cut":false,"hidden":true,"merged":[[0,29,0,32],[0,11,0,21],[47,0,47,7],[33,9,37,9],[38,9,42,9],[23,9,27,9],[28,9,32,9],[3,9,7,9],[8,9,12,9],[13,9,17,9],[18,9,22,9],[0,0,0,9]]}
["Advanced Filter Logic Table",null,null,null,null,null,null,null,null,null,null,"Advanced Filter Result",null,null,null,null,null,null,null,null,null,null,null,null,null,null,null,null,null,"Advanced Filter Results VBA Cache",null,null,null," "]
[]
["Author","Passage","Page","Date Begun\n(approximate)","Percent Memorized","Expertise Level","Custom Categories","Special","Data Entered",null,null,"Author","Passage","Page","Years in Repertoire","Percent Memorized","Custom Categories","Custom Categories","Special","Data Entered","Expertise Order","Years in Repertoire","Years in Repertoire Order","Percent Memorized Order","Custom Categories Order","Years Highlight","Memorized Highlight","Expertise Highlight","Category Highlight","Date Begun (approx)","Percent Memorized","Expertise Level","Custom Categories"," "]
[null,null,null,{"$f":"IF(Presentation!$I$25=\"Yes\",IF(Presentation!$M$26=Lists!$E$2,\"<\",\">\")&DATE(YEAR(TODAY()), MONTH(TODAY()), DAY(TODAY())-Presentation!$K$26*365.242),\">-999999\")","v":">-999999"},{"$f":"IF(Presentation!$I$27=\"Yes\",IF(Presentation!$L$28=Lists!$E$2,\">=\",\"<=\")&Presentation!$K$28,\">-999999\")","v":">-999999"},{"$f":"IF(AND(Presentation!$I$29=\"Yes\",Presentation!$K30<>\"Yes\"),\"HIDE\",Presentation!$L30)","v":"Planning to learn"},{"$f":"IF(Presentation!$I$35=\"Yes\",\"*\" & _xlfn.IFNA(Presentation!$K$36, \"\") & \"*\",\"\")","v":""},null,"\\\\SHOW","Expertise:Yes, Date:Yes, Percent:Yes, CustomCat:Yes/No",null,null,null,null,"",null,null,null,"SPECIALGMRF",null,{"$f":"IFERROR(VLOOKUP($AF4,Lists!$A$2:$B$6,2,FALSE),IF(PresentationSortBy=ListsSortExpHigh,-9999999,9999999))","v":9999999},{"$f":"IFERROR(IF(ISBLANK($AD4),\"\",IF((TODAY()-$AD4)/365.25>=0.05,(TODAY()-$AD4)/365.25,\"< 0.1 yrs\")),\"\")","v":""},{"$f":"IF(OR(ISBLANK($V4),$V4=\"\"),IF(PresentationSortBy=ListsSortYearsOld,-999999,999999),TODAY()-$AD4)","v":999999},{"$f":"IF(OR(ISBLANK($AE4),$AE4=\"\"),IF(PresentationSortBy=ListsSortMemHigh,-999999,999999),$AE4)","v":999999},{"$f":"IF(OR(ISBLANK($AG4),$AG4=\"\"),IF(PresentationSortBy=ListsSortCustomCategoriesA,\"ZZZZZZZZZZZZZZZZZZZZZZZZZZZZZ\",\"!\"), $AG4)","v":"!"},{"$f":"AND(PresentationHighlightYearsMaster=\"Yes\", PresentationHighlightYearsNum<>\"\", IF(PresentationHighlightYearsMoreLess=\"or less\",OR($V4=\"< 0.1 yrs\",AND(ISNUMBER($V4),$V4<=(PresentationHighlightYearsNum+0.05))),AND(ISNUMBER($V4),$V4>=(PresentationHighlightYearsNum-0.05))))","v":false},{"$f":"AND(PresentationHighlightMemorizedMaster=\"Yes\", PresentationHighlightMemorizedNum<>\"\",IF(OR(ISBLANK($AE4),$AE4=\"\"),FALSE,IF(PresentationHighlightMemorizedMoreLess=\"or less\",$AE4<=PresentationHighlightMemorizedNum,$AE4>=PresentationHighlightMemorizedNum)))","v":false},{"$f":"IFERROR(AND(PresentationHighlightExpertiseMaster=\"Yes\",PresentationHighlightExpertiseVal<>\"\",IF(OR(ISBLANK($AF4),$AF4=\"\"),FALSE,IF(PresentationHighlightExpertiseMoreLess=\"or less\",VLOOKUP($AF4,ListsLevelsOfExpertise,2,FALSE)<=VLOOKUP(PresentationHighlightExpertiseVal,ListsLevelsOfExpertise,2,FALSE),VLOOKUP($AF4,ListsLevelsOfExpertise,2,FALSE)>=VLOOKUP(PresentationHighlightExpertiseVal,ListsLevelsOfExpertise,2,FALSE)))),FALSE)","v":false},{"$f":"AND(PresentationHighlightCategoriesMaster=\"Yes\",_xlfn.IFNA(PresentationHighlightCategoriesVal,\"\")<>\"\",IF(OR(ISBLANK($AG4),$AG4=\"\"),FALSE,NOT(ISERR(SEARCH(PresentationHighlightCategoriesVal,$AG4)))))","v":false},null,null,null,null," "]
[null,null,null,{"$f":"IF(Presentation!$I$25=\"Yes\",IF(Presentation!$M$26=Lists!$E$2,\"<\",\">\")&DATE(YEAR(TODAY()), MONTH(TODAY()), DAY(TODAY())-Presentation!$K$26*365.242),\">-999999\")","v":">-999999"},{"$f":"IF(Presentation!$I$27=\"Yes\",IF(Presentation!$L$28=Lists!$E$2,\">=\",\"<=\")&Presentation!$K$28,\">-999999\")","v":">-999999"},{"$f":"IF(AND(Presentation!$I$29=\"Yes\",Presentation!$K31<>\"Yes\"),\"HIDE\",Presentation!$L31)","v":"Knowledge"},{"$f":"IF(Presentation!$I$35=\"Yes\",\"*\" & _xlfn.IFNA(Presentation!$K$36, \"\") & \"*\",\"\")","v":""},null,"\\\\SHOW",null,null,"God Makes The Rivers To Flow ",null,null,"",null,null,null,"SPECIALGMRF",null,{"$f":"IFERROR(VLOOKUP($AF5,Lists!$A$2:$B$6,2,FALSE),IF(PresentationSortBy=ListsSortExpHigh,-9999999,9999999))","v":9999999},"",999999,999999,"!",false,false,false,false,null,null,null,null," "]
[null,null,null,{"$f":"IF(Presentation!$I$25=\"Yes\",IF(Presentation!$M$26=Lists!$E$2,\"<\",\">\")&DATE(YEAR(TODAY()), MONTH(TODAY()), DAY(TODAY())-Presentation!$K$26*365.242),\">-999999\")","v":">-999999"},{"$f":"IF(Presentation!$I$27=\"Yes\",IF(Presentation!$L$28=Lists!$E$2,\">=\",\"<=\")&Presentation!$K$28,\">-999999\")","v":">-999999"},{"$f":"IF(AND(Presentation!$I$29=\"Yes\",Presentation!$K32<>\"Yes\"),\"HIDE\",Presentation!$L32)","v":"Production"},{"$f":"IF(Presentation!$I$35=\"Yes\",\"*\" & _xlfn.IFNA(Presentation!$K$36, \"\") & \"*\",\"\")","v":""},null,"\\\\SHOW",null,null,"","","","","","","","SPECIALGMRF",null,{"$f":"IFERROR(VLOOKUP($AF6,Lists!$A$2:$B$6,2,FALSE),IF(PresentationSortBy=ListsSortExpHigh,-9999999,9999999))","v":9999999},"",999999,999999,"!",false,false,false,false,"","","",""," "]
[null,null,null,{"$f":"IF(Presentation!$I$25=\"Yes\",IF(Presentation!$M$26=Lists!$E$2,\"<\",\">\")&DATE(YEAR(TODAY()), MONTH(TODAY()), DAY(TODAY())-Presentation!$K$26*365.242),\">-999999\")","v":">-999999"},{"$f":"IF(Presentation!$I$27=\"Yes\",IF(Presentation!$L$28=Lists!$E$2,\">=\",\"<=\")&Presentation!$K$28,\">-999999\")","v":">-999999"},{"$f":"IF(AND(Presentation!$I$29=\"Yes\",Presentation!$K33<>\"Yes\"),\"HIDE\",Presentation!$L33)","v":"Skill"},{"$f":"IF(Presentation!$I$35=\"Yes\",\"*\" & _xlfn.IFNA(Presentation!$K$36, \"\") & \"*\",\"\")","v":""},null,"\\\\SHOW",null,null,"PART ONE","At the Source","","","","","","SPECIALGMRF",null,{"$f":"IFERROR(VLOOKUP($AF7,Lists!$A$2:$B$6,2,FALSE),IF(PresentationSortBy=ListsSortExpHigh,-9999999,9999999))","v":9999999},"",999999,999999,"!",false,false,false,false,"","","",""," "]
[null,null,null,{"$f":"IF(Presentation!$I$25=\"Yes\",IF(Presentation!$M$26=Lists!$E$2,\"<\",\">\")&DATE(YEAR(TODAY()), MONTH(TODAY()), DAY(TODAY())-Presentation!$K$26*365.242),\">-999999\")","v":">-999999"},{"$f":"IF(Presentation!$I$27=\"Yes\",IF(Presentation!$L$28=Lists!$E$2,\">=\",\"<=\")&Presentation!$K$28,\">-999999\")","v":">-999999"},{"$f":"IF(AND(Presentation!$I$29=\"Yes\",Presentation!$K34<>\"Yes\"),\"HIDE\",Presentation!$L34)","v":"Habit"},{"$f":"IF(Presentation!$I$35=\"Yes\",\"*\" & _xlfn.IFNA(Presentation!$K$36, \"\") & \"*\",\"\")","v":""},null,"\\\\SHOW",null,null,"","","","","","","","SPECIALGMRF",null,{"$f":"IFERROR(VLOOKUP($AF8,Lists!$A$2:$B$6,2,FALSE),IF(PresentationSortBy=ListsSortExpHigh,-9999999,9999999))","v":9999999},"",999999,999999,"!",false,false,false,false,"","","",""," "]
[null,null,null,{"$f":"IF(Presentation!$I$25=\"Yes\",IF(Presentation!$M$26=Lists!$E$2,\"<\",\">\")&DATE(YEAR(TODAY()), MONTH(TODAY()), DAY(TODAY())-Presentation!$K$26*365.242),\"\")","v":""},{"$f":"IF(Presentation!$I$27=\"Yes\",IF(Presentation!$L$28=Lists!$E$2,\">=\",\"<=\")&Presentation!$K$28,\">-999999\")","v":">-999999"},{"$f":"IF(AND(Presentation!$I$29=\"Yes\",Presentation!$K30<>\"Yes\"),\"HIDE\",Presentation!$L30)","v":"Planning to learn"},{"$f":"IF(Presentation!$I$35=\"Yes\",\"*\" & _xlfn.IFNA(Presentation!$K$36, \"\") & \"*\",\"\")","v":""},null,"\\\\SHOW","Expertise:Yes, Date:No, Percent:Yes, CustomCat:Yes/No",null,"Rabbi Abraham Isaac Kook","Radiant Is the World Soul",39,0.99383983572895274,1,"Joy","Joy",null,"\\\\SHOW",{"$f":"IFERROR(VLOOKUP($AF9,Lists!$A$2:$B$6,2,FALSE),IF(PresentationSortBy=ListsSortExpHigh,-9999999,9999999))","v":4},0.99383983572895274,363,1,"Joy",false,false,false,false,"2015-11-01",1,"Skill","Joy"," "]
[null,null,null,{"$f":"IF(Presentation!$I$25=\"Yes\",IF(Presentation!$M$26=Lists!$E$2,\"<\",\">\")&DATE(YEAR(TODAY()), MONTH(TODAY()), DAY(TODAY())-Presentation!$K$26*365.242),\"\")","v":""},{"$f":"IF(Presentation!$I$27=\"Yes\",IF(Presentation!$L$28=Lists!$E$2,\">=\",\"<=\")&Presentation!$K$28,\">-999999\")","v":">-999999"},{"$f":"IF(AND(Presentation!$I$29=\"Yes\",Presentation!$K31<>\"Yes\"),\"HIDE\",Presentation!$L31)","v":"Knowledge"},{"$f":"IF(Presentation!$I$35=\"Yes\",\"*\" & _xlfn.IFNA(Presentation!$K$36, \"\") & \"*\",\"\")","v":""},null,"\\\\SHOW",null,null,"","","","","","","","SPECIALGMRF",null,{"$f":"IFERROR(VLOOKUP($AF10,Lists!$A$2:$B$6,2,FALSE),IF(PresentationSortBy=ListsSortExpHigh,-9999999,9999999))","v":9999999},"",999999,999999,"!",false,false,false,false,"","","",""," "]
[null,null,null,{"$f":"IF(Presentation!$I$25=\"Yes\",IF(Presentation!$M$26=Lists!$E$2,\"<\",\">\")&DATE(YEAR(TODAY()), MONTH(TODAY()), DAY(TODAY())-Presentation!$K$26*365.242),\"\")","v":""},{"$f":"IF(Presentation!$I$27=\"Yes\",IF(Presentation!$L$28=Lists!$E$2,\">=\",\"<=\")&Presentation!$K$28,\">-999999\")","v":">-999999"},{"$f":"IF(AND(Presentation!$I$29=\"Yes\",Presentation!$K32<>\"Yes\"),\"HIDE\",Presentation!$L32)","v":"Production"},{"$f":"IF(Presentation!$I$35=\"Yes\",\"*\" & _xlfn.IFNA(Presentation!$K$36, \"\") & \"*\",\"\")","v":""},null,"\\\\SHOW",null,null,"PART TWO","Deep Currents","","","","","","SPECIALGMRF",null,{"$f":"IFERROR(VLOOKUP($AF11,Lists!$A$2:$B$6,2,FALSE),IF(PresentationSortBy=ListsSortExpHigh,-9999999,9999999))","v":9999999},"",999999,999999,"!",false,false,false,false,"","","",""," "]
[null,null,null,{"$f":"IF(Presentation!$I$25=\"Yes\",IF(Presentation!$M$26=Lists!$E$2,\"<\",\">\")&DATE(YEAR(TODAY()), MONTH(TODAY()), DAY(TODAY())-Presentation!$K$26*365.242),\"\")","v":""},{"$f":"IF(Presentation!$I$27=\"Yes\",IF(Presentation!$L$28=Lists!$E$2,\">=\",\"<=\")&Presentation!$K$28,\">-999999\")","v":">-999999"},{"$f":"IF(AND(Presentation!$I$29=\"Yes\",Presentation!$K33<>\"Yes\"),\"HIDE\",Presentation!$L33)","v":"Skill"},{"$f":"IF(Presentation!$I$35=\"Yes\",\"*\" & _xlfn.IFNA(Presentation!$K$36, \"\") & \"*\",\"\")","v":""},null,"\\\\SHOW",null,null,"","","","","","","","SPECIALGMRF",null,{"$f":"IFERROR(VLOOKUP($AF12,Lists!$A$2:$B$6,2,FALSE),IF(PresentationSortBy=ListsSortExpHigh,-9999999,9999999))","v":9999999},"",999999,999999,"!",false,false,false,false,"","","",""," "]
[null,null,null,{"$f":"IF(Presentation!$I$25=\"Yes\",IF(Presentation!$M$26=Lists!$E$2,\"<\",\">\")&DATE(YEAR(TODAY()), MONTH(TODAY()), DAY(TODAY())-Presentation!$K$26*365.242),\"\")","v":""},{"$f":"IF(Presentation!$I$27=\"Yes\",IF(Presentation!$L$28=Lists!$E$2,\">=\",\"<=\")&Presentation!$K$28,\">-999999\")","v":">-999999"},{"$f":"IF(AND(Presentation!$I$29=\"Yes\",Presentation!$K34<>\"Yes\"),\"HIDE\",Presentation!$L34)","v":"Habit"},{"$f":"IF(Presentation!$I$35=\"Yes\",\"*\" & _xlfn.IFNA(Presentation!$K$36, \"\") & \"*\",\"\")","v":""},null,"\\\\SHOW",null,null,"Saint Francis of Assisi","The Prayer of Saint Francis",109,1.160848733744011,1,"Core","Core",null,"\\\\SHOW",{"$f":"IFERROR(VLOOKUP($AF13,Lists!$A$2:$B$6,2,FALSE),IF(PresentationSortBy=ListsSortExpHigh,-9999999,9999999))","v":5},1.160848733744011,424,1,"Core",false,false,false,false,"2015-09-01",1,"Habit","Core"," "]
[null,null,null,{"$f":"IF(Presentation!$I$25=\"Yes\",IF(Presentation!$M$26=Lists!$E$2,\"<\",\">\")&DATE(YEAR(TODAY()), MONTH(TODAY()), DAY(TODAY())-Presentation!$K$26*365.242),\">-999999\")","v":">-999999"},{"$f":"IF(Presentation!$I$27=\"Yes\",IF(Presentation!$L$28=Lists!$E$2,\">=\",\"<=\")&Presentation!$K$28,\"\")","v":""},{"$f":"IF(AND(Presentation!$I$29=\"Yes\",Presentation!$K30<>\"Yes\"),\"HIDE\",Presentation!$L30)","v":"Planning to learn"},{"$f":"IF(Presentation!$I$35=\"Yes\",\"*\" & _xlfn.IFNA(Presentation!$K$36, \"\") & \"*\",\"\")","v":""},null,"\\\\SHOW","Expertise:Yes, Date:Yes, Percent:No, CustomCat:Yes/No",null,"Lao Tzu","The Best",141,0.39698836413415467,1,"","",null,"\\\\SHOW",{"$f":"IFERROR(VLOOKUP($AF14,Lists!$A$2:$B$6,2,FALSE),IF(PresentationSortBy=ListsSortExpHigh,-9999999,9999999))","v":4},0.39698836413415467,145,1,"!",false,false,false,false,"2016-06-06",1,"Skill",""," "]
[null,null,null,{"$f":"IF(Presentation!$I$25=\"Yes\",IF(Presentation!$M$26=Lists!$E$2,\"<\",\">\")&DATE(YEAR(TODAY()), MONTH(TODAY()), DAY(TODAY())-Presentation!$K$26*365.242),\">-999999\")","v":">-999999"},{"$f":"IF(Presentation!$I$27=\"Yes\",IF(Presentation!$L$28=Lists!$E$2,\">=\",\"<=\")&Presentation!$K$28,\"\")","v":""},{"$f":"IF(AND(Presentation!$I$29=\"Yes\",Presentation!$K31<>\"Yes\"),\"HIDE\",Presentation!$L31)","v":"Knowledge"},{"$f":"IF(Presentation!$I$35=\"Yes\",\"*\" & _xlfn.IFNA(Presentation!$K$36, \"\") & \"*\",\"\")","v":""},null,"\\\\SHOW",null,null,"Sri Sarada Devi","The Whole World Is Your Own",147,0.68993839835728954,0.5,"Reassurance, Joy","Reassurance, Joy",null,"\\\\SHOW",{"$f":"IFERROR(VLOOKUP($AF15,Lists!$A$2:$B$6,2,FALSE),IF(PresentationSortBy=ListsSortExpHigh,-9999999,9999999))","v":3},0.68993839835728954,252,0.5,"Reassurance, Joy",false,false,false,true,"2016-02-20",0.5,"Production","Reassurance, Joy"," "]
[null,null,null,{"$f":"IF(Presentation!$I$25=\"Yes\",IF(Presentation!$M$26=Lists!$E$2,\"<\",\">\")&DATE(YEAR(TODAY()), MONTH(TODAY()), DAY(TODAY())-Presentation!$K$26*365.242),\">-999999\")","v":">-999999"},{"$f":"IF(Presentation!$I$27=\"Yes\",IF(Presentation!$L$28=Lists!$E$2,\">=\",\"<=\")&Presentation!$K$28,\"\")","v":""},{"$f":"IF(AND(Presentation!$I$29=\"Yes\",Presentation!$K32<>\"Yes\"),\"HIDE\",Presentation!$L32)","v":"Production"},{"$f":"IF(Presentation!$I$35=\"Yes\",\"*\" & _xlfn.IFNA(Presentation!$K$36, \"\") & \"*\",\"\")","v":""},null,"\\\\SHOW",null,null,"","","","","","","","SPECIALGMRF",null,{"$f":"IFERROR(VLOOKUP($AF16,Lists!$A$2:$B$6,2,FALSE),IF(PresentationSortBy=ListsSortExpHigh,-9999999,9999999))","v":9999999},"",999999,999999,"!",false,false,false,false,"","","",""," "]
[null,null,null,{"$f":"IF(Presentation!$I$25=\"Yes\",IF(Presentation!$M$26=Lists!$E$2,\"<\",\">\")&DATE(YEAR(TODAY()), MONTH(TODAY()), DAY(TODAY())-Presentation!$K$26*365.242),\">-999999\")","v":">-999999"},{"$f":"IF(Presentation!$I$27=\"Yes\",IF(Presentation!$L$28=Lists!$E$2,\">=\",\"<=\")&Presentation!$K$28,\"\")","v":""},{"$f":"IF(AND(Presentation!$I$29=\"Yes\",Presentation!$K33<>\"Yes\"),\"HIDE\",Presentation!$L33)","v":"Skill"},{"$f":"IF(Presentation!$I$35=\"Yes\",\"*\" & _xlfn.IFNA(Presentation!$K$36, \"\") & \"*\",\"\")","v":""},null,"\\\\SHOW",null,null,"PART THREE","Joining the Sea","","","","","","SPECIALGMRF",null,{"$f":"IFERROR(VLOOKUP($AF17,Lists!$A$2:$B$6,2,FALSE),IF(PresentationSortBy=ListsSortExpHigh,-9999999,9999999))","v":9999999},"",999999,999999,"!",false,false,false,false,"","","",""," "]
[null,null,null,{"$f":"IF(Presentation!$I$25=\"Yes\",IF(Presentation!$M$26=Lists!$E$2,\"<\",\">\")&DATE(YEAR(TODAY()), MONTH(TODAY()), DAY(TODAY())-Presentation!$K$26*365.242),\">-999999\")","v":">-999999"},{"$f":"IF(Presentation!$I$27=\"Yes\",IF(Presentation!$L$28=Lists!$E$2,\">=\",\"<=\")&Presentation!$K$28,\"\")","v":""},{"$f":"IF(AND(Presentation!$I$29=\"Yes\",Presentation!$K34<>\"Yes\"),\"HIDE\",Presentation!$L34)","v":"Habit"},{"$f":"IF(Presentation!$I$35=\"Yes\",\"*\" & _xlfn.IFNA(Presentation!$K$36, \"\") & \"*\",\"\")","v":""},null,"\\\\SHOW",null,null,"","","","","","","","SPECIALGMRF",null,{"$f":"IFERROR(VLOOKUP($AF18,Lists!$A$2:$B$6,2,FALSE),IF(PresentationSortBy=ListsSortExpHigh,-9999999,9999999))","v":9999999},"",999999,999999,"!",false,false,false,false,"","","",""," "]
[null,null,null,{"$f":"IF(Presentation!$I$25=\"Yes\",IF(Presentation!$M$26=Lists!$E$2,\"<\",\">\")&DATE(YEAR(TODAY()), MONTH(TODAY()), DAY(TODAY())-Presentation!$K$26*365.242),\"\")","v":""},{"$f":"IF(Presentation!$I$27=\"Yes\",IF(Presentation!$L$28=Lists!$E$2,\">=\",\"<=\")&Presentation!$K$28,\"\")","v":""},{"$f":"IF(AND(Presentation!$I$29=\"Yes\",Presentation!$K30<>\"Yes\"),\"HIDE\",Presentation!$L30)","v":"Planning to learn"},{"$f":"IF(Presentation!$I$35=\"Yes\",\"*\" & _xlfn.IFNA(Presentation!$K$36, \"\") & \"*\",\"\")","v":""},null,"\\\\SHOW","Expertise:Yes, Date:No, Percent:No, CustomCat:Yes/No",null,"Saint Teresa of Avila","Let Nothing Upset You",206,"","","Reassurance","Reassurance",null,"\\\\SHOW",{"$f":"IFERROR(VLOOKUP($AF19,Lists!$A$2:$B$6,2,FALSE),IF(PresentationSortBy=ListsSortExpHigh,-9999999,9999999))","v":1},"",999999,999999,"Reassurance",false,false,false,true,"","","Planning to learn","Reassurance"," "]
[null,null,null,{"$f":"IF(Presentation!$I$25=\"Yes\",IF(Presentation!$M$26=Lists!$E$2,\"<\",\">\")&DATE(YEAR(TODAY()), MONTH(TODAY()), DAY(TODAY())-Presentation!$K$26*365.242),\"\")","v":""},{"$f":"IF(Presentation!$I$27=\"Yes\",IF(Presentation!$L$28=Lists!$E$2,\">=\",\"<=\")&Presentation!$K$28,\"\")","v":""},{"$f":"IF(AND(Presentation!$I$29=\"Yes\",Presentation!$K31<>\"Yes\"),\"HIDE\",Presentation!$L31)","v":"Knowledge"},{"$f":"IF(Presentation!$I$35=\"Yes\",\"*\" & _xlfn.IFNA(Presentation!$K$36, \"\") & \"*\",\"\")","v":""},null,"\\\\SHOW",null,null,null,null,null,"",null,null,null,"SPECIALTW",null,{"$f":"IFERROR(VLOOKUP($AF20,Lists!$A$2:$B$6,2,FALSE),IF(PresentationSortBy=ListsSortExpHigh,-9999999,9999999))","v":9999999},"",999999,999999,"!",false,false,false,false,null,null,null,null," "]
[null,null,null,{"$f":"IF(Presentation!$I$25=\"Yes\",IF(Presentation!$M$26=Lists!$E$2,\"<\",\">\")&DATE(YEAR(TODAY()), MONTH(TODAY()), DAY(TODAY())-Presentation!$K$26*365.242),\"\")","v":""},{"$f":"IF(Presentation!$I$27=\"Yes\",IF(Presentation!$L$28=Lists!$E$2,\">=\",\"<=\")&Presentation!$K$28,\"\")","v":""},{"$f":"IF(AND(Presentation!$I$29=\"Yes\",Presentation!$K32<>\"Yes\"),\"HIDE\",Presentation!$L32)","v":"Production"},{"$f":"IF(Presentation!$I$35=\"Yes\",\"*\" & _xlfn.IFNA(Presentation!$K$36, \"\") & \"*\",\"\")","v":""},null,"\\\\SHOW",null,null,"Timeless Wisdom",null,null,"",null,null,null,"SPECIALTW",null,{"$f":"IFERROR(VLOOKUP($AF21,Lists!$A$2:$B$6,2,FALSE),IF(PresentationSortBy=ListsSortExpHigh,-9999999,9999999))","v":9999999},"",999999,999999,"!",false,false,false,false,null,null,null,null," "]
[null,null,null,{"$f":"IF(Presentation!$I$25=\"Yes\",IF(Presentation!$M$26=Lists!$E$2,\"<\",\">\")&DATE(YEAR(TODAY()), MONTH(TODAY()), DAY(TODAY())-Presentation!$K$26*365.242),\"\")","v":""},{"$f":"IF(Presentation!$I$27=\"Yes\",IF(Presentation!$L$28=Lists!$E$2,\">=\",\"<=\")&Presentation!$K$28,\"\")","v":""},{"$f":"IF(AND(Presentation!$I$29=\"Yes\",Presentation!$K33<>\"Yes\"),\"HIDE\",Presentation!$L33)","v":"Skill"},{"$f":"IF(Presentation!$I$35=\"Yes\",\"*\" & _xlfn.IFNA(Presentation!$K$36, \"\") & \"*\",\"\")","v":""},null,"\\\\SHOW",null,null,null,null,null,"",null,null,null,"SPECIALTW",null,{"$f":"IFERROR(VLOOKUP($AF22,Lists!$A$2:$B$6,2,FALSE),IF(PresentationSortBy=ListsSortExpHigh,-9999999,9999999))","v":9999999},"",999999,999999,"!",false,false,false,false,null,null,null,null," "]
[null,null,null,{"$f":"IF(Presentation!$I$25=\"Yes\",IF(Presentation!$M$26=Lists!$E$2,\"<\",\">\")&DATE(YEAR(TODAY()), MONTH(TODAY()), DAY(TODAY())-Presentation!$K$26*365.242),\"\")","v":""},{"$f":"IF(Presentation!$I$27=\"Yes\",IF(Presentation!$L$28=Lists!$E$2,\">=\",\"<=\")&Presentation!$K$28,\"\")","v":""},{"$f":"IF(AND(Presentation!$I$29=\"Yes\",Presentation!$K34<>\"Yes\"),\"HIDE\",Presentation!$L34)","v":"Habit"},{"$f":"IF(Presentation!$I$35=\"Yes\",\"*\" & _xlfn.IFNA(Presentation!$K$36, \"\") & \"*\",\"\")","v":""},null,"\\\\SHOW",null,null,"Abu Sa 'id","If You Want to Draw Near to God",196,0.9117043121149897,"","","",null,"\\\\SHOW",{"$f":"IFERROR(VLOOKUP($AF23,Lists!$A$2:$B$6,2,FALSE),IF(PresentationSortBy=ListsSortExpHigh,-9999999,9999999))","v":9999999},0.9117043121149897,333,999999,"!",false,false,false,false,"2015-12-01","","",""," "]
[null,null,null,{"$f":"IF(Presentation!$I$25=\"Yes\",IF(Presentation!$M$26=Lists!$E$2,\"<\",\">\")&DATE(YEAR(TODAY()), MONTH(TODAY()), DAY(TODAY())-Presentation!$K$26*365.242),\">-999999\")","v":">-999999"},{"$f":"IF(Presentation!$I$27=\"Yes\",IF(Presentation!$L$28=Lists!$E$2,\">=\",\"<=\")&Presentation!$K$28,\">-999999\")","v":">-999999"},{"$f":"IF(AND(Presentation!$I$29=\"Yes\",Presentation!$K30<>\"Yes\"),\"HIDE\",IF(Presentation!$I$29<>\"Yes\",\"\",Presentation!$L30))","v":""},{"$f":"IF(Presentation!$I$35=\"Yes\",\"*\" & _xlfn.IFNA(Presentation!$K$36, \"\") & \"*\",\"\")","v":""},null,"\\\\SHOW","Expertise:No, Date:Yes, Percent:Yes, CustomCat:Yes/No",null,null,null,null,"",null,null,null,"SPECIALOP",null,{"$f":"IFERROR(VLOOKUP($AF24,Lists!$A$2:$B$6,2,FALSE),IF(PresentationSortBy=ListsSortExpHigh,-9999999,9999999))","v":9999999},"",999999,999999,"!",false,false,false,false,null,null,null,null," "]
[null,null,null,{"$f":"IF(Presentation!$I$25=\"Yes\",IF(Presentation!$M$26=Lists!$E$2,\"<\",\">\")&DATE(YEAR(TODAY()), MONTH(TODAY()), DAY(TODAY())-Presentation!$K$26*365.242),\">-999999\")","v":">-999999"},{"$f":"IF(Presentation!$I$27=\"Yes\",IF(Presentation!$L$28=Lists!$E$2,\">=\",\"<=\")&Presentation!$K$28,\">-999999\")","v":">-999999"},{"$f":"IF(AND(Presentation!$I$29=\"Yes\",Presentation!$K31<>\"Yes\"),\"HIDE\",IF(Presentation!$I$29<>\"Yes\",\"\",Presentation!$L31))","v":""},{"$f":"IF(Presentation!$I$35=\"Yes\",\"*\" & _xlfn.IFNA(Presentation!$K$36, \"\") & \"*\",\"\")","v":""},null,"\\\\SHOW",null,null,"Other Passages",null,null,"",null,null,null,"SPECIALOP",null,{"$f":"IFERROR(VLOOKUP($AF25,Lists!$A$2:$B$6,2,FALSE),IF(PresentationSortBy=ListsSortExpHigh,-9999999,9999999))","v":9999999},"",999999,999999,"!",false,false,false,false,null,null,null,null," "]
[null,null,null,{"$f":"IF(Presentation!$I$25=\"Yes\",IF(Presentation!$M$26=Lists!$E$2,\"<\",\">\")&DATE(YEAR(TODAY()), MONTH(TODAY()), DAY(TODAY())-Presentation!$K$26*365.242),\">-999999\")","v":">-999999"},{"$f":"IF(Presentation!$I$27=\"Yes\",IF(Presentation!$L$28=Lists!$E$2,\">=\",\"<=\")&Presentation!$K$28,\">-999999\")","v":">-999999"},{"$f":"IF(AND(Presentation!$I$29=\"Yes\",Presentation!$K32<>\"Yes\"),\"HIDE\",IF(Presentation!$I$29<>\"Yes\",\"\",Presentation!$L32))","v":""},{"$f":"IF(Presentation!$I$35=\"Yes\",\"*\" & _xlfn.IFNA(Presentation!$K$36, \"\") & \"*\",\"\")","v":""},null,"\\\\SHOW",null,null,null,null,null,"",null,null,null,"SPECIALOP",null,{"$f":"IFERROR(VLOOKUP($AF26,Lists!$A$2:$B$6,2,FALSE),IF(PresentationSortBy=ListsSortExpHigh,-9999999,9999999))","v":9999999},"",999999,999999,"!",false,false,false,false,null,null,null,null," "]
[null,null,null,{"$f":"IF(Presentation!$I$25=\"Yes\",IF(Presentation!$M$26=Lists!$E$2,\"<\",\">\")&DATE(YEAR(TODAY()), MONTH(TODAY()), DAY(TODAY())-Presentation!$K$26*365.242),\">-999999\")","v":">-999999"},{"$f":"IF(Presentation!$I$27=\"Yes\",IF(Presentation!$L$28=Lists!$E$2,\">=\",\"<=\")&Presentation!$K$28,\">-999999\")","v":">-999999"},{"$f":"IF(AND(Presentation!$I$29=\"Yes\",Presentation!$K33<>\"Yes\"),\"HIDE\",IF(Presentation!$I$29<>\"Yes\",\"\",Presentation!$L33))","v":""},{"$f":"IF(Presentation!$I$35=\"Yes\",\"*\" & _xlfn.IFNA(Presentation!$K$36, \"\") & \"*\",\"\")","v":""},null,"\\\\SHOW",null,null,"Eknath Easwaran","A Prayer for Meditation","",0.24366872005475701,1,"","",null,"\\\\SHOW",{"$f":"IFERROR(VLOOKUP($AF27,Lists!$A$2:$B$6,2,FALSE),IF(PresentationSortBy=ListsSortExpHigh,-9999999,9999999))","v":4},0.24366872005475701,89,1,"!",false,false,false,false,"2016-08-01",1,"Skill",""," "]
[null,null,null,{"$f":"IF(Presentation!$I$25=\"Yes\",IF(Presentation!$M$26=Lists!$E$2,\"<\",\">\")&DATE(YEAR(TODAY()), MONTH(TODAY()), DAY(TODAY())-Presentation!$K$26*365.242),\">-999999\")","v":">-999999"},{"$f":"IF(Presentation!$I$27=\"Yes\",IF(Presentation!$L$28=Lists!$E$2,\">=\",\"<=\")&Presentation!$K$28,\">-999999\")","v":">-999999"},{"$f":"IF(AND(Presentation!$I$29=\"Yes\",Presentation!$K34<>\"Yes\"),\"HIDE\",IF(Presentation!$I$29<>\"Yes\",\"\",Presentation!$L34))","v":""},{"$f":"IF(Presentation!$I$35=\"Yes\",\"*\" & _xlfn.IFNA(Presentation!$K$36, \"\") & \"*\",\"\")","v":""},null,"\\\\SHOW",null,null,"","Paramahamsa Upanishad","","","","Long","Long",null,"\\\\SHOW",{"$f":"IFERROR(VLOOKUP($AF28,Lists!$A$2:$B$6,2,FALSE),IF(PresentationSortBy=ListsSortExpHigh,-9999999,9999999))","v":1},"",999999,999999,"Long",false,false,false,false,"","","Planning to learn","Long"," "]
[null,null,null,{"$f":"IF(Presentation!$I$25=\"Yes\",IF(Presentation!$M$26=Lists!$E$2,\"<\",\">\")&DATE(YEAR(TODAY()), MONTH(TODAY()), DAY(TODAY())-Presentation!$K$26*365.242),\"\")","v":""},{"$f":"IF(Presentation!$I$27=\"Yes\",IF(Presentation!$L$28=Lists!$E$2,\">=\",\"<=\")&Presentation!$K$28,\">-999999\")","v":">-999999"},{"$f":"IF(AND(Presentation!$I$29=\"Yes\",Presentation!$K30<>\"Yes\"),\"HIDE\",IF(Presentation!$I$29<>\"Yes\",\"\",Presentation!$L30))","v":""},{"$f":"IF(Presentation!$I$35=\"Yes\",\"*\" & _xlfn.IFNA(Presentation!$K$36, \"\") & \"*\",\"\")","v":""},null,"\\\\SHOW","Expertise:No, Date:No, Percent:Yes, CustomCat:Yes/No",null,null,null,null,"",null,null,null,null,null,{"$f":"IFERROR(VLOOKUP($AF29,Lists!$A$2:$B$6,2,FALSE),IF(PresentationSortBy=ListsSortExpHigh,-9999999,9999999))","v":9999999},"",999999,999999,"!",false,false,false,false,null,null,null,null," "]
[null,null,null,{"$f":"IF(Presentation!$I$25=\"Yes\",IF(Presentation!$M$26=Lists!$E$2,\"<\",\">\")&DATE(YEAR(TODAY()), MONTH(TODAY()), DAY(TODAY())-Presentation!$K$26*365.242),\"\")","v":""},{"$f":"IF(Presentation!$I$27=\"Yes\",IF(Presentation!$L$28=Lists!$E$2,\">=\",\"<=\")&Presentation!$K$28,\">-999999\")","v":">-999999"},{"$f":"IF(AND(Presentation!$I$29=\"Yes\",Presentation!$K31<>\"Yes\"),\"HIDE\",IF(Presentation!$I$29<>\"Yes\",\"\",Presentation!$L31))","v":""},{"$f":"IF(Presentation!$I$35=\"Yes\",\"*\" & _xlfn.IFNA(Presentation!$K$36, \"\") & \"*\",\"\")","v":""},null,"\\\\SHOW",null,null,null,null,null,"",null,null,null,null,null,{"$f":"IFERROR(VLOOKUP($AF30,Lists!$A$2:$B$6,2,FALSE),IF(PresentationSortBy=ListsSortExpHigh,-9999999,9999999))","v":9999999},"",999999,999999,"!",false,false,false,false,null,null,null,null," "]
[null,null,null,{"$f":"IF(Presentation!$I$25=\"Yes\",IF(Presentation!$M$26=Lists!$E$2,\"<\",\">\")&DATE(YEAR(TODAY()), MONTH(TODAY()), DAY(TODAY())-Presentation!$K$26*365.242),\"\")","v":""},{"$f":"IF(Presentation!$I$27=\"Yes\",IF(Presentation!$L$28=Lists!$E$2,\">=\",\"<=\")&Presentation!$K$28,\">-999999\")","v":">-999999"},{"$f":"IF(AND(Presentation!$I$29=\"Yes\",Presentation!$K32<>\"Yes\"),\"HIDE\",IF(Presentation!$I$29<>\"Yes\",\"\",Presentation!$L32))","v":""},{"$f":"IF(Presentation!$I$35=\"Yes\",\"*\" & _xlfn.IFNA(Presentation!$K$36, \"\") & \"*\",\"\")","v":""},null,"\\\\SHOW",null,null,null,null,null,"",null,null,null,null,null,{"$f":"IFERROR(VLOOKUP($AF31,Lists!$A$2:$B$6,2,FALSE),IF(PresentationSortBy=ListsSortExpHigh,-9999999,9999999))","v":9999999},"",999999,999999,"!",false,false,false,false,null,null,null,null," "]
[null,null,null,{"$f":"IF(Presentation!$I$25=\"Yes\",IF(Presentation!$M$26=Lists!$E$2,\"<\",\">\")&DATE(YEAR(TODAY()), MONTH(TODAY()), DAY(TODAY())-Presentation!$K$26*365.242),\"\")","v":""},{"$f":"IF(Presentation!$I$27=\"Yes\",IF(Presentation!$L$28=Lists!$E$2,\">=\",\"<=\")&Presentation!$K$28,\">-999999\")","v":">-999999"},{"$f":"IF(AND(Presentation!$I$29=\"Yes\",Presentation!$K33<>\"Yes\"),\"HIDE\",IF(Presentation!$I$29<>\"Yes\",\"\",Presentation!$L33))","v":""},{"$f":"IF(Presentation!$I$35=\"Yes\",\"*\" & _xlfn.IFNA(Presentation!$K$36, \"\") & \"*\",\"\")","v":""},null,"\\\\SHOW",null,null,null,null,null,"",null,null,null,null,null,{"$f":"IFERROR(VLOOKUP($AF32,Lists!$A$2:$B$6,2,FALSE),IF(PresentationSortBy=ListsSortExpHigh,-9999999,9999999))","v":9999999},"",999999,999999,"!",false,false,false,false,null,null,null,null," "]
[null,null,null,{"$f":"IF(Presentation!$I$25=\"Yes\",IF(Presentation!$M$26=Lists!$E$2,\"<\",\">\")&DATE(YEAR(TODAY()), MONTH(TODAY()), DAY(TODAY())-Presentation!$K$26*365.242),\"\")","v":""},{"$f":"IF(Presentation!$I$27=\"Yes\",IF(Presentation!$L$28=Lists!$E$2,\">=\",\"<=\")&Presentation!$K$28,\">-999999\")","v":">-999999"},{"$f":"IF(AND(Presentation!$I$29=\"Yes\",Presentation!$K34<>\"Yes\"),\"HIDE\",IF(Presentation!$I$29<>\"Yes\",\"\",Presentation!$L34))","v":""},{"$f":"IF(Presentation!$I$35=\"Yes\",\"*\" & _xlfn.IFNA(Presentation!$K$36, \"\") & \"*\",\"\")","v":""},null,"\\\\SHOW",null,null,null,null,null,"",null,null,null,null,null,{"$f":"IFERROR(VLOOKUP($AF33,Lists!$A$2:$B$6,2,FALSE),IF(PresentationSortBy=ListsSortExpHigh,-9999999,9999999))","v":9999999},"",999999,999999,"!",false,false,false,false,null,null,null,null," "]
[null,null,null,{"$f":"IF(Presentation!$I$25=\"Yes\",IF(Presentation!$M$26=Lists!$E$2,\"<\",\">\")&DATE(YEAR(TODAY()), MONTH(TODAY()), DAY(TODAY())-Presentation!$K$26*365.242),\">-999999\")","v":">-999999"},{"$f":"IF(Presentation!$I$27=\"Yes\",IF(Presentation!$L$28=Lists!$E$2,\">=\",\"<=\")&Presentation!$K$28,\"\")","v":""},{"$f":"IF(AND(Presentation!$I$29=\"Yes\",Presentation!$K30<>\"Yes\"),\"HIDE\",IF(Presentation!$I$29<>\"Yes\",\"\",Presentation!$L30))","v":""},{"$f":"IF(Presentation!$I$35=\"Yes\",\"*\" & _xlfn.IFNA(Presentation!$K$36, \"\") & \"*\",\"\")","v":""},null,"\\\\SHOW","Expertise:No, Date:Yes, Percent:No, CustomCat:Yes/No",null,null,null,null,"",null,null,null,null,null,{"$f":"IFERROR(VLOOKUP($AF34,Lists!$A$2:$B$6,2,FALSE),IF(PresentationSortBy=ListsSortExpHigh,-9999999,9999999))","v":9999999},"",999999,999999,"!",false,false,false,false,null,null,null,null," "]
[null,null,null,{"$f":"IF(Presentation!$I$25=\"Yes\",IF(Presentation!$M$26=Lists!$E$2,\"<\",\">\")&DATE(YEAR(TODAY()), MONTH(TODAY()), DAY(TODAY())-Presentation!$K$26*365.242),\">-999999\")","v":">-999999"},{"$f":"IF(Presentation!$I$27=\"Yes\",IF(Presentation!$L$28=Lists!$E$2,\">=\",\"<=\")&Presentation!$K$28,\"\")","v":""},{"$f":"IF(AND(Presentation!$I$29=\"Yes\",Presentation!$K31<>\"Yes\"),\"HIDE\",IF(Presentation!$I$29<>\"Yes\",\"\",Presentation!$L31))","v":""},{"$f":"IF(Presentation!$I$35=\"Yes\",\"*\" & _xlfn.IFNA(Presentation!$K$36, \"\") & \"*\",\"\")","v":""},null,"\\\\SHOW",null,null,null,null,null,"",null,null,null,null,null,{"$f":"IFERROR(VLOOKUP($AF35,Lists!$A$2:$B$6,2,FALSE),IF(PresentationSortBy=ListsSortExpHigh,-9999999,9999999))","v":9999999},"",999999,999999,"!",false,false,false,false,null,null,null,null," "]
[null,null,null,{"$f":"IF(Presentation!$I$25=\"Yes\",IF(Presentation!$M$26=Lists!$E$2,\"<\",\">\")&DATE(YEAR(TODAY()), MONTH(TODAY()), DAY(TODAY())-Presentation!$K$26*365.242),\">-999999\")","v":">-999999"},{"$f":"IF(Presentation!$I$27=\"Yes\",IF(Presentation!$L$28=Lists!$E$2,\">=\",\"<=\")&Presentation!$K$28,\"\")","v":""},{"$f":"IF(AND(Presentation!$I$29=\"Yes\",Presentation!$K32<>\"Yes\"),\"HIDE\",IF(Presentation!$I$29<>\"Yes\",\"\",Presentation!$L32))","v":""},{"$f":"IF(Presentation!$I$35=\"Yes\",\"*\" & _xlfn.IFNA(Presentation!$K$36, \"\") & \"*\",\"\")","v":""},null,"\\\\SHOW",null,null,null,null,null,"",null,null,null,null,null,{"$f":"IFERROR(VLOOKUP($AF36,Lists!$A$2:$B$6,2,FALSE),IF(PresentationSortBy=ListsSortExpHigh,-9999999,9999999))","v":9999999},"",999999,999999,"!",false,false,false,false,null,null,null,null," "]
[null,null,null,{"$f":"IF(Presentation!$I$25=\"Yes\",IF(Presentation!$M$26=Lists!$E$2,\"<\",\">\")&DATE(YEAR(TODAY()), MONTH(TODAY()), DAY(TODAY())-Presentation!$K$26*365.242),\">-999999\")","v":">-999999"},{"$f":"IF(Presentation!$I$27=\"Yes\",IF(Presentation!$L$28=Lists!$E$2,\">=\",\"<=\")&Presentation!$K$28,\"\")","v":""},{"$f":"IF(AND(Presentation!$I$29=\"Yes\",Presentation!$K33<>\"Yes\"),\"HIDE\",IF(Presentation!$I$29<>\"Yes\",\"\",Presentation!$L33))","v":""},{"$f":"IF(Presentation!$I$35=\"Yes\",\"*\" & _xlfn.IFNA(Presentation!$K$36, \"\") & \"*\",\"\")","v":""},null,"\\\\SHOW",null,null,null,null,null,"",null,null,null,null,null,{"$f":"IFERROR(VLOOKUP($AF37,Lists!$A$2:$B$6,2,FALSE),IF(PresentationSortBy=ListsSortExpHigh,-9999999,9999999))","v":9999999},"",999999,999999,"!",false,false,false,false,null,null,null,null," "]
[null,null,null,{"$f":"IF(Presentation!$I$25=\"Yes\",IF(Presentation!$M$26=Lists!$E$2,\"<\",\">\")&DATE(YEAR(TODAY()), MONTH(TODAY()), DAY(TODAY())-Presentation!$K$26*365.242),\">-999999\")","v":">-999999"},{"$f":"IF(Presentation!$I$27=\"Yes\",IF(Presentation!$L$28=Lists!$E$2,\">=\",\"<=\")&Presentation!$K$28,\"\")","v":""},{"$f":"IF(AND(Presentation!$I$29=\"Yes\",Presentation!$K34<>\"Yes\"),\"HIDE\",IF(Presentation!$I$29<>\"Yes\",\"\",Presentation!$L34))","v":""},{"$f":"IF(Presentation!$I$35=\"Yes\",\"*\" & _xlfn.IFNA(Presentation!$K$36, \"\") & \"*\",\"\")","v":""},null,"\\\\SHOW",null,null,null,null,null,"",null,null,null,null,null,{"$f":"IFERROR(VLOOKUP($AF38,Lists!$A$2:$B$6,2,FALSE),IF(PresentationSortBy=ListsSortExpHigh,-9999999,9999999))","v":9999999},"",999999,999999,"!",false,false,false,false,null,null,null,null," "]
[null,null,null,{"$f":"IF(Presentation!$I$25=\"Yes\",IF(Presentation!$M$26=Lists!$E$2,\"<\",\">\")&DATE(YEAR(TODAY()), MONTH(TODAY()), DAY(TODAY())-Presentation!$K$26*365.242),\"\")","v":""},{"$f":"IF(Presentation!$I$27=\"Yes\",IF(Presentation!$L$28=Lists!$E$2,\">=\",\"<=\")&Presentation!$K$28,\"\")","v":""},{"$f":"IF(AND(Presentation!$I$29=\"Yes\",Presentation!$K30<>\"Yes\"),\"HIDE\",IF(Presentation!$I$29<>\"Yes\",\"\",Presentation!$L30))","v":""},{"$f":"IF(Presentation!$I$35=\"Yes\",\"*\" & _xlfn.IFNA(Presentation!$K$36, \"\") & \"*\",\"\")","v":""},null,"\\\\SHOW","Expertise:No, Date:No, Percent:No, CustomCat:Yes/No",null,null,null,null,"",null,null,null,null,null,{"$f":"IFERROR(VLOOKUP($AF39,Lists!$A$2:$B$6,2,FALSE),IF(PresentationSortBy=ListsSortExpHigh,-9999999,9999999))","v":9999999},"",999999,999999,"!",false,false,false,false,null,null,null,null," "]
[null,null,null,{"$f":"IF(Presentation!$I$25=\"Yes\",IF(Presentation!$M$26=Lists!$E$2,\"<\",\">\")&DATE(YEAR(TODAY()), MONTH(TODAY()), DAY(TODAY())-Presentation!$K$26*365.242),\"\")","v":""},{"$f":"IF(Presentation!$I$27=\"Yes\",IF(Presentation!$L$28=Lists!$E$2,\">=\",\"<=\")&Presentation!$K$28,\"\")","v":""},{"$f":"IF(AND(Presentation!$I$29=\"Yes\",Presentation!$K31<>\"Yes\"),\"HIDE\",IF(Presentation!$I$29<>\"Yes\",\"\",Presentation!$L31))","v":""},{"$f":"IF(Presentation!$I$35=\"Yes\",\"*\" & _xlfn.IFNA(Presentation!$K$36, \"\") & \"*\",\"\")","v":""},null,"\\\\SHOW",null,null,null,null,null,"",null,null,null,null,null,{"$f":"IFERROR(VLOOKUP($AF40,Lists!$A$2:$B$6,2,FALSE),IF(PresentationSortBy=ListsSortExpHigh,-9999999,9999999))","v":9999999},"",999999,999999,"!",false,false,false,false,null,null,null,null," "]
[null,null,null,{"$f":"IF(Presentation!$I$25=\"Yes\",IF(Presentation!$M$26=Lists!$E$2,\"<\",\">\")&DATE(YEAR(TODAY()), MONTH(TODAY()), DAY(TODAY())-Presentation!$K$26*365.242),\"\")","v":""},{"$f":"IF(Presentation!$I$27=\"Yes\",IF(Presentation!$L$28=Lists!$E$2,\">=\",\"<=\")&Presentation!$K$28,\"\")","v":""},{"$f":"IF(AND(Presentation!$I$29=\"Yes\",Presentation!$K32<>\"Yes\"),\"HIDE\",IF(Presentation!$I$29<>\"Yes\",\"\",Presentation!$L32))","v":""},{"$f":"IF(Presentation!$I$35=\"Yes\",\"*\" & _xlfn.IFNA(Presentation!$K$36, \"\") & \"*\",\"\")","v":""},null,"\\\\SHOW",null,null,null,null,null,"",null,null,null,null,null,{"$f":"IFERROR(VLOOKUP($AF41,Lists!$A$2:$B$6,2,FALSE),IF(PresentationSortBy=ListsSortExpHigh,-9999999,9999999))","v":9999999},"",999999,999999,"!",false,false,false,false,null,null,null,null," "]
[null,null,null,{"$f":"IF(Presentation!$I$25=\"Yes\",IF(Presentation!$M$26=Lists!$E$2,\"<\",\">\")&DATE(YEAR(TODAY()), MONTH(TODAY()), DAY(TODAY())-Presentation!$K$26*365.242),\"\")","v":""},{"$f":"IF(Presentation!$I$27=\"Yes\",IF(Presentation!$L$28=Lists!$E$2,\">=\",\"<=\")&Presentation!$K$28,\"\")","v":""},{"$f":"IF(AND(Presentation!$I$29=\"Yes\",Presentation!$K33<>\"Yes\"),\"HIDE\",IF(Presentation!$I$29<>\"Yes\",\"\",Presentation!$L33))","v":""},{"$f":"IF(Presentation!$I$35=\"Yes\",\"*\" & _xlfn.IFNA(Presentation!$K$36, \"\") & \"*\",\"\")","v":""},null,"\\\\SHOW",null,null,null,null,null,"",null,null,null,null,null,{"$f":"IFERROR(VLOOKUP($AF42,Lists!$A$2:$B$6,2,FALSE),IF(PresentationSortBy=ListsSortExpHigh,-9999999,9999999))","v":9999999},"",999999,999999,"!",false,false,false,false,null,null,null,null," "]
[null,null,null,{"$f":"IF(Presentation!$I$25=\"Yes\",IF(Presentation!$M$26=Lists!$E$2,\"<\",\">\")&DATE(YEAR(TODAY()), MONTH(TODAY()), DAY(TODAY())-Presentation!$K$26*365.242),\"\")","v":""},{"$f":"IF(Presentation!$I$27=\"Yes\",IF(Presentation!$L$28=Lists!$E$2,\">=\",\"<=\")&Presentation!$K$28,\"\")","v":""},{"$f":"IF(AND(Presentation!$I$29=\"Yes\",Presentation!$K34<>\"Yes\"),\"HIDE\",IF(Presentation!$I$29<>\"Yes\",\"\",Presentation!$L34))","v":""},{"$f":"IF(Presentation!$I$35=\"Yes\",\"*\" & _xlfn.IFNA(Presentation!$K$36, \"\") & \"*\",\"\")","v":""},null,"\\\\SHOW",null,null,null,null,null,"",null,null,null,null,null,{"$f":"IFERROR(VLOOKUP($AF43,Lists!$A$2:$B$6,2,FALSE),IF(PresentationSortBy=ListsSortExpHigh,-9999999,9999999))","v":9999999},"",999999,999999,"!",false,false,false,false,null,null,null,null," "]
[null,null,null,null,null,null,null,{"$f":"IF(AND(Presentation!$I$4=Lists!$F$2, StatsPassInRepGMRF>0), \"SPECIALGMRF\",\"HIDE\")","v":"SPECIALGMRF"},null,"GMRF Special rows",null,null,null,null,"",null,null,null,null,null,{"$f":"IFERROR(VLOOKUP($AF44,Lists!$A$2:$B$6,2,FALSE),IF(PresentationSortBy=ListsSortExpHigh,-9999999,9999999))","v":9999999},"",999999,999999,"!",false,false,false,false,null,null,null,null," "]
[null,null,null,null,null,null,null,{"$f":"IF(AND(Presentation!$I$4=Lists!$F$2, StatsPassInRepTW>0), \"SPECIALTW\",\"HIDE\")","v":"SPECIALTW"},null,"TW Special Rows",null,null,null,null,"",null,null,null,null,null,{"$f":"IFERROR(VLOOKUP($AF45,Lists!$A$2:$B$6,2,FALSE),IF(PresentationSortBy=ListsSortExpHigh,-9999999,9999999))","v":9999999},"",999999,999999,"!",false,false,false,false,null,null,null,null," "]
[null,null,null,null,null,null,null,{"$f":"IF(AND(Presentation!$I$4=Lists!$F$2, StatsPassInRepOP>0), \"SPECIALOP\",\"HIDE\")","v":"SPECIALOP"},null,"OP Special Rows",null,null,null,null,"",null,null,null,null,null,{"$f":"IFERROR(VLOOKUP($AF46,Lists!$A$2:$B$6,2,FALSE),IF(PresentationSortBy=ListsSortExpHigh,-9999999,9999999))","v":9999999},"",999999,999999,"!",false,false,false,false,null,null,null,null," "]
[null,null,null,null,null,null,null,null,null,null,null,null,null,null,"",null,null,null,null,null,{"$f":"IFERROR(VLOOKUP($AF47,Lists!$A$2:$B$6,2,FALSE),IF(PresentationSortBy=ListsSortExpHigh,-9999999,9999999))","v":9999999},"",999999,999999,"!",false,false,false,false,null,null,null,null," "]
["MIRROR",null,null,null,null,null,null,null,null,null,null,null,null,null,"",null,null,null,null,null,{"$f":"IFERROR(VLOOKUP($AF48,Lists!$A$2:$B$6,2,FALSE),IF(PresentationSortBy=ListsSortExpHigh,-9999999,9999999))","v":9999999},"",999999,999999,"!",false,false,false,false,null,null,null,null," "]
["Author","Passage","Page","Date Begun\n(approximate)","Percent Memorized","Expertise Level","Custom Categories","Special","Data Entered",null,null,null,null,null,"",null,null,null,null,null,{"$f":"IFERROR(VLOOKUP($AF49,Lists!$A$2:$B$6,2,FALSE),IF(PresentationSortBy=ListsSortExpHigh,-9999999,9999999))","v":9999999},"",999999,999999,"!",false,false,false,false,null,null,null,null," "]
[null,null,null,null,null,null,null,"SPECIALGMRF",null,null,null,null,null,null,"",null,null,null,null,null,{"$f":"IFERROR(VLOOKUP($AF50,Lists!$A$2:$B$6,2,FALSE),IF(PresentationSortBy=ListsSortExpHigh,-9999999,9999999))","v":9999999},"",999999,999999,"!",false,false,false,false,null,null,null,null," "]
["God Makes The Rivers To Flow ",null,null,null,null,null,null,"SPECIALGMRF",null,null,null,null,null,null,"",null,null,null,null,null,{"$f":"IFERROR(VLOOKUP($AF51,Lists!$A$2:$B$6,2,FALSE),IF(PresentationSortBy=ListsSortExpHigh,-9999999,9999999))","v":9999999},"",999999,999999,"!",false,false,false,false,null,null,null,null," "]
[{"$f":"IF(ISBLANK('God Makes The Rivers To Flow'!A8),\"\",'God Makes The Rivers To Flow'!A8)","v":""},{"$f":"IF(ISBLANK('God Makes The Rivers To Flow'!B8),\"\",'God Makes The Rivers To Flow'!B8)","v":""},{"$f":"IF(ISBLANK('God Makes The Rivers To Flow'!C8),\"\",'God Makes The Rivers To Flow'!C8)","v":""},{"$f":"IF(ISBLANK('God Makes The Rivers To Flow'!D8),\"\",'God Makes The Rivers To Flow'!D8)","v":""},{"$f":"IF(ISBLANK('God Makes The Rivers To Flow'!E8),\"\",'God Makes The Rivers To Flow'!E8)","v":""},{"$f":"IF(ISBLANK('God Makes The Rivers To Flow'!F8),\"\",'God Makes The Rivers To Flow'!F8)","v":""},{"$f":"IF(ISBLANK('God Makes The Rivers To Flow'!G8),\"\",TEXT('God Makes The Rivers To Flow'!G8,\"General\"))","v":""},"SPECIALGMRF",null,null,null,null,null,null,"",null,null,null,null,null,{"$f":"IFERROR(VLOOKUP($AF52,Lists!$A$2:$B$6,2,FALSE),IF(PresentationSortBy=ListsSortExpHigh,-9999999,9999999))","v":9999999},"",999999,999999,"!",false,false,false,false,null,null,null,null," "]
[{"$f":"IF(ISBLANK('God Makes The Rivers To Flow'!A9),\"\",'God Makes The Rivers To Flow'!A9)","v":"PART ONE"},{"$f":"IF(ISBLANK('God Makes The Rivers To Flow'!B9),\"\",'God Makes The Rivers To Flow'!B9)","v":"At the Source"},{"$f":"IF(ISBLANK('God Makes The Rivers To Flow'!C9),\"\",'God Makes The Rivers To Flow'!C9)","v":""},{"$f":"IF(ISBLANK('God Makes The Rivers To Flow'!D9),\"\",'God Makes The Rivers To Flow'!D9)","v":""},{"$f":"IF(ISBLANK('God Makes The Rivers To Flow'!E9),\"\",'God Makes The Rivers To Flow'!E9)","v":""},{"$f":"IF(ISBLANK('God Makes The Rivers To Flow'!F9),\"\",'God Makes The Rivers To Flow'!F9)","v":""},{"$f":"IF(ISBLANK('God Makes The Rivers To Flow'!G9),\"\",TEXT('God Makes The Rivers To Flow'!G9,\"General\"))","v":""},"SPECIALGMRF",null,null,null,null,null,null,"",null,null,null,null,null,{"$f":"IFERROR(VLOOKUP($AF53,Lists!$A$2:$B$6,2,FALSE),IF(PresentationSortBy=ListsSortExpHigh,-9999999,9999999))","v":9999999},"",999999,999999,"!",false,false,false,false,null,null,null,null," "]
[{"$f":"IF(ISBLANK('God Makes The Rivers To Flow'!A10),\"\",'God Makes The Rivers To Flow'!A10)","v":""},{"$f":"IF(ISBLANK('God Makes The Rivers To Flow'!B10),\"\",'God Makes The Rivers To Flow'!B10)","v":""},{"$f":"IF(ISBLANK('God Makes The Rivers To Flow'!C10),\"\",'God Makes The Rivers To Flow'!C10)","v":""},{"$f":"IF(ISBLANK('God Makes The Rivers To Flow'!D10),\"\",'God Makes The Rivers To Flow'!D10)","v":""},{"$f":"IF(ISBLANK('God Makes The Rivers To Flow'!E10),\"\",'God Makes The Rivers To Flow'!E10)","v":""},{"$f":"IF(ISBLANK('God Makes The Rivers To Flow'!F10),\"\",'God Makes The Rivers To Flow'!F10)","v":""},{"$f":"IF(ISBLANK('God Makes The Rivers To Flow'!G10),\"\",TEXT('God Makes The Rivers To Flow'!G10,\"General\"))","v":""},"SPECIALGMRF",null,null,null,null,null,null,"",null,null,null,null,null,{"$f":"IFERROR(VLOOKUP($AF54,Lists!$A$2:$B$6,2,FALSE),IF(PresentationSortBy=ListsSortExpHigh,-9999999,9999999))","v":9999999},"",999999,999999,"!",false,false,false,false,null,null,null,null," "]
[{"$f":"IF(ISBLANK('God Makes The Rivers To Flow'!A11),\"\",'God Makes The Rivers To Flow'!A11)","v":"The Upanishads"},{"$f":"IF(ISBLANK('God Makes The Rivers To Flow'!B11),\"\",'God Makes The Rivers To Flow'!B11)","v":"Invocations"},{"$f":"IF(ISBLANK('God Makes The Rivers To Flow'!C11),\"\",'God Makes The Rivers To Flow'!C11)","v":29},{"$f":"IF(ISBLANK('God Makes The Rivers To Flow'!D11),\"\",'God Makes The Rivers To Flow'!D11)","v":""},{"$f":"IF(ISBLANK('God Makes The Rivers To Flow'!E11),\"\",'God Makes The Rivers To Flow'!E11)","v":""},{"$f":"IF(ISBLANK('God Makes The Rivers To Flow'!F11),\"\",'God Makes The Rivers To Flow'!F11)","v":""},{"$f":"IF(ISBLANK('God Makes The Rivers To Flow'!G11),\"\",TEXT('God Makes The Rivers To Flow'!G11,\"General\"))","v":""},null,{"$f":"IF(OR(ISNUMBER(D55),ISNUMBER(E55),F55<>\"\",G55<>\"\"),\"\\\\SHOW\",\"HIDE\")","v":"HIDE"},null,null,null,null,null,"",null,null,null,null,null,{"$f":"IFERROR(VLOOKUP($AF55,Lists!$A$2:$B$6,2,FALSE),IF(PresentationSortBy=ListsSortExpHigh,-9999999,9999999))","v":9999999},"",999999,999999,"!",false,false,false,false,null,null,null,null," "]
[{"$f":"IF(ISBLANK('God Makes The Rivers To Flow'!A12),\"\",'God Makes The Rivers To Flow'!A12)","v":"Psalm 100"},{"$f":"IF(ISBLANK('God Makes The Rivers To Flow'!B12),\"\",'God Makes The Rivers To Flow'!B12)","v":"Worship the Lord in Gladness"},{"$f":"IF(ISBLANK('God Makes The Rivers To Flow'!C12),\"\",'God Makes The Rivers To Flow'!C12)","v":30},{"$f":"IF(ISBLANK('God Makes The Rivers To Flow'!D12),\"\",'God Makes The Rivers To Flow'!D12)","v":""},{"$f":"IF(ISBLANK('God Makes The Rivers To Flow'!E12),\"\",'God Makes The Rivers To Flow'!E12)","v":""},{"$f":"IF(ISBLANK('God Makes The Rivers To Flow'!F12),\"\",'God Makes The Rivers To Flow'!F12)","v":""},{"$f":"IF(ISBLANK('God Makes The Rivers To Flow'!G12),\"\",TEXT('God Makes The Rivers To Flow'!G12,\"General\"))","v":""},null,{"$f":"IF(OR(ISNUMBER(D56),ISNUMBER(E56),F56<>\"\",G56<>\"\"),\"\\\\SHOW\",\"HIDE\")","v":"HIDE"},null,null,null,null,null,"",null,null,null,null,null,{"$f":"IFERROR(VLOOKUP($AF56,Lists!$A$2:$B$6,2,FALSE),IF(PresentationSortBy=ListsSortExpHigh,-9999999,9999999))","v":9999999},"",999999,999999,"!",false,false,false,false,null,null,null,null," "]
[{"$f":"IF(ISBLANK('God Makes The Rivers To Flow'!A13),\"\",'God Makes The Rivers To Flow'!A13)","v":"The Isha Upanishad"},{"$f":"IF(ISBLANK('God Makes The Rivers To Flow'!B13),\"\",'God Makes The Rivers To Flow'!B13)","v":"The Inner Ruler"},{"$f":"IF(ISBLANK('God Makes The Rivers To Flow'!C13),\"\",'God Makes The Rivers To Flow'!C13)","v":31},{"$f":"IF(ISBLANK('God Makes The Rivers To Flow'!D13),\"\",'God Makes The Rivers To Flow'!D13)","v":""},{"$f":"IF(ISBLANK('God Makes The Rivers To Flow'!E13),\"\",'God Makes The Rivers To Flow'!E13)","v":""},{"$f":"IF(ISBLANK('God Makes The Rivers To Flow'!F13),\"\",'God Makes The Rivers To Flow'!F13)","v":""},{"$f":"IF(ISBLANK('God Makes The Rivers To Flow'!G13),\"\",TEXT('God Makes The Rivers To Flow'!G13,\"General\"))","v":""},null,"HIDE",null,null,null,null,null,"",null,null,null,null,null,{"$f":"IFERROR(VLOOKUP($AF57,Lists!$A$2:$B$6,2,FALSE),IF(PresentationSortBy=ListsSortExpHigh,-9999999,9999999))","v":9999999},"",999999,999999,"!",false,false,false,false,null,null,null,null," "]
[{"$f":"IF(ISBLANK('God Makes The Rivers To Flow'!A14),\"\",'God Makes The Rivers To Flow'!A14)","v":"Lao Tzu"},{"$f":"IF(ISBLANK('God Makes The Rivers To Flow'!B14),\"\",'God Makes The Rivers To Flow'!B14)","v":"Holding to the Constant"},{"$f":"IF(ISBLANK('God Makes The Rivers To Flow'!C14),\"\",'God Makes The Rivers To Flow'!C14)","v":34},{"$f":"IF(ISBLANK('God Makes The Rivers To Flow'!D14),\"\",'God Makes The Rivers To Flow'!D14)","v":""},{"$f":"IF(ISBLANK('God Makes The Rivers To Flow'!E14),\"\",'God Makes The Rivers To Flow'!E14)","v":""},{"$f":"IF(ISBLANK('God Makes The Rivers To Flow'!F14),\"\",'God Makes The Rivers To Flow'!F14)","v":""},{"$f":"IF(ISBLANK('God Makes The Rivers To Flow'!G14),\"\",TEXT('God Makes The Rivers To Flow'!G14,\"General\"))","v":""},null,"HIDE",null,null,null,null,null,"",null,null,null,null,null,{"$f":"IFERROR(VLOOKUP($AF58,Lists!$A$2:$B$6,2,FALSE),IF(PresentationSortBy=ListsSortExpHigh,-9999999,9999999))","v":9999999},"",999999,999999,"!",false,false,false,false,null,null,null,null," "]
[{"$f":"IF(ISBLANK('God Makes The Rivers To Flow'!A15),\"\",'God Makes The Rivers To Flow'!A15)","v":"Lao Tzu"},{"$f":"IF(ISBLANK('God Makes The Rivers To Flow'!B15),\"\",'God Makes The Rivers To Flow'!B15)","v":"Mother of All Things"},{"$f":"IF(ISBLANK('God Makes The Rivers To Flow'!C15),\"\",'God Makes The Rivers To Flow'!C15)","v":35},{"$f":"IF(ISBLANK('God Makes The Rivers To Flow'!D15),\"\",'God Makes The Rivers To Flow'!D15)","v":""},{"$f":"IF(ISBLANK('God Makes The Rivers To Flow'!E15),\"\",'God Makes The Rivers To Flow'!E15)","v":""},{"$f":"IF(ISBLANK('God Makes The Rivers To Flow'!F15),\"\",'God Makes The Rivers To Flow'!F15)","v":""},{"$f":"IF(ISBLANK('God Makes The Rivers To Flow'!G15),\"\",TEXT('God Makes The Rivers To Flow'!G15,\"General\"))","v":""},null,"HIDE",null,null,null,null,null,"",null,null,null,null,null,{"$f":"IFERROR(VLOOKUP($AF59,Lists!$A$2:$B$6,2,FALSE),IF(PresentationSortBy=ListsSortExpHigh,-9999999,9999999))","v":9999999},"",999999,999999,"!",false,false,false,false,null,null,null,null," "]
[{"$f":"IF(ISBLANK('God Makes The Rivers To Flow'!A16),\"\",'God Makes The Rivers To Flow'!A16)","v":"The Chandi"},{"$f":"IF(ISBLANK('God Makes The Rivers To Flow'!B16),\"\",'God Makes The Rivers To Flow'!B16)","v":"Hymn to the Divine Mother"},{"$f":"IF(ISBLANK('God Makes The Rivers To Flow'!C16),\"\",'God Makes The Rivers To Flow'!C16)","v":36},{"$f":"IF(ISBLANK('God Makes The Rivers To Flow'!D16),\"\",'God Makes The Rivers To Flow'!D16)","v":""},{"$f":"IF(ISBLANK('God Makes The Rivers To Flow'!E16),\"\",'God Makes The Rivers To Flow'!E16)","v":""},{"$f":"IF(ISBLANK('God Makes The Rivers To Flow'!F16),\"\",'God Makes The Rivers To Flow'!F16)","v":""},{"$f":"IF(ISBLANK('God Makes The Rivers To Flow'!G16),\"\",TEXT('God Makes The Rivers To Flow'!G16,\"General\"))","v":""},null,"HIDE",null,null,null,null,null,"",null,null,null,null,null,{"$f":"IFERROR(VLOOKUP($AF60,Lists!$A$2:$B$6,2,FALSE),IF(PresentationSortBy=ListsSortExpHigh,-9999999,9999999))","v":9999999},"",999999,999999,"!",false,false,false,false,null,null,null,null," "]
[{"$f":"IF(ISBLANK('God Makes The Rivers To Flow'!A17),\"\",'God Makes The Rivers To Flow'!A17)","v":"Swami Ramdas"},{"$f":"IF(ISBLANK('God Makes The Rivers To Flow'!B17),\"\",'God Makes The Rivers To Flow'!B17)","v":"Divine Mystery"},{"$f":"IF(ISBLANK('God Makes The Rivers To Flow'!C17),\"\",'God Makes The Rivers To Flow'!C17)","v":37},{"$f":"IF(ISBLANK('God Makes The Rivers To Flow'!D17),\"\",'God Makes The Rivers To Flow'!D17)","v":""},{"$f":"IF(ISBLANK('God Makes The Rivers To Flow'!E17),\"\",'God Makes The Rivers To Flow'!E17)","v":""},{"$f":"IF(ISBLANK('God Makes The Rivers To Flow'!F17),\"\",'God Makes The Rivers To Flow'!F17)","v":""},{"$f":"IF(ISBLANK('God Makes The Rivers To Flow'!G17),\"\",TEXT('God Makes The Rivers To Flow'!G17,\"General\"))","v":""},null,"HIDE",null,null,null,null,null,"",null,null,null,null,null,{"$f":"IFERROR(VLOOKUP($AF61,Lists!$A$2:$B$6,2,FALSE),IF(PresentationSortBy=ListsSortExpHigh,-9999999,9999999))","v":9999999},"",999999,999999,"!",false,false,false,false,null,null,null,null," "]
[{"$f":"IF(ISBLANK('God Makes The Rivers To Flow'!A18),\"\",'God Makes The Rivers To Flow'!A18)","v":"Mahmud Shabestari"},{"$f":"IF(ISBLANK('God Makes The Rivers To Flow'!B18),\"\",'God Makes The Rivers To Flow'!B18)","v":"The Mirror of This World"},{"$f":"IF(ISBLANK('God Makes The Rivers To Flow'!C18),\"\",'God Makes The Rivers To Flow'!C18)","v":38},{"$f":"IF(ISBLANK('God Makes The Rivers To Flow'!D18),\"\",'God Makes The Rivers To Flow'!D18)","v":""},{"$f":"IF(ISBLANK('God Makes The Rivers To Flow'!E18),\"\",'God Makes The Rivers To Flow'!E18)","v":""},{"$f":"IF(ISBLANK('God Makes The Rivers To Flow'!F18),\"\",'God Makes The Rivers To Flow'!F18)","v":""},{"$f":"IF(ISBLANK('God Makes The Rivers To Flow'!G18),\"\",TEXT('God Makes The Rivers To Flow'!G18,\"General\"))","v":""},null,"HIDE",null,null,null,null,null,"",null,null,null,null,null,{"$f":"IFERROR(VLOOKUP($AF62,Lists!$A$2:$B$6,2,FALSE),IF(PresentationSortBy=ListsSortExpHigh,-9999999,9999999))","v":9999999},"",999999,999999,"!",false,false,false,false,null,null,null,null," "]
[{"$f":"IF(ISBLANK('God Makes The Rivers To Flow'!A19),\"\",'God Makes The Rivers To Flow'!A19)","v":"Rabbi Abraham Isaac Kook"},{"$f":"IF(ISBLANK('God Makes The Rivers To Flow'!B19),\"\",'God Makes The Rivers To Flow'!B19)","v":"Radiant Is the World Soul"},{"$f":"IF(ISBLANK('God Makes The Rivers To Flow'!C19),\"\",'God Makes The Rivers To Flow'!C19)","v":39},{"$f":"IF(ISBLANK('God Makes The Rivers To Flow'!D19),\"\",'God Makes The Rivers To Flow'!D19)","v":"2015-11-01"},{"$f":"IF(ISBLANK('God Makes The Rivers To Flow'!E19),\"\",'God Makes The Rivers To Flow'!E19)","v":1},{"$f":"IF(ISBLANK('God Makes The Rivers To Flow'!F19),\"\",'God Makes The Rivers To Flow'!F19)","v":"Skill"},{"$f":"IF(ISBLANK('God Makes The Rivers To Flow'!G19),\"\",TEXT('God Makes The Rivers To Flow'!G19,\"General\"))","v":"Joy"},null,"\\\\SHOW",null,null,null,null,null,"",null,null,null,null,null,{"$f":"IFERROR(VLOOKUP($AF63,Lists!$A$2:$B$6,2,FALSE),IF(PresentationSortBy=ListsSortExpHigh,-9999999,9999999))","v":9999999},"",999999,999999,"!",false,false,false,false,null,null,null,null," "]
[{"$f":"IF(ISBLANK('God Makes The Rivers To Flow'!A20),\"\",'God Makes The Rivers To Flow'!A20)","v":"Kabir"},{"$f":"IF(ISBLANK('God Makes The Rivers To Flow'!B20),\"\",'God Makes The Rivers To Flow'!B20)","v":"The Temple of the Lord"},{"$f":"IF(ISBLANK('God Makes The Rivers To Flow'!C20),\"\",'God Makes The Rivers To Flow'!C20)","v":40},{"$f":"IF(ISBLANK('God Makes The Rivers To Flow'!D20),\"\",'God Makes The Rivers To Flow'!D20)","v":""},{"$f":"IF(ISBLANK('God Makes The Rivers To Flow'!E20),\"\",'God Makes The Rivers To Flow'!E20)","v":""},{"$f":"IF(ISBLANK('God Makes The Rivers To Flow'!F20),\"\",'God Makes The Rivers To Flow'!F20)","v":""},{"$f":"IF(ISBLANK('God Makes The Rivers To Flow'!G20),\"\",TEXT('God Makes The Rivers To Flow'!G20,\"General\"))","v":""},null,"HIDE",null,null,null,null,null,"",null,null,null,null,null,{"$f":"IFERROR(VLOOKUP($AF64,Lists!$A$2:$B$6,2,FALSE),IF(PresentationSortBy=ListsSortExpHigh,-9999999,9999999))","v":9999999},"",999999,999999,"!",false,false,false,false,null,null,null,null," "]
[{"$f":"IF(ISBLANK('God Makes The Rivers To Flow'!A21),\"\",'God Makes The Rivers To Flow'!A21)","v":"The Shvetashvatara Upanishad"},{"$f":"IF(ISBLANK('God Makes The Rivers To Flow'!B21),\"\",'God Makes The Rivers To Flow'!B21)","v":"The River of God"},{"$f":"IF(ISBLANK('God Makes The Rivers To Flow'!C21),\"\",'God Makes The Rivers To Flow'!C21)","v":42},{"$f":"IF(ISBLANK('God Makes The Rivers To Flow'!D21),\"\",'God Makes The Rivers To Flow'!D21)","v":""},{"$f":"IF(ISBLANK('God Makes The Rivers To Flow'!E21),\"\",'God Makes The Rivers To Flow'!E21)","v":""},{"$f":"IF(ISBLANK('God Makes The Rivers To Flow'!F21),\"\",'God Makes The Rivers To Flow'!F21)","v":""},{"$f":"IF(ISBLANK('God Makes The Rivers To Flow'!G21),\"\",TEXT('God Makes The Rivers To Flow'!G21,\"General\"))","v":""},null,"HIDE",null,null,null,null,null,"",null,null,null,null,null,{"$f":"IFERROR(VLOOKUP($AF65,Lists!$A$2:$B$6,2,FALSE),IF(PresentationSortBy=ListsSortExpHigh,-9999999,9999999))","v":9999999},"",999999,999999,"!",false,false,false,false,null,null,null,null," "]
[{"$f":"IF(ISBLANK('God Makes The Rivers To Flow'!A22),\"\",'God Makes The Rivers To Flow'!A22)","v":"Swami Paramananda"},{"$f":"IF(ISBLANK('God Makes The Rivers To Flow'!B22),\"\",'God Makes The Rivers To Flow'!B22)","v":"Source of Our Existence"},{"$f":"IF(ISBLANK('God Makes The Rivers To Flow'!C22),\"\",'God Makes The Rivers To Flow'!C22)","v":45},{"$f":"IF(ISBLANK('God Makes The Rivers To Flow'!D22),\"\",'God Makes The Rivers To Flow'!D22)","v":""},{"$f":"IF(ISBLANK('God Makes The Rivers To Flow'!E22),\"\",'God Makes The Rivers To Flow'!E22)","v":""},{"$f":"IF(ISBLANK('God Makes The Rivers To Flow'!F22),\"\",'God Makes The Rivers To Flow'!F22)","v":""},{"$f":"IF(ISBLANK('God Makes The Rivers To Flow'!G22),\"\",TEXT('God Makes The Rivers To Flow'!G22,\"General\"))","v":""},null,"HIDE",null,null,null,null,null,"",null,null,null,null,null,{"$f":"IFERROR(VLOOKUP($AF66,Lists!$A$2:$B$6,2,FALSE),IF(PresentationSortBy=ListsSortExpHigh,-9999999,9999999))","v":9999999},"",999999,999999,"!",false,false,false,false,null,null,null,null," "]
[{"$f":"IF(ISBLANK('God Makes The Rivers To Flow'!A23),\"\",'God Makes The Rivers To Flow'!A23)","v":"Swami Paramananda"},{"$f":"IF(ISBLANK('God Makes The Rivers To Flow'!B23),\"\",'God Makes The Rivers To Flow'!B23)","v":"O Infinite Being! "},{"$f":"IF(ISBLANK('God Makes The Rivers To Flow'!C23),\"\",'God Makes The Rivers To Flow'!C23)","v":46},{"$f":"IF(ISBLANK('God Makes The Rivers To Flow'!D23),\"\",'God Makes The Rivers To Flow'!D23)","v":""},{"$f":"IF(ISBLANK('God Makes The Rivers To Flow'!E23),\"\",'God Makes The Rivers To Flow'!E23)","v":""},{"$f":"IF(ISBLANK('God Makes The Rivers To Flow'!F23),\"\",'God Makes The Rivers To Flow'!F23)","v":""},{"$f":"IF(ISBLANK('God Makes The Rivers To Flow'!G23),\"\",TEXT('God Makes The Rivers To Flow'!G23,\"General\"))","v":""},null,"HIDE",null,null,null,null,null,"",null,null,null,null,null,{"$f":"IFERROR(VLOOKUP($AF67,Lists!$A$2:$B$6,2,FALSE),IF(PresentationSortBy=ListsSortExpHigh,-9999999,9999999))","v":9999999},"",999999,999999,"!",false,false,false,false,null,null,null,null," "]
[{"$f":"IF(ISBLANK('God Makes The Rivers To Flow'!A24),\"\",'God Makes The Rivers To Flow'!A24)","v":"Swami Paramananda"},{"$f":"IF(ISBLANK('God Makes The Rivers To Flow'!B24),\"\",'God Makes The Rivers To Flow'!B24)","v":"Origin of All"},{"$f":"IF(ISBLANK('God Makes The Rivers To Flow'!C24),\"\",'God Makes The Rivers To Flow'!C24)","v":47},{"$f":"IF(ISBLANK('God Makes The Rivers To Flow'!D24),\"\",'God Makes The Rivers To Flow'!D24)","v":""},{"$f":"IF(ISBLANK('God Makes The Rivers To Flow'!E24),\"\",'God Makes The Rivers To Flow'!E24)","v":""},{"$f":"IF(ISBLANK('God Makes The Rivers To Flow'!F24),\"\",'God Makes The Rivers To Flow'!F24)","v":""},{"$f":"IF(ISBLANK('God Makes The Rivers To Flow'!G24),\"\",TEXT('God Makes The Rivers To Flow'!G24,\"General\"))","v":""},null,"HIDE",null,null,null,null,null,"",null,null,null,null,null,{"$f":"IFERROR(VLOOKUP($AF68,Lists!$A$2:$B$6,2,FALSE),IF(PresentationSortBy=ListsSortExpHigh,-9999999,9999999))","v":9999999},{"$f":"IFERROR(IF(ISBLANK($AD68),\"\",IF((TODAY()-$AD68)/365.25>=0.05,(TODAY()-$AD68)/365.25,\"< 0.1 yrs\")),\"\")","v":""},{"$f":"IF(OR(ISBLANK($V68),$V68=\"\"),IF(PresentationSortBy=ListsSortYearsOld,-999999,999999),TODAY()-$AD68)","v":999999},{"$f":"IF(OR(ISBLANK($AE68),$AE68=\"\"),IF(PresentationSortBy=ListsSortMemHigh,-999999,999999),$AE68)","v":999999},{"$f":"IF(OR(ISBLANK($AG68),$AG68=\"\"),IF(PresentationSortBy=ListsSortCustomCategoriesA,\"ZZZZZZZZZZZZZZZZZZZZZZZZZZZZZ\",\"!\"), $AG68)","v":"!"},{"$f":"AND(PresentationHighlightYearsMaster=\"Yes\", PresentationHighlightYearsNum<>\"\", IF(PresentationHighlightYearsMoreLess=\"or less\",OR($V68=\"< 0.1 yrs\",AND(ISNUMBER($V68),$V68<=(PresentationHighlightYearsNum+0.05))),AND(ISNUMBER($V68),$V68>=(PresentationHighlightYearsNum-0.05))))","v":false},{"$f":"AND(PresentationHighlightMemorizedMaster=\"Yes\", PresentationHighlightMemorizedNum<>\"\",IF(OR(ISBLANK($AE68),$AE68=\"\"),FALSE,IF(PresentationHighlightMemorizedMoreLess=\"or less\",$AE68<=PresentationHighlightMemorizedNum,$AE68>=PresentationHighlightMemorizedNum)))","v":false},{"$f":"IFERROR(AND(PresentationHighlightExpertiseMaster=\"Yes\",PresentationHighlightExpertiseVal<>\"\",IF(OR(ISBLANK($AF68),$AF68=\"\"),FALSE,IF(PresentationHighlightExpertiseMoreLess=\"or less\",VLOOKUP($AF68,ListsLevelsOfExpertise,2,FALSE)<=VLOOKUP(PresentationHighlightExpertiseVal,ListsLevelsOfExpertise,2,FALSE),VLOOKUP($AF68,ListsLevelsOfExpertise,2,FALSE)>=VLOOKUP(PresentationHighlightExpertiseVal,ListsLevelsOfExpertise,2,FALSE)))),FALSE)","v":false},{"$f":"AND(PresentationHighlightCategoriesMaster=\"Yes\",_xlfn.IFNA(PresentationHighlightCategoriesVal,\"\")<>\"\",IF(OR(ISBLANK($AG68),$AG68=\"\"),FALSE,NOT(ISERR(SEARCH(PresentationHighlightCategoriesVal,$AG68)))))","v":false},null,null,null,null," "]
[{"$f":"IF(ISBLANK('God Makes The Rivers To Flow'!A25),\"\",'God Makes The Rivers To Flow'!A25)","v":"William Law"},{"$f":"IF(ISBLANK('God Makes The Rivers To Flow'!B25),\"\",'God Makes The Rivers To Flow'!B25)","v":"The Deepest Part of Thy Soul"},{"$f":"IF(ISBLANK('God Makes The Rivers To Flow'!C25),\"\",'God Makes The Rivers To Flow'!C25)","v":48},{"$f":"IF(ISBLANK('God Makes The Rivers To Flow'!D25),\"\",'God Makes The Rivers To Flow'!D25)","v":""},{"$f":"IF(ISBLANK('God Makes The Rivers To Flow'!E25),\"\",'God Makes The Rivers To Flow'!E25)","v":""},{"$f":"IF(ISBLANK('God Makes The Rivers To Flow'!F25),\"\",'God Makes The Rivers To Flow'!F25)","v":""},{"$f":"IF(ISBLANK('God Makes The Rivers To Flow'!G25),\"\",TEXT('God Makes The Rivers To Flow'!G25,\"General\"))","v":""},null,"HIDE",null,null,null,null,null,"",null,null,null,null,null,{"$f":"IFERROR(VLOOKUP($AF69,Lists!$A$2:$B$6,2,FALSE),IF(PresentationSortBy=ListsSortExpHigh,-9999999,9999999))","v":9999999},"",999999,999999,"!",false,false,false,false,null,null,null,null," "]
[{"$f":"IF(ISBLANK('God Makes The Rivers To Flow'!A26),\"\",'God Makes The Rivers To Flow'!A26)","v":"The Chandogya Upanishad"},{"$f":"IF(ISBLANK('God Makes The Rivers To Flow'!B26),\"\",'God Makes The Rivers To Flow'!B26)","v":"This Is the Self"},{"$f":"IF(ISBLANK('God Makes The Rivers To Flow'!C26),\"\",'God Makes The Rivers To Flow'!C26)","v":49},{"$f":"IF(ISBLANK('God Makes The Rivers To Flow'!D26),\"\",'God Makes The Rivers To Flow'!D26)","v":""},{"$f":"IF(ISBLANK('God Makes The Rivers To Flow'!E26),\"\",'God Makes The Rivers To Flow'!E26)","v":""},{"$f":"IF(ISBLANK('God Makes The Rivers To Flow'!F26),\"\",'God Makes The Rivers To Flow'!F26)","v":""},{"$f":"IF(ISBLANK('God Makes The Rivers To Flow'!G26),\"\",TEXT('God Makes The Rivers To Flow'!G26,\"General\"))","v":""},null,"HIDE",null,null,null,null,null,"",null,null,null,null,null,{"$f":"IFERROR(VLOOKUP($AF70,Lists!$A$2:$B$6,2,FALSE),IF(PresentationSortBy=ListsSortExpHigh,-9999999,9999999))","v":9999999},"",999999,999999,"!",false,false,false,false,null,null,null,null," "]
[{"$f":"IF(ISBLANK('God Makes The Rivers To Flow'!A27),\"\",'God Makes The Rivers To Flow'!A27)","v":"Fakhruddin Araqi"},{"$f":"IF(ISBLANK('God Makes The Rivers To Flow'!B27),\"\",'God Makes The Rivers To Flow'!B27)","v":"The Shining Essence"},{"$f":"IF(ISBLANK('God Makes The Rivers To Flow'!C27),\"\",'God Makes The Rivers To Flow'!C27)","v":50},{"$f":"IF(ISBLANK('God Makes The Rivers To Flow'!D27),\"\",'God Makes The Rivers To Flow'!D27)","v":""},{"$f":"IF(ISBLANK('God Makes The Rivers To Flow'!E27),\"\",'God Makes The Rivers To Flow'!E27)","v":""},{"$f":"IF(ISBLANK('God Makes The Rivers To Flow'!F27),\"\",'God Makes The Rivers To Flow'!F27)","v":""},{"$f":"IF(ISBLANK('God Makes The Rivers To Flow'!G27),\"\",TEXT('God Makes The Rivers To Flow'!G27,\"General\"))","v":""},null,"HIDE",null,null,null,null,null,"",null,null,null,null,null,{"$f":"IFERROR(VLOOKUP($AF71,Lists!$A$2:$B$6,2,FALSE),IF(PresentationSortBy=ListsSortExpHigh,-9999999,9999999))","v":9999999},"",999999,999999,"!",false,false,false,false,null,null,null,null," "]
[{"$f":"IF(ISBLANK('God Makes The Rivers To Flow'!A28),\"\",'God Makes The Rivers To Flow'!A28)","v":"Psalm 139"},{"$f":"IF(ISBLANK('God Makes The Rivers To Flow'!B28),\"\",'God Makes The Rivers To Flow'!B28)","v":"Lord, Thou Hast Searched Me"},{"$f":"IF(ISBLANK('God Makes The Rivers To Flow'!C28),\"\",'God Makes The Rivers To Flow'!C28)","v":52},{"$f":"IF(ISBLANK('God Makes The Rivers To Flow'!D28),\"\",'God Makes The Rivers To Flow'!D28)","v":""},{"$f":"IF(ISBLANK('God Makes The Rivers To Flow'!E28),\"\",'God Makes The Rivers To Flow'!E28)","v":""},{"$f":"IF(ISBLANK('God Makes The Rivers To Flow'!F28),\"\",'God Makes The Rivers To Flow'!F28)","v":""},{"$f":"IF(ISBLANK('God Makes The Rivers To Flow'!G28),\"\",TEXT('God Makes The Rivers To Flow'!G28,\"General\"))","v":""},null,"HIDE",null,null,null,null,null,"",null,null,null,null,null,{"$f":"IFERROR(VLOOKUP($AF72,Lists!$A$2:$B$6,2,FALSE),IF(PresentationSortBy=ListsSortExpHigh,-9999999,9999999))","v":9999999},"",999999,999999,"!",false,false,false,false,null,null,null,null," "]
[{"$f":"IF(ISBLANK('God Makes The Rivers To Flow'!A29),\"\",'God Makes The Rivers To Flow'!A29)","v":"Saint Anselm"},{"$f":"IF(ISBLANK('God Makes The Rivers To Flow'!B29),\"\",'God Makes The Rivers To Flow'!B29)","v":"Teach Me"},{"$f":"IF(ISBLANK('God Makes The Rivers To Flow'!C29),\"\",'God Makes The Rivers To Flow'!C29)","v":54},{"$f":"IF(ISBLANK('God Makes The Rivers To Flow'!D29),\"\",'God Makes The Rivers To Flow'!D29)","v":""},{"$f":"IF(ISBLANK('God Makes The Rivers To Flow'!E29),\"\",'God Makes The Rivers To Flow'!E29)","v":""},{"$f":"IF(ISBLANK('God Makes The Rivers To Flow'!F29),\"\",'God Makes The Rivers To Flow'!F29)","v":""},{"$f":"IF(ISBLANK('God Makes The Rivers To Flow'!G29),\"\",TEXT('God Makes The Rivers To Flow'!G29,\"General\"))","v":""},null,"HIDE",null,null,null,null,null,"",null,null,null,null,null,{"$f":"IFERROR(VLOOKUP($AF73,Lists!$A$2:$B$6,2,FALSE),IF(PresentationSortBy=ListsSortExpHigh,-9999999,9999999))","v":9999999},"",999999,999999,"!",false,false,false,false,null,null,null,null," "]
[{"$f":"IF(ISBLANK('God Makes The Rivers To Flow'!A30),\"\",'God Makes The Rivers To Flow'!A30)","v":"Swami Sivananda"},{"$f":"IF(ISBLANK('God Makes The Rivers To Flow'!B30),\"\",'God Makes The Rivers To Flow'!B30)","v":"Universal Prayer"},{"$f":"IF(ISBLANK('God Makes The Rivers To Flow'!C30),\"\",'God Makes The Rivers To Flow'!C30)","v":55},{"$f":"IF(ISBLANK('God Makes The Rivers To Flow'!D30),\"\",'God Makes The Rivers To Flow'!D30)","v":""},{"$f":"IF(ISBLANK('God Makes The Rivers To Flow'!E30),\"\",'God Makes The Rivers To Flow'!E30)","v":""},{"$f":"IF(ISBLANK('God Makes The Rivers To Flow'!F30),\"\",'God Makes The Rivers To Flow'!F30)","v":""},{"$f":"IF(ISBLANK('God Makes The Rivers To Flow'!G30),\"\",TEXT('God Makes The Rivers To Flow'!G30,\"General\"))","v":""},null,"HIDE",null,null,null,null,null,"",null,null,null,null,null,{"$f":"IFERROR(VLOOKUP($AF74,Lists!$A$2:$B$6,2,FALSE),IF(PresentationSortBy=ListsSortExpHigh,-9999999,9999999))","v":9999999},"",999999,999999,"!",false,false,false,false,null,null,null,null," "]
[{"$f":"IF(ISBLANK('God Makes The Rivers To Flow'!A31),\"\",'God Makes The Rivers To Flow'!A31)","v":"The Kena Upanishad"},{"$f":"IF(ISBLANK('God Makes The Rivers To Flow'!B31),\"\",'God Makes The Rivers To Flow'!B31)","v":"That Invisible One"},{"$f":"IF(ISBLANK('God Makes The Rivers To Flow'!C31),\"\",'God Makes The Rivers To Flow'!C31)","v":56},{"$f":"IF(ISBLANK('God Makes The Rivers To Flow'!D31),\"\",'God Makes The Rivers To Flow'!D31)","v":""},{"$f":"IF(ISBLANK('God Makes The Rivers To Flow'!E31),\"\",'God Makes The Rivers To Flow'!E31)","v":""},{"$f":"IF(ISBLANK('God Makes The Rivers To Flow'!F31),\"\",'God Makes The Rivers To Flow'!F31)","v":""},{"$f":"IF(ISBLANK('God Makes The Rivers To Flow'!G31),\"\",TEXT('God Makes The Rivers To Flow'!G31,\"General\"))","v":""},null,"HIDE",null,null,null,null,null,"",null,null,null,null,null,{"$f":"IFERROR(VLOOKUP($AF75,Lists!$A$2:$B$6,2,FALSE),IF(PresentationSortBy=ListsSortExpHigh,-9999999,9999999))","v":9999999},"",999999,999999,"!",false,false,false,false,null,null,null,null," "]
[{"$f":"IF(ISBLANK('God Makes The Rivers To Flow'!A32),\"\",'God Makes The Rivers To Flow'!A32)","v":"Seng Ts'an"},{"$f":"IF(ISBLANK('God Makes The Rivers To Flow'!B32),\"\",'God Makes The Rivers To Flow'!B32)","v":"Believing in Mind"},{"$f":"IF(ISBLANK('God Makes The Rivers To Flow'!C32),\"\",'God Makes The Rivers To Flow'!C32)","v":58},{"$f":"IF(ISBLANK('God Makes The Rivers To Flow'!D32),\"\",'God Makes The Rivers To Flow'!D32)","v":""},{"$f":"IF(ISBLANK('God Makes The Rivers To Flow'!E32),\"\",'God Makes The Rivers To Flow'!E32)","v":""},{"$f":"IF(ISBLANK('God Makes The Rivers To Flow'!F32),\"\",'God Makes The Rivers To Flow'!F32)","v":""},{"$f":"IF(ISBLANK('God Makes The Rivers To Flow'!G32),\"\",TEXT('God Makes The Rivers To Flow'!G32,\"General\"))","v":""},null,"HIDE",null,null,null,null,null,"",null,null,null,null,null,{"$f":"IFERROR(VLOOKUP($AF76,Lists!$A$2:$B$6,2,FALSE),IF(PresentationSortBy=ListsSortExpHigh,-9999999,9999999))","v":9999999},"",999999,999999,"!",false,false,false,false,null,null,null,null," "]
[{"$f":"IF(ISBLANK('God Makes The Rivers To Flow'!A33),\"\",'God Makes The Rivers To Flow'!A33)","v":"Saint Symeon the New Theologian"},{"$f":"IF(ISBLANK('God Makes The Rivers To Flow'!B33),\"\",'God Makes The Rivers To Flow'!B33)","v":"I Know That He Reveals Himself"},{"$f":"IF(ISBLANK('God Makes The Rivers To Flow'!C33),\"\",'God Makes The Rivers To Flow'!C33)","v":60},{"$f":"IF(ISBLANK('God Makes The Rivers To Flow'!D33),\"\",'God Makes The Rivers To Flow'!D33)","v":""},{"$f":"IF(ISBLANK('God Makes The Rivers To Flow'!E33),\"\",'God Makes The Rivers To Flow'!E33)","v":""},{"$f":"IF(ISBLANK('God Makes The Rivers To Flow'!F33),\"\",'God Makes The Rivers To Flow'!F33)","v":""},{"$f":"IF(ISBLANK('God Makes The Rivers To Flow'!G33),\"\",TEXT('God Makes The Rivers To Flow'!G33,\"General\"))","v":""},null,"HIDE",null,null,null,null,null,"",null,null,null,null,null,{"$f":"IFERROR(VLOOKUP($AF77,Lists!$A$2:$B$6,2,FALSE),IF(PresentationSortBy=ListsSortExpHigh,-9999999,9999999))","v":9999999},"",999999,999999,"!",false,false,false,false,null,null,null,null," "]
[{"$f":"IF(ISBLANK('God Makes The Rivers To Flow'!A34),\"\",'God Makes The Rivers To Flow'!A34)","v":"Dov Baer of Mezhirech"},{"$f":"IF(ISBLANK('God Makes The Rivers To Flow'!B34),\"\",'God Makes The Rivers To Flow'!B34)","v":"You Must Forget Yourself in Prayer"},{"$f":"IF(ISBLANK('God Makes The Rivers To Flow'!C34),\"\",'God Makes The Rivers To Flow'!C34)","v":61},{"$f":"IF(ISBLANK('God Makes The Rivers To Flow'!D34),\"\",'God Makes The Rivers To Flow'!D34)","v":""},{"$f":"IF(ISBLANK('God Makes The Rivers To Flow'!E34),\"\",'God Makes The Rivers To Flow'!E34)","v":""},{"$f":"IF(ISBLANK('God Makes The Rivers To Flow'!F34),\"\",'God Makes The Rivers To Flow'!F34)","v":""},{"$f":"IF(ISBLANK('God Makes The Rivers To Flow'!G34),\"\",TEXT('God Makes The Rivers To Flow'!G34,\"General\"))","v":""},null,"HIDE",null,null,null,null,null,"",null,null,null,null,null,{"$f":"IFERROR(VLOOKUP($AF78,Lists!$A$2:$B$6,2,FALSE),IF(PresentationSortBy=ListsSortExpHigh,-9999999,9999999))","v":9999999},"",999999,999999,"!",false,false,false,false,null,null,null,null," "]
[{"$f":"IF(ISBLANK('God Makes The Rivers To Flow'!A35),\"\",'God Makes The Rivers To Flow'!A35)","v":"The Katha Upanishad"},{"$f":"IF(ISBLANK('God Makes The Rivers To Flow'!B35),\"\",'God Makes The Rivers To Flow'!B35)","v":"Perennial Joy"},{"$f":"IF(ISBLANK('God Makes The Rivers To Flow'!C35),\"\",'God Makes The Rivers To Flow'!C35)","v":62},{"$f":"IF(ISBLANK('God Makes The Rivers To Flow'!D35),\"\",'God Makes The Rivers To Flow'!D35)","v":""},{"$f":"IF(ISBLANK('God Makes The Rivers To Flow'!E35),\"\",'God Makes The Rivers To Flow'!E35)","v":""},{"$f":"IF(ISBLANK('God Makes The Rivers To Flow'!F35),\"\",'God Makes The Rivers To Flow'!F35)","v":""},{"$f":"IF(ISBLANK('God Makes The Rivers To Flow'!G35),\"\",TEXT('God Makes The Rivers To Flow'!G35,\"General\"))","v":""},null,"HIDE",null,null,null,null,null,"",null,null,null,null,null,{"$f":"IFERROR(VLOOKUP($AF79,Lists!$A$2:$B$6,2,FALSE),IF(PresentationSortBy=ListsSortExpHigh,-9999999,9999999))","v":9999999},"",999999,999999,"!",false,false,false,false,null,null,null,null," "]
[{"$f":"IF(ISBLANK('God Makes The Rivers To Flow'!A36),\"\",'God Makes The Rivers To Flow'!A36)","v":"Solomon ibn Gabirol"},{"$f":"IF(ISBLANK('God Makes The Rivers To Flow'!B36),\"\",'God Makes The Rivers To Flow'!B36)","v":"The Living God"},{"$f":"IF(ISBLANK('God Makes The Rivers To Flow'!C36),\"\",'God Makes The Rivers To Flow'!C36)","v":67},{"$f":"IF(ISBLANK('God Makes The Rivers To Flow'!D36),\"\",'God Makes The Rivers To Flow'!D36)","v":""},{"$f":"IF(ISBLANK('God Makes The Rivers To Flow'!E36),\"\",'God Makes The Rivers To Flow'!E36)","v":""},{"$f":"IF(ISBLANK('God Makes The Rivers To Flow'!F36),\"\",'God Makes The Rivers To Flow'!F36)","v":""},{"$f":"IF(ISBLANK('God Makes The Rivers To Flow'!G36),\"\",TEXT('God Makes The Rivers To Flow'!G36,\"General\"))","v":""},null,"HIDE",null,null,null,null,null,"",null,null,null,null,null,{"$f":"IFERROR(VLOOKUP($AF80,Lists!$A$2:$B$6,2,FALSE),IF(PresentationSortBy=ListsSortExpHigh,-9999999,9999999))","v":9999999},"",999999,999999,"!",false,false,false,false,null,null,null,null," "]
[{"$f":"IF(ISBLANK('God Makes The Rivers To Flow'!A37),\"\",'God Makes The Rivers To Flow'!A37)","v":"Shantideva"},{"$f":"IF(ISBLANK('God Makes The Rivers To Flow'!B37),\"\",'God Makes The Rivers To Flow'!B37)","v":"The Miracle of Illumination"},{"$f":"IF(ISBLANK('God Makes The Rivers To Flow'!C37),\"\",'God Makes The Rivers To Flow'!C37)","v":68},{"$f":"IF(ISBLANK('God Makes The Rivers To Flow'!D37),\"\",'God Makes The Rivers To Flow'!D37)","v":""},{"$f":"IF(ISBLANK('God Makes The Rivers To Flow'!E37),\"\",'God Makes The Rivers To Flow'!E37)","v":""},{"$f":"IF(ISBLANK('God Makes The Rivers To Flow'!F37),\"\",'God Makes The Rivers To Flow'!F37)","v":""},{"$f":"IF(ISBLANK('God Makes The Rivers To Flow'!G37),\"\",TEXT('God Makes The Rivers To Flow'!G37,\"General\"))","v":""},null,"HIDE",null,null,null,null,null,"",null,null,null,null,null,{"$f":"IFERROR(VLOOKUP($AF81,Lists!$A$2:$B$6,2,FALSE),IF(PresentationSortBy=ListsSortExpHigh,-9999999,9999999))","v":9999999},"",999999,999999,"!",false,false,false,false,null,null,null,null," "]
[{"$f":"IF(ISBLANK('God Makes The Rivers To Flow'!A38),\"\",'God Makes The Rivers To Flow'!A38)","v":"A Song of Sri Ramakrishna"},{"$f":"IF(ISBLANK('God Makes The Rivers To Flow'!B38),\"\",'God Makes The Rivers To Flow'!B38)","v":"Dwell, O Mind, Within Yourself"},{"$f":"IF(ISBLANK('God Makes The Rivers To Flow'!C38),\"\",'God Makes The Rivers To Flow'!C38)","v":69},{"$f":"IF(ISBLANK('God Makes The Rivers To Flow'!D38),\"\",'God Makes The Rivers To Flow'!D38)","v":""},{"$f":"IF(ISBLANK('God Makes The Rivers To Flow'!E38),\"\",'God Makes The Rivers To Flow'!E38)","v":""},{"$f":"IF(ISBLANK('God Makes The Rivers To Flow'!F38),\"\",'God Makes The Rivers To Flow'!F38)","v":""},{"$f":"IF(ISBLANK('God Makes The Rivers To Flow'!G38),\"\",TEXT('God Makes The Rivers To Flow'!G38,\"General\"))","v":""},null,"HIDE",null,null,null,null,null,"",null,null,null,null,null,{"$f":"IFERROR(VLOOKUP($AF82,Lists!$A$2:$B$6,2,FALSE),IF(PresentationSortBy=ListsSortExpHigh,-9999999,9999999))","v":9999999},"",999999,999999,"!",false,false,false,false,null,null,null,null," "]
[{"$f":"IF(ISBLANK('God Makes The Rivers To Flow'!A39),\"\",'God Makes The Rivers To Flow'!A39)","v":"The Tejobindu Upanishad"},{"$f":"IF(ISBLANK('God Makes The Rivers To Flow'!B39),\"\",'God Makes The Rivers To Flow'!B39)","v":"The Shining Self"},{"$f":"IF(ISBLANK('God Makes The Rivers To Flow'!C39),\"\",'God Makes The Rivers To Flow'!C39)","v":70},{"$f":"IF(ISBLANK('God Makes The Rivers To Flow'!D39),\"\",'God Makes The Rivers To Flow'!D39)","v":""},{"$f":"IF(ISBLANK('God Makes The Rivers To Flow'!E39),\"\",'God Makes The Rivers To Flow'!E39)","v":""},{"$f":"IF(ISBLANK('God Makes The Rivers To Flow'!F39),\"\",'God Makes The Rivers To Flow'!F39)","v":""},{"$f":"IF(ISBLANK('God Makes The Rivers To Flow'!G39),\"\",TEXT('God Makes The Rivers To Flow'!G39,\"General\"))","v":""},null,"HIDE",null,null,null,null,null,"",null,null,null,null,null,{"$f":"IFERROR(VLOOKUP($AF83,Lists!$A$2:$B$6,2,FALSE),IF(PresentationSortBy=ListsSortExpHigh,-9999999,9999999))","v":9999999},"",999999,999999,"!",false,false,false,false,null,null,null,null," "]
[{"$f":"IF(ISBLANK('God Makes The Rivers To Flow'!A40),\"\",'God Makes The Rivers To Flow'!A40)","v":"Tukaram"},{"$f":"IF(ISBLANK('God Makes The Rivers To Flow'!B40),\"\",'God Makes The Rivers To Flow'!B40)","v":"In Me Thou Livest"},{"$f":"IF(ISBLANK('God Makes The Rivers To Flow'!C40),\"\",'God Makes The Rivers To Flow'!C40)","v":72},{"$f":"IF(ISBLANK('God Makes The Rivers To Flow'!D40),\"\",'God Makes The Rivers To Flow'!D40)","v":""},{"$f":"IF(ISBLANK('God Makes The Rivers To Flow'!E40),\"\",'God Makes The Rivers To Flow'!E40)","v":""},{"$f":"IF(ISBLANK('God Makes The Rivers To Flow'!F40),\"\",'God Makes The Rivers To Flow'!F40)","v":""},{"$f":"IF(ISBLANK('God Makes The Rivers To Flow'!G40),\"\",TEXT('God Makes The Rivers To Flow'!G40,\"General\"))","v":""},null,"HIDE",null,null,null,null,null,"",null,null,null,null,null,{"$f":"IFERROR(VLOOKUP($AF84,Lists!$A$2:$B$6,2,FALSE),IF(PresentationSortBy=ListsSortExpHigh,-9999999,9999999))","v":9999999},"",999999,999999,"!",false,false,false,false,null,null,null,null," "]
[{"$f":"IF(ISBLANK('God Makes The Rivers To Flow'!A41),\"\",'God Makes The Rivers To Flow'!A41)","v":"Tukaram"},{"$f":"IF(ISBLANK('God Makes The Rivers To Flow'!B41),\"\",'God Makes The Rivers To Flow'!B41)","v":"When I Lose Myself in Thee"},{"$f":"IF(ISBLANK('God Makes The Rivers To Flow'!C41),\"\",'God Makes The Rivers To Flow'!C41)","v":73},{"$f":"IF(ISBLANK('God Makes The Rivers To Flow'!D41),\"\",'God Makes The Rivers To Flow'!D41)","v":""},{"$f":"IF(ISBLANK('God Makes The Rivers To Flow'!E41),\"\",'God Makes The Rivers To Flow'!E41)","v":""},{"$f":"IF(ISBLANK('God Makes The Rivers To Flow'!F41),\"\",'God Makes The Rivers To Flow'!F41)","v":""},{"$f":"IF(ISBLANK('God Makes The Rivers To Flow'!G41),\"\",TEXT('God Makes The Rivers To Flow'!G41,\"General\"))","v":""},null,"HIDE",null,null,null,null,null,"",null,null,null,null,null,{"$f":"IFERROR(VLOOKUP($AF85,Lists!$A$2:$B$6,2,FALSE),IF(PresentationSortBy=ListsSortExpHigh,-9999999,9999999))","v":9999999},"",999999,999999,"!",false,false,false,false,null,null,null,null," "]
[{"$f":"IF(ISBLANK('God Makes The Rivers To Flow'!A42),\"\",'God Makes The Rivers To Flow'!A42)","v":"The Bhagavad Gita"},{"$f":"IF(ISBLANK('God Makes The Rivers To Flow'!B42),\"\",'God Makes The Rivers To Flow'!B42)","v":"Living in Wisdom"},{"$f":"IF(ISBLANK('God Makes The Rivers To Flow'!C42),\"\",'God Makes The Rivers To Flow'!C42)","v":74},{"$f":"IF(ISBLANK('God Makes The Rivers To Flow'!D42),\"\",'God Makes The Rivers To Flow'!D42)","v":""},{"$f":"IF(ISBLANK('God Makes The Rivers To Flow'!E42),\"\",'God Makes The Rivers To Flow'!E42)","v":""},{"$f":"IF(ISBLANK('God Makes The Rivers To Flow'!F42),\"\",'God Makes The Rivers To Flow'!F42)","v":""},{"$f":"IF(ISBLANK('God Makes The Rivers To Flow'!G42),\"\",TEXT('God Makes The Rivers To Flow'!G42,\"General\"))","v":""},null,"HIDE",null,null,null,null,null,"",null,null,null,null,null,{"$f":"IFERROR(VLOOKUP($AF86,Lists!$A$2:$B$6,2,FALSE),IF(PresentationSortBy=ListsSortExpHigh,-9999999,9999999))","v":9999999},"",999999,999999,"!",false,false,false,false,null,null,null,null," "]
[{"$f":"IF(ISBLANK('God Makes The Rivers To Flow'!A43),\"\",'God Makes The Rivers To Flow'!A43)","v":"Baba Kuhi of Shiraz"},{"$f":"IF(ISBLANK('God Makes The Rivers To Flow'!B43),\"\",'God Makes The Rivers To Flow'!B43)","v":"Only God I Saw"},{"$f":"IF(ISBLANK('God Makes The Rivers To Flow'!C43),\"\",'God Makes The Rivers To Flow'!C43)","v":77},{"$f":"IF(ISBLANK('God Makes The Rivers To Flow'!D43),\"\",'God Makes The Rivers To Flow'!D43)","v":""},{"$f":"IF(ISBLANK('God Makes The Rivers To Flow'!E43),\"\",'God Makes The Rivers To Flow'!E43)","v":""},{"$f":"IF(ISBLANK('God Makes The Rivers To Flow'!F43),\"\",'God Makes The Rivers To Flow'!F43)","v":""},{"$f":"IF(ISBLANK('God Makes The Rivers To Flow'!G43),\"\",TEXT('God Makes The Rivers To Flow'!G43,\"General\"))","v":""},null,"HIDE",null,null,null,null,null,"",null,null,null,null,null,{"$f":"IFERROR(VLOOKUP($AF87,Lists!$A$2:$B$6,2,FALSE),IF(PresentationSortBy=ListsSortExpHigh,-9999999,9999999))","v":9999999},"",999999,999999,"!",false,false,false,false,null,null,null,null," "]
[{"$f":"IF(ISBLANK('God Makes The Rivers To Flow'!A44),\"\",'God Makes The Rivers To Flow'!A44)","v":"The Dhammapada"},{"$f":"IF(ISBLANK('God Makes The Rivers To Flow'!B44),\"\",'God Makes The Rivers To Flow'!B44)","v":"The Saint"},{"$f":"IF(ISBLANK('God Makes The Rivers To Flow'!C44),\"\",'God Makes The Rivers To Flow'!C44)","v":78},{"$f":"IF(ISBLANK('God Makes The Rivers To Flow'!D44),\"\",'God Makes The Rivers To Flow'!D44)","v":""},{"$f":"IF(ISBLANK('God Makes The Rivers To Flow'!E44),\"\",'God Makes The Rivers To Flow'!E44)","v":""},{"$f":"IF(ISBLANK('God Makes The Rivers To Flow'!F44),\"\",'God Makes The Rivers To Flow'!F44)","v":""},{"$f":"IF(ISBLANK('God Makes The Rivers To Flow'!G44),\"\",TEXT('God Makes The Rivers To Flow'!G44,\"General\"))","v":""},null,"HIDE",null,null,null,null,null,"",null,null,null,null,null,{"$f":"IFERROR(VLOOKUP($AF88,Lists!$A$2:$B$6,2,FALSE),IF(PresentationSortBy=ListsSortExpHigh,-9999999,9999999))","v":9999999},"",999999,999999,"!",false,false,false,false,null,null,null,null," "]
[{"$f":"IF(ISBLANK('God Makes The Rivers To Flow'!A45),\"\",'God Makes The Rivers To Flow'!A45)","v":"Meister Eckhart"},{"$f":"IF(ISBLANK('God Makes The Rivers To Flow'!B45),\"\",'God Makes The Rivers To Flow'!B45)","v":"One with God"},{"$f":"IF(ISBLANK('God Makes The Rivers To Flow'!C45),\"\",'God Makes The Rivers To Flow'!C45)","v":79},{"$f":"IF(ISBLANK('God Makes The Rivers To Flow'!D45),\"\",'God Makes The Rivers To Flow'!D45)","v":""},{"$f":"IF(ISBLANK('God Makes The Rivers To Flow'!E45),\"\",'God Makes The Rivers To Flow'!E45)","v":""},{"$f":"IF(ISBLANK('God Makes The Rivers To Flow'!F45),\"\",'God Makes The Rivers To Flow'!F45)","v":""},{"$f":"IF(ISBLANK('God Makes The Rivers To Flow'!G45),\"\",TEXT('God Makes The Rivers To Flow'!G45,\"General\"))","v":""},null,"HIDE",null,null,null,null,null,"",null,null,null,null,null,{"$f":"IFERROR(VLOOKUP($AF89,Lists!$A$2:$B$6,2,FALSE),IF(PresentationSortBy=ListsSortExpHigh,-9999999,9999999))","v":9999999},"",999999,999999,"!",false,false,false,false,null,null,null,null," "]
[{"$f":"IF(ISBLANK('God Makes The Rivers To Flow'!A46),\"\",'God Makes The Rivers To Flow'!A46)","v":"The Katha Upanishad"},{"$f":"IF(ISBLANK('God Makes The Rivers To Flow'!B46),\"\",'God Makes The Rivers To Flow'!B46)","v":"The Razor's Edge"},{"$f":"IF(ISBLANK('God Makes The Rivers To Flow'!C46),\"\",'God Makes The Rivers To Flow'!C46)","v":80},{"$f":"IF(ISBLANK('God Makes The Rivers To Flow'!D46),\"\",'God Makes The Rivers To Flow'!D46)","v":""},{"$f":"IF(ISBLANK('God Makes The Rivers To Flow'!E46),\"\",'God Makes The Rivers To Flow'!E46)","v":""},{"$f":"IF(ISBLANK('God Makes The Rivers To Flow'!F46),\"\",'God Makes The Rivers To Flow'!F46)","v":""},{"$f":"IF(ISBLANK('God Makes The Rivers To Flow'!G46),\"\",TEXT('God Makes The Rivers To Flow'!G46,\"General\"))","v":""},null,"HIDE",null,null,null,null,null,"",null,null,null,null,null,{"$f":"IFERROR(VLOOKUP($AF90,Lists!$A$2:$B$6,2,FALSE),IF(PresentationSortBy=ListsSortExpHigh,-9999999,9999999))","v":9999999},"",999999,999999,"!",false,false,false,false,null,null,null,null," "]
[{"$f":"IF(ISBLANK('God Makes The Rivers To Flow'!A47),\"\",'God Makes The Rivers To Flow'!A47)","v":"Jewish Liturgy"},{"$f":"IF(ISBLANK('God Makes The Rivers To Flow'!B47),\"\",'God Makes The Rivers To Flow'!B47)","v":"Sabbath Prayer"},{"$f":"IF(ISBLANK('God Makes The Rivers To Flow'!C47),\"\",'God Makes The Rivers To Flow'!C47)","v":83},{"$f":"IF(ISBLANK('God Makes The Rivers To Flow'!D47),\"\",'God Makes The Rivers To Flow'!D47)","v":""},{"$f":"IF(ISBLANK('God Makes The Rivers To Flow'!E47),\"\",'God Makes The Rivers To Flow'!E47)","v":""},{"$f":"IF(ISBLANK('God Makes The Rivers To Flow'!F47),\"\",'God Makes The Rivers To Flow'!F47)","v":""},{"$f":"IF(ISBLANK('God Makes The Rivers To Flow'!G47),\"\",TEXT('God Makes The Rivers To Flow'!G47,\"General\"))","v":""},null,"HIDE",null,null,null,null,null,"",null,null,null,null,null,{"$f":"IFERROR(VLOOKUP($AF91,Lists!$A$2:$B$6,2,FALSE),IF(PresentationSortBy=ListsSortExpHigh,-9999999,9999999))","v":9999999},"",999999,999999,"!",false,false,false,false,null,null,null,null," "]
[{"$f":"IF(ISBLANK('God Makes The Rivers To Flow'!A48),\"\",'God Makes The Rivers To Flow'!A48)","v":"The Amritabindu Upanishad"},{"$f":"IF(ISBLANK('God Makes The Rivers To Flow'!B48),\"\",'God Makes The Rivers To Flow'!B48)","v":"The Nectar of Immortality"},{"$f":"IF(ISBLANK('God Makes The Rivers To Flow'!C48),\"\",'God Makes The Rivers To Flow'!C48)","v":84},{"$f":"IF(ISBLANK('God Makes The Rivers To Flow'!D48),\"\",'God Makes The Rivers To Flow'!D48)","v":""},{"$f":"IF(ISBLANK('God Makes The Rivers To Flow'!E48),\"\",'God Makes The Rivers To Flow'!E48)","v":""},{"$f":"IF(ISBLANK('God Makes The Rivers To Flow'!F48),\"\",'God Makes The Rivers To Flow'!F48)","v":""},{"$f":"IF(ISBLANK('God Makes The Rivers To Flow'!G48),\"\",TEXT('God Makes The Rivers To Flow'!G48,\"General\"))","v":""},null,"HIDE",null,null,null,null,null,"",null,null,null,null,null,{"$f":"IFERROR(VLOOKUP($AF92,Lists!$A$2:$B$6,2,FALSE),IF(PresentationSortBy=ListsSortExpHigh,-9999999,9999999))","v":9999999},"",999999,999999,"!",false,false,false,false,null,null,null,null," "]
[{"$f":"IF(ISBLANK('God Makes The Rivers To Flow'!A49),\"\",'God Makes The Rivers To Flow'!A49)","v":"The Dhammapada"},{"$f":"IF(ISBLANK('God Makes The Rivers To Flow'!B49),\"\",'God Makes The Rivers To Flow'!B49)","v":"Twin Verses"},{"$f":"IF(ISBLANK('God Makes The Rivers To Flow'!C49),\"\",'God Makes The Rivers To Flow'!C49)","v":86},{"$f":"IF(ISBLANK('God Makes The Rivers To Flow'!D49),\"\",'God Makes The Rivers To Flow'!D49)","v":""},{"$f":"IF(ISBLANK('God Makes The Rivers To Flow'!E49),\"\",'God Makes The Rivers To Flow'!E49)","v":""},{"$f":"IF(ISBLANK('God Makes The Rivers To Flow'!F49),\"\",'God Makes The Rivers To Flow'!F49)","v":""},{"$f":"IF(ISBLANK('God Makes The Rivers To Flow'!G49),\"\",TEXT('God Makes The Rivers To Flow'!G49,\"General\"))","v":""},null,"HIDE",null,null,null,null,null,"",null,null,null,null,null,{"$f":"IFERROR(VLOOKUP($AF93,Lists!$A$2:$B$6,2,FALSE),IF(PresentationSortBy=ListsSortExpHigh,-9999999,9999999))","v":9999999},"",999999,999999,"!",false,false,false,false,null,null,null,null," "]
[{"$f":"IF(ISBLANK('God Makes The Rivers To Flow'!A50),\"\",'God Makes The Rivers To Flow'!A50)","v":"Psalm 24"},{"$f":"IF(ISBLANK('God Makes The Rivers To Flow'!B50),\"\",'God Makes The Rivers To Flow'!B50)","v":"The Earth Is the Lord's"},{"$f":"IF(ISBLANK('God Makes The Rivers To Flow'!C50),\"\",'God Makes The Rivers To Flow'!C50)","v":89},{"$f":"IF(ISBLANK('God Makes The Rivers To Flow'!D50),\"\",'God Makes The Rivers To Flow'!D50)","v":""},{"$f":"IF(ISBLANK('God Makes The Rivers To Flow'!E50),\"\",'God Makes The Rivers To Flow'!E50)","v":""},{"$f":"IF(ISBLANK('God Makes The Rivers To Flow'!F50),\"\",'God Makes The Rivers To Flow'!F50)","v":""},{"$f":"IF(ISBLANK('God Makes The Rivers To Flow'!G50),\"\",TEXT('God Makes The Rivers To Flow'!G50,\"General\"))","v":""},null,"HIDE",null,null,null,null,null,"",null,null,null,null,null,{"$f":"IFERROR(VLOOKUP($AF94,Lists!$A$2:$B$6,2,FALSE),IF(PresentationSortBy=ListsSortExpHigh,-9999999,9999999))","v":9999999},"",999999,999999,"!",false,false,false,false,null,null,null,null," "]
[{"$f":"IF(ISBLANK('God Makes The Rivers To Flow'!A51),\"\",'God Makes The Rivers To Flow'!A51)","v":"The Shvetashvatara Upanishad"},{"$f":"IF(ISBLANK('God Makes The Rivers To Flow'!B51),\"\",'God Makes The Rivers To Flow'!B51)","v":"The Lord of Life"},{"$f":"IF(ISBLANK('God Makes The Rivers To Flow'!C51),\"\",'God Makes The Rivers To Flow'!C51)","v":90},{"$f":"IF(ISBLANK('God Makes The Rivers To Flow'!D51),\"\",'God Makes The Rivers To Flow'!D51)","v":""},{"$f":"IF(ISBLANK('God Makes The Rivers To Flow'!E51),\"\",'God Makes The Rivers To Flow'!E51)","v":""},{"$f":"IF(ISBLANK('God Makes The Rivers To Flow'!F51),\"\",'God Makes The Rivers To Flow'!F51)","v":""},{"$f":"IF(ISBLANK('God Makes The Rivers To Flow'!G51),\"\",TEXT('God Makes The Rivers To Flow'!G51,\"General\"))","v":""},null,"HIDE",null,null,null,null,null,"",null,null,null,null,null,{"$f":"IFERROR(VLOOKUP($AF95,Lists!$A$2:$B$6,2,FALSE),IF(PresentationSortBy=ListsSortExpHigh,-9999999,9999999))","v":9999999},"",999999,999999,"!",false,false,false,false,null,null,null,null," "]
[{"$f":"IF(ISBLANK('God Makes The Rivers To Flow'!A52),\"\",'God Makes The Rivers To Flow'!A52)","v":"Saint Clare of Assisi"},{"$f":"IF(ISBLANK('God Makes The Rivers To Flow'!B52),\"\",'God Makes The Rivers To Flow'!B52)","v":"The Mirror of Eternity"},{"$f":"IF(ISBLANK('God Makes The Rivers To Flow'!C52),\"\",'God Makes The Rivers To Flow'!C52)","v":93},{"$f":"IF(ISBLANK('God Makes The Rivers To Flow'!D52),\"\",'God Makes The Rivers To Flow'!D52)","v":""},{"$f":"IF(ISBLANK('God Makes The Rivers To Flow'!E52),\"\",'God Makes The Rivers To Flow'!E52)","v":""},{"$f":"IF(ISBLANK('God Makes The Rivers To Flow'!F52),\"\",'God Makes The Rivers To Flow'!F52)","v":""},{"$f":"IF(ISBLANK('God Makes The Rivers To Flow'!G52),\"\",TEXT('God Makes The Rivers To Flow'!G52,\"General\"))","v":""},null,"HIDE",null,null,null,null,null,"",null,null,null,null,null,{"$f":"IFERROR(VLOOKUP($AF96,Lists!$A$2:$B$6,2,FALSE),IF(PresentationSortBy=ListsSortExpHigh,-9999999,9999999))","v":9999999},"",999999,999999,"!",false,false,false,false,null,null,null,null," "]
[{"$f":"IF(ISBLANK('God Makes The Rivers To Flow'!A53),\"\",'God Makes The Rivers To Flow'!A53)","v":"Swami Ramdas"},{"$f":"IF(ISBLANK('God Makes The Rivers To Flow'!B53),\"\",'God Makes The Rivers To Flow'!B53)","v":"Such Is a Saint!"},{"$f":"IF(ISBLANK('God Makes The Rivers To Flow'!C53),\"\",'God Makes The Rivers To Flow'!C53)","v":94},{"$f":"IF(ISBLANK('God Makes The Rivers To Flow'!D53),\"\",'God Makes The Rivers To Flow'!D53)","v":""},{"$f":"IF(ISBLANK('God Makes The Rivers To Flow'!E53),\"\",'God Makes The Rivers To Flow'!E53)","v":""},{"$f":"IF(ISBLANK('God Makes The Rivers To Flow'!F53),\"\",'God Makes The Rivers To Flow'!F53)","v":""},{"$f":"IF(ISBLANK('God Makes The Rivers To Flow'!G53),\"\",TEXT('God Makes The Rivers To Flow'!G53,\"General\"))","v":""},null,"HIDE",null,null,null,null,null,"",null,null,null,null,null,{"$f":"IFERROR(VLOOKUP($AF97,Lists!$A$2:$B$6,2,FALSE),IF(PresentationSortBy=ListsSortExpHigh,-9999999,9999999))","v":9999999},"",999999,999999,"!",false,false,false,false,null,null,null,null," "]
[{"$f":"IF(ISBLANK('God Makes The Rivers To Flow'!A54),\"\",'God Makes The Rivers To Flow'!A54)","v":"Swami Ramdas"},{"$f":"IF(ISBLANK('God Makes The Rivers To Flow'!B54),\"\",'God Makes The Rivers To Flow'!B54)","v":"The Central Truth"},{"$f":"IF(ISBLANK('God Makes The Rivers To Flow'!C54),\"\",'God Makes The Rivers To Flow'!C54)","v":95},{"$f":"IF(ISBLANK('God Makes The Rivers To Flow'!D54),\"\",'God Makes The Rivers To Flow'!D54)","v":""},{"$f":"IF(ISBLANK('God Makes The Rivers To Flow'!E54),\"\",'God Makes The Rivers To Flow'!E54)","v":""},{"$f":"IF(ISBLANK('God Makes The Rivers To Flow'!F54),\"\",'God Makes The Rivers To Flow'!F54)","v":""},{"$f":"IF(ISBLANK('God Makes The Rivers To Flow'!G54),\"\",TEXT('God Makes The Rivers To Flow'!G54,\"General\"))","v":""},null,"HIDE",null,null,null,null,null,"",null,null,null,null,null,{"$f":"IFERROR(VLOOKUP($AF98,Lists!$A$2:$B$6,2,FALSE),IF(PresentationSortBy=ListsSortExpHigh,-9999999,9999999))","v":9999999},"",999999,999999,"!",false,false,false,false,null,null,null,null," "]
[{"$f":"IF(ISBLANK('God Makes The Rivers To Flow'!A55),\"\",'God Makes The Rivers To Flow'!A55)","v":"Hazrat Inayat Khan"},{"$f":"IF(ISBLANK('God Makes The Rivers To Flow'!B55),\"\",'God Makes The Rivers To Flow'!B55)","v":"Prayer for the Peace of the World"},{"$f":"IF(ISBLANK('God Makes The Rivers To Flow'!C55),\"\",'God Makes The Rivers To Flow'!C55)","v":96},{"$f":"IF(ISBLANK('God Makes The Rivers To Flow'!D55),\"\",'God Makes The Rivers To Flow'!D55)","v":""},{"$f":"IF(ISBLANK('God Makes The Rivers To Flow'!E55),\"\",'God Makes The Rivers To Flow'!E55)","v":""},{"$f":"IF(ISBLANK('God Makes The Rivers To Flow'!F55),\"\",'God Makes The Rivers To Flow'!F55)","v":""},{"$f":"IF(ISBLANK('God Makes The Rivers To Flow'!G55),\"\",TEXT('God Makes The Rivers To Flow'!G55,\"General\"))","v":""},null,"HIDE",null,null,null,null,null,"",null,null,null,null,null,{"$f":"IFERROR(VLOOKUP($AF99,Lists!$A$2:$B$6,2,FALSE),IF(PresentationSortBy=ListsSortExpHigh,-9999999,9999999))","v":9999999},"",999999,999999,"!",false,false,false,false,null,null,null,null," "]
[{"$f":"IF(ISBLANK('God Makes The Rivers To Flow'!A56),\"\",'God Makes The Rivers To Flow'!A56)","v":"Hazrat Inayat Khan"},{"$f":"IF(ISBLANK('God Makes The Rivers To Flow'!B56),\"\",'God Makes The Rivers To Flow'!B56)","v":"Khatum"},{"$f":"IF(ISBLANK('God Makes The Rivers To Flow'!C56),\"\",'God Makes The Rivers To Flow'!C56)","v":97},{"$f":"IF(ISBLANK('God Makes The Rivers To Flow'!D56),\"\",'God Makes The Rivers To Flow'!D56)","v":""},{"$f":"IF(ISBLANK('God Makes The Rivers To Flow'!E56),\"\",'God Makes The Rivers To Flow'!E56)","v":""},{"$f":"IF(ISBLANK('God Makes The Rivers To Flow'!F56),\"\",'God Makes The Rivers To Flow'!F56)","v":""},{"$f":"IF(ISBLANK('God Makes The Rivers To Flow'!G56),\"\",TEXT('God Makes The Rivers To Flow'!G56,\"General\"))","v":""},null,"HIDE",null,null,null,null,null,"",null,null,null,null,null,{"$f":"IFERROR(VLOOKUP($AF100,Lists!$A$2:$B$6,2,FALSE),IF(PresentationSortBy=ListsSortExpHigh,-9999999,9999999))","v":9999999},"",999999,999999,"!",false,false,false,false,null,null,null,null," "]
[{"$f":"IF(ISBLANK('God Makes The Rivers To Flow'!A57),\"\",'God Makes The Rivers To Flow'!A57)","v":""},{"$f":"IF(ISBLANK('God Makes The Rivers To Flow'!B57),\"\",'God Makes The Rivers To Flow'!B57)","v":""},{"$f":"IF(ISBLANK('God Makes The Rivers To Flow'!C57),\"\",'God Makes The Rivers To Flow'!C57)","v":""},{"$f":"IF(ISBLANK('God Makes The Rivers To Flow'!D57),\"\",'God Makes The Rivers To Flow'!D57)","v":""},{"$f":"IF(ISBLANK('God Makes The Rivers To Flow'!E57),\"\",'God Makes The Rivers To Flow'!E57)","v":""},{"$f":"IF(ISBLANK('God Makes The Rivers To Flow'!F57),\"\",'God Makes The Rivers To Flow'!F57)","v":""},{"$f":"IF(ISBLANK('God Makes The Rivers To Flow'!G57),\"\",TEXT('God Makes The Rivers To Flow'!G57,\"General\"))","v":""},"SPECIALGMRF",null,null,null,null,null,null,"",null,null,null,null,null,{"$f":"IFERROR(VLOOKUP($AF101,Lists!$A$2:$B$6,2,FALSE),IF(PresentationSortBy=ListsSortExpHigh,-9999999,9999999))","v":9999999},"",999999,999999,"!",false,false,false,false,null,null,null,null," "]
[{"$f":"IF(ISBLANK('God Makes The Rivers To Flow'!A58),\"\",'God Makes The Rivers To Flow'!A58)","v":"PART TWO"},{"$f":"IF(ISBLANK('God Makes The Rivers To Flow'!B58),\"\",'God Makes The Rivers To Flow'!B58)","v":"Deep Currents"},{"$f":"IF(ISBLANK('God Makes The Rivers To Flow'!C58),\"\",'God Makes The Rivers To Flow'!C58)","v":""},{"$f":"IF(ISBLANK('God Makes The Rivers To Flow'!D58),\"\",'God Makes The Rivers To Flow'!D58)","v":""},{"$f":"IF(ISBLANK('God Makes The Rivers To Flow'!E58),\"\",'God Makes The Rivers To Flow'!E58)","v":""},{"$f":"IF(ISBLANK('God Makes The Rivers To Flow'!F58),\"\",'God Makes The Rivers To Flow'!F58)","v":""},{"$f":"IF(ISBLANK('God Makes The Rivers To Flow'!G58),\"\",TEXT('God Makes The Rivers To Flow'!G58,\"General\"))","v":""},"SPECIALGMRF",null,null,null,null,null,null,"",null,null,null,null,null,{"$f":"IFERROR(VLOOKUP($AF102,Lists!$A$2:$B$6,2,FALSE),IF(PresentationSortBy=ListsSortExpHigh,-9999999,9999999))","v":9999999},"",999999,999999,"!",false,false,false,false,null,null,null,null," "]
[{"$f":"IF(ISBLANK('God Makes The Rivers To Flow'!A59),\"\",'God Makes The Rivers To Flow'!A59)","v":""},{"$f":"IF(ISBLANK('God Makes The Rivers To Flow'!B59),\"\",'God Makes The Rivers To Flow'!B59)","v":""},{"$f":"IF(ISBLANK('God Makes The Rivers To Flow'!C59),\"\",'God Makes The Rivers To Flow'!C59)","v":""},{"$f":"IF(ISBLANK('God Makes The Rivers To Flow'!D59),\"\",'God Makes The Rivers To Flow'!D59)","v":""},{"$f":"IF(ISBLANK('God Makes The Rivers To Flow'!E59),\"\",'God Makes The Rivers To Flow'!E59)","v":""},{"$f":"IF(ISBLANK('God Makes The Rivers To Flow'!F59),\"\",'God Makes The Rivers To Flow'!F59)","v":""},{"$f":"IF(ISBLANK('God Makes The Rivers To Flow'!G59),\"\",TEXT('God Makes The Rivers To Flow'!G59,\"General\"))","v":""},"SPECIALGMRF",null,null,null,null,null,null,"",null,null,null,null,null,{"$f":"IFERROR(VLOOKUP($AF103,Lists!$A$2:$B$6,2,FALSE),IF(PresentationSortBy=ListsSortExpHigh,-9999999,9999999))","v":9999999},"",999999,999999,"!",false,false,false,false,null,null,null,null," "]
[{"$f":"IF(ISBLANK('God Makes The Rivers To Flow'!A60),\"\",'God Makes The Rivers To Flow'!A60)","v":"The Upanishads"},{"$f":"IF(ISBLANK('God Makes The Rivers To Flow'!B60),\"\",'God Makes The Rivers To Flow'!B60)","v":"Invocations"},{"$f":"IF(ISBLANK('God Makes The Rivers To Flow'!C60),\"\",'God Makes The Rivers To Flow'!C60)","v":101},{"$f":"IF(ISBLANK('God Makes The Rivers To Flow'!D60),\"\",'God Makes The Rivers To Flow'!D60)","v":""},{"$f":"IF(ISBLANK('God Makes The Rivers To Flow'!E60),\"\",'God Makes The Rivers To Flow'!E60)","v":""},{"$f":"IF(ISBLANK('God Makes The Rivers To Flow'!F60),\"\",'God Makes The Rivers To Flow'!F60)","v":""},{"$f":"IF(ISBLANK('God Makes The Rivers To Flow'!G60),\"\",TEXT('God Makes The Rivers To Flow'!G60,\"General\"))","v":""},null,{"$f":"IF(OR(ISNUMBER(D104),ISNUMBER(E104),F104<>\"\",G104<>\"\"),\"\\\\SHOW\",\"HIDE\")","v":"HIDE"},null,null,null,null,null,"",null,null,null,null,null,{"$f":"IFERROR(VLOOKUP($AF104,Lists!$A$2:$B$6,2,FALSE),IF(PresentationSortBy=ListsSortExpHigh,-9999999,9999999))","v":9999999},"",999999,999999,"!",false,false,false,false,null,null,null,null," "]
[{"$f":"IF(ISBLANK('God Makes The Rivers To Flow'!A61),\"\",'God Makes The Rivers To Flow'!A61)","v":"The Rig Veda"},{"$f":"IF(ISBLANK('God Makes The Rivers To Flow'!B61),\"\",'God Makes The Rivers To Flow'!B61)","v":"United in Heart"},{"$f":"IF(ISBLANK('God Makes The Rivers To Flow'!C61),\"\",'God Makes The Rivers To Flow'!C61)","v":102},{"$f":"IF(ISBLANK('God Makes The Rivers To Flow'!D61),\"\",'God Makes The Rivers To Flow'!D61)","v":""},{"$f":"IF(ISBLANK('God Makes The Rivers To Flow'!E61),\"\",'God Makes The Rivers To Flow'!E61)","v":""},{"$f":"IF(ISBLANK('God Makes The Rivers To Flow'!F61),\"\",'God Makes The Rivers To Flow'!F61)","v":""},{"$f":"IF(ISBLANK('God Makes The Rivers To Flow'!G61),\"\",TEXT('God Makes The Rivers To Flow'!G61,\"General\"))","v":""},null,"HIDE",null,null,null,null,null,"",null,null,null,null,null,{"$f":"IFERROR(VLOOKUP($AF105,Lists!$A$2:$B$6,2,FALSE),IF(PresentationSortBy=ListsSortExpHigh,-9999999,9999999))","v":9999999},"",999999,999999,"!",false,false,false,false,null,null,null,null," "]
[{"$f":"IF(ISBLANK('God Makes The Rivers To Flow'!A62),\"\",'God Makes The Rivers To Flow'!A62)","v":"The Torah"},{"$f":"IF(ISBLANK('God Makes The Rivers To Flow'!B62),\"\",'God Makes The Rivers To Flow'!B62)","v":"The Shema"},{"$f":"IF(ISBLANK('God Makes The Rivers To Flow'!C62),\"\",'God Makes The Rivers To Flow'!C62)","v":103},{"$f":"IF(ISBLANK('God Makes The Rivers To Flow'!D62),\"\",'God Makes The Rivers To Flow'!D62)","v":""},{"$f":"IF(ISBLANK('God Makes The Rivers To Flow'!E62),\"\",'God Makes The Rivers To Flow'!E62)","v":""},{"$f":"IF(ISBLANK('God Makes The Rivers To Flow'!F62),\"\",'God Makes The Rivers To Flow'!F62)","v":""},{"$f":"IF(ISBLANK('God Makes The Rivers To Flow'!G62),\"\",TEXT('God Makes The Rivers To Flow'!G62,\"General\"))","v":""},null,"HIDE",null,null,null,null,null,"",null,null,null,null,null,{"$f":"IFERROR(VLOOKUP($AF106,Lists!$A$2:$B$6,2,FALSE),IF(PresentationSortBy=ListsSortExpHigh,-9999999,9999999))","v":9999999},"",999999,999999,"!",false,false,false,false,null,null,null,null," "]
[{"$f":"IF(ISBLANK('God Makes The Rivers To Flow'!A63),\"\",'God Makes The Rivers To Flow'!A63)","v":"The Sutta Nipata"},{"$f":"IF(ISBLANK('God Makes The Rivers To Flow'!B63),\"\",'God Makes The Rivers To Flow'!B63)","v":"Discourse on Good Will"},{"$f":"IF(ISBLANK('God Makes The Rivers To Flow'!C63),\"\",'God Makes The Rivers To Flow'!C63)","v":104},{"$f":"IF(ISBLANK('God Makes The Rivers To Flow'!D63),\"\",'God Makes The Rivers To Flow'!D63)","v":""},{"$f":"IF(ISBLANK('God Makes The Rivers To Flow'!E63),\"\",'God Makes The Rivers To Flow'!E63)","v":""},{"$f":"IF(ISBLANK('God Makes The Rivers To Flow'!F63),\"\",'God Makes The Rivers To Flow'!F63)","v":""},{"$f":"IF(ISBLANK('God Makes The Rivers To Flow'!G63),\"\",TEXT('God Makes The Rivers To Flow'!G63,\"General\"))","v":""},null,"HIDE",null,null,null,null,null,"",null,null,null,null,null,{"$f":"IFERROR(VLOOKUP($AF107,Lists!$A$2:$B$6,2,FALSE),IF(PresentationSortBy=ListsSortExpHigh,-9999999,9999999))","v":9999999},"",999999,999999,"!",false,false,false,false,null,null,null,null," "]
[{"$f":"IF(ISBLANK('God Makes The Rivers To Flow'!A64),\"\",'God Makes The Rivers To Flow'!A64)","v":"The Gospel of Saint Matthew"},{"$f":"IF(ISBLANK('God Makes The Rivers To Flow'!B64),\"\",'God Makes The Rivers To Flow'!B64)","v":"The Sermon on the Mount"},{"$f":"IF(ISBLANK('God Makes The Rivers To Flow'!C64),\"\",'God Makes The Rivers To Flow'!C64)","v":106},{"$f":"IF(ISBLANK('God Makes The Rivers To Flow'!D64),\"\",'God Makes The Rivers To Flow'!D64)","v":""},{"$f":"IF(ISBLANK('God Makes The Rivers To Flow'!E64),\"\",'God Makes The Rivers To Flow'!E64)","v":""},{"$f":"IF(ISBLANK('God Makes The Rivers To Flow'!F64),\"\",'God Makes The Rivers To Flow'!F64)","v":""},{"$f":"IF(ISBLANK('God Makes The Rivers To Flow'!G64),\"\",TEXT('God Makes The Rivers To Flow'!G64,\"General\"))","v":""},null,"HIDE",null,null,null,null,null,"",null,null,null,null,null,{"$f":"IFERROR(VLOOKUP($AF108,Lists!$A$2:$B$6,2,FALSE),IF(PresentationSortBy=ListsSortExpHigh,-9999999,9999999))","v":9999999},"",999999,999999,"!",false,false,false,false,null,null,null,null," "]
[{"$f":"IF(ISBLANK('God Makes The Rivers To Flow'!A65),\"\",'God Makes The Rivers To Flow'!A65)","v":"Saint Francis of Assisi"},{"$f":"IF(ISBLANK('God Makes The Rivers To Flow'!B65),\"\",'God Makes The Rivers To Flow'!B65)","v":"The Prayer of Saint Francis"},{"$f":"IF(ISBLANK('God Makes The Rivers To Flow'!C65),\"\",'God Makes The Rivers To Flow'!C65)","v":109},{"$f":"IF(ISBLANK('God Makes The Rivers To Flow'!D65),\"\",'God Makes The Rivers To Flow'!D65)","v":"2015-09-01"},{"$f":"IF(ISBLANK('God Makes The Rivers To Flow'!E65),\"\",'God Makes The Rivers To Flow'!E65)","v":1},{"$f":"IF(ISBLANK('God Makes The Rivers To Flow'!F65),\"\",'God Makes The Rivers To Flow'!F65)","v":"Habit"},{"$f":"IF(ISBLANK('God Makes The Rivers To Flow'!G65),\"\",TEXT('God Makes The Rivers To Flow'!G65,\"General\"))","v":"Core"},null,"\\\\SHOW",null,null,null,null,null,"",null,null,null,null,null,{"$f":"IFERROR(VLOOKUP($AF109,Lists!$A$2:$B$6,2,FALSE),IF(PresentationSortBy=ListsSortExpHigh,-9999999,9999999))","v":9999999},"",999999,999999,"!",false,false,false,false,null,null,null,null," "]
[{"$f":"IF(ISBLANK('God Makes The Rivers To Flow'!A66),\"\",'God Makes The Rivers To Flow'!A66)","v":"The Bhagavad Gita"},{"$f":"IF(ISBLANK('God Makes The Rivers To Flow'!B66),\"\",'God Makes The Rivers To Flow'!B66)","v":"The Way of Love"},{"$f":"IF(ISBLANK('God Makes The Rivers To Flow'!C66),\"\",'God Makes The Rivers To Flow'!C66)","v":110},{"$f":"IF(ISBLANK('God Makes The Rivers To Flow'!D66),\"\",'God Makes The Rivers To Flow'!D66)","v":""},{"$f":"IF(ISBLANK('God Makes The Rivers To Flow'!E66),\"\",'God Makes The Rivers To Flow'!E66)","v":""},{"$f":"IF(ISBLANK('God Makes The Rivers To Flow'!F66),\"\",'God Makes The Rivers To Flow'!F66)","v":""},{"$f":"IF(ISBLANK('God Makes The Rivers To Flow'!G66),\"\",TEXT('God Makes The Rivers To Flow'!G66,\"General\"))","v":""},null,"HIDE",null,null,null,null,null,"",null,null,null,null,null,{"$f":"IFERROR(VLOOKUP($AF110,Lists!$A$2:$B$6,2,FALSE),IF(PresentationSortBy=ListsSortExpHigh,-9999999,9999999))","v":9999999},"",999999,999999,"!",false,false,false,false,null,null,null,null," "]
[{"$f":"IF(ISBLANK('God Makes The Rivers To Flow'!A67),\"\",'God Makes The Rivers To Flow'!A67)","v":"A Song of Sri Ramakrishna"},{"$f":"IF(ISBLANK('God Makes The Rivers To Flow'!B67),\"\",'God Makes The Rivers To Flow'!B67)","v":"Dive Deep, O Mind"},{"$f":"IF(ISBLANK('God Makes The Rivers To Flow'!C67),\"\",'God Makes The Rivers To Flow'!C67)","v":113},{"$f":"IF(ISBLANK('God Makes The Rivers To Flow'!D67),\"\",'God Makes The Rivers To Flow'!D67)","v":""},{"$f":"IF(ISBLANK('God Makes The Rivers To Flow'!E67),\"\",'God Makes The Rivers To Flow'!E67)","v":""},{"$f":"IF(ISBLANK('God Makes The Rivers To Flow'!F67),\"\",'God Makes The Rivers To Flow'!F67)","v":""},{"$f":"IF(ISBLANK('God Makes The Rivers To Flow'!G67),\"\",TEXT('God Makes The Rivers To Flow'!G67,\"General\"))","v":""},null,"HIDE",null,null,null,null,null,"",null,null,null,null,null,{"$f":"IFERROR(VLOOKUP($AF111,Lists!$A$2:$B$6,2,FALSE),IF(PresentationSortBy=ListsSortExpHigh,-9999999,9999999))","v":9999999},"",999999,999999,"!",false,false,false,false,null,null,null,null," "]
[{"$f":"IF(ISBLANK('God Makes The Rivers To Flow'!A68),\"\",'God Makes The Rivers To Flow'!A68)","v":"A Song of Sri Ramakrishna"},{"$f":"IF(ISBLANK('God Makes The Rivers To Flow'!B68),\"\",'God Makes The Rivers To Flow'!B68)","v":"I Have Joined My Heart to Thee"},{"$f":"IF(ISBLANK('God Makes The Rivers To Flow'!C68),\"\",'God Makes The Rivers To Flow'!C68)","v":114},{"$f":"IF(ISBLANK('God Makes The Rivers To Flow'!D68),\"\",'God Makes The Rivers To Flow'!D68)","v":""},{"$f":"IF(ISBLANK('God Makes The Rivers To Flow'!E68),\"\",'God Makes The Rivers To Flow'!E68)","v":""},{"$f":"IF(ISBLANK('God Makes The Rivers To Flow'!F68),\"\",'God Makes The Rivers To Flow'!F68)","v":""},{"$f":"IF(ISBLANK('God Makes The Rivers To Flow'!G68),\"\",TEXT('God Makes The Rivers To Flow'!G68,\"General\"))","v":""},null,"HIDE",null,null,null,null,null,"",null,null,null,null,null,{"$f":"IFERROR(VLOOKUP($AF112,Lists!$A$2:$B$6,2,FALSE),IF(PresentationSortBy=ListsSortExpHigh,-9999999,9999999))","v":9999999},"",999999,999999,"!",false,false,false,false,null,null,null,null," "]
[{"$f":"IF(ISBLANK('God Makes The Rivers To Flow'!A69),\"\",'God Makes The Rivers To Flow'!A69)","v":"Elizabeth of the Trinity"},{"$f":"IF(ISBLANK('God Makes The Rivers To Flow'!B69),\"\",'God Makes The Rivers To Flow'!B69)","v":"O My God, Trinity Whom I Adore"},{"$f":"IF(ISBLANK('God Makes The Rivers To Flow'!C69),\"\",'God Makes The Rivers To Flow'!C69)","v":115},{"$f":"IF(ISBLANK('God Makes The Rivers To Flow'!D69),\"\",'God Makes The Rivers To Flow'!D69)","v":""},{"$f":"IF(ISBLANK('God Makes The Rivers To Flow'!E69),\"\",'God Makes The Rivers To Flow'!E69)","v":""},{"$f":"IF(ISBLANK('God Makes The Rivers To Flow'!F69),\"\",'God Makes The Rivers To Flow'!F69)","v":""},{"$f":"IF(ISBLANK('God Makes The Rivers To Flow'!G69),\"\",TEXT('God Makes The Rivers To Flow'!G69,\"General\"))","v":""},null,"HIDE",null,null,null,null,null,"",null,null,null,null,null,{"$f":"IFERROR(VLOOKUP($AF113,Lists!$A$2:$B$6,2,FALSE),IF(PresentationSortBy=ListsSortExpHigh,-9999999,9999999))","v":9999999},"",999999,999999,"!",false,false,false,false,null,null,null,null," "]
[{"$f":"IF(ISBLANK('God Makes The Rivers To Flow'!A70),\"\",'God Makes The Rivers To Flow'!A70)","v":"Meera"},{"$f":"IF(ISBLANK('God Makes The Rivers To Flow'!B70),\"\",'God Makes The Rivers To Flow'!B70)","v":"The Path to Your Dwelling"},{"$f":"IF(ISBLANK('God Makes The Rivers To Flow'!C70),\"\",'God Makes The Rivers To Flow'!C70)","v":116},{"$f":"IF(ISBLANK('God Makes The Rivers To Flow'!D70),\"\",'God Makes The Rivers To Flow'!D70)","v":""},{"$f":"IF(ISBLANK('God Makes The Rivers To Flow'!E70),\"\",'God Makes The Rivers To Flow'!E70)","v":""},{"$f":"IF(ISBLANK('God Makes The Rivers To Flow'!F70),\"\",'God Makes The Rivers To Flow'!F70)","v":""},{"$f":"IF(ISBLANK('God Makes The Rivers To Flow'!G70),\"\",TEXT('God Makes The Rivers To Flow'!G70,\"General\"))","v":""},null,"HIDE",null,null,null,null,null,"",null,null,null,null,null,{"$f":"IFERROR(VLOOKUP($AF114,Lists!$A$2:$B$6,2,FALSE),IF(PresentationSortBy=ListsSortExpHigh,-9999999,9999999))","v":9999999},"",999999,999999,"!",false,false,false,false,null,null,null,null," "]
[{"$f":"IF(ISBLANK('God Makes The Rivers To Flow'!A71),\"\",'God Makes The Rivers To Flow'!A71)","v":"Meera"},{"$f":"IF(ISBLANK('God Makes The Rivers To Flow'!B71),\"\",'God Makes The Rivers To Flow'!B71)","v":"Come, Beloved"},{"$f":"IF(ISBLANK('God Makes The Rivers To Flow'!C71),\"\",'God Makes The Rivers To Flow'!C71)","v":117},{"$f":"IF(ISBLANK('God Makes The Rivers To Flow'!D71),\"\",'God Makes The Rivers To Flow'!D71)","v":""},{"$f":"IF(ISBLANK('God Makes The Rivers To Flow'!E71),\"\",'God Makes The Rivers To Flow'!E71)","v":""},{"$f":"IF(ISBLANK('God Makes The Rivers To Flow'!F71),\"\",'God Makes The Rivers To Flow'!F71)","v":""},{"$f":"IF(ISBLANK('God Makes The Rivers To Flow'!G71),\"\",TEXT('God Makes The Rivers To Flow'!G71,\"General\"))","v":""},null,"HIDE",null,null,null,null,null,"",null,null,null,null,null,{"$f":"IFERROR(VLOOKUP($AF115,Lists!$A$2:$B$6,2,FALSE),IF(PresentationSortBy=ListsSortExpHigh,-9999999,9999999))","v":9999999},"",999999,999999,"!",false,false,false,false,null,null,null,null," "]
[{"$f":"IF(ISBLANK('God Makes The Rivers To Flow'!A72),\"\",'God Makes The Rivers To Flow'!A72)","v":"Meera"},{"$f":"IF(ISBLANK('God Makes The Rivers To Flow'!B72),\"\",'God Makes The Rivers To Flow'!B72)","v":"Life of My Life"},{"$f":"IF(ISBLANK('God Makes The Rivers To Flow'!C72),\"\",'God Makes The Rivers To Flow'!C72)","v":118},{"$f":"IF(ISBLANK('God Makes The Rivers To Flow'!D72),\"\",'God Makes The Rivers To Flow'!D72)","v":""},{"$f":"IF(ISBLANK('God Makes The Rivers To Flow'!E72),\"\",'God Makes The Rivers To Flow'!E72)","v":""},{"$f":"IF(ISBLANK('God Makes The Rivers To Flow'!F72),\"\",'God Makes The Rivers To Flow'!F72)","v":""},{"$f":"IF(ISBLANK('God Makes The Rivers To Flow'!G72),\"\",TEXT('God Makes The Rivers To Flow'!G72,\"General\"))","v":""},null,"HIDE",null,null,null,null,null,"",null,null,null,null,null,{"$f":"IFERROR(VLOOKUP($AF116,Lists!$A$2:$B$6,2,FALSE),IF(PresentationSortBy=ListsSortExpHigh,-9999999,9999999))","v":9999999},"",999999,999999,"!",false,false,false,false,null,null,null,null," "]
[{"$f":"IF(ISBLANK('God Makes The Rivers To Flow'!A73),\"\",'God Makes The Rivers To Flow'!A73)","v":"Mechthild of Magdeburg"},{"$f":"IF(ISBLANK('God Makes The Rivers To Flow'!B73),\"\",'God Makes The Rivers To Flow'!B73)","v":"Lord, I Bring Thee My Treasure"},{"$f":"IF(ISBLANK('God Makes The Rivers To Flow'!C73),\"\",'God Makes The Rivers To Flow'!C73)","v":119},{"$f":"IF(ISBLANK('God Makes The Rivers To Flow'!D73),\"\",'God Makes The Rivers To Flow'!D73)","v":""},{"$f":"IF(ISBLANK('God Makes The Rivers To Flow'!E73),\"\",'God Makes The Rivers To Flow'!E73)","v":""},{"$f":"IF(ISBLANK('God Makes The Rivers To Flow'!F73),\"\",'God Makes The Rivers To Flow'!F73)","v":""},{"$f":"IF(ISBLANK('God Makes The Rivers To Flow'!G73),\"\",TEXT('God Makes The Rivers To Flow'!G73,\"General\"))","v":""},null,"HIDE",null,null,null,null,null,"",null,null,null,null,null,{"$f":"IFERROR(VLOOKUP($AF117,Lists!$A$2:$B$6,2,FALSE),IF(PresentationSortBy=ListsSortExpHigh,-9999999,9999999))","v":9999999},"",999999,999999,"!",false,false,false,false,null,null,null,null," "]
[{"$f":"IF(ISBLANK('God Makes The Rivers To Flow'!A74),\"\",'God Makes The Rivers To Flow'!A74)","v":"Rabi' a"},{"$f":"IF(ISBLANK('God Makes The Rivers To Flow'!B74),\"\",'God Makes The Rivers To Flow'!B74)","v":"Night Prayer"},{"$f":"IF(ISBLANK('God Makes The Rivers To Flow'!C74),\"\",'God Makes The Rivers To Flow'!C74)","v":120},{"$f":"IF(ISBLANK('God Makes The Rivers To Flow'!D74),\"\",'God Makes The Rivers To Flow'!D74)","v":""},{"$f":"IF(ISBLANK('God Makes The Rivers To Flow'!E74),\"\",'God Makes The Rivers To Flow'!E74)","v":""},{"$f":"IF(ISBLANK('God Makes The Rivers To Flow'!F74),\"\",'God Makes The Rivers To Flow'!F74)","v":""},{"$f":"IF(ISBLANK('God Makes The Rivers To Flow'!G74),\"\",TEXT('God Makes The Rivers To Flow'!G74,\"General\"))","v":""},null,"HIDE",null,null,null,null,null,"",null,null,null,null,null,{"$f":"IFERROR(VLOOKUP($AF118,Lists!$A$2:$B$6,2,FALSE),IF(PresentationSortBy=ListsSortExpHigh,-9999999,9999999))","v":9999999},"",999999,999999,"!",false,false,false,false,null,null,null,null," "]
[{"$f":"IF(ISBLANK('God Makes The Rivers To Flow'!A75),\"\",'God Makes The Rivers To Flow'!A75)","v":"Rabi' a"},{"$f":"IF(ISBLANK('God Makes The Rivers To Flow'!B75),\"\",'God Makes The Rivers To Flow'!B75)","v":"Dawn Prayer"},{"$f":"IF(ISBLANK('God Makes The Rivers To Flow'!C75),\"\",'God Makes The Rivers To Flow'!C75)","v":121},{"$f":"IF(ISBLANK('God Makes The Rivers To Flow'!D75),\"\",'God Makes The Rivers To Flow'!D75)","v":""},{"$f":"IF(ISBLANK('God Makes The Rivers To Flow'!E75),\"\",'God Makes The Rivers To Flow'!E75)","v":""},{"$f":"IF(ISBLANK('God Makes The Rivers To Flow'!F75),\"\",'God Makes The Rivers To Flow'!F75)","v":""},{"$f":"IF(ISBLANK('God Makes The Rivers To Flow'!G75),\"\",TEXT('God Makes The Rivers To Flow'!G75,\"General\"))","v":""},null,"HIDE",null,null,null,null,null,"",null,null,null,null,null,{"$f":"IFERROR(VLOOKUP($AF119,Lists!$A$2:$B$6,2,FALSE),IF(PresentationSortBy=ListsSortExpHigh,-9999999,9999999))","v":9999999},"",999999,999999,"!",false,false,false,false,null,null,null,null," "]
[{"$f":"IF(ISBLANK('God Makes The Rivers To Flow'!A76),\"\",'God Makes The Rivers To Flow'!A76)","v":"Saint Francis de Sales"},{"$f":"IF(ISBLANK('God Makes The Rivers To Flow'!B76),\"\",'God Makes The Rivers To Flow'!B76)","v":"I Am Thine, Lord"},{"$f":"IF(ISBLANK('God Makes The Rivers To Flow'!C76),\"\",'God Makes The Rivers To Flow'!C76)","v":122},{"$f":"IF(ISBLANK('God Makes The Rivers To Flow'!D76),\"\",'God Makes The Rivers To Flow'!D76)","v":""},{"$f":"IF(ISBLANK('God Makes The Rivers To Flow'!E76),\"\",'God Makes The Rivers To Flow'!E76)","v":""},{"$f":"IF(ISBLANK('God Makes The Rivers To Flow'!F76),\"\",'God Makes The Rivers To Flow'!F76)","v":""},{"$f":"IF(ISBLANK('God Makes The Rivers To Flow'!G76),\"\",TEXT('God Makes The Rivers To Flow'!G76,\"General\"))","v":""},null,"HIDE",null,null,null,null,null,"",null,null,null,null,null,{"$f":"IFERROR(VLOOKUP($AF120,Lists!$A$2:$B$6,2,FALSE),IF(PresentationSortBy=ListsSortExpHigh,-9999999,9999999))","v":9999999},"",999999,999999,"!",false,false,false,false,null,null,null,null," "]
[{"$f":"IF(ISBLANK('God Makes The Rivers To Flow'!A77),\"\",'God Makes The Rivers To Flow'!A77)","v":"Rabbi Eleazar Azikri"},{"$f":"IF(ISBLANK('God Makes The Rivers To Flow'!B77),\"\",'God Makes The Rivers To Flow'!B77)","v":"Beloved of the Soul"},{"$f":"IF(ISBLANK('God Makes The Rivers To Flow'!C77),\"\",'God Makes The Rivers To Flow'!C77)","v":123},{"$f":"IF(ISBLANK('God Makes The Rivers To Flow'!D77),\"\",'God Makes The Rivers To Flow'!D77)","v":""},{"$f":"IF(ISBLANK('God Makes The Rivers To Flow'!E77),\"\",'God Makes The Rivers To Flow'!E77)","v":""},{"$f":"IF(ISBLANK('God Makes The Rivers To Flow'!F77),\"\",'God Makes The Rivers To Flow'!F77)","v":""},{"$f":"IF(ISBLANK('God Makes The Rivers To Flow'!G77),\"\",TEXT('God Makes The Rivers To Flow'!G77,\"General\"))","v":""},null,"HIDE",null,null,null,null,null,"",null,null,null,null,null,{"$f":"IFERROR(VLOOKUP($AF121,Lists!$A$2:$B$6,2,FALSE),IF(PresentationSortBy=ListsSortExpHigh,-9999999,9999999))","v":9999999},"",999999,999999,"!",false,false,false,false,null,null,null,null," "]
[{"$f":"IF(ISBLANK('God Makes The Rivers To Flow'!A78),\"\",'God Makes The Rivers To Flow'!A78)","v":"Thomas à Kempis"},{"$f":"IF(ISBLANK('God Makes The Rivers To Flow'!B78),\"\",'God Makes The Rivers To Flow'!B78)","v":"The Wonderful Effect of Divine Love"},{"$f":"IF(ISBLANK('God Makes The Rivers To Flow'!C78),\"\",'God Makes The Rivers To Flow'!C78)","v":124},{"$f":"IF(ISBLANK('God Makes The Rivers To Flow'!D78),\"\",'God Makes The Rivers To Flow'!D78)","v":""},{"$f":"IF(ISBLANK('God Makes The Rivers To Flow'!E78),\"\",'God Makes The Rivers To Flow'!E78)","v":""},{"$f":"IF(ISBLANK('God Makes The Rivers To Flow'!F78),\"\",'God Makes The Rivers To Flow'!F78)","v":""},{"$f":"IF(ISBLANK('God Makes The Rivers To Flow'!G78),\"\",TEXT('God Makes The Rivers To Flow'!G78,\"General\"))","v":""},null,"HIDE",null,null,null,null,null,"",null,null,null,null,null,{"$f":"IFERROR(VLOOKUP($AF122,Lists!$A$2:$B$6,2,FALSE),IF(PresentationSortBy=ListsSortExpHigh,-9999999,9999999))","v":9999999},"",999999,999999,"!",false,false,false,false,null,null,null,null," "]
[{"$f":"IF(ISBLANK('God Makes The Rivers To Flow'!A79),\"\",'God Makes The Rivers To Flow'!A79)","v":"Jewish Liturgy"},{"$f":"IF(ISBLANK('God Makes The Rivers To Flow'!B79),\"\",'God Makes The Rivers To Flow'!B79)","v":"Evening Prayer for the Sabbath"},{"$f":"IF(ISBLANK('God Makes The Rivers To Flow'!C79),\"\",'God Makes The Rivers To Flow'!C79)","v":128},{"$f":"IF(ISBLANK('God Makes The Rivers To Flow'!D79),\"\",'God Makes The Rivers To Flow'!D79)","v":""},{"$f":"IF(ISBLANK('God Makes The Rivers To Flow'!E79),\"\",'God Makes The Rivers To Flow'!E79)","v":""},{"$f":"IF(ISBLANK('God Makes The Rivers To Flow'!F79),\"\",'God Makes The Rivers To Flow'!F79)","v":""},{"$f":"IF(ISBLANK('God Makes The Rivers To Flow'!G79),\"\",TEXT('God Makes The Rivers To Flow'!G79,\"General\"))","v":""},null,"HIDE",null,null,null,null,null,"",null,null,null,null,null,{"$f":"IFERROR(VLOOKUP($AF123,Lists!$A$2:$B$6,2,FALSE),IF(PresentationSortBy=ListsSortExpHigh,-9999999,9999999))","v":9999999},"",999999,999999,"!",false,false,false,false,null,null,null,null," "]
[{"$f":"IF(ISBLANK('God Makes The Rivers To Flow'!A80),\"\",'God Makes The Rivers To Flow'!A80)","v":"Saint Ignatius of Loyola"},{"$f":"IF(ISBLANK('God Makes The Rivers To Flow'!B80),\"\",'God Makes The Rivers To Flow'!B80)","v":"Just Because You Are My God"},{"$f":"IF(ISBLANK('God Makes The Rivers To Flow'!C80),\"\",'God Makes The Rivers To Flow'!C80)","v":129},{"$f":"IF(ISBLANK('God Makes The Rivers To Flow'!D80),\"\",'God Makes The Rivers To Flow'!D80)","v":""},{"$f":"IF(ISBLANK('God Makes The Rivers To Flow'!E80),\"\",'God Makes The Rivers To Flow'!E80)","v":""},{"$f":"IF(ISBLANK('God Makes The Rivers To Flow'!F80),\"\",'God Makes The Rivers To Flow'!F80)","v":""},{"$f":"IF(ISBLANK('God Makes The Rivers To Flow'!G80),\"\",TEXT('God Makes The Rivers To Flow'!G80,\"General\"))","v":""},null,"HIDE",null,null,null,null,null,"",null,null,null,null,null,{"$f":"IFERROR(VLOOKUP($AF124,Lists!$A$2:$B$6,2,FALSE),IF(PresentationSortBy=ListsSortExpHigh,-9999999,9999999))","v":9999999},"",999999,999999,"!",false,false,false,false,null,null,null,null," "]
[{"$f":"IF(ISBLANK('God Makes The Rivers To Flow'!A81),\"\",'God Makes The Rivers To Flow'!A81)","v":"Cardinal Newman"},{"$f":"IF(ISBLANK('God Makes The Rivers To Flow'!B81),\"\",'God Makes The Rivers To Flow'!B81)","v":"Shine through Us"},{"$f":"IF(ISBLANK('God Makes The Rivers To Flow'!C81),\"\",'God Makes The Rivers To Flow'!C81)","v":130},{"$f":"IF(ISBLANK('God Makes The Rivers To Flow'!D81),\"\",'God Makes The Rivers To Flow'!D81)","v":""},{"$f":"IF(ISBLANK('God Makes The Rivers To Flow'!E81),\"\",'God Makes The Rivers To Flow'!E81)","v":""},{"$f":"IF(ISBLANK('God Makes The Rivers To Flow'!F81),\"\",'God Makes The Rivers To Flow'!F81)","v":""},{"$f":"IF(ISBLANK('God Makes The Rivers To Flow'!G81),\"\",TEXT('God Makes The Rivers To Flow'!G81,\"General\"))","v":""},null,"HIDE",null,null,null,null,null,"",null,null,null,null,null,{"$f":"IFERROR(VLOOKUP($AF125,Lists!$A$2:$B$6,2,FALSE),IF(PresentationSortBy=ListsSortExpHigh,-9999999,9999999))","v":9999999},"",999999,999999,"!",false,false,false,false,null,null,null,null," "]
[{"$f":"IF(ISBLANK('God Makes The Rivers To Flow'!A82),\"\",'God Makes The Rivers To Flow'!A82)","v":"Ansari of Herat"},{"$f":"IF(ISBLANK('God Makes The Rivers To Flow'!B82),\"\",'God Makes The Rivers To Flow'!B82)","v":"Invocations"},{"$f":"IF(ISBLANK('God Makes The Rivers To Flow'!C82),\"\",'God Makes The Rivers To Flow'!C82)","v":131},{"$f":"IF(ISBLANK('God Makes The Rivers To Flow'!D82),\"\",'God Makes The Rivers To Flow'!D82)","v":""},{"$f":"IF(ISBLANK('God Makes The Rivers To Flow'!E82),\"\",'God Makes The Rivers To Flow'!E82)","v":""},{"$f":"IF(ISBLANK('God Makes The Rivers To Flow'!F82),\"\",'God Makes The Rivers To Flow'!F82)","v":""},{"$f":"IF(ISBLANK('God Makes The Rivers To Flow'!G82),\"\",TEXT('God Makes The Rivers To Flow'!G82,\"General\"))","v":""},null,"HIDE",null,null,null,null,null,"",null,null,null,null,null,{"$f":"IFERROR(VLOOKUP($AF126,Lists!$A$2:$B$6,2,FALSE),IF(PresentationSortBy=ListsSortExpHigh,-9999999,9999999))","v":9999999},"",999999,999999,"!",false,false,false,false,null,null,null,null," "]
[{"$f":"IF(ISBLANK('God Makes The Rivers To Flow'!A83),\"\",'God Makes The Rivers To Flow'!A83)","v":"Swami Omkar"},{"$f":"IF(ISBLANK('God Makes The Rivers To Flow'!B83),\"\",'God Makes The Rivers To Flow'!B83)","v":"Prayer for Peace"},{"$f":"IF(ISBLANK('God Makes The Rivers To Flow'!C83),\"\",'God Makes The Rivers To Flow'!C83)","v":138},{"$f":"IF(ISBLANK('God Makes The Rivers To Flow'!D83),\"\",'God Makes The Rivers To Flow'!D83)","v":""},{"$f":"IF(ISBLANK('God Makes The Rivers To Flow'!E83),\"\",'God Makes The Rivers To Flow'!E83)","v":""},{"$f":"IF(ISBLANK('God Makes The Rivers To Flow'!F83),\"\",'God Makes The Rivers To Flow'!F83)","v":""},{"$f":"IF(ISBLANK('God Makes The Rivers To Flow'!G83),\"\",TEXT('God Makes The Rivers To Flow'!G83,\"General\"))","v":""},null,"HIDE",null,null,null,null,null,"",null,null,null,null,null,{"$f":"IFERROR(VLOOKUP($AF127,Lists!$A$2:$B$6,2,FALSE),IF(PresentationSortBy=ListsSortExpHigh,-9999999,9999999))","v":9999999},"",999999,999999,"!",false,false,false,false,null,null,null,null," "]
[{"$f":"IF(ISBLANK('God Makes The Rivers To Flow'!A84),\"\",'God Makes The Rivers To Flow'!A84)","v":"Hazrat Inayat Khan"},{"$f":"IF(ISBLANK('God Makes The Rivers To Flow'!B84),\"\",'God Makes The Rivers To Flow'!B84)","v":"Prayer for Peace"},{"$f":"IF(ISBLANK('God Makes The Rivers To Flow'!C84),\"\",'God Makes The Rivers To Flow'!C84)","v":139},{"$f":"IF(ISBLANK('God Makes The Rivers To Flow'!D84),\"\",'God Makes The Rivers To Flow'!D84)","v":""},{"$f":"IF(ISBLANK('God Makes The Rivers To Flow'!E84),\"\",'God Makes The Rivers To Flow'!E84)","v":""},{"$f":"IF(ISBLANK('God Makes The Rivers To Flow'!F84),\"\",'God Makes The Rivers To Flow'!F84)","v":""},{"$f":"IF(ISBLANK('God Makes The Rivers To Flow'!G84),\"\",TEXT('God Makes The Rivers To Flow'!G84,\"General\"))","v":""},null,"HIDE",null,null,null,null,null,"",null,null,null,null,null,{"$f":"IFERROR(VLOOKUP($AF128,Lists!$A$2:$B$6,2,FALSE),IF(PresentationSortBy=ListsSortExpHigh,-9999999,9999999))","v":9999999},"",999999,999999,"!",false,false,false,false,null,null,null,null," "]
[{"$f":"IF(ISBLANK('God Makes The Rivers To Flow'!A85),\"\",'God Makes The Rivers To Flow'!A85)","v":"Saint Paul"},{"$f":"IF(ISBLANK('God Makes The Rivers To Flow'!B85),\"\",'God Makes The Rivers To Flow'!B85)","v":"Epistle on Love"},{"$f":"IF(ISBLANK('God Makes The Rivers To Flow'!C85),\"\",'God Makes The Rivers To Flow'!C85)","v":140},{"$f":"IF(ISBLANK('God Makes The Rivers To Flow'!D85),\"\",'God Makes The Rivers To Flow'!D85)","v":""},{"$f":"IF(ISBLANK('God Makes The Rivers To Flow'!E85),\"\",'God Makes The Rivers To Flow'!E85)","v":""},{"$f":"IF(ISBLANK('God Makes The Rivers To Flow'!F85),\"\",'God Makes The Rivers To Flow'!F85)","v":""},{"$f":"IF(ISBLANK('God Makes The Rivers To Flow'!G85),\"\",TEXT('God Makes The Rivers To Flow'!G85,\"General\"))","v":""},null,"HIDE",null,null,null,null,null,"",null,null,null,null,null,{"$f":"IFERROR(VLOOKUP($AF129,Lists!$A$2:$B$6,2,FALSE),IF(PresentationSortBy=ListsSortExpHigh,-9999999,9999999))","v":9999999},"",999999,999999,"!",false,false,false,false,null,null,null,null," "]
[{"$f":"IF(ISBLANK('God Makes The Rivers To Flow'!A86),\"\",'God Makes The Rivers To Flow'!A86)","v":"Lao Tzu"},{"$f":"IF(ISBLANK('God Makes The Rivers To Flow'!B86),\"\",'God Makes The Rivers To Flow'!B86)","v":"The Best"},{"$f":"IF(ISBLANK('God Makes The Rivers To Flow'!C86),\"\",'God Makes The Rivers To Flow'!C86)","v":141},{"$f":"IF(ISBLANK('God Makes The Rivers To Flow'!D86),\"\",'God Makes The Rivers To Flow'!D86)","v":"2016-06-06"},{"$f":"IF(ISBLANK('God Makes The Rivers To Flow'!E86),\"\",'God Makes The Rivers To Flow'!E86)","v":1},{"$f":"IF(ISBLANK('God Makes The Rivers To Flow'!F86),\"\",'God Makes The Rivers To Flow'!F86)","v":"Skill"},{"$f":"IF(ISBLANK('God Makes The Rivers To Flow'!G86),\"\",TEXT('God Makes The Rivers To Flow'!G86,\"General\"))","v":""},null,"\\\\SHOW",null,null,null,null,null,"",null,null,null,null,null,{"$f":"IFERROR(VLOOKUP($AF130,Lists!$A$2:$B$6,2,FALSE),IF(PresentationSortBy=ListsSortExpHigh,-9999999,9999999))","v":9999999},"",999999,999999,"!",false,false,false,false,null,null,null,null," "]
[{"$f":"IF(ISBLANK('God Makes The Rivers To Flow'!A87),\"\",'God Makes The Rivers To Flow'!A87)","v":"The Dhammapada"},{"$f":"IF(ISBLANK('God Makes The Rivers To Flow'!B87),\"\",'God Makes The Rivers To Flow'!B87)","v":"Give Up Anger"},{"$f":"IF(ISBLANK('God Makes The Rivers To Flow'!C87),\"\",'God Makes The Rivers To Flow'!C87)","v":142},{"$f":"IF(ISBLANK('God Makes The Rivers To Flow'!D87),\"\",'God Makes The Rivers To Flow'!D87)","v":""},{"$f":"IF(ISBLANK('God Makes The Rivers To Flow'!E87),\"\",'God Makes The Rivers To Flow'!E87)","v":""},{"$f":"IF(ISBLANK('God Makes The Rivers To Flow'!F87),\"\",'God Makes The Rivers To Flow'!F87)","v":""},{"$f":"IF(ISBLANK('God Makes The Rivers To Flow'!G87),\"\",TEXT('God Makes The Rivers To Flow'!G87,\"General\"))","v":""},null,"HIDE",null,null,null,null,null,"",null,null,null,null,null,{"$f":"IFERROR(VLOOKUP($AF131,Lists!$A$2:$B$6,2,FALSE),IF(PresentationSortBy=ListsSortExpHigh,-9999999,9999999))","v":9999999},"",999999,999999,"!",false,false,false,false,null,null,null,null," "]
[{"$f":"IF(ISBLANK('God Makes The Rivers To Flow'!A88),\"\",'God Makes The Rivers To Flow'!A88)","v":"Swami Sivananda"},{"$f":"IF(ISBLANK('God Makes The Rivers To Flow'!B88),\"\",'God Makes The Rivers To Flow'!B88)","v":"The Way to Peace"},{"$f":"IF(ISBLANK('God Makes The Rivers To Flow'!C88),\"\",'God Makes The Rivers To Flow'!C88)","v":144},{"$f":"IF(ISBLANK('God Makes The Rivers To Flow'!D88),\"\",'God Makes The Rivers To Flow'!D88)","v":""},{"$f":"IF(ISBLANK('God Makes The Rivers To Flow'!E88),\"\",'God Makes The Rivers To Flow'!E88)","v":""},{"$f":"IF(ISBLANK('God Makes The Rivers To Flow'!F88),\"\",'God Makes The Rivers To Flow'!F88)","v":""},{"$f":"IF(ISBLANK('God Makes The Rivers To Flow'!G88),\"\",TEXT('God Makes The Rivers To Flow'!G88,\"General\"))","v":""},null,"HIDE",null,null,null,null,null,"",null,null,null,null,null,{"$f":"IFERROR(VLOOKUP($AF132,Lists!$A$2:$B$6,2,FALSE),IF(PresentationSortBy=ListsSortExpHigh,-9999999,9999999))","v":9999999},{"$f":"IFERROR(IF(ISBLANK($AD132),\"\",IF((TODAY()-$AD132)/365.25>=0.05,(TODAY()-$AD132)/365.25,\"< 0.1 yrs\")),\"\")","v":""},{"$f":"IF(OR(ISBLANK($V132),$V132=\"\"),IF(PresentationSortBy=ListsSortYearsOld,-999999,999999),TODAY()-$AD132)","v":999999},{"$f":"IF(OR(ISBLANK($AE132),$AE132=\"\"),IF(PresentationSortBy=ListsSortMemHigh,-999999,999999),$AE132)","v":999999},{"$f":"IF(OR(ISBLANK($AG132),$AG132=\"\"),IF(PresentationSortBy=ListsSortCustomCategoriesA,\"ZZZZZZZZZZZZZZZZZZZZZZZZZZZZZ\",\"!\"), $AG132)","v":"!"},{"$f":"AND(PresentationHighlightYearsMaster=\"Yes\", PresentationHighlightYearsNum<>\"\", IF(PresentationHighlightYearsMoreLess=\"or less\",OR($V132=\"< 0.1 yrs\",AND(ISNUMBER($V132),$V132<=(PresentationHighlightYearsNum+0.05))),AND(ISNUMBER($V132),$V132>=(PresentationHighlightYearsNum-0.05))))","v":false},{"$f":"AND(PresentationHighlightMemorizedMaster=\"Yes\", PresentationHighlightMemorizedNum<>\"\",IF(OR(ISBLANK($AE132),$AE132=\"\"),FALSE,IF(PresentationHighlightMemorizedMoreLess=\"or less\",$AE132<=PresentationHighlightMemorizedNum,$AE132>=PresentationHighlightMemorizedNum)))","v":false},{"$f":"IFERROR(AND(PresentationHighlightExpertiseMaster=\"Yes\",PresentationHighlightExpertiseVal<>\"\",IF(OR(ISBLANK($AF132),$AF132=\"\"),FALSE,IF(PresentationHighlightExpertiseMoreLess=\"or less\",VLOOKUP($AF132,ListsLevelsOfExpertise,2,FALSE)<=VLOOKUP(PresentationHighlightExpertiseVal,ListsLevelsOfExpertise,2,FALSE),VLOOKUP($AF132,ListsLevelsOfExpertise,2,FALSE)>=VLOOKUP(PresentationHighlightExpertiseVal,ListsLevelsOfExpertise,2,FALSE)))),FALSE)","v":false},{"$f":"AND(PresentationHighlightCategoriesMaster=\"Yes\",_xlfn.IFNA(PresentationHighlightCategoriesVal,\"\")<>\"\",IF(OR(ISBLANK($AG132),$AG132=\"\"),FALSE,NOT(ISERR(SEARCH(PresentationHighlightCategoriesVal,$AG132)))))","v":false},null,null,null,null," "]
[{"$f":"IF(ISBLANK('God Makes The Rivers To Flow'!A89),\"\",'God Makes The Rivers To Flow'!A89)","v":"Lao Tzu"},{"$f":"IF(ISBLANK('God Makes The Rivers To Flow'!B89),\"\",'God Makes The Rivers To Flow'!B89)","v":"Finding Unity"},{"$f":"IF(ISBLANK('God Makes The Rivers To Flow'!C89),\"\",'God Makes The Rivers To Flow'!C89)","v":145},{"$f":"IF(ISBLANK('God Makes The Rivers To Flow'!D89),\"\",'God Makes The Rivers To Flow'!D89)","v":""},{"$f":"IF(ISBLANK('God Makes The Rivers To Flow'!E89),\"\",'God Makes The Rivers To Flow'!E89)","v":""},{"$f":"IF(ISBLANK('God Makes The Rivers To Flow'!F89),\"\",'God Makes The Rivers To Flow'!F89)","v":""},{"$f":"IF(ISBLANK('God Makes The Rivers To Flow'!G89),\"\",TEXT('God Makes The Rivers To Flow'!G89,\"General\"))","v":""},null,"HIDE",null,null,null,null,null,"",null,null,null,null,null,{"$f":"IFERROR(VLOOKUP($AF133,Lists!$A$2:$B$6,2,FALSE),IF(PresentationSortBy=ListsSortExpHigh,-9999999,9999999))","v":9999999},"",999999,999999,"!",false,false,false,false,null,null,null,null," "]
[{"$f":"IF(ISBLANK('God Makes The Rivers To Flow'!A90),\"\",'God Makes The Rivers To Flow'!A90)","v":"Isaiah"},{"$f":"IF(ISBLANK('God Makes The Rivers To Flow'!B90),\"\",'God Makes The Rivers To Flow'!B90)","v":"When You Call"},{"$f":"IF(ISBLANK('God Makes The Rivers To Flow'!C90),\"\",'God Makes The Rivers To Flow'!C90)","v":146},{"$f":"IF(ISBLANK('God Makes The Rivers To Flow'!D90),\"\",'God Makes The Rivers To Flow'!D90)","v":""},{"$f":"IF(ISBLANK('God Makes The Rivers To Flow'!E90),\"\",'God Makes The Rivers To Flow'!E90)","v":""},{"$f":"IF(ISBLANK('God Makes The Rivers To Flow'!F90),\"\",'God Makes The Rivers To Flow'!F90)","v":""},{"$f":"IF(ISBLANK('God Makes The Rivers To Flow'!G90),\"\",TEXT('God Makes The Rivers To Flow'!G90,\"General\"))","v":""},null,"HIDE",null,null,null,null,null,"",null,null,null,null,null,{"$f":"IFERROR(VLOOKUP($AF134,Lists!$A$2:$B$6,2,FALSE),IF(PresentationSortBy=ListsSortExpHigh,-9999999,9999999))","v":9999999},"",999999,999999,"!",false,false,false,false,null,null,null,null," "]
[{"$f":"IF(ISBLANK('God Makes The Rivers To Flow'!A91),\"\",'God Makes The Rivers To Flow'!A91)","v":"Sri Sarada Devi"},{"$f":"IF(ISBLANK('God Makes The Rivers To Flow'!B91),\"\",'God Makes The Rivers To Flow'!B91)","v":"The Whole World Is Your Own"},{"$f":"IF(ISBLANK('God Makes The Rivers To Flow'!C91),\"\",'God Makes The Rivers To Flow'!C91)","v":147},{"$f":"IF(ISBLANK('God Makes The Rivers To Flow'!D91),\"\",'God Makes The Rivers To Flow'!D91)","v":"2016-02-20"},{"$f":"IF(ISBLANK('God Makes The Rivers To Flow'!E91),\"\",'God Makes The Rivers To Flow'!E91)","v":0.5},{"$f":"IF(ISBLANK('God Makes The Rivers To Flow'!F91),\"\",'God Makes The Rivers To Flow'!F91)","v":"Production"},{"$f":"IF(ISBLANK('God Makes The Rivers To Flow'!G91),\"\",TEXT('God Makes The Rivers To Flow'!G91,\"General\"))","v":"Reassurance, Joy"},null,"\\\\SHOW",null,null,null,null,null,"",null,null,null,null,null,{"$f":"IFERROR(VLOOKUP($AF135,Lists!$A$2:$B$6,2,FALSE),IF(PresentationSortBy=ListsSortExpHigh,-9999999,9999999))","v":9999999},"",999999,999999,"!",false,false,false,false,null,null,null,null," "]
[{"$f":"IF(ISBLANK('God Makes The Rivers To Flow'!A92),\"\",'God Makes The Rivers To Flow'!A92)","v":"Narsinha Mehta"},{"$f":"IF(ISBLANK('God Makes The Rivers To Flow'!B92),\"\",'God Makes The Rivers To Flow'!B92)","v":"The Real Lovers of God"},{"$f":"IF(ISBLANK('God Makes The Rivers To Flow'!C92),\"\",'God Makes The Rivers To Flow'!C92)","v":148},{"$f":"IF(ISBLANK('God Makes The Rivers To Flow'!D92),\"\",'God Makes The Rivers To Flow'!D92)","v":""},{"$f":"IF(ISBLANK('God Makes The Rivers To Flow'!E92),\"\",'God Makes The Rivers To Flow'!E92)","v":""},{"$f":"IF(ISBLANK('God Makes The Rivers To Flow'!F92),\"\",'God Makes The Rivers To Flow'!F92)","v":""},{"$f":"IF(ISBLANK('God Makes The Rivers To Flow'!G92),\"\",TEXT('God Makes The Rivers To Flow'!G92,\"General\"))","v":""},null,"HIDE",null,null,null,null,null,"",null,null,null,null,null,{"$f":"IFERROR(VLOOKUP($AF136,Lists!$A$2:$B$6,2,FALSE),IF(PresentationSortBy=ListsSortExpHigh,-9999999,9999999))","v":9999999},"",999999,999999,"!",false,false,false,false,null,null,null,null," "]
[{"$f":"IF(ISBLANK('God Makes The Rivers To Flow'!A93),\"\",'God Makes The Rivers To Flow'!A93)","v":"Saint Patrick"},{"$f":"IF(ISBLANK('God Makes The Rivers To Flow'!B93),\"\",'God Makes The Rivers To Flow'!B93)","v":"Christ Be with Me"},{"$f":"IF(ISBLANK('God Makes The Rivers To Flow'!C93),\"\",'God Makes The Rivers To Flow'!C93)","v":149},{"$f":"IF(ISBLANK('God Makes The Rivers To Flow'!D93),\"\",'God Makes The Rivers To Flow'!D93)","v":""},{"$f":"IF(ISBLANK('God Makes The Rivers To Flow'!E93),\"\",'God Makes The Rivers To Flow'!E93)","v":""},{"$f":"IF(ISBLANK('God Makes The Rivers To Flow'!F93),\"\",'God Makes The Rivers To Flow'!F93)","v":""},{"$f":"IF(ISBLANK('God Makes The Rivers To Flow'!G93),\"\",TEXT('God Makes The Rivers To Flow'!G93,\"General\"))","v":""},null,"HIDE",null,null,null,null,null,"",null,null,null,null,null,{"$f":"IFERROR(VLOOKUP($AF137,Lists!$A$2:$B$6,2,FALSE),IF(PresentationSortBy=ListsSortExpHigh,-9999999,9999999))","v":9999999},"",999999,999999,"!",false,false,false,false,null,null,null,null," "]
[{"$f":"IF(ISBLANK('God Makes The Rivers To Flow'!A94),\"\",'God Makes The Rivers To Flow'!A94)","v":"The Ortha nan Gaidheal"},{"$f":"IF(ISBLANK('God Makes The Rivers To Flow'!B94),\"\",'God Makes The Rivers To Flow'!B94)","v":"Silence"},{"$f":"IF(ISBLANK('God Makes The Rivers To Flow'!C94),\"\",'God Makes The Rivers To Flow'!C94)","v":150},{"$f":"IF(ISBLANK('God Makes The Rivers To Flow'!D94),\"\",'God Makes The Rivers To Flow'!D94)","v":""},{"$f":"IF(ISBLANK('God Makes The Rivers To Flow'!E94),\"\",'God Makes The Rivers To Flow'!E94)","v":""},{"$f":"IF(ISBLANK('God Makes The Rivers To Flow'!F94),\"\",'God Makes The Rivers To Flow'!F94)","v":""},{"$f":"IF(ISBLANK('God Makes The Rivers To Flow'!G94),\"\",TEXT('God Makes The Rivers To Flow'!G94,\"General\"))","v":""},null,"HIDE",null,null,null,null,null,"",null,null,null,null,null,{"$f":"IFERROR(VLOOKUP($AF138,Lists!$A$2:$B$6,2,FALSE),IF(PresentationSortBy=ListsSortExpHigh,-9999999,9999999))","v":9999999},"",999999,999999,"!",false,false,false,false,null,null,null,null," "]
[{"$f":"IF(ISBLANK('God Makes The Rivers To Flow'!A95),\"\",'God Makes The Rivers To Flow'!A95)","v":"The Ortha nan Gaidheal"},{"$f":"IF(ISBLANK('God Makes The Rivers To Flow'!B95),\"\",'God Makes The Rivers To Flow'!B95)","v":"This Morning I Pray"},{"$f":"IF(ISBLANK('God Makes The Rivers To Flow'!C95),\"\",'God Makes The Rivers To Flow'!C95)","v":151},{"$f":"IF(ISBLANK('God Makes The Rivers To Flow'!D95),\"\",'God Makes The Rivers To Flow'!D95)","v":""},{"$f":"IF(ISBLANK('God Makes The Rivers To Flow'!E95),\"\",'God Makes The Rivers To Flow'!E95)","v":""},{"$f":"IF(ISBLANK('God Makes The Rivers To Flow'!F95),\"\",'God Makes The Rivers To Flow'!F95)","v":""},{"$f":"IF(ISBLANK('God Makes The Rivers To Flow'!G95),\"\",TEXT('God Makes The Rivers To Flow'!G95,\"General\"))","v":""},null,"HIDE",null,null,null,null,null,"",null,null,null,null,null,{"$f":"IFERROR(VLOOKUP($AF139,Lists!$A$2:$B$6,2,FALSE),IF(PresentationSortBy=ListsSortExpHigh,-9999999,9999999))","v":9999999},"",999999,999999,"!",false,false,false,false,null,null,null,null," "]
[{"$f":"IF(ISBLANK('God Makes The Rivers To Flow'!A96),\"\",'God Makes The Rivers To Flow'!A96)","v":"Brother Lawrence"},{"$f":"IF(ISBLANK('God Makes The Rivers To Flow'!B96),\"\",'God Makes The Rivers To Flow'!B96)","v":"The Practice of the Presence of God"},{"$f":"IF(ISBLANK('God Makes The Rivers To Flow'!C96),\"\",'God Makes The Rivers To Flow'!C96)","v":152},{"$f":"IF(ISBLANK('God Makes The Rivers To Flow'!D96),\"\",'God Makes The Rivers To Flow'!D96)","v":""},{"$f":"IF(ISBLANK('God Makes The Rivers To Flow'!E96),\"\",'God Makes The Rivers To Flow'!E96)","v":""},{"$f":"IF(ISBLANK('God Makes The Rivers To Flow'!F96),\"\",'God Makes The Rivers To Flow'!F96)","v":""},{"$f":"IF(ISBLANK('God Makes The Rivers To Flow'!G96),\"\",TEXT('God Makes The Rivers To Flow'!G96,\"General\"))","v":""},null,"HIDE",null,null,null,null,null,"",null,null,null,null,null,{"$f":"IFERROR(VLOOKUP($AF140,Lists!$A$2:$B$6,2,FALSE),IF(PresentationSortBy=ListsSortExpHigh,-9999999,9999999))","v":9999999},"",999999,999999,"!",false,false,false,false,null,null,null,null," "]
[{"$f":"IF(ISBLANK('God Makes The Rivers To Flow'!A97),\"\",'God Makes The Rivers To Flow'!A97)","v":"Rabbi Bahya ibn Pakuda"},{"$f":"IF(ISBLANK('God Makes The Rivers To Flow'!B97),\"\",'God Makes The Rivers To Flow'!B97)","v":"Duties of the Heart"},{"$f":"IF(ISBLANK('God Makes The Rivers To Flow'!C97),\"\",'God Makes The Rivers To Flow'!C97)","v":154},{"$f":"IF(ISBLANK('God Makes The Rivers To Flow'!D97),\"\",'God Makes The Rivers To Flow'!D97)","v":""},{"$f":"IF(ISBLANK('God Makes The Rivers To Flow'!E97),\"\",'God Makes The Rivers To Flow'!E97)","v":""},{"$f":"IF(ISBLANK('God Makes The Rivers To Flow'!F97),\"\",'God Makes The Rivers To Flow'!F97)","v":""},{"$f":"IF(ISBLANK('God Makes The Rivers To Flow'!G97),\"\",TEXT('God Makes The Rivers To Flow'!G97,\"General\"))","v":""},null,"HIDE",null,null,null,null,null,"",null,null,null,null,null,{"$f":"IFERROR(VLOOKUP($AF141,Lists!$A$2:$B$6,2,FALSE),IF(PresentationSortBy=ListsSortExpHigh,-9999999,9999999))","v":9999999},"",999999,999999,"!",false,false,false,false,null,null,null,null," "]
[{"$f":"IF(ISBLANK('God Makes The Rivers To Flow'!A98),\"\",'God Makes The Rivers To Flow'!A98)","v":"Saint Teresa of Avila"},{"$f":"IF(ISBLANK('God Makes The Rivers To Flow'!B98),\"\",'God Makes The Rivers To Flow'!B98)","v":"You Are Christ's Hands"},{"$f":"IF(ISBLANK('God Makes The Rivers To Flow'!C98),\"\",'God Makes The Rivers To Flow'!C98)","v":156},{"$f":"IF(ISBLANK('God Makes The Rivers To Flow'!D98),\"\",'God Makes The Rivers To Flow'!D98)","v":""},{"$f":"IF(ISBLANK('God Makes The Rivers To Flow'!E98),\"\",'God Makes The Rivers To Flow'!E98)","v":""},{"$f":"IF(ISBLANK('God Makes The Rivers To Flow'!F98),\"\",'God Makes The Rivers To Flow'!F98)","v":""},{"$f":"IF(ISBLANK('God Makes The Rivers To Flow'!G98),\"\",TEXT('God Makes The Rivers To Flow'!G98,\"General\"))","v":""},null,"HIDE",null,null,null,null,null,"",null,null,null,null,null,{"$f":"IFERROR(VLOOKUP($AF142,Lists!$A$2:$B$6,2,FALSE),IF(PresentationSortBy=ListsSortExpHigh,-9999999,9999999))","v":9999999},"",999999,999999,"!",false,false,false,false,null,null,null,null," "]
[{"$f":"IF(ISBLANK('God Makes The Rivers To Flow'!A99),\"\",'God Makes The Rivers To Flow'!A99)","v":"Swami Ramdas"},{"$f":"IF(ISBLANK('God Makes The Rivers To Flow'!B99),\"\",'God Makes The Rivers To Flow'!B99)","v":"Unshakable Faith"},{"$f":"IF(ISBLANK('God Makes The Rivers To Flow'!C99),\"\",'God Makes The Rivers To Flow'!C99)","v":157},{"$f":"IF(ISBLANK('God Makes The Rivers To Flow'!D99),\"\",'God Makes The Rivers To Flow'!D99)","v":""},{"$f":"IF(ISBLANK('God Makes The Rivers To Flow'!E99),\"\",'God Makes The Rivers To Flow'!E99)","v":""},{"$f":"IF(ISBLANK('God Makes The Rivers To Flow'!F99),\"\",'God Makes The Rivers To Flow'!F99)","v":""},{"$f":"IF(ISBLANK('God Makes The Rivers To Flow'!G99),\"\",TEXT('God Makes The Rivers To Flow'!G99,\"General\"))","v":""},null,"HIDE",null,null,null,null,null,"",null,null,null,null,null,{"$f":"IFERROR(VLOOKUP($AF143,Lists!$A$2:$B$6,2,FALSE),IF(PresentationSortBy=ListsSortExpHigh,-9999999,9999999))","v":9999999},"",999999,999999,"!",false,false,false,false,null,null,null,null," "]
[{"$f":"IF(ISBLANK('God Makes The Rivers To Flow'!A100),\"\",'God Makes The Rivers To Flow'!A100)","v":"Hasan Kaimi Baba"},{"$f":"IF(ISBLANK('God Makes The Rivers To Flow'!B100),\"\",'God Makes The Rivers To Flow'!B100)","v":"The Path of Love"},{"$f":"IF(ISBLANK('God Makes The Rivers To Flow'!C100),\"\",'God Makes The Rivers To Flow'!C100)","v":158},{"$f":"IF(ISBLANK('God Makes The Rivers To Flow'!D100),\"\",'God Makes The Rivers To Flow'!D100)","v":""},{"$f":"IF(ISBLANK('God Makes The Rivers To Flow'!E100),\"\",'God Makes The Rivers To Flow'!E100)","v":""},{"$f":"IF(ISBLANK('God Makes The Rivers To Flow'!F100),\"\",'God Makes The Rivers To Flow'!F100)","v":""},{"$f":"IF(ISBLANK('God Makes The Rivers To Flow'!G100),\"\",TEXT('God Makes The Rivers To Flow'!G100,\"General\"))","v":""},null,"HIDE",null,null,null,null,null,"",null,null,null,null,null,{"$f":"IFERROR(VLOOKUP($AF144,Lists!$A$2:$B$6,2,FALSE),IF(PresentationSortBy=ListsSortExpHigh,-9999999,9999999))","v":9999999},"",999999,999999,"!",false,false,false,false,null,null,null,null," "]
[{"$f":"IF(ISBLANK('God Makes The Rivers To Flow'!A101),\"\",'God Makes The Rivers To Flow'!A101)","v":"The Shvetashvatara Upanishad"},{"$f":"IF(ISBLANK('God Makes The Rivers To Flow'!B101),\"\",'God Makes The Rivers To Flow'!B101)","v":"Hidden in the Heart"},{"$f":"IF(ISBLANK('God Makes The Rivers To Flow'!C101),\"\",'God Makes The Rivers To Flow'!C101)","v":159},{"$f":"IF(ISBLANK('God Makes The Rivers To Flow'!D101),\"\",'God Makes The Rivers To Flow'!D101)","v":""},{"$f":"IF(ISBLANK('God Makes The Rivers To Flow'!E101),\"\",'God Makes The Rivers To Flow'!E101)","v":""},{"$f":"IF(ISBLANK('God Makes The Rivers To Flow'!F101),\"\",'God Makes The Rivers To Flow'!F101)","v":""},{"$f":"IF(ISBLANK('God Makes The Rivers To Flow'!G101),\"\",TEXT('God Makes The Rivers To Flow'!G101,\"General\"))","v":""},null,"HIDE",null,null,null,null,null,"",null,null,null,null,null,{"$f":"IFERROR(VLOOKUP($AF145,Lists!$A$2:$B$6,2,FALSE),IF(PresentationSortBy=ListsSortExpHigh,-9999999,9999999))","v":9999999},"",999999,999999,"!",false,false,false,false,null,null,null,null," "]
[{"$f":"IF(ISBLANK('God Makes The Rivers To Flow'!A102),\"\",'God Makes The Rivers To Flow'!A102)","v":"Saint Thérèse of Lisieux"},{"$f":"IF(ISBLANK('God Makes The Rivers To Flow'!B102),\"\",'God Makes The Rivers To Flow'!B102)","v":"Living on Love"},{"$f":"IF(ISBLANK('God Makes The Rivers To Flow'!C102),\"\",'God Makes The Rivers To Flow'!C102)","v":162},{"$f":"IF(ISBLANK('God Makes The Rivers To Flow'!D102),\"\",'God Makes The Rivers To Flow'!D102)","v":""},{"$f":"IF(ISBLANK('God Makes The Rivers To Flow'!E102),\"\",'God Makes The Rivers To Flow'!E102)","v":""},{"$f":"IF(ISBLANK('God Makes The Rivers To Flow'!F102),\"\",'God Makes The Rivers To Flow'!F102)","v":""},{"$f":"IF(ISBLANK('God Makes The Rivers To Flow'!G102),\"\",TEXT('God Makes The Rivers To Flow'!G102,\"General\"))","v":""},null,"HIDE",null,null,null,null,null,"",null,null,null,null,null,{"$f":"IFERROR(VLOOKUP($AF146,Lists!$A$2:$B$6,2,FALSE),IF(PresentationSortBy=ListsSortExpHigh,-9999999,9999999))","v":9999999},"",999999,999999,"!",false,false,false,false,null,null,null,null," "]
[{"$f":"IF(ISBLANK('God Makes The Rivers To Flow'!A103),\"\",'God Makes The Rivers To Flow'!A103)","v":"Hildegard of Bingen"},{"$f":"IF(ISBLANK('God Makes The Rivers To Flow'!B103),\"\",'God Makes The Rivers To Flow'!B103)","v":"In Your Midst"},{"$f":"IF(ISBLANK('God Makes The Rivers To Flow'!C103),\"\",'God Makes The Rivers To Flow'!C103)","v":165},{"$f":"IF(ISBLANK('God Makes The Rivers To Flow'!D103),\"\",'God Makes The Rivers To Flow'!D103)","v":""},{"$f":"IF(ISBLANK('God Makes The Rivers To Flow'!E103),\"\",'God Makes The Rivers To Flow'!E103)","v":""},{"$f":"IF(ISBLANK('God Makes The Rivers To Flow'!F103),\"\",'God Makes The Rivers To Flow'!F103)","v":""},{"$f":"IF(ISBLANK('God Makes The Rivers To Flow'!G103),\"\",TEXT('God Makes The Rivers To Flow'!G103,\"General\"))","v":""},null,"HIDE",null,null,null,null,null,"",null,null,null,null,null,{"$f":"IFERROR(VLOOKUP($AF147,Lists!$A$2:$B$6,2,FALSE),IF(PresentationSortBy=ListsSortExpHigh,-9999999,9999999))","v":9999999},"",999999,999999,"!",false,false,false,false,null,null,null,null," "]
[{"$f":"IF(ISBLANK('God Makes The Rivers To Flow'!A104),\"\",'God Makes The Rivers To Flow'!A104)","v":"The Bhagavad Gita"},{"$f":"IF(ISBLANK('God Makes The Rivers To Flow'!B104),\"\",'God Makes The Rivers To Flow'!B104)","v":"Whatever You Do"},{"$f":"IF(ISBLANK('God Makes The Rivers To Flow'!C104),\"\",'God Makes The Rivers To Flow'!C104)","v":166},{"$f":"IF(ISBLANK('God Makes The Rivers To Flow'!D104),\"\",'God Makes The Rivers To Flow'!D104)","v":""},{"$f":"IF(ISBLANK('God Makes The Rivers To Flow'!E104),\"\",'God Makes The Rivers To Flow'!E104)","v":""},{"$f":"IF(ISBLANK('God Makes The Rivers To Flow'!F104),\"\",'God Makes The Rivers To Flow'!F104)","v":""},{"$f":"IF(ISBLANK('God Makes The Rivers To Flow'!G104),\"\",TEXT('God Makes The Rivers To Flow'!G104,\"General\"))","v":""},null,"HIDE",null,null,null,null,null,"",null,null,null,null,null,{"$f":"IFERROR(VLOOKUP($AF148,Lists!$A$2:$B$6,2,FALSE),IF(PresentationSortBy=ListsSortExpHigh,-9999999,9999999))","v":9999999},"",999999,999999,"!",false,false,false,false,null,null,null,null," "]
[{"$f":"IF(ISBLANK('God Makes The Rivers To Flow'!A105),\"\",'God Makes The Rivers To Flow'!A105)","v":"Kabir"},{"$f":"IF(ISBLANK('God Makes The Rivers To Flow'!B105),\"\",'God Makes The Rivers To Flow'!B105)","v":"The Unstruck Bells & Drums"},{"$f":"IF(ISBLANK('God Makes The Rivers To Flow'!C105),\"\",'God Makes The Rivers To Flow'!C105)","v":168},{"$f":"IF(ISBLANK('God Makes The Rivers To Flow'!D105),\"\",'God Makes The Rivers To Flow'!D105)","v":""},{"$f":"IF(ISBLANK('God Makes The Rivers To Flow'!E105),\"\",'God Makes The Rivers To Flow'!E105)","v":""},{"$f":"IF(ISBLANK('God Makes The Rivers To Flow'!F105),\"\",'God Makes The Rivers To Flow'!F105)","v":""},{"$f":"IF(ISBLANK('God Makes The Rivers To Flow'!G105),\"\",TEXT('God Makes The Rivers To Flow'!G105,\"General\"))","v":""},null,"HIDE",null,null,null,null,null,"",null,null,null,null,null,{"$f":"IFERROR(VLOOKUP($AF149,Lists!$A$2:$B$6,2,FALSE),IF(PresentationSortBy=ListsSortExpHigh,-9999999,9999999))","v":9999999},"",999999,999999,"!",false,false,false,false,null,null,null,null," "]
[{"$f":"IF(ISBLANK('God Makes The Rivers To Flow'!A106),\"\",'God Makes The Rivers To Flow'!A106)","v":"Kabir"},{"$f":"IF(ISBLANK('God Makes The Rivers To Flow'!B106),\"\",'God Makes The Rivers To Flow'!B106)","v":"The River of Love"},{"$f":"IF(ISBLANK('God Makes The Rivers To Flow'!C106),\"\",'God Makes The Rivers To Flow'!C106)","v":169},{"$f":"IF(ISBLANK('God Makes The Rivers To Flow'!D106),\"\",'God Makes The Rivers To Flow'!D106)","v":""},{"$f":"IF(ISBLANK('God Makes The Rivers To Flow'!E106),\"\",'God Makes The Rivers To Flow'!E106)","v":""},{"$f":"IF(ISBLANK('God Makes The Rivers To Flow'!F106),\"\",'God Makes The Rivers To Flow'!F106)","v":""},{"$f":"IF(ISBLANK('God Makes The Rivers To Flow'!G106),\"\",TEXT('God Makes The Rivers To Flow'!G106,\"General\"))","v":""},null,"HIDE",null,null,null,null,null,"",null,null,null,null,null,{"$f":"IFERROR(VLOOKUP($AF150,Lists!$A$2:$B$6,2,FALSE),IF(PresentationSortBy=ListsSortExpHigh,-9999999,9999999))","v":9999999},"",999999,999999,"!",false,false,false,false,null,null,null,null," "]
[{"$f":"IF(ISBLANK('God Makes The Rivers To Flow'!A107),\"\",'God Makes The Rivers To Flow'!A107)","v":"Kabir"},{"$f":"IF(ISBLANK('God Makes The Rivers To Flow'!B107),\"\",'God Makes The Rivers To Flow'!B107)","v":"Simple Union"},{"$f":"IF(ISBLANK('God Makes The Rivers To Flow'!C107),\"\",'God Makes The Rivers To Flow'!C107)","v":170},{"$f":"IF(ISBLANK('God Makes The Rivers To Flow'!D107),\"\",'God Makes The Rivers To Flow'!D107)","v":""},{"$f":"IF(ISBLANK('God Makes The Rivers To Flow'!E107),\"\",'God Makes The Rivers To Flow'!E107)","v":""},{"$f":"IF(ISBLANK('God Makes The Rivers To Flow'!F107),\"\",'God Makes The Rivers To Flow'!F107)","v":""},{"$f":"IF(ISBLANK('God Makes The Rivers To Flow'!G107),\"\",TEXT('God Makes The Rivers To Flow'!G107,\"General\"))","v":""},null,"HIDE",null,null,null,null,null,"",null,null,null,null,null,{"$f":"IFERROR(VLOOKUP($AF151,Lists!$A$2:$B$6,2,FALSE),IF(PresentationSortBy=ListsSortExpHigh,-9999999,9999999))","v":9999999},"",999999,999999,"!",false,false,false,false,null,null,null,null," "]
[{"$f":"IF(ISBLANK('God Makes The Rivers To Flow'!A108),\"\",'God Makes The Rivers To Flow'!A108)","v":"Swami Ramdas"},{"$f":"IF(ISBLANK('God Makes The Rivers To Flow'!B108),\"\",'God Makes The Rivers To Flow'!B108)","v":"He Is Omnipresent"},{"$f":"IF(ISBLANK('God Makes The Rivers To Flow'!C108),\"\",'God Makes The Rivers To Flow'!C108)","v":171},{"$f":"IF(ISBLANK('God Makes The Rivers To Flow'!D108),\"\",'God Makes The Rivers To Flow'!D108)","v":""},{"$f":"IF(ISBLANK('God Makes The Rivers To Flow'!E108),\"\",'God Makes The Rivers To Flow'!E108)","v":""},{"$f":"IF(ISBLANK('God Makes The Rivers To Flow'!F108),\"\",'God Makes The Rivers To Flow'!F108)","v":""},{"$f":"IF(ISBLANK('God Makes The Rivers To Flow'!G108),\"\",TEXT('God Makes The Rivers To Flow'!G108,\"General\"))","v":""},null,"HIDE",null,null,null,null,null,"",null,null,null,null,null,{"$f":"IFERROR(VLOOKUP($AF152,Lists!$A$2:$B$6,2,FALSE),IF(PresentationSortBy=ListsSortExpHigh,-9999999,9999999))","v":9999999},"",999999,999999,"!",false,false,false,false,null,null,null,null," "]
[{"$f":"IF(ISBLANK('God Makes The Rivers To Flow'!A109),\"\",'God Makes The Rivers To Flow'!A109)","v":"Saint Teresa of Avila"},{"$f":"IF(ISBLANK('God Makes The Rivers To Flow'!B109),\"\",'God Makes The Rivers To Flow'!B109)","v":"I Gave All My Heart"},{"$f":"IF(ISBLANK('God Makes The Rivers To Flow'!C109),\"\",'God Makes The Rivers To Flow'!C109)","v":172},{"$f":"IF(ISBLANK('God Makes The Rivers To Flow'!D109),\"\",'God Makes The Rivers To Flow'!D109)","v":""},{"$f":"IF(ISBLANK('God Makes The Rivers To Flow'!E109),\"\",'God Makes The Rivers To Flow'!E109)","v":""},{"$f":"IF(ISBLANK('God Makes The Rivers To Flow'!F109),\"\",'God Makes The Rivers To Flow'!F109)","v":""},{"$f":"IF(ISBLANK('God Makes The Rivers To Flow'!G109),\"\",TEXT('God Makes The Rivers To Flow'!G109,\"General\"))","v":""},null,"HIDE",null,null,null,null,null,"",null,null,null,null,null,{"$f":"IFERROR(VLOOKUP($AF153,Lists!$A$2:$B$6,2,FALSE),IF(PresentationSortBy=ListsSortExpHigh,-9999999,9999999))","v":9999999},"",999999,999999,"!",false,false,false,false,null,null,null,null," "]
[{"$f":"IF(ISBLANK('God Makes The Rivers To Flow'!A110),\"\",'God Makes The Rivers To Flow'!A110)","v":"Saint Teresa of Avila"},{"$f":"IF(ISBLANK('God Makes The Rivers To Flow'!B110),\"\",'God Makes The Rivers To Flow'!B110)","v":"Her Heart Is Full of Joy"},{"$f":"IF(ISBLANK('God Makes The Rivers To Flow'!C110),\"\",'God Makes The Rivers To Flow'!C110)","v":173},{"$f":"IF(ISBLANK('God Makes The Rivers To Flow'!D110),\"\",'God Makes The Rivers To Flow'!D110)","v":""},{"$f":"IF(ISBLANK('God Makes The Rivers To Flow'!E110),\"\",'God Makes The Rivers To Flow'!E110)","v":""},{"$f":"IF(ISBLANK('God Makes The Rivers To Flow'!F110),\"\",'God Makes The Rivers To Flow'!F110)","v":""},{"$f":"IF(ISBLANK('God Makes The Rivers To Flow'!G110),\"\",TEXT('God Makes The Rivers To Flow'!G110,\"General\"))","v":""},null,"HIDE",null,null,null,null,null,"",null,null,null,null,null,{"$f":"IFERROR(VLOOKUP($AF154,Lists!$A$2:$B$6,2,FALSE),IF(PresentationSortBy=ListsSortExpHigh,-9999999,9999999))","v":9999999},"",999999,999999,"!",false,false,false,false,null,null,null,null," "]
[{"$f":"IF(ISBLANK('God Makes The Rivers To Flow'!A111),\"\",'God Makes The Rivers To Flow'!A111)","v":""},{"$f":"IF(ISBLANK('God Makes The Rivers To Flow'!B111),\"\",'God Makes The Rivers To Flow'!B111)","v":""},{"$f":"IF(ISBLANK('God Makes The Rivers To Flow'!C111),\"\",'God Makes The Rivers To Flow'!C111)","v":""},{"$f":"IF(ISBLANK('God Makes The Rivers To Flow'!D111),\"\",'God Makes The Rivers To Flow'!D111)","v":""},{"$f":"IF(ISBLANK('God Makes The Rivers To Flow'!E111),\"\",'God Makes The Rivers To Flow'!E111)","v":""},{"$f":"IF(ISBLANK('God Makes The Rivers To Flow'!F111),\"\",'God Makes The Rivers To Flow'!F111)","v":""},{"$f":"IF(ISBLANK('God Makes The Rivers To Flow'!G111),\"\",TEXT('God Makes The Rivers To Flow'!G111,\"General\"))","v":""},"SPECIALGMRF",null,null,null,null,null,null,"",null,null,null,null,null,{"$f":"IFERROR(VLOOKUP($AF155,Lists!$A$2:$B$6,2,FALSE),IF(PresentationSortBy=ListsSortExpHigh,-9999999,9999999))","v":9999999},"",999999,999999,"!",false,false,false,false,null,null,null,null," "]
[{"$f":"IF(ISBLANK('God Makes The Rivers To Flow'!A112),\"\",'God Makes The Rivers To Flow'!A112)","v":"PART THREE"},{"$f":"IF(ISBLANK('God Makes The Rivers To Flow'!B112),\"\",'God Makes The Rivers To Flow'!B112)","v":"Joining the Sea"},{"$f":"IF(ISBLANK('God Makes The Rivers To Flow'!C112),\"\",'God Makes The Rivers To Flow'!C112)","v":""},{"$f":"IF(ISBLANK('God Makes The Rivers To Flow'!D112),\"\",'God Makes The Rivers To Flow'!D112)","v":""},{"$f":"IF(ISBLANK('God Makes The Rivers To Flow'!E112),\"\",'God Makes The Rivers To Flow'!E112)","v":""},{"$f":"IF(ISBLANK('God Makes The Rivers To Flow'!F112),\"\",'God Makes The Rivers To Flow'!F112)","v":""},{"$f":"IF(ISBLANK('God Makes The Rivers To Flow'!G112),\"\",TEXT('God Makes The Rivers To Flow'!G112,\"General\"))","v":""},"SPECIALGMRF",null,null,null,null,null,null,"",null,null,null,null,null,{"$f":"IFERROR(VLOOKUP($AF156,Lists!$A$2:$B$6,2,FALSE),IF(PresentationSortBy=ListsSortExpHigh,-9999999,9999999))","v":9999999},"",999999,999999,"!",false,false,false,false,null,null,null,null," "]
[{"$f":"IF(ISBLANK('God Makes The Rivers To Flow'!A113),\"\",'God Makes The Rivers To Flow'!A113)","v":""},{"$f":"IF(ISBLANK('God Makes The Rivers To Flow'!B113),\"\",'God Makes The Rivers To Flow'!B113)","v":""},{"$f":"IF(ISBLANK('God Makes The Rivers To Flow'!C113),\"\",'God Makes The Rivers To Flow'!C113)","v":""},{"$f":"IF(ISBLANK('God Makes The Rivers To Flow'!D113),\"\",'God Makes The Rivers To Flow'!D113)","v":""},{"$f":"IF(ISBLANK('God Makes The Rivers To Flow'!E113),\"\",'God Makes The Rivers To Flow'!E113)","v":""},{"$f":"IF(ISBLANK('God Makes The Rivers To Flow'!F113),\"\",'God Makes The Rivers To Flow'!F113)","v":""},{"$f":"IF(ISBLANK('God Makes The Rivers To Flow'!G113),\"\",TEXT('God Makes The Rivers To Flow'!G113,\"General\"))","v":""},"SPECIALGMRF",null,null,null,null,null,null,"",null,null,null,null,null,{"$f":"IFERROR(VLOOKUP($AF157,Lists!$A$2:$B$6,2,FALSE),IF(PresentationSortBy=ListsSortExpHigh,-9999999,9999999))","v":9999999},"",999999,999999,"!",false,false,false,false,null,null,null,null," "]
[{"$f":"IF(ISBLANK('God Makes The Rivers To Flow'!A114),\"\",'God Makes The Rivers To Flow'!A114)","v":"The Upanishads"},{"$f":"IF(ISBLANK('God Makes The Rivers To Flow'!B114),\"\",'God Makes The Rivers To Flow'!B114)","v":"Invocations"},{"$f":"IF(ISBLANK('God Makes The Rivers To Flow'!C114),\"\",'God Makes The Rivers To Flow'!C114)","v":177},{"$f":"IF(ISBLANK('God Makes The Rivers To Flow'!D114),\"\",'God Makes The Rivers To Flow'!D114)","v":""},{"$f":"IF(ISBLANK('God Makes The Rivers To Flow'!E114),\"\",'God Makes The Rivers To Flow'!E114)","v":""},{"$f":"IF(ISBLANK('God Makes The Rivers To Flow'!F114),\"\",'God Makes The Rivers To Flow'!F114)","v":""},{"$f":"IF(ISBLANK('God Makes The Rivers To Flow'!G114),\"\",TEXT('God Makes The Rivers To Flow'!G114,\"General\"))","v":""},null,{"$f":"IF(OR(ISNUMBER(D158),ISNUMBER(E158),F158<>\"\",G158<>\"\"),\"\\\\SHOW\",\"HIDE\")","v":"HIDE"},null,null,null,null,null,"",null,null,null,null,null,{"$f":"IFERROR(VLOOKUP($AF158,Lists!$A$2:$B$6,2,FALSE),IF(PresentationSortBy=ListsSortExpHigh,-9999999,9999999))","v":9999999},"",999999,999999,"!",false,false,false,false,null,null,null,null," "]
[{"$f":"IF(ISBLANK('God Makes The Rivers To Flow'!A115),\"\",'God Makes The Rivers To Flow'!A115)","v":"The Rig Veda"},{"$f":"IF(ISBLANK('God Makes The Rivers To Flow'!B115),\"\",'God Makes The Rivers To Flow'!B115)","v":"God Makes the Rivers to Flow"},{"$f":"IF(ISBLANK('God Makes The Rivers To Flow'!C115),\"\",'God Makes The Rivers To Flow'!C115)","v":178},{"$f":"IF(ISBLANK('God Makes The Rivers To Flow'!D115),\"\",'God Makes The Rivers To Flow'!D115)","v":""},{"$f":"IF(ISBLANK('God Makes The Rivers To Flow'!E115),\"\",'God Makes The Rivers To Flow'!E115)","v":""},{"$f":"IF(ISBLANK('God Makes The Rivers To Flow'!F115),\"\",'God Makes The Rivers To Flow'!F115)","v":""},{"$f":"IF(ISBLANK('God Makes The Rivers To Flow'!G115),\"\",TEXT('God Makes The Rivers To Flow'!G115,\"General\"))","v":""},null,"HIDE",null,null,null,null,null,"",null,null,null,null,null,{"$f":"IFERROR(VLOOKUP($AF159,Lists!$A$2:$B$6,2,FALSE),IF(PresentationSortBy=ListsSortExpHigh,-9999999,9999999))","v":9999999},"",999999,999999,"!",false,false,false,false,null,null,null,null," "]
[{"$f":"IF(ISBLANK('God Makes The Rivers To Flow'!A116),\"\",'God Makes The Rivers To Flow'!A116)","v":"The Book of Common Prayer"},{"$f":"IF(ISBLANK('God Makes The Rivers To Flow'!B116),\"\",'God Makes The Rivers To Flow'!B116)","v":"I Am the Resurrection & the Life"},{"$f":"IF(ISBLANK('God Makes The Rivers To Flow'!C116),\"\",'God Makes The Rivers To Flow'!C116)","v":179},{"$f":"IF(ISBLANK('God Makes The Rivers To Flow'!D116),\"\",'God Makes The Rivers To Flow'!D116)","v":""},{"$f":"IF(ISBLANK('God Makes The Rivers To Flow'!E116),\"\",'God Makes The Rivers To Flow'!E116)","v":""},{"$f":"IF(ISBLANK('God Makes The Rivers To Flow'!F116),\"\",'God Makes The Rivers To Flow'!F116)","v":""},{"$f":"IF(ISBLANK('God Makes The Rivers To Flow'!G116),\"\",TEXT('God Makes The Rivers To Flow'!G116,\"General\"))","v":""},null,"HIDE",null,null,null,null,null,"",null,null,null,null,null,{"$f":"IFERROR(VLOOKUP($AF160,Lists!$A$2:$B$6,2,FALSE),IF(PresentationSortBy=ListsSortExpHigh,-9999999,9999999))","v":9999999},"",999999,999999,"!",false,false,false,false,null,null,null,null," "]
[{"$f":"IF(ISBLANK('God Makes The Rivers To Flow'!A117),\"\",'God Makes The Rivers To Flow'!A117)","v":"The Mishkat al-Masabih"},{"$f":"IF(ISBLANK('God Makes The Rivers To Flow'!B117),\"\",'God Makes The Rivers To Flow'!B117)","v":"I Come to Him Running"},{"$f":"IF(ISBLANK('God Makes The Rivers To Flow'!C117),\"\",'God Makes The Rivers To Flow'!C117)","v":181},{"$f":"IF(ISBLANK('God Makes The Rivers To Flow'!D117),\"\",'God Makes The Rivers To Flow'!D117)","v":""},{"$f":"IF(ISBLANK('God Makes The Rivers To Flow'!E117),\"\",'God Makes The Rivers To Flow'!E117)","v":""},{"$f":"IF(ISBLANK('God Makes The Rivers To Flow'!F117),\"\",'God Makes The Rivers To Flow'!F117)","v":""},{"$f":"IF(ISBLANK('God Makes The Rivers To Flow'!G117),\"\",TEXT('God Makes The Rivers To Flow'!G117,\"General\"))","v":""},null,"HIDE",null,null,null,null,null,"",null,null,null,null,null,{"$f":"IFERROR(VLOOKUP($AF161,Lists!$A$2:$B$6,2,FALSE),IF(PresentationSortBy=ListsSortExpHigh,-9999999,9999999))","v":9999999},"",999999,999999,"!",false,false,false,false,null,null,null,null," "]
[{"$f":"IF(ISBLANK('God Makes The Rivers To Flow'!A118),\"\",'God Makes The Rivers To Flow'!A118)","v":"The Bhagavad Gita"},{"$f":"IF(ISBLANK('God Makes The Rivers To Flow'!B118),\"\",'God Makes The Rivers To Flow'!B118)","v":"All Paths Lead to Me"},{"$f":"IF(ISBLANK('God Makes The Rivers To Flow'!C118),\"\",'God Makes The Rivers To Flow'!C118)","v":182},{"$f":"IF(ISBLANK('God Makes The Rivers To Flow'!D118),\"\",'God Makes The Rivers To Flow'!D118)","v":""},{"$f":"IF(ISBLANK('God Makes The Rivers To Flow'!E118),\"\",'God Makes The Rivers To Flow'!E118)","v":""},{"$f":"IF(ISBLANK('God Makes The Rivers To Flow'!F118),\"\",'God Makes The Rivers To Flow'!F118)","v":""},{"$f":"IF(ISBLANK('God Makes The Rivers To Flow'!G118),\"\",TEXT('God Makes The Rivers To Flow'!G118,\"General\"))","v":""},null,"HIDE",null,null,null,null,null,"",null,null,null,null,null,{"$f":"IFERROR(VLOOKUP($AF162,Lists!$A$2:$B$6,2,FALSE),IF(PresentationSortBy=ListsSortExpHigh,-9999999,9999999))","v":9999999},"",999999,999999,"!",false,false,false,false,null,null,null,null," "]
[{"$f":"IF(ISBLANK('God Makes The Rivers To Flow'!A119),\"\",'God Makes The Rivers To Flow'!A119)","v":"The Dhammapada"},{"$f":"IF(ISBLANK('God Makes The Rivers To Flow'!B119),\"\",'God Makes The Rivers To Flow'!B119)","v":"The Blessing of a Well-Trained Mind"},{"$f":"IF(ISBLANK('God Makes The Rivers To Flow'!C119),\"\",'God Makes The Rivers To Flow'!C119)","v":183},{"$f":"IF(ISBLANK('God Makes The Rivers To Flow'!D119),\"\",'God Makes The Rivers To Flow'!D119)","v":""},{"$f":"IF(ISBLANK('God Makes The Rivers To Flow'!E119),\"\",'God Makes The Rivers To Flow'!E119)","v":""},{"$f":"IF(ISBLANK('God Makes The Rivers To Flow'!F119),\"\",'God Makes The Rivers To Flow'!F119)","v":""},{"$f":"IF(ISBLANK('God Makes The Rivers To Flow'!G119),\"\",TEXT('God Makes The Rivers To Flow'!G119,\"General\"))","v":""},null,"HIDE",null,null,null,null,null,"",null,null,null,null,null,{"$f":"IFERROR(VLOOKUP($AF163,Lists!$A$2:$B$6,2,FALSE),IF(PresentationSortBy=ListsSortExpHigh,-9999999,9999999))","v":9999999},"",999999,999999,"!",false,false,false,false,null,null,null,null," "]
[{"$f":"IF(ISBLANK('God Makes The Rivers To Flow'!A120),\"\",'God Makes The Rivers To Flow'!A120)","v":"Jewish Liturgy"},{"$f":"IF(ISBLANK('God Makes The Rivers To Flow'!B120),\"\",'God Makes The Rivers To Flow'!B120)","v":"Mourner's Kaddish"},{"$f":"IF(ISBLANK('God Makes The Rivers To Flow'!C120),\"\",'God Makes The Rivers To Flow'!C120)","v":184},{"$f":"IF(ISBLANK('God Makes The Rivers To Flow'!D120),\"\",'God Makes The Rivers To Flow'!D120)","v":""},{"$f":"IF(ISBLANK('God Makes The Rivers To Flow'!E120),\"\",'God Makes The Rivers To Flow'!E120)","v":""},{"$f":"IF(ISBLANK('God Makes The Rivers To Flow'!F120),\"\",'God Makes The Rivers To Flow'!F120)","v":""},{"$f":"IF(ISBLANK('God Makes The Rivers To Flow'!G120),\"\",TEXT('God Makes The Rivers To Flow'!G120,\"General\"))","v":""},null,"HIDE",null,null,null,null,null,"",null,null,null,null,null,{"$f":"IFERROR(VLOOKUP($AF164,Lists!$A$2:$B$6,2,FALSE),IF(PresentationSortBy=ListsSortExpHigh,-9999999,9999999))","v":9999999},"",999999,999999,"!",false,false,false,false,null,null,null,null," "]
[{"$f":"IF(ISBLANK('God Makes The Rivers To Flow'!A121),\"\",'God Makes The Rivers To Flow'!A121)","v":"Solomon ibn Gabirol"},{"$f":"IF(ISBLANK('God Makes The Rivers To Flow'!B121),\"\",'God Makes The Rivers To Flow'!B121)","v":"Adon Olam"},{"$f":"IF(ISBLANK('God Makes The Rivers To Flow'!C121),\"\",'God Makes The Rivers To Flow'!C121)","v":185},{"$f":"IF(ISBLANK('God Makes The Rivers To Flow'!D121),\"\",'God Makes The Rivers To Flow'!D121)","v":""},{"$f":"IF(ISBLANK('God Makes The Rivers To Flow'!E121),\"\",'God Makes The Rivers To Flow'!E121)","v":""},{"$f":"IF(ISBLANK('God Makes The Rivers To Flow'!F121),\"\",'God Makes The Rivers To Flow'!F121)","v":""},{"$f":"IF(ISBLANK('God Makes The Rivers To Flow'!G121),\"\",TEXT('God Makes The Rivers To Flow'!G121,\"General\"))","v":""},null,"HIDE",null,null,null,null,null,"",null,null,null,null,null,{"$f":"IFERROR(VLOOKUP($AF165,Lists!$A$2:$B$6,2,FALSE),IF(PresentationSortBy=ListsSortExpHigh,-9999999,9999999))","v":9999999},"",999999,999999,"!",false,false,false,false,null,null,null,null," "]
[{"$f":"IF(ISBLANK('God Makes The Rivers To Flow'!A122),\"\",'God Makes The Rivers To Flow'!A122)","v":"Native American Tradition"},{"$f":"IF(ISBLANK('God Makes The Rivers To Flow'!B122),\"\",'God Makes The Rivers To Flow'!B122)","v":"Great Life-Giving Spirit"},{"$f":"IF(ISBLANK('God Makes The Rivers To Flow'!C122),\"\",'God Makes The Rivers To Flow'!C122)","v":186},{"$f":"IF(ISBLANK('God Makes The Rivers To Flow'!D122),\"\",'God Makes The Rivers To Flow'!D122)","v":""},{"$f":"IF(ISBLANK('God Makes The Rivers To Flow'!E122),\"\",'God Makes The Rivers To Flow'!E122)","v":""},{"$f":"IF(ISBLANK('God Makes The Rivers To Flow'!F122),\"\",'God Makes The Rivers To Flow'!F122)","v":""},{"$f":"IF(ISBLANK('God Makes The Rivers To Flow'!G122),\"\",TEXT('God Makes The Rivers To Flow'!G122,\"General\"))","v":""},null,"HIDE",null,null,null,null,null,"",null,null,null,null,null,{"$f":"IFERROR(VLOOKUP($AF166,Lists!$A$2:$B$6,2,FALSE),IF(PresentationSortBy=ListsSortExpHigh,-9999999,9999999))","v":9999999},"",999999,999999,"!",false,false,false,false,null,null,null,null," "]
[{"$f":"IF(ISBLANK('God Makes The Rivers To Flow'!A123),\"\",'God Makes The Rivers To Flow'!A123)","v":"Chief Yellow Lark"},{"$f":"IF(ISBLANK('God Makes The Rivers To Flow'!B123),\"\",'God Makes The Rivers To Flow'!B123)","v":"Let Me Walk in Beauty"},{"$f":"IF(ISBLANK('God Makes The Rivers To Flow'!C123),\"\",'God Makes The Rivers To Flow'!C123)","v":188},{"$f":"IF(ISBLANK('God Makes The Rivers To Flow'!D123),\"\",'God Makes The Rivers To Flow'!D123)","v":""},{"$f":"IF(ISBLANK('God Makes The Rivers To Flow'!E123),\"\",'God Makes The Rivers To Flow'!E123)","v":""},{"$f":"IF(ISBLANK('God Makes The Rivers To Flow'!F123),\"\",'God Makes The Rivers To Flow'!F123)","v":""},{"$f":"IF(ISBLANK('God Makes The Rivers To Flow'!G123),\"\",TEXT('God Makes The Rivers To Flow'!G123,\"General\"))","v":""},null,"HIDE",null,null,null,null,null,"",null,null,null,null,null,{"$f":"IFERROR(VLOOKUP($AF167,Lists!$A$2:$B$6,2,FALSE),IF(PresentationSortBy=ListsSortExpHigh,-9999999,9999999))","v":9999999},"",999999,999999,"!",false,false,false,false,null,null,null,null," "]
[{"$f":"IF(ISBLANK('God Makes The Rivers To Flow'!A124),\"\",'God Makes The Rivers To Flow'!A124)","v":"The Bhagavad Gita"},{"$f":"IF(ISBLANK('God Makes The Rivers To Flow'!B124),\"\",'God Makes The Rivers To Flow'!B124)","v":"What Is Real Never Ceases"},{"$f":"IF(ISBLANK('God Makes The Rivers To Flow'!C124),\"\",'God Makes The Rivers To Flow'!C124)","v":189},{"$f":"IF(ISBLANK('God Makes The Rivers To Flow'!D124),\"\",'God Makes The Rivers To Flow'!D124)","v":""},{"$f":"IF(ISBLANK('God Makes The Rivers To Flow'!E124),\"\",'God Makes The Rivers To Flow'!E124)","v":""},{"$f":"IF(ISBLANK('God Makes The Rivers To Flow'!F124),\"\",'God Makes The Rivers To Flow'!F124)","v":""},{"$f":"IF(ISBLANK('God Makes The Rivers To Flow'!G124),\"\",TEXT('God Makes The Rivers To Flow'!G124,\"General\"))","v":""},null,"HIDE",null,null,null,null,null,"",null,null,null,null,null,{"$f":"IFERROR(VLOOKUP($AF168,Lists!$A$2:$B$6,2,FALSE),IF(PresentationSortBy=ListsSortExpHigh,-9999999,9999999))","v":9999999},"",999999,999999,"!",false,false,false,false,null,null,null,null," "]
[{"$f":"IF(ISBLANK('God Makes The Rivers To Flow'!A125),\"\",'God Makes The Rivers To Flow'!A125)","v":"The Shvetashvatara Upanishad"},{"$f":"IF(ISBLANK('God Makes The Rivers To Flow'!B125),\"\",'God Makes The Rivers To Flow'!B125)","v":"The One Appearing as Many"},{"$f":"IF(ISBLANK('God Makes The Rivers To Flow'!C125),\"\",'God Makes The Rivers To Flow'!C125)","v":192},{"$f":"IF(ISBLANK('God Makes The Rivers To Flow'!D125),\"\",'God Makes The Rivers To Flow'!D125)","v":""},{"$f":"IF(ISBLANK('God Makes The Rivers To Flow'!E125),\"\",'God Makes The Rivers To Flow'!E125)","v":""},{"$f":"IF(ISBLANK('God Makes The Rivers To Flow'!F125),\"\",'God Makes The Rivers To Flow'!F125)","v":""},{"$f":"IF(ISBLANK('God Makes The Rivers To Flow'!G125),\"\",TEXT('God Makes The Rivers To Flow'!G125,\"General\"))","v":""},null,"HIDE",null,null,null,null,null,"",null,null,null,null,null,{"$f":"IFERROR(VLOOKUP($AF169,Lists!$A$2:$B$6,2,FALSE),IF(PresentationSortBy=ListsSortExpHigh,-9999999,9999999))","v":9999999},"",999999,999999,"!",false,false,false,false,null,null,null,null," "]
[{"$f":"IF(ISBLANK('God Makes The Rivers To Flow'!A126),\"\",'God Makes The Rivers To Flow'!A126)","v":"Thomas à Kempis"},{"$f":"IF(ISBLANK('God Makes The Rivers To Flow'!B126),\"\",'God Makes The Rivers To Flow'!B126)","v":"Lord That Giveth Strength"},{"$f":"IF(ISBLANK('God Makes The Rivers To Flow'!C126),\"\",'God Makes The Rivers To Flow'!C126)","v":196},{"$f":"IF(ISBLANK('God Makes The Rivers To Flow'!D126),\"\",'God Makes The Rivers To Flow'!D126)","v":""},{"$f":"IF(ISBLANK('God Makes The Rivers To Flow'!E126),\"\",'God Makes The Rivers To Flow'!E126)","v":""},{"$f":"IF(ISBLANK('God Makes The Rivers To Flow'!F126),\"\",'God Makes The Rivers To Flow'!F126)","v":""},{"$f":"IF(ISBLANK('God Makes The Rivers To Flow'!G126),\"\",TEXT('God Makes The Rivers To Flow'!G126,\"General\"))","v":""},null,"HIDE",null,null,null,null,null,"",null,null,null,null,null,{"$f":"IFERROR(VLOOKUP($AF170,Lists!$A$2:$B$6,2,FALSE),IF(PresentationSortBy=ListsSortExpHigh,-9999999,9999999))","v":9999999},"",999999,999999,"!",false,false,false,false,null,null,null,null," "]
[{"$f":"IF(ISBLANK('God Makes The Rivers To Flow'!A127),\"\",'God Makes The Rivers To Flow'!A127)","v":"Thomas à Kempis"},{"$f":"IF(ISBLANK('God Makes The Rivers To Flow'!B127),\"\",'God Makes The Rivers To Flow'!B127)","v":"Four Things That Bring Much Inward Peace"},{"$f":"IF(ISBLANK('God Makes The Rivers To Flow'!C127),\"\",'God Makes The Rivers To Flow'!C127)","v":199},{"$f":"IF(ISBLANK('God Makes The Rivers To Flow'!D127),\"\",'God Makes The Rivers To Flow'!D127)","v":""},{"$f":"IF(ISBLANK('God Makes The Rivers To Flow'!E127),\"\",'God Makes The Rivers To Flow'!E127)","v":""},{"$f":"IF(ISBLANK('God Makes The Rivers To Flow'!F127),\"\",'God Makes The Rivers To Flow'!F127)","v":""},{"$f":"IF(ISBLANK('God Makes The Rivers To Flow'!G127),\"\",TEXT('God Makes The Rivers To Flow'!G127,\"General\"))","v":""},null,"HIDE",null,null,null,null,null,"",null,null,null,null,null,{"$f":"IFERROR(VLOOKUP($AF171,Lists!$A$2:$B$6,2,FALSE),IF(PresentationSortBy=ListsSortExpHigh,-9999999,9999999))","v":9999999},"",999999,999999,"!",false,false,false,false,null,null,null,null," "]
[{"$f":"IF(ISBLANK('God Makes The Rivers To Flow'!A128),\"\",'God Makes The Rivers To Flow'!A128)","v":"The Sutta Nipata"},{"$f":"IF(ISBLANK('God Makes The Rivers To Flow'!B128),\"\",'God Makes The Rivers To Flow'!B128)","v":"The Island"},{"$f":"IF(ISBLANK('God Makes The Rivers To Flow'!C128),\"\",'God Makes The Rivers To Flow'!C128)","v":200},{"$f":"IF(ISBLANK('God Makes The Rivers To Flow'!D128),\"\",'God Makes The Rivers To Flow'!D128)","v":""},{"$f":"IF(ISBLANK('God Makes The Rivers To Flow'!E128),\"\",'God Makes The Rivers To Flow'!E128)","v":""},{"$f":"IF(ISBLANK('God Makes The Rivers To Flow'!F128),\"\",'God Makes The Rivers To Flow'!F128)","v":""},{"$f":"IF(ISBLANK('God Makes The Rivers To Flow'!G128),\"\",TEXT('God Makes The Rivers To Flow'!G128,\"General\"))","v":""},null,"HIDE",null,null,null,null,null,"",null,null,null,null,null,{"$f":"IFERROR(VLOOKUP($AF172,Lists!$A$2:$B$6,2,FALSE),IF(PresentationSortBy=ListsSortExpHigh,-9999999,9999999))","v":9999999},"",999999,999999,"!",false,false,false,false,null,null,null,null," "]
[{"$f":"IF(ISBLANK('God Makes The Rivers To Flow'!A129),\"\",'God Makes The Rivers To Flow'!A129)","v":"Psalm 23"},{"$f":"IF(ISBLANK('God Makes The Rivers To Flow'!B129),\"\",'God Makes The Rivers To Flow'!B129)","v":"The Lord Is My Shepherd"},{"$f":"IF(ISBLANK('God Makes The Rivers To Flow'!C129),\"\",'God Makes The Rivers To Flow'!C129)","v":201},{"$f":"IF(ISBLANK('God Makes The Rivers To Flow'!D129),\"\",'God Makes The Rivers To Flow'!D129)","v":""},{"$f":"IF(ISBLANK('God Makes The Rivers To Flow'!E129),\"\",'God Makes The Rivers To Flow'!E129)","v":""},{"$f":"IF(ISBLANK('God Makes The Rivers To Flow'!F129),\"\",'God Makes The Rivers To Flow'!F129)","v":""},{"$f":"IF(ISBLANK('God Makes The Rivers To Flow'!G129),\"\",TEXT('God Makes The Rivers To Flow'!G129,\"General\"))","v":""},null,"HIDE",null,null,null,null,null,"",null,null,null,null,null,{"$f":"IFERROR(VLOOKUP($AF173,Lists!$A$2:$B$6,2,FALSE),IF(PresentationSortBy=ListsSortExpHigh,-9999999,9999999))","v":9999999},"",999999,999999,"!",false,false,false,false,null,null,null,null," "]
[{"$f":"IF(ISBLANK('God Makes The Rivers To Flow'!A130),\"\",'God Makes The Rivers To Flow'!A130)","v":"Mahatma Gandhi"},{"$f":"IF(ISBLANK('God Makes The Rivers To Flow'!B130),\"\",'God Makes The Rivers To Flow'!B130)","v":"The Path"},{"$f":"IF(ISBLANK('God Makes The Rivers To Flow'!C130),\"\",'God Makes The Rivers To Flow'!C130)","v":202},{"$f":"IF(ISBLANK('God Makes The Rivers To Flow'!D130),\"\",'God Makes The Rivers To Flow'!D130)","v":""},{"$f":"IF(ISBLANK('God Makes The Rivers To Flow'!E130),\"\",'God Makes The Rivers To Flow'!E130)","v":""},{"$f":"IF(ISBLANK('God Makes The Rivers To Flow'!F130),\"\",'God Makes The Rivers To Flow'!F130)","v":""},{"$f":"IF(ISBLANK('God Makes The Rivers To Flow'!G130),\"\",TEXT('God Makes The Rivers To Flow'!G130,\"General\"))","v":""},null,"HIDE",null,null,null,null,null,"",null,null,null,null,null,{"$f":"IFERROR(VLOOKUP($AF174,Lists!$A$2:$B$6,2,FALSE),IF(PresentationSortBy=ListsSortExpHigh,-9999999,9999999))","v":9999999},"",999999,999999,"!",false,false,false,false,null,null,null,null," "]
[{"$f":"IF(ISBLANK('God Makes The Rivers To Flow'!A131),\"\",'God Makes The Rivers To Flow'!A131)","v":"Mahatma Gandhi"},{"$f":"IF(ISBLANK('God Makes The Rivers To Flow'!B131),\"\",'God Makes The Rivers To Flow'!B131)","v":"In the Midst of Darkness"},{"$f":"IF(ISBLANK('God Makes The Rivers To Flow'!C131),\"\",'God Makes The Rivers To Flow'!C131)","v":203},{"$f":"IF(ISBLANK('God Makes The Rivers To Flow'!D131),\"\",'God Makes The Rivers To Flow'!D131)","v":""},{"$f":"IF(ISBLANK('God Makes The Rivers To Flow'!E131),\"\",'God Makes The Rivers To Flow'!E131)","v":""},{"$f":"IF(ISBLANK('God Makes The Rivers To Flow'!F131),\"\",'God Makes The Rivers To Flow'!F131)","v":""},{"$f":"IF(ISBLANK('God Makes The Rivers To Flow'!G131),\"\",TEXT('God Makes The Rivers To Flow'!G131,\"General\"))","v":""},null,"HIDE",null,null,null,null,null,"",null,null,null,null,null,{"$f":"IFERROR(VLOOKUP($AF175,Lists!$A$2:$B$6,2,FALSE),IF(PresentationSortBy=ListsSortExpHigh,-9999999,9999999))","v":9999999},"",999999,999999,"!",false,false,false,false,null,null,null,null," "]
[{"$f":"IF(ISBLANK('God Makes The Rivers To Flow'!A132),\"\",'God Makes The Rivers To Flow'!A132)","v":"Saint Bernard of Clairvaux"},{"$f":"IF(ISBLANK('God Makes The Rivers To Flow'!B132),\"\",'God Makes The Rivers To Flow'!B132)","v":"That Wondrous Star"},{"$f":"IF(ISBLANK('God Makes The Rivers To Flow'!C132),\"\",'God Makes The Rivers To Flow'!C132)","v":204},{"$f":"IF(ISBLANK('God Makes The Rivers To Flow'!D132),\"\",'God Makes The Rivers To Flow'!D132)","v":""},{"$f":"IF(ISBLANK('God Makes The Rivers To Flow'!E132),\"\",'God Makes The Rivers To Flow'!E132)","v":""},{"$f":"IF(ISBLANK('God Makes The Rivers To Flow'!F132),\"\",'God Makes The Rivers To Flow'!F132)","v":""},{"$f":"IF(ISBLANK('God Makes The Rivers To Flow'!G132),\"\",TEXT('God Makes The Rivers To Flow'!G132,\"General\"))","v":""},null,"HIDE",null,null,null,null,null,"",null,null,null,null,null,{"$f":"IFERROR(VLOOKUP($AF176,Lists!$A$2:$B$6,2,FALSE),IF(PresentationSortBy=ListsSortExpHigh,-9999999,9999999))","v":9999999},"",999999,999999,"!",false,false,false,false,null,null,null,null," "]
[{"$f":"IF(ISBLANK('God Makes The Rivers To Flow'!A133),\"\",'God Makes The Rivers To Flow'!A133)","v":"Saint Teresa of Avila"},{"$f":"IF(ISBLANK('God Makes The Rivers To Flow'!B133),\"\",'God Makes The Rivers To Flow'!B133)","v":"Let Nothing Upset You"},{"$f":"IF(ISBLANK('God Makes The Rivers To Flow'!C133),\"\",'God Makes The Rivers To Flow'!C133)","v":206},{"$f":"IF(ISBLANK('God Makes The Rivers To Flow'!D133),\"\",'God Makes The Rivers To Flow'!D133)","v":""},{"$f":"IF(ISBLANK('God Makes The Rivers To Flow'!E133),\"\",'God Makes The Rivers To Flow'!E133)","v":""},{"$f":"IF(ISBLANK('God Makes The Rivers To Flow'!F133),\"\",'God Makes The Rivers To Flow'!F133)","v":"Planning to learn"},{"$f":"IF(ISBLANK('God Makes The Rivers To Flow'!G133),\"\",TEXT('God Makes The Rivers To Flow'!G133,\"General\"))","v":"Reassurance"},null,"\\\\SHOW",null,null,null,null,null,"",null,null,null,null,null,{"$f":"IFERROR(VLOOKUP($AF177,Lists!$A$2:$B$6,2,FALSE),IF(PresentationSortBy=ListsSortExpHigh,-9999999,9999999))","v":9999999},"",999999,999999,"!",false,false,false,false,null,null,null,null," "]
[{"$f":"IF(ISBLANK('God Makes The Rivers To Flow'!A134),\"\",'God Makes The Rivers To Flow'!A134)","v":"Saint Francis de Sales"},{"$f":"IF(ISBLANK('God Makes The Rivers To Flow'!B134),\"\",'God Makes The Rivers To Flow'!B134)","v":"Do Not Look with Fear"},{"$f":"IF(ISBLANK('God Makes The Rivers To Flow'!C134),\"\",'God Makes The Rivers To Flow'!C134)","v":207},{"$f":"IF(ISBLANK('God Makes The Rivers To Flow'!D134),\"\",'God Makes The Rivers To Flow'!D134)","v":""},{"$f":"IF(ISBLANK('God Makes The Rivers To Flow'!E134),\"\",'God Makes The Rivers To Flow'!E134)","v":""},{"$f":"IF(ISBLANK('God Makes The Rivers To Flow'!F134),\"\",'God Makes The Rivers To Flow'!F134)","v":""},{"$f":"IF(ISBLANK('God Makes The Rivers To Flow'!G134),\"\",TEXT('God Makes The Rivers To Flow'!G134,\"General\"))","v":""},null,"HIDE",null,null,null,null,null,"",null,null,null,null,null,{"$f":"IFERROR(VLOOKUP($AF178,Lists!$A$2:$B$6,2,FALSE),IF(PresentationSortBy=ListsSortExpHigh,-9999999,9999999))","v":9999999},"",999999,999999,"!",false,false,false,false,null,null,null,null," "]
[{"$f":"IF(ISBLANK('God Makes The Rivers To Flow'!A135),\"\",'God Makes The Rivers To Flow'!A135)","v":"Tukaram"},{"$f":"IF(ISBLANK('God Makes The Rivers To Flow'!B135),\"\",'God Makes The Rivers To Flow'!B135)","v":"The One Thing Needed"},{"$f":"IF(ISBLANK('God Makes The Rivers To Flow'!C135),\"\",'God Makes The Rivers To Flow'!C135)","v":208},{"$f":"IF(ISBLANK('God Makes The Rivers To Flow'!D135),\"\",'God Makes The Rivers To Flow'!D135)","v":""},{"$f":"IF(ISBLANK('God Makes The Rivers To Flow'!E135),\"\",'God Makes The Rivers To Flow'!E135)","v":""},{"$f":"IF(ISBLANK('God Makes The Rivers To Flow'!F135),\"\",'God Makes The Rivers To Flow'!F135)","v":""},{"$f":"IF(ISBLANK('God Makes The Rivers To Flow'!G135),\"\",TEXT('God Makes The Rivers To Flow'!G135,\"General\"))","v":""},null,"HIDE",null,null,null,null,null,"",null,null,null,null,null,{"$f":"IFERROR(VLOOKUP($AF179,Lists!$A$2:$B$6,2,FALSE),IF(PresentationSortBy=ListsSortExpHigh,-9999999,9999999))","v":9999999},"",999999,999999,"!",false,false,false,false,null,null,null,null," "]
[{"$f":"IF(ISBLANK('God Makes The Rivers To Flow'!A136),\"\",'God Makes The Rivers To Flow'!A136)","v":"Shankara"},{"$f":"IF(ISBLANK('God Makes The Rivers To Flow'!B136),\"\",'God Makes The Rivers To Flow'!B136)","v":"Soul of My Soul"},{"$f":"IF(ISBLANK('God Makes The Rivers To Flow'!C136),\"\",'God Makes The Rivers To Flow'!C136)","v":209},{"$f":"IF(ISBLANK('God Makes The Rivers To Flow'!D136),\"\",'God Makes The Rivers To Flow'!D136)","v":""},{"$f":"IF(ISBLANK('God Makes The Rivers To Flow'!E136),\"\",'God Makes The Rivers To Flow'!E136)","v":""},{"$f":"IF(ISBLANK('God Makes The Rivers To Flow'!F136),\"\",'God Makes The Rivers To Flow'!F136)","v":""},{"$f":"IF(ISBLANK('God Makes The Rivers To Flow'!G136),\"\",TEXT('God Makes The Rivers To Flow'!G136,\"General\"))","v":""},null,"HIDE",null,null,null,null,null,"",null,null,null,null,null,{"$f":"IFERROR(VLOOKUP($AF180,Lists!$A$2:$B$6,2,FALSE),IF(PresentationSortBy=ListsSortExpHigh,-9999999,9999999))","v":9999999},"",999999,999999,"!",false,false,false,false,null,null,null,null," "]
[{"$f":"IF(ISBLANK('God Makes The Rivers To Flow'!A137),\"\",'God Makes The Rivers To Flow'!A137)","v":"The Bhagavad Gita"},{"$f":"IF(ISBLANK('God Makes The Rivers To Flow'!B137),\"\",'God Makes The Rivers To Flow'!B137)","v":"The Eternal Godhead"},{"$f":"IF(ISBLANK('God Makes The Rivers To Flow'!C137),\"\",'God Makes The Rivers To Flow'!C137)","v":210},{"$f":"IF(ISBLANK('God Makes The Rivers To Flow'!D137),\"\",'God Makes The Rivers To Flow'!D137)","v":""},{"$f":"IF(ISBLANK('God Makes The Rivers To Flow'!E137),\"\",'God Makes The Rivers To Flow'!E137)","v":""},{"$f":"IF(ISBLANK('God Makes The Rivers To Flow'!F137),\"\",'God Makes The Rivers To Flow'!F137)","v":""},{"$f":"IF(ISBLANK('God Makes The Rivers To Flow'!G137),\"\",TEXT('God Makes The Rivers To Flow'!G137,\"General\"))","v":""},null,"HIDE",null,null,null,null,null,"",null,null,null,null,null,{"$f":"IFERROR(VLOOKUP($AF181,Lists!$A$2:$B$6,2,FALSE),IF(PresentationSortBy=ListsSortExpHigh,-9999999,9999999))","v":9999999},"",999999,999999,"!",false,false,false,false,null,null,null,null," "]
[{"$f":"IF(ISBLANK('God Makes The Rivers To Flow'!A138),\"\",'God Makes The Rivers To Flow'!A138)","v":"The Katha Upanishad"},{"$f":"IF(ISBLANK('God Makes The Rivers To Flow'!B138),\"\",'God Makes The Rivers To Flow'!B138)","v":"The Immortal"},{"$f":"IF(ISBLANK('God Makes The Rivers To Flow'!C138),\"\",'God Makes The Rivers To Flow'!C138)","v":212},{"$f":"IF(ISBLANK('God Makes The Rivers To Flow'!D138),\"\",'God Makes The Rivers To Flow'!D138)","v":""},{"$f":"IF(ISBLANK('God Makes The Rivers To Flow'!E138),\"\",'God Makes The Rivers To Flow'!E138)","v":""},{"$f":"IF(ISBLANK('God Makes The Rivers To Flow'!F138),\"\",'God Makes The Rivers To Flow'!F138)","v":""},{"$f":"IF(ISBLANK('God Makes The Rivers To Flow'!G138),\"\",TEXT('God Makes The Rivers To Flow'!G138,\"General\"))","v":""},null,"HIDE",null,null,null,null,null,"",null,null,null,null,null,{"$f":"IFERROR(VLOOKUP($AF182,Lists!$A$2:$B$6,2,FALSE),IF(PresentationSortBy=ListsSortExpHigh,-9999999,9999999))","v":9999999},"",999999,999999,"!",false,false,false,false,null,null,null,null," "]
[{"$f":"IF(ISBLANK('God Makes The Rivers To Flow'!A139),\"\",'God Makes The Rivers To Flow'!A139)","v":"Meera"},{"$f":"IF(ISBLANK('God Makes The Rivers To Flow'!B139),\"\",'God Makes The Rivers To Flow'!B139)","v":"The Power of the Holy Name"},{"$f":"IF(ISBLANK('God Makes The Rivers To Flow'!C139),\"\",'God Makes The Rivers To Flow'!C139)","v":215},{"$f":"IF(ISBLANK('God Makes The Rivers To Flow'!D139),\"\",'God Makes The Rivers To Flow'!D139)","v":""},{"$f":"IF(ISBLANK('God Makes The Rivers To Flow'!E139),\"\",'God Makes The Rivers To Flow'!E139)","v":""},{"$f":"IF(ISBLANK('God Makes The Rivers To Flow'!F139),\"\",'God Makes The Rivers To Flow'!F139)","v":""},{"$f":"IF(ISBLANK('God Makes The Rivers To Flow'!G139),\"\",TEXT('God Makes The Rivers To Flow'!G139,\"General\"))","v":""},null,"HIDE",null,null,null,null,null,"",null,null,null,null,null,{"$f":"IFERROR(VLOOKUP($AF183,Lists!$A$2:$B$6,2,FALSE),IF(PresentationSortBy=ListsSortExpHigh,-9999999,9999999))","v":9999999},"",999999,999999,"!",false,false,false,false,null,null,null,null," "]
[{"$f":"IF(ISBLANK('God Makes The Rivers To Flow'!A140),\"\",'God Makes The Rivers To Flow'!A140)","v":"Meera"},{"$f":"IF(ISBLANK('God Makes The Rivers To Flow'!B140),\"\",'God Makes The Rivers To Flow'!B140)","v":"Even with Your Last Breath"},{"$f":"IF(ISBLANK('God Makes The Rivers To Flow'!C140),\"\",'God Makes The Rivers To Flow'!C140)","v":216},{"$f":"IF(ISBLANK('God Makes The Rivers To Flow'!D140),\"\",'God Makes The Rivers To Flow'!D140)","v":""},{"$f":"IF(ISBLANK('God Makes The Rivers To Flow'!E140),\"\",'God Makes The Rivers To Flow'!E140)","v":""},{"$f":"IF(ISBLANK('God Makes The Rivers To Flow'!F140),\"\",'God Makes The Rivers To Flow'!F140)","v":""},{"$f":"IF(ISBLANK('God Makes The Rivers To Flow'!G140),\"\",TEXT('God Makes The Rivers To Flow'!G140,\"General\"))","v":""},null,"HIDE",null,null,null,null,null,"",null,null,null,null,null,{"$f":"IFERROR(VLOOKUP($AF184,Lists!$A$2:$B$6,2,FALSE),IF(PresentationSortBy=ListsSortExpHigh,-9999999,9999999))","v":9999999},"",999999,999999,"!",false,false,false,false,null,null,null,null," "]
[{"$f":"IF(ISBLANK('God Makes The Rivers To Flow'!A141),\"\",'God Makes The Rivers To Flow'!A141)","v":"Meera"},{"$f":"IF(ISBLANK('God Makes The Rivers To Flow'!B141),\"\",'God Makes The Rivers To Flow'!B141)","v":"Singing Your Name"},{"$f":"IF(ISBLANK('God Makes The Rivers To Flow'!C141),\"\",'God Makes The Rivers To Flow'!C141)","v":217},{"$f":"IF(ISBLANK('God Makes The Rivers To Flow'!D141),\"\",'God Makes The Rivers To Flow'!D141)","v":""},{"$f":"IF(ISBLANK('God Makes The Rivers To Flow'!E141),\"\",'God Makes The Rivers To Flow'!E141)","v":""},{"$f":"IF(ISBLANK('God Makes The Rivers To Flow'!F141),\"\",'God Makes The Rivers To Flow'!F141)","v":""},{"$f":"IF(ISBLANK('God Makes The Rivers To Flow'!G141),\"\",TEXT('God Makes The Rivers To Flow'!G141,\"General\"))","v":""},null,"HIDE",null,null,null,null,null,"",null,null,null,null,null,{"$f":"IFERROR(VLOOKUP($AF185,Lists!$A$2:$B$6,2,FALSE),IF(PresentationSortBy=ListsSortExpHigh,-9999999,9999999))","v":9999999},"",999999,999999,"!",false,false,false,false,null,null,null,null," "]
[{"$f":"IF(ISBLANK('God Makes The Rivers To Flow'!A142),\"\",'God Makes The Rivers To Flow'!A142)","v":"Tukaram"},{"$f":"IF(ISBLANK('God Makes The Rivers To Flow'!B142),\"\",'God Makes The Rivers To Flow'!B142)","v":"Think on His Name"},{"$f":"IF(ISBLANK('God Makes The Rivers To Flow'!C142),\"\",'God Makes The Rivers To Flow'!C142)","v":218},{"$f":"IF(ISBLANK('God Makes The Rivers To Flow'!D142),\"\",'God Makes The Rivers To Flow'!D142)","v":""},{"$f":"IF(ISBLANK('God Makes The Rivers To Flow'!E142),\"\",'God Makes The Rivers To Flow'!E142)","v":""},{"$f":"IF(ISBLANK('God Makes The Rivers To Flow'!F142),\"\",'God Makes The Rivers To Flow'!F142)","v":""},{"$f":"IF(ISBLANK('God Makes The Rivers To Flow'!G142),\"\",TEXT('God Makes The Rivers To Flow'!G142,\"General\"))","v":""},null,"HIDE",null,null,null,null,null,"",null,null,null,null,null,{"$f":"IFERROR(VLOOKUP($AF186,Lists!$A$2:$B$6,2,FALSE),IF(PresentationSortBy=ListsSortExpHigh,-9999999,9999999))","v":9999999},"",999999,999999,"!",false,false,false,false,null,null,null,null," "]
[{"$f":"IF(ISBLANK('God Makes The Rivers To Flow'!A143),\"\",'God Makes The Rivers To Flow'!A143)","v":"Swami Ramdas"},{"$f":"IF(ISBLANK('God Makes The Rivers To Flow'!B143),\"\",'God Makes The Rivers To Flow'!B143)","v":"How Great Is His Name!"},{"$f":"IF(ISBLANK('God Makes The Rivers To Flow'!C143),\"\",'God Makes The Rivers To Flow'!C143)","v":219},{"$f":"IF(ISBLANK('God Makes The Rivers To Flow'!D143),\"\",'God Makes The Rivers To Flow'!D143)","v":""},{"$f":"IF(ISBLANK('God Makes The Rivers To Flow'!E143),\"\",'God Makes The Rivers To Flow'!E143)","v":""},{"$f":"IF(ISBLANK('God Makes The Rivers To Flow'!F143),\"\",'God Makes The Rivers To Flow'!F143)","v":""},{"$f":"IF(ISBLANK('God Makes The Rivers To Flow'!G143),\"\",TEXT('God Makes The Rivers To Flow'!G143,\"General\"))","v":""},null,"HIDE",null,null,null,null,null,"",null,null,null,null,null,{"$f":"IFERROR(VLOOKUP($AF187,Lists!$A$2:$B$6,2,FALSE),IF(PresentationSortBy=ListsSortExpHigh,-9999999,9999999))","v":9999999},"",999999,999999,"!",false,false,false,false,null,null,null,null," "]
[{"$f":"IF(ISBLANK('God Makes The Rivers To Flow'!A144),\"\",'God Makes The Rivers To Flow'!A144)","v":"Sri Chaitanya"},{"$f":"IF(ISBLANK('God Makes The Rivers To Flow'!B144),\"\",'God Makes The Rivers To Flow'!B144)","v":"O Name, Stream Down in Moonlight"},{"$f":"IF(ISBLANK('God Makes The Rivers To Flow'!C144),\"\",'God Makes The Rivers To Flow'!C144)","v":220},{"$f":"IF(ISBLANK('God Makes The Rivers To Flow'!D144),\"\",'God Makes The Rivers To Flow'!D144)","v":""},{"$f":"IF(ISBLANK('God Makes The Rivers To Flow'!E144),\"\",'God Makes The Rivers To Flow'!E144)","v":""},{"$f":"IF(ISBLANK('God Makes The Rivers To Flow'!F144),\"\",'God Makes The Rivers To Flow'!F144)","v":""},{"$f":"IF(ISBLANK('God Makes The Rivers To Flow'!G144),\"\",TEXT('God Makes The Rivers To Flow'!G144,\"General\"))","v":""},null,"HIDE",null,null,null,null,null,"",null,null,null,null,null,{"$f":"IFERROR(VLOOKUP($AF188,Lists!$A$2:$B$6,2,FALSE),IF(PresentationSortBy=ListsSortExpHigh,-9999999,9999999))","v":9999999},"",999999,999999,"!",false,false,false,false,null,null,null,null," "]
[{"$f":"IF(ISBLANK('God Makes The Rivers To Flow'!A145),\"\",'God Makes The Rivers To Flow'!A145)","v":"Kabir"},{"$f":"IF(ISBLANK('God Makes The Rivers To Flow'!B145),\"\",'God Makes The Rivers To Flow'!B145)","v":"Weaving Your Name"},{"$f":"IF(ISBLANK('God Makes The Rivers To Flow'!C145),\"\",'God Makes The Rivers To Flow'!C145)","v":221},{"$f":"IF(ISBLANK('God Makes The Rivers To Flow'!D145),\"\",'God Makes The Rivers To Flow'!D145)","v":""},{"$f":"IF(ISBLANK('God Makes The Rivers To Flow'!E145),\"\",'God Makes The Rivers To Flow'!E145)","v":""},{"$f":"IF(ISBLANK('God Makes The Rivers To Flow'!F145),\"\",'God Makes The Rivers To Flow'!F145)","v":""},{"$f":"IF(ISBLANK('God Makes The Rivers To Flow'!G145),\"\",TEXT('God Makes The Rivers To Flow'!G145,\"General\"))","v":""},null,"HIDE",null,null,null,null,null,"",null,null,null,null,null,{"$f":"IFERROR(VLOOKUP($AF189,Lists!$A$2:$B$6,2,FALSE),IF(PresentationSortBy=ListsSortExpHigh,-9999999,9999999))","v":9999999},"",999999,999999,"!",false,false,false,false,null,null,null,null," "]
[{"$f":"IF(ISBLANK('God Makes The Rivers To Flow'!A146),\"\",'God Makes The Rivers To Flow'!A146)","v":"A Song of Sri Ramakrishna"},{"$f":"IF(ISBLANK('God Makes The Rivers To Flow'!B146),\"\",'God Makes The Rivers To Flow'!B146)","v":"Chant the Sweet Name of God"},{"$f":"IF(ISBLANK('God Makes The Rivers To Flow'!C146),\"\",'God Makes The Rivers To Flow'!C146)","v":222},{"$f":"IF(ISBLANK('God Makes The Rivers To Flow'!D146),\"\",'God Makes The Rivers To Flow'!D146)","v":""},{"$f":"IF(ISBLANK('God Makes The Rivers To Flow'!E146),\"\",'God Makes The Rivers To Flow'!E146)","v":""},{"$f":"IF(ISBLANK('God Makes The Rivers To Flow'!F146),\"\",'God Makes The Rivers To Flow'!F146)","v":""},{"$f":"IF(ISBLANK('God Makes The Rivers To Flow'!G146),\"\",TEXT('God Makes The Rivers To Flow'!G146,\"General\"))","v":""},null,"HIDE",null,null,null,null,null,"",null,null,null,null,null,{"$f":"IFERROR(VLOOKUP($AF190,Lists!$A$2:$B$6,2,FALSE),IF(PresentationSortBy=ListsSortExpHigh,-9999999,9999999))","v":9999999},"",999999,999999,"!",false,false,false,false,null,null,null,null," "]
[{"$f":"IF(ISBLANK('God Makes The Rivers To Flow'!A147),\"\",'God Makes The Rivers To Flow'!A147)","v":"Shankara"},{"$f":"IF(ISBLANK('God Makes The Rivers To Flow'!B147),\"\",'God Makes The Rivers To Flow'!B147)","v":"Thy Holy Name"},{"$f":"IF(ISBLANK('God Makes The Rivers To Flow'!C147),\"\",'God Makes The Rivers To Flow'!C147)","v":223},{"$f":"IF(ISBLANK('God Makes The Rivers To Flow'!D147),\"\",'God Makes The Rivers To Flow'!D147)","v":""},{"$f":"IF(ISBLANK('God Makes The Rivers To Flow'!E147),\"\",'God Makes The Rivers To Flow'!E147)","v":""},{"$f":"IF(ISBLANK('God Makes The Rivers To Flow'!F147),\"\",'God Makes The Rivers To Flow'!F147)","v":""},{"$f":"IF(ISBLANK('God Makes The Rivers To Flow'!G147),\"\",TEXT('God Makes The Rivers To Flow'!G147,\"General\"))","v":""},null,"HIDE",null,null,null,null,null,"",null,null,null,null,null,{"$f":"IFERROR(VLOOKUP($AF191,Lists!$A$2:$B$6,2,FALSE),IF(PresentationSortBy=ListsSortExpHigh,-9999999,9999999))","v":9999999},"",999999,999999,"!",false,false,false,false,null,null,null,null," "]
[{"$f":"IF(ISBLANK('God Makes The Rivers To Flow'!A148),\"\",'God Makes The Rivers To Flow'!A148)","v":"The Chandogya Upanishad"},{"$f":"IF(ISBLANK('God Makes The Rivers To Flow'!B148),\"\",'God Makes The Rivers To Flow'!B148)","v":"You Are That"},{"$f":"IF(ISBLANK('God Makes The Rivers To Flow'!C148),\"\",'God Makes The Rivers To Flow'!C148)","v":224},{"$f":"IF(ISBLANK('God Makes The Rivers To Flow'!D148),\"\",'God Makes The Rivers To Flow'!D148)","v":""},{"$f":"IF(ISBLANK('God Makes The Rivers To Flow'!E148),\"\",'God Makes The Rivers To Flow'!E148)","v":""},{"$f":"IF(ISBLANK('God Makes The Rivers To Flow'!F148),\"\",'God Makes The Rivers To Flow'!F148)","v":""},{"$f":"IF(ISBLANK('God Makes The Rivers To Flow'!G148),\"\",TEXT('God Makes The Rivers To Flow'!G148,\"General\"))","v":""},null,"HIDE",null,null,null,null,null,"",null,null,null,null,null,{"$f":"IFERROR(VLOOKUP($AF192,Lists!$A$2:$B$6,2,FALSE),IF(PresentationSortBy=ListsSortExpHigh,-9999999,9999999))","v":9999999},"",999999,999999,"!",false,false,false,false,null,null,null,null," "]
[{"$f":"IF(ISBLANK('God Makes The Rivers To Flow'!A149),\"\",'God Makes The Rivers To Flow'!A149)","v":"Saint Catherine of Genoa"},{"$f":"IF(ISBLANK('God Makes The Rivers To Flow'!B149),\"\",'God Makes The Rivers To Flow'!B149)","v":"A Sea of Peace"},{"$f":"IF(ISBLANK('God Makes The Rivers To Flow'!C149),\"\",'God Makes The Rivers To Flow'!C149)","v":226},{"$f":"IF(ISBLANK('God Makes The Rivers To Flow'!D149),\"\",'God Makes The Rivers To Flow'!D149)","v":""},{"$f":"IF(ISBLANK('God Makes The Rivers To Flow'!E149),\"\",'God Makes The Rivers To Flow'!E149)","v":""},{"$f":"IF(ISBLANK('God Makes The Rivers To Flow'!F149),\"\",'God Makes The Rivers To Flow'!F149)","v":""},{"$f":"IF(ISBLANK('God Makes The Rivers To Flow'!G149),\"\",TEXT('God Makes The Rivers To Flow'!G149,\"General\"))","v":""},null,"HIDE",null,null,null,null,null,"",null,null,null,null,null,{"$f":"IFERROR(VLOOKUP($AF193,Lists!$A$2:$B$6,2,FALSE),IF(PresentationSortBy=ListsSortExpHigh,-9999999,9999999))","v":9999999},"",999999,999999,"!",false,false,false,false,null,null,null,null," "]
[{"$f":"IF(ISBLANK('God Makes The Rivers To Flow'!A150),\"\",'God Makes The Rivers To Flow'!A150)","v":"The Katha Upanishad"},{"$f":"IF(ISBLANK('God Makes The Rivers To Flow'!B150),\"\",'God Makes The Rivers To Flow'!B150)","v":"The Tree of Eternity"},{"$f":"IF(ISBLANK('God Makes The Rivers To Flow'!C150),\"\",'God Makes The Rivers To Flow'!C150)","v":227},{"$f":"IF(ISBLANK('God Makes The Rivers To Flow'!D150),\"\",'God Makes The Rivers To Flow'!D150)","v":""},{"$f":"IF(ISBLANK('God Makes The Rivers To Flow'!E150),\"\",'God Makes The Rivers To Flow'!E150)","v":""},{"$f":"IF(ISBLANK('God Makes The Rivers To Flow'!F150),\"\",'God Makes The Rivers To Flow'!F150)","v":""},{"$f":"IF(ISBLANK('God Makes The Rivers To Flow'!G150),\"\",TEXT('God Makes The Rivers To Flow'!G150,\"General\"))","v":""},null,"HIDE",null,null,null,null,null,"",null,null,null,null,null,{"$f":"IFERROR(VLOOKUP($AF194,Lists!$A$2:$B$6,2,FALSE),IF(PresentationSortBy=ListsSortExpHigh,-9999999,9999999))","v":9999999},"",999999,999999,"!",false,false,false,false,null,null,null,null," "]
[{"$f":"IF(ISBLANK('God Makes The Rivers To Flow'!A151),\"\",'God Makes The Rivers To Flow'!A151)","v":"Saint Augustine"},{"$f":"IF(ISBLANK('God Makes The Rivers To Flow'!B151),\"\",'God Makes The Rivers To Flow'!B151)","v":"Entering into Joy"},{"$f":"IF(ISBLANK('God Makes The Rivers To Flow'!C151),\"\",'God Makes The Rivers To Flow'!C151)","v":230},{"$f":"IF(ISBLANK('God Makes The Rivers To Flow'!D151),\"\",'God Makes The Rivers To Flow'!D151)","v":""},{"$f":"IF(ISBLANK('God Makes The Rivers To Flow'!E151),\"\",'God Makes The Rivers To Flow'!E151)","v":""},{"$f":"IF(ISBLANK('God Makes The Rivers To Flow'!F151),\"\",'God Makes The Rivers To Flow'!F151)","v":""},{"$f":"IF(ISBLANK('God Makes The Rivers To Flow'!G151),\"\",TEXT('God Makes The Rivers To Flow'!G151,\"General\"))","v":""},null,"HIDE",null,null,null,null,null,"",null,null,null,null,null,{"$f":"IFERROR(VLOOKUP($AF195,Lists!$A$2:$B$6,2,FALSE),IF(PresentationSortBy=ListsSortExpHigh,-9999999,9999999))","v":9999999},"",999999,999999,"!",false,false,false,false,null,null,null,null," "]
[{"$f":"IF(ISBLANK('God Makes The Rivers To Flow'!A152),\"\",'God Makes The Rivers To Flow'!A152)","v":"A Song of Sri Ramakrishna"},{"$f":"IF(ISBLANK('God Makes The Rivers To Flow'!B152),\"\",'God Makes The Rivers To Flow'!B152)","v":"Thou One without a Second"},{"$f":"IF(ISBLANK('God Makes The Rivers To Flow'!C152),\"\",'God Makes The Rivers To Flow'!C152)","v":231},{"$f":"IF(ISBLANK('God Makes The Rivers To Flow'!D152),\"\",'God Makes The Rivers To Flow'!D152)","v":""},{"$f":"IF(ISBLANK('God Makes The Rivers To Flow'!E152),\"\",'God Makes The Rivers To Flow'!E152)","v":""},{"$f":"IF(ISBLANK('God Makes The Rivers To Flow'!F152),\"\",'God Makes The Rivers To Flow'!F152)","v":""},{"$f":"IF(ISBLANK('God Makes The Rivers To Flow'!G152),\"\",TEXT('God Makes The Rivers To Flow'!G152,\"General\"))","v":""},null,"HIDE",null,null,null,null,null,"",null,null,null,null,null,{"$f":"IFERROR(VLOOKUP($AF196,Lists!$A$2:$B$6,2,FALSE),IF(PresentationSortBy=ListsSortExpHigh,-9999999,9999999))","v":9999999},{"$f":"IFERROR(IF(ISBLANK($AD196),\"\",IF((TODAY()-$AD196)/365.25>=0.05,(TODAY()-$AD196)/365.25,\"< 0.1 yrs\")),\"\")","v":""},{"$f":"IF(OR(ISBLANK($V196),$V196=\"\"),IF(PresentationSortBy=ListsSortYearsOld,-999999,999999),TODAY()-$AD196)","v":999999},{"$f":"IF(OR(ISBLANK($AE196),$AE196=\"\"),IF(PresentationSortBy=ListsSortMemHigh,-999999,999999),$AE196)","v":999999},{"$f":"IF(OR(ISBLANK($AG196),$AG196=\"\"),IF(PresentationSortBy=ListsSortCustomCategoriesA,\"ZZZZZZZZZZZZZZZZZZZZZZZZZZZZZ\",\"!\"), $AG196)","v":"!"},{"$f":"AND(PresentationHighlightYearsMaster=\"Yes\", PresentationHighlightYearsNum<>\"\", IF(PresentationHighlightYearsMoreLess=\"or less\",OR($V196=\"< 0.1 yrs\",AND(ISNUMBER($V196),$V196<=(PresentationHighlightYearsNum+0.05))),AND(ISNUMBER($V196),$V196>=(PresentationHighlightYearsNum-0.05))))","v":false},{"$f":"AND(PresentationHighlightMemorizedMaster=\"Yes\", PresentationHighlightMemorizedNum<>\"\",IF(OR(ISBLANK($AE196),$AE196=\"\"),FALSE,IF(PresentationHighlightMemorizedMoreLess=\"or less\",$AE196<=PresentationHighlightMemorizedNum,$AE196>=PresentationHighlightMemorizedNum)))","v":false},{"$f":"IFERROR(AND(PresentationHighlightExpertiseMaster=\"Yes\",PresentationHighlightExpertiseVal<>\"\",IF(OR(ISBLANK($AF196),$AF196=\"\"),FALSE,IF(PresentationHighlightExpertiseMoreLess=\"or less\",VLOOKUP($AF196,ListsLevelsOfExpertise,2,FALSE)<=VLOOKUP(PresentationHighlightExpertiseVal,ListsLevelsOfExpertise,2,FALSE),VLOOKUP($AF196,ListsLevelsOfExpertise,2,FALSE)>=VLOOKUP(PresentationHighlightExpertiseVal,ListsLevelsOfExpertise,2,FALSE)))),FALSE)","v":false},{"$f":"AND(PresentationHighlightCategoriesMaster=\"Yes\",_xlfn.IFNA(PresentationHighlightCategoriesVal,\"\")<>\"\",IF(OR(ISBLANK($AG196),$AG196=\"\"),FALSE,NOT(ISERR(SEARCH(PresentationHighlightCategoriesVal,$AG196)))))","v":false},null,null,null,null," "]
[{"$f":"IF(ISBLANK('God Makes The Rivers To Flow'!A153),\"\",'God Makes The Rivers To Flow'!A153)","v":"The Shvetashvatara Upanishad"},{"$f":"IF(ISBLANK('God Makes The Rivers To Flow'!B153),\"\",'God Makes The Rivers To Flow'!B153)","v":"Love the Lord & Be Free"},{"$f":"IF(ISBLANK('God Makes The Rivers To Flow'!C153),\"\",'God Makes The Rivers To Flow'!C153)","v":232},{"$f":"IF(ISBLANK('God Makes The Rivers To Flow'!D153),\"\",'God Makes The Rivers To Flow'!D153)","v":""},{"$f":"IF(ISBLANK('God Makes The Rivers To Flow'!E153),\"\",'God Makes The Rivers To Flow'!E153)","v":""},{"$f":"IF(ISBLANK('God Makes The Rivers To Flow'!F153),\"\",'God Makes The Rivers To Flow'!F153)","v":""},{"$f":"IF(ISBLANK('God Makes The Rivers To Flow'!G153),\"\",TEXT('God Makes The Rivers To Flow'!G153,\"General\"))","v":""},null,"HIDE",null,null,null,null,null,"",null,null,null,null,null,{"$f":"IFERROR(VLOOKUP($AF197,Lists!$A$2:$B$6,2,FALSE),IF(PresentationSortBy=ListsSortExpHigh,-9999999,9999999))","v":9999999},"",999999,999999,"!",false,false,false,false,null,null,null,null," "]
[{"$f":"IF(ISBLANK('God Makes The Rivers To Flow'!A154),\"\",'God Makes The Rivers To Flow'!A154)","v":"Kabir"},{"$f":"IF(ISBLANK('God Makes The Rivers To Flow'!B154),\"\",'God Makes The Rivers To Flow'!B154)","v":"The Fruit of the Tree"},{"$f":"IF(ISBLANK('God Makes The Rivers To Flow'!C154),\"\",'God Makes The Rivers To Flow'!C154)","v":234},{"$f":"IF(ISBLANK('God Makes The Rivers To Flow'!D154),\"\",'God Makes The Rivers To Flow'!D154)","v":""},{"$f":"IF(ISBLANK('God Makes The Rivers To Flow'!E154),\"\",'God Makes The Rivers To Flow'!E154)","v":""},{"$f":"IF(ISBLANK('God Makes The Rivers To Flow'!F154),\"\",'God Makes The Rivers To Flow'!F154)","v":""},{"$f":"IF(ISBLANK('God Makes The Rivers To Flow'!G154),\"\",TEXT('God Makes The Rivers To Flow'!G154,\"General\"))","v":""},null,"HIDE",null,null,null,null,null,"",null,null,null,null,null,{"$f":"IFERROR(VLOOKUP($AF198,Lists!$A$2:$B$6,2,FALSE),IF(PresentationSortBy=ListsSortExpHigh,-9999999,9999999))","v":9999999},"",999999,999999,"!",false,false,false,false,null,null,null,null," "]
[{"$f":"IF(ISBLANK('God Makes The Rivers To Flow'!A155),\"\",'God Makes The Rivers To Flow'!A155)","v":"The Yoga Vasishtha"},{"$f":"IF(ISBLANK('God Makes The Rivers To Flow'!B155),\"\",'God Makes The Rivers To Flow'!B155)","v":"The Lamp of Wisdom"},{"$f":"IF(ISBLANK('God Makes The Rivers To Flow'!C155),\"\",'God Makes The Rivers To Flow'!C155)","v":235},{"$f":"IF(ISBLANK('God Makes The Rivers To Flow'!D155),\"\",'God Makes The Rivers To Flow'!D155)","v":""},{"$f":"IF(ISBLANK('God Makes The Rivers To Flow'!E155),\"\",'God Makes The Rivers To Flow'!E155)","v":""},{"$f":"IF(ISBLANK('God Makes The Rivers To Flow'!F155),\"\",'God Makes The Rivers To Flow'!F155)","v":""},{"$f":"IF(ISBLANK('God Makes The Rivers To Flow'!G155),\"\",TEXT('God Makes The Rivers To Flow'!G155,\"General\"))","v":""},null,"HIDE",null,null,null,null,null,"",null,null,null,null,null,{"$f":"IFERROR(VLOOKUP($AF199,Lists!$A$2:$B$6,2,FALSE),IF(PresentationSortBy=ListsSortExpHigh,-9999999,9999999))","v":9999999},"",999999,999999,"!",false,false,false,false,null,null,null,null," "]
[{"$f":"IF(ISBLANK('God Makes The Rivers To Flow'!A156),\"\",'God Makes The Rivers To Flow'!A156)","v":"The Dhammapada"},{"$f":"IF(ISBLANK('God Makes The Rivers To Flow'!B156),\"\",'God Makes The Rivers To Flow'!B156)","v":"Cross the River Bravely"},{"$f":"IF(ISBLANK('God Makes The Rivers To Flow'!C156),\"\",'God Makes The Rivers To Flow'!C156)","v":236},{"$f":"IF(ISBLANK('God Makes The Rivers To Flow'!D156),\"\",'God Makes The Rivers To Flow'!D156)","v":""},{"$f":"IF(ISBLANK('God Makes The Rivers To Flow'!E156),\"\",'God Makes The Rivers To Flow'!E156)","v":""},{"$f":"IF(ISBLANK('God Makes The Rivers To Flow'!F156),\"\",'God Makes The Rivers To Flow'!F156)","v":""},{"$f":"IF(ISBLANK('God Makes The Rivers To Flow'!G156),\"\",TEXT('God Makes The Rivers To Flow'!G156,\"General\"))","v":""},null,"HIDE",null,null,null,null,null,"",null,null,null,null,null,{"$f":"IFERROR(VLOOKUP($AF200,Lists!$A$2:$B$6,2,FALSE),IF(PresentationSortBy=ListsSortExpHigh,-9999999,9999999))","v":9999999},"",999999,999999,"!",false,false,false,false,null,null,null,null," "]
[{"$f":"IF(ISBLANK('God Makes The Rivers To Flow'!A157),\"\",'God Makes The Rivers To Flow'!A157)","v":"The Bhagavad Gita"},{"$f":"IF(ISBLANK('God Makes The Rivers To Flow'!B157),\"\",'God Makes The Rivers To Flow'!B157)","v":"Be Aware of Me Always"},{"$f":"IF(ISBLANK('God Makes The Rivers To Flow'!C157),\"\",'God Makes The Rivers To Flow'!C157)","v":241},{"$f":"IF(ISBLANK('God Makes The Rivers To Flow'!D157),\"\",'God Makes The Rivers To Flow'!D157)","v":""},{"$f":"IF(ISBLANK('God Makes The Rivers To Flow'!E157),\"\",'God Makes The Rivers To Flow'!E157)","v":""},{"$f":"IF(ISBLANK('God Makes The Rivers To Flow'!F157),\"\",'God Makes The Rivers To Flow'!F157)","v":""},{"$f":"IF(ISBLANK('God Makes The Rivers To Flow'!G157),\"\",TEXT('God Makes The Rivers To Flow'!G157,\"General\"))","v":""},null,"HIDE",null,null,null,null,null,"",null,null,null,null,null,{"$f":"IFERROR(VLOOKUP($AF201,Lists!$A$2:$B$6,2,FALSE),IF(PresentationSortBy=ListsSortExpHigh,-9999999,9999999))","v":9999999},"",999999,999999,"!",false,false,false,false,null,null,null,null," "]
[{"$f":"IF(ISBLANK('God Makes The Rivers To Flow'!A158),\"\",'God Makes The Rivers To Flow'!A158)","v":"The Chandogya Upanishad"},{"$f":"IF(ISBLANK('God Makes The Rivers To Flow'!B158),\"\",'God Makes The Rivers To Flow'!B158)","v":"The City of Brahman"},{"$f":"IF(ISBLANK('God Makes The Rivers To Flow'!C158),\"\",'God Makes The Rivers To Flow'!C158)","v":244},{"$f":"IF(ISBLANK('God Makes The Rivers To Flow'!D158),\"\",'God Makes The Rivers To Flow'!D158)","v":""},{"$f":"IF(ISBLANK('God Makes The Rivers To Flow'!E158),\"\",'God Makes The Rivers To Flow'!E158)","v":""},{"$f":"IF(ISBLANK('God Makes The Rivers To Flow'!F158),\"\",'God Makes The Rivers To Flow'!F158)","v":""},{"$f":"IF(ISBLANK('God Makes The Rivers To Flow'!G158),\"\",TEXT('God Makes The Rivers To Flow'!G158,\"General\"))","v":""},null,"HIDE",null,null,null,null,null,"",null,null,null,null,null,{"$f":"IFERROR(VLOOKUP($AF202,Lists!$A$2:$B$6,2,FALSE),IF(PresentationSortBy=ListsSortExpHigh,-9999999,9999999))","v":9999999},"",999999,999999,"!",false,false,false,false,null,null,null,null," "]
[{"$f":"IF(ISBLANK('God Makes The Rivers To Flow'!A159),\"\",'God Makes The Rivers To Flow'!A159)","v":"Jalaluddin Rumi"},{"$f":"IF(ISBLANK('God Makes The Rivers To Flow'!B159),\"\",'God Makes The Rivers To Flow'!B159)","v":"A Garden beyond Paradise"},{"$f":"IF(ISBLANK('God Makes The Rivers To Flow'!C159),\"\",'God Makes The Rivers To Flow'!C159)","v":246},{"$f":"IF(ISBLANK('God Makes The Rivers To Flow'!D159),\"\",'God Makes The Rivers To Flow'!D159)","v":""},{"$f":"IF(ISBLANK('God Makes The Rivers To Flow'!E159),\"\",'God Makes The Rivers To Flow'!E159)","v":""},{"$f":"IF(ISBLANK('God Makes The Rivers To Flow'!F159),\"\",'God Makes The Rivers To Flow'!F159)","v":""},{"$f":"IF(ISBLANK('God Makes The Rivers To Flow'!G159),\"\",TEXT('God Makes The Rivers To Flow'!G159,\"General\"))","v":""},null,"HIDE",null,null,null,null,null,"",null,null,null,null,null,{"$f":"IFERROR(VLOOKUP($AF203,Lists!$A$2:$B$6,2,FALSE),IF(PresentationSortBy=ListsSortExpHigh,-9999999,9999999))","v":9999999},"",999999,999999,"!",false,false,false,false,null,null,null,null," "]
[{"$f":"IF(ISBLANK('God Makes The Rivers To Flow'!A160),\"\",'God Makes The Rivers To Flow'!A160)","v":"Mahatma Gandhi"},{"$f":"IF(ISBLANK('God Makes The Rivers To Flow'!B160),\"\",'God Makes The Rivers To Flow'!B160)","v":"Self-Surrender"},{"$f":"IF(ISBLANK('God Makes The Rivers To Flow'!C160),\"\",'God Makes The Rivers To Flow'!C160)","v":248},{"$f":"IF(ISBLANK('God Makes The Rivers To Flow'!D160),\"\",'God Makes The Rivers To Flow'!D160)","v":""},{"$f":"IF(ISBLANK('God Makes The Rivers To Flow'!E160),\"\",'God Makes The Rivers To Flow'!E160)","v":""},{"$f":"IF(ISBLANK('God Makes The Rivers To Flow'!F160),\"\",'God Makes The Rivers To Flow'!F160)","v":""},{"$f":"IF(ISBLANK('God Makes The Rivers To Flow'!G160),\"\",TEXT('God Makes The Rivers To Flow'!G160,\"General\"))","v":""},null,"HIDE",null,null,null,null,null,"",null,null,null,null,null,{"$f":"IFERROR(VLOOKUP($AF204,Lists!$A$2:$B$6,2,FALSE),IF(PresentationSortBy=ListsSortExpHigh,-9999999,9999999))","v":9999999},"",999999,999999,"!",false,false,false,false,null,null,null,null," "]
[{"$f":"IF(ISBLANK('God Makes The Rivers To Flow'!A161),\"\",'God Makes The Rivers To Flow'!A161)","v":"Ravidas"},{"$f":"IF(ISBLANK('God Makes The Rivers To Flow'!B161),\"\",'God Makes The Rivers To Flow'!B161)","v":"The City of God"},{"$f":"IF(ISBLANK('God Makes The Rivers To Flow'!C161),\"\",'God Makes The Rivers To Flow'!C161)","v":249},{"$f":"IF(ISBLANK('God Makes The Rivers To Flow'!D161),\"\",'God Makes The Rivers To Flow'!D161)","v":""},{"$f":"IF(ISBLANK('God Makes The Rivers To Flow'!E161),\"\",'God Makes The Rivers To Flow'!E161)","v":""},{"$f":"IF(ISBLANK('God Makes The Rivers To Flow'!F161),\"\",'God Makes The Rivers To Flow'!F161)","v":""},{"$f":"IF(ISBLANK('God Makes The Rivers To Flow'!G161),\"\",TEXT('God Makes The Rivers To Flow'!G161,\"General\"))","v":""},null,"HIDE",null,null,null,null,null,"",null,null,null,null,null,{"$f":"IFERROR(VLOOKUP($AF205,Lists!$A$2:$B$6,2,FALSE),IF(PresentationSortBy=ListsSortExpHigh,-9999999,9999999))","v":9999999},"",999999,999999,"!",false,false,false,false,null,null,null,null," "]
[{"$f":"IF(ISBLANK('God Makes The Rivers To Flow'!A162),\"\",'God Makes The Rivers To Flow'!A162)","v":"The Shvetashvatara Upanishad"},{"$f":"IF(ISBLANK('God Makes The Rivers To Flow'!B162),\"\",'God Makes The Rivers To Flow'!B162)","v":"The Bridge to Immortality"},{"$f":"IF(ISBLANK('God Makes The Rivers To Flow'!C162),\"\",'God Makes The Rivers To Flow'!C162)","v":250},{"$f":"IF(ISBLANK('God Makes The Rivers To Flow'!D162),\"\",'God Makes The Rivers To Flow'!D162)","v":""},{"$f":"IF(ISBLANK('God Makes The Rivers To Flow'!E162),\"\",'God Makes The Rivers To Flow'!E162)","v":""},{"$f":"IF(ISBLANK('God Makes The Rivers To Flow'!F162),\"\",'God Makes The Rivers To Flow'!F162)","v":""},{"$f":"IF(ISBLANK('God Makes The Rivers To Flow'!G162),\"\",TEXT('God Makes The Rivers To Flow'!G162,\"General\"))","v":""},null,"HIDE",null,null,null,null,null,"",null,null,null,null,null,{"$f":"IFERROR(VLOOKUP($AF206,Lists!$A$2:$B$6,2,FALSE),IF(PresentationSortBy=ListsSortExpHigh,-9999999,9999999))","v":9999999},"",999999,999999,"!",false,false,false,false,null,null,null,null," "]
[{"$f":"IF(ISBLANK('God Makes The Rivers To Flow'!A163),\"\",'God Makes The Rivers To Flow'!A163)","v":"Eknath Easwaran"},{"$f":"IF(ISBLANK('God Makes The Rivers To Flow'!B163),\"\",'God Makes The Rivers To Flow'!B163)","v":"Setu Prayer"},{"$f":"IF(ISBLANK('God Makes The Rivers To Flow'!C163),\"\",'God Makes The Rivers To Flow'!C163)","v":253},{"$f":"IF(ISBLANK('God Makes The Rivers To Flow'!D163),\"\",'God Makes The Rivers To Flow'!D163)","v":""},{"$f":"IF(ISBLANK('God Makes The Rivers To Flow'!E163),\"\",'God Makes The Rivers To Flow'!E163)","v":""},{"$f":"IF(ISBLANK('God Makes The Rivers To Flow'!F163),\"\",'God Makes The Rivers To Flow'!F163)","v":""},{"$f":"IF(ISBLANK('God Makes The Rivers To Flow'!G163),\"\",TEXT('God Makes The Rivers To Flow'!G163,\"General\"))","v":""},null,"HIDE",null,null,null,null,null,"",null,null,null,null,null,{"$f":"IFERROR(VLOOKUP($AF207,Lists!$A$2:$B$6,2,FALSE),IF(PresentationSortBy=ListsSortExpHigh,-9999999,9999999))","v":9999999},"",999999,999999,"!",false,false,false,false,null,null,null,null," "]
[null,null,null,null,null,null,null,"SPECIALTW",null,null,null,null,null,null,"",null,null,null,null,null,{"$f":"IFERROR(VLOOKUP($AF208,Lists!$A$2:$B$6,2,FALSE),IF(PresentationSortBy=ListsSortExpHigh,-9999999,9999999))","v":9999999},"",999999,999999,"!",false,false,false,false,null,null,null,null," "]
["Timeless Wisdom",null,null,null,null,null,null,"SPECIALTW",null,null,null,null,null,null,"",null,null,null,null,null,{"$f":"IFERROR(VLOOKUP($AF209,Lists!$A$2:$B$6,2,FALSE),IF(PresentationSortBy=ListsSortExpHigh,-9999999,9999999))","v":9999999},"",999999,999999,"!",false,false,false,false,null,null,null,null," "]
[null,null,null,null,null,null,null,"SPECIALTW",null,null,null,null,null,null,"",null,null,null,null,null,{"$f":"IFERROR(VLOOKUP($AF210,Lists!$A$2:$B$6,2,FALSE),IF(PresentationSortBy=ListsSortExpHigh,-9999999,9999999))","v":9999999},"",999999,999999,"!",false,false,false,false,null,null,null,null," "]
[{"$f":"IF(ISBLANK('Timeless Wisdom'!A8),\"\",'Timeless Wisdom'!A8)","v":"St. Francis of Assisi"},{"$f":"IF(ISBLANK('Timeless Wisdom'!B8),\"\",'Timeless Wisdom'!B8)","v":"The Prayer of St. Francis"},{"$f":"IF(ISBLANK('Timeless Wisdom'!C8),\"\",'Timeless Wisdom'!C8)","v":33},{"$f":"IF(ISBLANK('Timeless Wisdom'!D8),\"\",'Timeless Wisdom'!D8)","v":""},{"$f":"IF(ISBLANK('Timeless Wisdom'!E8),\"\",'Timeless Wisdom'!E8)","v":""},{"$f":"IF(ISBLANK('Timeless Wisdom'!F8),\"\",'Timeless Wisdom'!F8)","v":""},{"$f":"IF(ISBLANK('Timeless Wisdom'!G8),\"\",TEXT('Timeless Wisdom'!G8, \"General\"))","v":""},null,{"$f":"IF(OR(ISNUMBER(D211),ISNUMBER(E211),F211<>\"\",G211<>\"\"),\"\\\\SHOW\",\"HIDE\")","v":"HIDE"},null,null,null,null,null,"",null,null,null,null,null,{"$f":"IFERROR(VLOOKUP($AF211,Lists!$A$2:$B$6,2,FALSE),IF(PresentationSortBy=ListsSortExpHigh,-9999999,9999999))","v":9999999},"",999999,999999,"!",false,false,false,false,null,null,null,null," "]
[{"$f":"IF(ISBLANK('Timeless Wisdom'!A9),\"\",'Timeless Wisdom'!A9)","v":"Isha Upanishad"},{"$f":"IF(ISBLANK('Timeless Wisdom'!B9),\"\",'Timeless Wisdom'!B9)","v":"The Inner Ruler"},{"$f":"IF(ISBLANK('Timeless Wisdom'!C9),\"\",'Timeless Wisdom'!C9)","v":34},{"$f":"IF(ISBLANK('Timeless Wisdom'!D9),\"\",'Timeless Wisdom'!D9)","v":""},{"$f":"IF(ISBLANK('Timeless Wisdom'!E9),\"\",'Timeless Wisdom'!E9)","v":""},{"$f":"IF(ISBLANK('Timeless Wisdom'!F9),\"\",'Timeless Wisdom'!F9)","v":""},{"$f":"IF(ISBLANK('Timeless Wisdom'!G9),\"\",TEXT('Timeless Wisdom'!G9, \"General\"))","v":""},null,"HIDE",null,null,null,null,null,"",null,null,null,null,null,{"$f":"IFERROR(VLOOKUP($AF212,Lists!$A$2:$B$6,2,FALSE),IF(PresentationSortBy=ListsSortExpHigh,-9999999,9999999))","v":9999999},"",999999,999999,"!",false,false,false,false,null,null,null,null," "]
[{"$f":"IF(ISBLANK('Timeless Wisdom'!A10),\"\",'Timeless Wisdom'!A10)","v":"Lao Tzu"},{"$f":"IF(ISBLANK('Timeless Wisdom'!B10),\"\",'Timeless Wisdom'!B10)","v":"Holding to the Constant"},{"$f":"IF(ISBLANK('Timeless Wisdom'!C10),\"\",'Timeless Wisdom'!C10)","v":37},{"$f":"IF(ISBLANK('Timeless Wisdom'!D10),\"\",'Timeless Wisdom'!D10)","v":""},{"$f":"IF(ISBLANK('Timeless Wisdom'!E10),\"\",'Timeless Wisdom'!E10)","v":""},{"$f":"IF(ISBLANK('Timeless Wisdom'!F10),\"\",'Timeless Wisdom'!F10)","v":""},{"$f":"IF(ISBLANK('Timeless Wisdom'!G10),\"\",TEXT('Timeless Wisdom'!G10, \"General\"))","v":""},null,"HIDE",null,null,null,null,null,"",null,null,null,null,null,{"$f":"IFERROR(VLOOKUP($AF213,Lists!$A$2:$B$6,2,FALSE),IF(PresentationSortBy=ListsSortExpHigh,-9999999,9999999))","v":9999999},"",999999,999999,"!",false,false,false,false,null,null,null,null," "]
[{"$f":"IF(ISBLANK('Timeless Wisdom'!A11),\"\",'Timeless Wisdom'!A11)","v":"Abraham Isaac Kook"},{"$f":"IF(ISBLANK('Timeless Wisdom'!B11),\"\",'Timeless Wisdom'!B11)","v":"Radiant Is the World Soul"},{"$f":"IF(ISBLANK('Timeless Wisdom'!C11),\"\",'Timeless Wisdom'!C11)","v":38},{"$f":"IF(ISBLANK('Timeless Wisdom'!D11),\"\",'Timeless Wisdom'!D11)","v":""},{"$f":"IF(ISBLANK('Timeless Wisdom'!E11),\"\",'Timeless Wisdom'!E11)","v":""},{"$f":"IF(ISBLANK('Timeless Wisdom'!F11),\"\",'Timeless Wisdom'!F11)","v":""},{"$f":"IF(ISBLANK('Timeless Wisdom'!G11),\"\",TEXT('Timeless Wisdom'!G11, \"General\"))","v":""},null,"HIDE",null,null,null,null,null,"",null,null,null,null,null,{"$f":"IFERROR(VLOOKUP($AF214,Lists!$A$2:$B$6,2,FALSE),IF(PresentationSortBy=ListsSortExpHigh,-9999999,9999999))","v":9999999},"",999999,999999,"!",false,false,false,false,null,null,null,null," "]
[{"$f":"IF(ISBLANK('Timeless Wisdom'!A12),\"\",'Timeless Wisdom'!A12)","v":"Hasan Kaimi Baba"},{"$f":"IF(ISBLANK('Timeless Wisdom'!B12),\"\",'Timeless Wisdom'!B12)","v":"The Path of Love"},{"$f":"IF(ISBLANK('Timeless Wisdom'!C12),\"\",'Timeless Wisdom'!C12)","v":39},{"$f":"IF(ISBLANK('Timeless Wisdom'!D12),\"\",'Timeless Wisdom'!D12)","v":""},{"$f":"IF(ISBLANK('Timeless Wisdom'!E12),\"\",'Timeless Wisdom'!E12)","v":""},{"$f":"IF(ISBLANK('Timeless Wisdom'!F12),\"\",'Timeless Wisdom'!F12)","v":""},{"$f":"IF(ISBLANK('Timeless Wisdom'!G12),\"\",TEXT('Timeless Wisdom'!G12, \"General\"))","v":""},null,"HIDE",null,null,null,null,null,"",null,null,null,null,null,{"$f":"IFERROR(VLOOKUP($AF215,Lists!$A$2:$B$6,2,FALSE),IF(PresentationSortBy=ListsSortExpHigh,-9999999,9999999))","v":9999999},"",999999,999999,"!",false,false,false,false,null,null,null,null," "]
[{"$f":"IF(ISBLANK('Timeless Wisdom'!A13),\"\",'Timeless Wisdom'!A13)","v":"St. Teresa of Avila"},{"$f":"IF(ISBLANK('Timeless Wisdom'!B13),\"\",'Timeless Wisdom'!B13)","v":"Let Nothing Upset You"},{"$f":"IF(ISBLANK('Timeless Wisdom'!C13),\"\",'Timeless Wisdom'!C13)","v":40},{"$f":"IF(ISBLANK('Timeless Wisdom'!D13),\"\",'Timeless Wisdom'!D13)","v":""},{"$f":"IF(ISBLANK('Timeless Wisdom'!E13),\"\",'Timeless Wisdom'!E13)","v":""},{"$f":"IF(ISBLANK('Timeless Wisdom'!F13),\"\",'Timeless Wisdom'!F13)","v":""},{"$f":"IF(ISBLANK('Timeless Wisdom'!G13),\"\",TEXT('Timeless Wisdom'!G13, \"General\"))","v":""},null,"HIDE",null,null,null,null,null,"",null,null,null,null,null,{"$f":"IFERROR(VLOOKUP($AF216,Lists!$A$2:$B$6,2,FALSE),IF(PresentationSortBy=ListsSortExpHigh,-9999999,9999999))","v":9999999},"",999999,999999,"!",false,false,false,false,null,null,null,null," "]
[{"$f":"IF(ISBLANK('Timeless Wisdom'!A14),\"\",'Timeless Wisdom'!A14)","v":"The Buddha"},{"$f":"IF(ISBLANK('Timeless Wisdom'!B14),\"\",'Timeless Wisdom'!B14)","v":"Twin Verses"},{"$f":"IF(ISBLANK('Timeless Wisdom'!C14),\"\",'Timeless Wisdom'!C14)","v":41},{"$f":"IF(ISBLANK('Timeless Wisdom'!D14),\"\",'Timeless Wisdom'!D14)","v":""},{"$f":"IF(ISBLANK('Timeless Wisdom'!E14),\"\",'Timeless Wisdom'!E14)","v":""},{"$f":"IF(ISBLANK('Timeless Wisdom'!F14),\"\",'Timeless Wisdom'!F14)","v":""},{"$f":"IF(ISBLANK('Timeless Wisdom'!G14),\"\",TEXT('Timeless Wisdom'!G14, \"General\"))","v":""},null,"HIDE",null,null,null,null,null,"",null,null,null,null,null,{"$f":"IFERROR(VLOOKUP($AF217,Lists!$A$2:$B$6,2,FALSE),IF(PresentationSortBy=ListsSortExpHigh,-9999999,9999999))","v":9999999},"",999999,999999,"!",false,false,false,false,null,null,null,null," "]
[{"$f":"IF(ISBLANK('Timeless Wisdom'!A15),\"\",'Timeless Wisdom'!A15)","v":"St. Symeon the New Theologian"},{"$f":"IF(ISBLANK('Timeless Wisdom'!B15),\"\",'Timeless Wisdom'!B15)","v":"I Know That He Reveals Himself"},{"$f":"IF(ISBLANK('Timeless Wisdom'!C15),\"\",'Timeless Wisdom'!C15)","v":44},{"$f":"IF(ISBLANK('Timeless Wisdom'!D15),\"\",'Timeless Wisdom'!D15)","v":""},{"$f":"IF(ISBLANK('Timeless Wisdom'!E15),\"\",'Timeless Wisdom'!E15)","v":""},{"$f":"IF(ISBLANK('Timeless Wisdom'!F15),\"\",'Timeless Wisdom'!F15)","v":""},{"$f":"IF(ISBLANK('Timeless Wisdom'!G15),\"\",TEXT('Timeless Wisdom'!G15, \"General\"))","v":""},null,"HIDE",null,null,null,null,null,"",null,null,null,null,null,{"$f":"IFERROR(VLOOKUP($AF218,Lists!$A$2:$B$6,2,FALSE),IF(PresentationSortBy=ListsSortExpHigh,-9999999,9999999))","v":9999999},"",999999,999999,"!",false,false,false,false,null,null,null,null," "]
[{"$f":"IF(ISBLANK('Timeless Wisdom'!A16),\"\",'Timeless Wisdom'!A16)","v":"Dov Baer of Mezhirech"},{"$f":"IF(ISBLANK('Timeless Wisdom'!B16),\"\",'Timeless Wisdom'!B16)","v":"Cast Aside What Limits You"},{"$f":"IF(ISBLANK('Timeless Wisdom'!C16),\"\",'Timeless Wisdom'!C16)","v":45},{"$f":"IF(ISBLANK('Timeless Wisdom'!D16),\"\",'Timeless Wisdom'!D16)","v":""},{"$f":"IF(ISBLANK('Timeless Wisdom'!E16),\"\",'Timeless Wisdom'!E16)","v":""},{"$f":"IF(ISBLANK('Timeless Wisdom'!F16),\"\",'Timeless Wisdom'!F16)","v":""},{"$f":"IF(ISBLANK('Timeless Wisdom'!G16),\"\",TEXT('Timeless Wisdom'!G16, \"General\"))","v":""},null,"HIDE",null,null,null,null,null,"",null,null,null,null,null,{"$f":"IFERROR(VLOOKUP($AF219,Lists!$A$2:$B$6,2,FALSE),IF(PresentationSortBy=ListsSortExpHigh,-9999999,9999999))","v":9999999},"",999999,999999,"!",false,false,false,false,null,null,null,null," "]
[{"$f":"IF(ISBLANK('Timeless Wisdom'!A17),\"\",'Timeless Wisdom'!A17)","v":"Bhagavad Gita"},{"$f":"IF(ISBLANK('Timeless Wisdom'!B17),\"\",'Timeless Wisdom'!B17)","v":"The Way of Love"},{"$f":"IF(ISBLANK('Timeless Wisdom'!C17),\"\",'Timeless Wisdom'!C17)","v":46},{"$f":"IF(ISBLANK('Timeless Wisdom'!D17),\"\",'Timeless Wisdom'!D17)","v":""},{"$f":"IF(ISBLANK('Timeless Wisdom'!E17),\"\",'Timeless Wisdom'!E17)","v":""},{"$f":"IF(ISBLANK('Timeless Wisdom'!F17),\"\",'Timeless Wisdom'!F17)","v":""},{"$f":"IF(ISBLANK('Timeless Wisdom'!G17),\"\",TEXT('Timeless Wisdom'!G17, \"General\"))","v":""},null,"HIDE",null,null,null,null,null,"",null,null,null,null,null,{"$f":"IFERROR(VLOOKUP($AF220,Lists!$A$2:$B$6,2,FALSE),IF(PresentationSortBy=ListsSortExpHigh,-9999999,9999999))","v":9999999},"",999999,999999,"!",false,false,false,false,null,null,null,null," "]
[{"$f":"IF(ISBLANK('Timeless Wisdom'!A18),\"\",'Timeless Wisdom'!A18)","v":"Gospel of St. Matthew"},{"$f":"IF(ISBLANK('Timeless Wisdom'!B18),\"\",'Timeless Wisdom'!B18)","v":"The Beatitudes"},{"$f":"IF(ISBLANK('Timeless Wisdom'!C18),\"\",'Timeless Wisdom'!C18)","v":49},{"$f":"IF(ISBLANK('Timeless Wisdom'!D18),\"\",'Timeless Wisdom'!D18)","v":""},{"$f":"IF(ISBLANK('Timeless Wisdom'!E18),\"\",'Timeless Wisdom'!E18)","v":""},{"$f":"IF(ISBLANK('Timeless Wisdom'!F18),\"\",'Timeless Wisdom'!F18)","v":""},{"$f":"IF(ISBLANK('Timeless Wisdom'!G18),\"\",TEXT('Timeless Wisdom'!G18, \"General\"))","v":""},null,"HIDE",null,null,null,null,null,"",null,null,null,null,null,{"$f":"IFERROR(VLOOKUP($AF221,Lists!$A$2:$B$6,2,FALSE),IF(PresentationSortBy=ListsSortExpHigh,-9999999,9999999))","v":9999999},"",999999,999999,"!",false,false,false,false,null,null,null,null," "]
[{"$f":"IF(ISBLANK('Timeless Wisdom'!A19),\"\",'Timeless Wisdom'!A19)","v":"Kabir"},{"$f":"IF(ISBLANK('Timeless Wisdom'!B19),\"\",'Timeless Wisdom'!B19)","v":"The Unstruck Bells and Drums"},{"$f":"IF(ISBLANK('Timeless Wisdom'!C19),\"\",'Timeless Wisdom'!C19)","v":51},{"$f":"IF(ISBLANK('Timeless Wisdom'!D19),\"\",'Timeless Wisdom'!D19)","v":""},{"$f":"IF(ISBLANK('Timeless Wisdom'!E19),\"\",'Timeless Wisdom'!E19)","v":""},{"$f":"IF(ISBLANK('Timeless Wisdom'!F19),\"\",'Timeless Wisdom'!F19)","v":""},{"$f":"IF(ISBLANK('Timeless Wisdom'!G19),\"\",TEXT('Timeless Wisdom'!G19, \"General\"))","v":""},null,"HIDE",null,null,null,null,null,"",null,null,null,null,null,{"$f":"IFERROR(VLOOKUP($AF222,Lists!$A$2:$B$6,2,FALSE),IF(PresentationSortBy=ListsSortExpHigh,-9999999,9999999))","v":9999999},"",999999,999999,"!",false,false,false,false,null,null,null,null," "]
[{"$f":"IF(ISBLANK('Timeless Wisdom'!A20),\"\",'Timeless Wisdom'!A20)","v":"Thomas à Kempis"},{"$f":"IF(ISBLANK('Timeless Wisdom'!B20),\"\",'Timeless Wisdom'!B20)","v":"The Wonderful Effect of Divine Love"},{"$f":"IF(ISBLANK('Timeless Wisdom'!C20),\"\",'Timeless Wisdom'!C20)","v":53},{"$f":"IF(ISBLANK('Timeless Wisdom'!D20),\"\",'Timeless Wisdom'!D20)","v":""},{"$f":"IF(ISBLANK('Timeless Wisdom'!E20),\"\",'Timeless Wisdom'!E20)","v":""},{"$f":"IF(ISBLANK('Timeless Wisdom'!F20),\"\",'Timeless Wisdom'!F20)","v":""},{"$f":"IF(ISBLANK('Timeless Wisdom'!G20),\"\",TEXT('Timeless Wisdom'!G20, \"General\"))","v":""},null,"HIDE",null,null,null,null,null,"",null,null,null,null,null,{"$f":"IFERROR(VLOOKUP($AF223,Lists!$A$2:$B$6,2,FALSE),IF(PresentationSortBy=ListsSortExpHigh,-9999999,9999999))","v":9999999},"",999999,999999,"!",false,false,false,false,null,null,null,null," "]
[{"$f":"IF(ISBLANK('Timeless Wisdom'!A21),\"\",'Timeless Wisdom'!A21)","v":"Swami Omkar"},{"$f":"IF(ISBLANK('Timeless Wisdom'!B21),\"\",'Timeless Wisdom'!B21)","v":"Prayer for Peace"},{"$f":"IF(ISBLANK('Timeless Wisdom'!C21),\"\",'Timeless Wisdom'!C21)","v":57},{"$f":"IF(ISBLANK('Timeless Wisdom'!D21),\"\",'Timeless Wisdom'!D21)","v":""},{"$f":"IF(ISBLANK('Timeless Wisdom'!E21),\"\",'Timeless Wisdom'!E21)","v":""},{"$f":"IF(ISBLANK('Timeless Wisdom'!F21),\"\",'Timeless Wisdom'!F21)","v":""},{"$f":"IF(ISBLANK('Timeless Wisdom'!G21),\"\",TEXT('Timeless Wisdom'!G21, \"General\"))","v":""},null,"HIDE",null,null,null,null,null,"",null,null,null,null,null,{"$f":"IFERROR(VLOOKUP($AF224,Lists!$A$2:$B$6,2,FALSE),IF(PresentationSortBy=ListsSortExpHigh,-9999999,9999999))","v":9999999},"",999999,999999,"!",false,false,false,false,null,null,null,null," "]
[{"$f":"IF(ISBLANK('Timeless Wisdom'!A22),\"\",'Timeless Wisdom'!A22)","v":"Rabi'a"},{"$f":"IF(ISBLANK('Timeless Wisdom'!B22),\"\",'Timeless Wisdom'!B22)","v":"Dawn Prayer"},{"$f":"IF(ISBLANK('Timeless Wisdom'!C22),\"\",'Timeless Wisdom'!C22)","v":58},{"$f":"IF(ISBLANK('Timeless Wisdom'!D22),\"\",'Timeless Wisdom'!D22)","v":""},{"$f":"IF(ISBLANK('Timeless Wisdom'!E22),\"\",'Timeless Wisdom'!E22)","v":""},{"$f":"IF(ISBLANK('Timeless Wisdom'!F22),\"\",'Timeless Wisdom'!F22)","v":""},{"$f":"IF(ISBLANK('Timeless Wisdom'!G22),\"\",TEXT('Timeless Wisdom'!G22, \"General\"))","v":""},null,"HIDE",null,null,null,null,null,"",null,null,null,null,null,{"$f":"IFERROR(VLOOKUP($AF225,Lists!$A$2:$B$6,2,FALSE),IF(PresentationSortBy=ListsSortExpHigh,-9999999,9999999))","v":9999999},"",999999,999999,"!",false,false,false,false,null,null,null,null," "]
[{"$f":"IF(ISBLANK('Timeless Wisdom'!A23),\"\",'Timeless Wisdom'!A23)","v":"Eleazar Azikri"},{"$f":"IF(ISBLANK('Timeless Wisdom'!B23),\"\",'Timeless Wisdom'!B23)","v":"Beloved of the Soul"},{"$f":"IF(ISBLANK('Timeless Wisdom'!C23),\"\",'Timeless Wisdom'!C23)","v":59},{"$f":"IF(ISBLANK('Timeless Wisdom'!D23),\"\",'Timeless Wisdom'!D23)","v":""},{"$f":"IF(ISBLANK('Timeless Wisdom'!E23),\"\",'Timeless Wisdom'!E23)","v":""},{"$f":"IF(ISBLANK('Timeless Wisdom'!F23),\"\",'Timeless Wisdom'!F23)","v":""},{"$f":"IF(ISBLANK('Timeless Wisdom'!G23),\"\",TEXT('Timeless Wisdom'!G23, \"General\"))","v":""},null,"HIDE",null,null,null,null,null,"",null,null,null,null,null,{"$f":"IFERROR(VLOOKUP($AF226,Lists!$A$2:$B$6,2,FALSE),IF(PresentationSortBy=ListsSortExpHigh,-9999999,9999999))","v":9999999},"",999999,999999,"!",false,false,false,false,null,null,null,null," "]
[{"$f":"IF(ISBLANK('Timeless Wisdom'!A24),\"\",'Timeless Wisdom'!A24)","v":"Psalm 23"},{"$f":"IF(ISBLANK('Timeless Wisdom'!B24),\"\",'Timeless Wisdom'!B24)","v":"The Lord Is My Shepherd"},{"$f":"IF(ISBLANK('Timeless Wisdom'!C24),\"\",'Timeless Wisdom'!C24)","v":60},{"$f":"IF(ISBLANK('Timeless Wisdom'!D24),\"\",'Timeless Wisdom'!D24)","v":""},{"$f":"IF(ISBLANK('Timeless Wisdom'!E24),\"\",'Timeless Wisdom'!E24)","v":""},{"$f":"IF(ISBLANK('Timeless Wisdom'!F24),\"\",'Timeless Wisdom'!F24)","v":""},{"$f":"IF(ISBLANK('Timeless Wisdom'!G24),\"\",TEXT('Timeless Wisdom'!G24, \"General\"))","v":""},null,"HIDE",null,null,null,null,null,"",null,null,null,null,null,{"$f":"IFERROR(VLOOKUP($AF227,Lists!$A$2:$B$6,2,FALSE),IF(PresentationSortBy=ListsSortExpHigh,-9999999,9999999))","v":9999999},"",999999,999999,"!",false,false,false,false,null,null,null,null," "]
[{"$f":"IF(ISBLANK('Timeless Wisdom'!A25),\"\",'Timeless Wisdom'!A25)","v":"The Buddha"},{"$f":"IF(ISBLANK('Timeless Wisdom'!B25),\"\",'Timeless Wisdom'!B25)","v":"Discourse on Good Will"},{"$f":"IF(ISBLANK('Timeless Wisdom'!C25),\"\",'Timeless Wisdom'!C25)","v":61},{"$f":"IF(ISBLANK('Timeless Wisdom'!D25),\"\",'Timeless Wisdom'!D25)","v":""},{"$f":"IF(ISBLANK('Timeless Wisdom'!E25),\"\",'Timeless Wisdom'!E25)","v":""},{"$f":"IF(ISBLANK('Timeless Wisdom'!F25),\"\",'Timeless Wisdom'!F25)","v":""},{"$f":"IF(ISBLANK('Timeless Wisdom'!G25),\"\",TEXT('Timeless Wisdom'!G25, \"General\"))","v":""},null,"HIDE",null,null,null,null,null,"",null,null,null,null,null,{"$f":"IFERROR(VLOOKUP($AF228,Lists!$A$2:$B$6,2,FALSE),IF(PresentationSortBy=ListsSortExpHigh,-9999999,9999999))","v":9999999},"",999999,999999,"!",false,false,false,false,null,null,null,null," "]
[{"$f":"IF(ISBLANK('Timeless Wisdom'!A26),\"\",'Timeless Wisdom'!A26)","v":"Ansari ofHerat"},{"$f":"IF(ISBLANK('Timeless Wisdom'!B26),\"\",'Timeless Wisdom'!B26)","v":"Invocations"},{"$f":"IF(ISBLANK('Timeless Wisdom'!C26),\"\",'Timeless Wisdom'!C26)","v":63},{"$f":"IF(ISBLANK('Timeless Wisdom'!D26),\"\",'Timeless Wisdom'!D26)","v":""},{"$f":"IF(ISBLANK('Timeless Wisdom'!E26),\"\",'Timeless Wisdom'!E26)","v":""},{"$f":"IF(ISBLANK('Timeless Wisdom'!F26),\"\",'Timeless Wisdom'!F26)","v":""},{"$f":"IF(ISBLANK('Timeless Wisdom'!G26),\"\",TEXT('Timeless Wisdom'!G26, \"General\"))","v":""},null,"HIDE",null,null,null,null,null,"",null,null,null,null,null,{"$f":"IFERROR(VLOOKUP($AF229,Lists!$A$2:$B$6,2,FALSE),IF(PresentationSortBy=ListsSortExpHigh,-9999999,9999999))","v":9999999},"",999999,999999,"!",false,false,false,false,null,null,null,null," "]
[{"$f":"IF(ISBLANK('Timeless Wisdom'!A27),\"\",'Timeless Wisdom'!A27)","v":"Bhagavad Gita"},{"$f":"IF(ISBLANK('Timeless Wisdom'!B27),\"\",'Timeless Wisdom'!B27)","v":"Whatever You Do"},{"$f":"IF(ISBLANK('Timeless Wisdom'!C27),\"\",'Timeless Wisdom'!C27)","v":72},{"$f":"IF(ISBLANK('Timeless Wisdom'!D27),\"\",'Timeless Wisdom'!D27)","v":""},{"$f":"IF(ISBLANK('Timeless Wisdom'!E27),\"\",'Timeless Wisdom'!E27)","v":""},{"$f":"IF(ISBLANK('Timeless Wisdom'!F27),\"\",'Timeless Wisdom'!F27)","v":""},{"$f":"IF(ISBLANK('Timeless Wisdom'!G27),\"\",TEXT('Timeless Wisdom'!G27, \"General\"))","v":""},null,"HIDE",null,null,null,null,null,"",null,null,null,null,null,{"$f":"IFERROR(VLOOKUP($AF230,Lists!$A$2:$B$6,2,FALSE),IF(PresentationSortBy=ListsSortExpHigh,-9999999,9999999))","v":9999999},"",999999,999999,"!",false,false,false,false,null,null,null,null," "]
[{"$f":"IF(ISBLANK('Timeless Wisdom'!A28),\"\",'Timeless Wisdom'!A28)","v":"Brother Lawrence"},{"$f":"IF(ISBLANK('Timeless Wisdom'!B28),\"\",'Timeless Wisdom'!B28)","v":"Practicing the Presence of God"},{"$f":"IF(ISBLANK('Timeless Wisdom'!C28),\"\",'Timeless Wisdom'!C28)","v":74},{"$f":"IF(ISBLANK('Timeless Wisdom'!D28),\"\",'Timeless Wisdom'!D28)","v":""},{"$f":"IF(ISBLANK('Timeless Wisdom'!E28),\"\",'Timeless Wisdom'!E28)","v":""},{"$f":"IF(ISBLANK('Timeless Wisdom'!F28),\"\",'Timeless Wisdom'!F28)","v":""},{"$f":"IF(ISBLANK('Timeless Wisdom'!G28),\"\",TEXT('Timeless Wisdom'!G28, \"General\"))","v":""},null,"HIDE",null,null,null,null,null,"",null,null,null,null,null,{"$f":"IFERROR(VLOOKUP($AF231,Lists!$A$2:$B$6,2,FALSE),IF(PresentationSortBy=ListsSortExpHigh,-9999999,9999999))","v":9999999},"",999999,999999,"!",false,false,false,false,null,null,null,null," "]
[{"$f":"IF(ISBLANK('Timeless Wisdom'!A29),\"\",'Timeless Wisdom'!A29)","v":"Shantideva"},{"$f":"IF(ISBLANK('Timeless Wisdom'!B29),\"\",'Timeless Wisdom'!B29)","v":"The Miracle of Illumination"},{"$f":"IF(ISBLANK('Timeless Wisdom'!C29),\"\",'Timeless Wisdom'!C29)","v":76},{"$f":"IF(ISBLANK('Timeless Wisdom'!D29),\"\",'Timeless Wisdom'!D29)","v":""},{"$f":"IF(ISBLANK('Timeless Wisdom'!E29),\"\",'Timeless Wisdom'!E29)","v":""},{"$f":"IF(ISBLANK('Timeless Wisdom'!F29),\"\",'Timeless Wisdom'!F29)","v":""},{"$f":"IF(ISBLANK('Timeless Wisdom'!G29),\"\",TEXT('Timeless Wisdom'!G29, \"General\"))","v":""},null,"HIDE",null,null,null,null,null,"",null,null,null,null,null,{"$f":"IFERROR(VLOOKUP($AF232,Lists!$A$2:$B$6,2,FALSE),IF(PresentationSortBy=ListsSortExpHigh,-9999999,9999999))","v":9999999},"",999999,999999,"!",false,false,false,false,null,null,null,null," "]
[{"$f":"IF(ISBLANK('Timeless Wisdom'!A30),\"\",'Timeless Wisdom'!A30)","v":"Psalm 119"},{"$f":"IF(ISBLANK('Timeless Wisdom'!B30),\"\",'Timeless Wisdom'!B30)","v":"I Am the One Who Will Never Forget You"},{"$f":"IF(ISBLANK('Timeless Wisdom'!C30),\"\",'Timeless Wisdom'!C30)","v":77},{"$f":"IF(ISBLANK('Timeless Wisdom'!D30),\"\",'Timeless Wisdom'!D30)","v":""},{"$f":"IF(ISBLANK('Timeless Wisdom'!E30),\"\",'Timeless Wisdom'!E30)","v":""},{"$f":"IF(ISBLANK('Timeless Wisdom'!F30),\"\",'Timeless Wisdom'!F30)","v":""},{"$f":"IF(ISBLANK('Timeless Wisdom'!G30),\"\",TEXT('Timeless Wisdom'!G30, \"General\"))","v":""},null,"HIDE",null,null,null,null,null,"",null,null,null,null,null,{"$f":"IFERROR(VLOOKUP($AF233,Lists!$A$2:$B$6,2,FALSE),IF(PresentationSortBy=ListsSortExpHigh,-9999999,9999999))","v":9999999},"",999999,999999,"!",false,false,false,false,null,null,null,null," "]
[{"$f":"IF(ISBLANK('Timeless Wisdom'!A31),\"\",'Timeless Wisdom'!A31)","v":"Sarada Devi"},{"$f":"IF(ISBLANK('Timeless Wisdom'!B31),\"\",'Timeless Wisdom'!B31)","v":"The Whole World Is Your Own"},{"$f":"IF(ISBLANK('Timeless Wisdom'!C31),\"\",'Timeless Wisdom'!C31)","v":84},{"$f":"IF(ISBLANK('Timeless Wisdom'!D31),\"\",'Timeless Wisdom'!D31)","v":""},{"$f":"IF(ISBLANK('Timeless Wisdom'!E31),\"\",'Timeless Wisdom'!E31)","v":""},{"$f":"IF(ISBLANK('Timeless Wisdom'!F31),\"\",'Timeless Wisdom'!F31)","v":""},{"$f":"IF(ISBLANK('Timeless Wisdom'!G31),\"\",TEXT('Timeless Wisdom'!G31, \"General\"))","v":""},null,"HIDE",null,null,null,null,null,"",null,null,null,null,null,{"$f":"IFERROR(VLOOKUP($AF234,Lists!$A$2:$B$6,2,FALSE),IF(PresentationSortBy=ListsSortExpHigh,-9999999,9999999))","v":9999999},"",999999,999999,"!",false,false,false,false,null,null,null,null," "]
[{"$f":"IF(ISBLANK('Timeless Wisdom'!A32),\"\",'Timeless Wisdom'!A32)","v":"St. Paul"},{"$f":"IF(ISBLANK('Timeless Wisdom'!B32),\"\",'Timeless Wisdom'!B32)","v":"Epistle on Love"},{"$f":"IF(ISBLANK('Timeless Wisdom'!C32),\"\",'Timeless Wisdom'!C32)","v":85},{"$f":"IF(ISBLANK('Timeless Wisdom'!D32),\"\",'Timeless Wisdom'!D32)","v":""},{"$f":"IF(ISBLANK('Timeless Wisdom'!E32),\"\",'Timeless Wisdom'!E32)","v":""},{"$f":"IF(ISBLANK('Timeless Wisdom'!F32),\"\",'Timeless Wisdom'!F32)","v":""},{"$f":"IF(ISBLANK('Timeless Wisdom'!G32),\"\",TEXT('Timeless Wisdom'!G32, \"General\"))","v":""},null,"HIDE",null,null,null,null,null,"",null,null,null,null,null,{"$f":"IFERROR(VLOOKUP($AF235,Lists!$A$2:$B$6,2,FALSE),IF(PresentationSortBy=ListsSortExpHigh,-9999999,9999999))","v":9999999},"",999999,999999,"!",false,false,false,false,null,null,null,null," "]
[{"$f":"IF(ISBLANK('Timeless Wisdom'!A33),\"\",'Timeless Wisdom'!A33)","v":"Bhagavad Gita"},{"$f":"IF(ISBLANK('Timeless Wisdom'!B33),\"\",'Timeless Wisdom'!B33)","v":"What Is Real Never Ceases"},{"$f":"IF(ISBLANK('Timeless Wisdom'!C33),\"\",'Timeless Wisdom'!C33)","v":86},{"$f":"IF(ISBLANK('Timeless Wisdom'!D33),\"\",'Timeless Wisdom'!D33)","v":""},{"$f":"IF(ISBLANK('Timeless Wisdom'!E33),\"\",'Timeless Wisdom'!E33)","v":""},{"$f":"IF(ISBLANK('Timeless Wisdom'!F33),\"\",'Timeless Wisdom'!F33)","v":""},{"$f":"IF(ISBLANK('Timeless Wisdom'!G33),\"\",TEXT('Timeless Wisdom'!G33, \"General\"))","v":""},null,"HIDE",null,null,null,null,null,"",null,null,null,null,null,{"$f":"IFERROR(VLOOKUP($AF236,Lists!$A$2:$B$6,2,FALSE),IF(PresentationSortBy=ListsSortExpHigh,-9999999,9999999))","v":9999999},"",999999,999999,"!",false,false,false,false,null,null,null,null," "]
[{"$f":"IF(ISBLANK('Timeless Wisdom'!A34),\"\",'Timeless Wisdom'!A34)","v":"Lao Tzu"},{"$f":"IF(ISBLANK('Timeless Wisdom'!B34),\"\",'Timeless Wisdom'!B34)","v":"The Best"},{"$f":"IF(ISBLANK('Timeless Wisdom'!C34),\"\",'Timeless Wisdom'!C34)","v":89},{"$f":"IF(ISBLANK('Timeless Wisdom'!D34),\"\",'Timeless Wisdom'!D34)","v":""},{"$f":"IF(ISBLANK('Timeless Wisdom'!E34),\"\",'Timeless Wisdom'!E34)","v":""},{"$f":"IF(ISBLANK('Timeless Wisdom'!F34),\"\",'Timeless Wisdom'!F34)","v":""},{"$f":"IF(ISBLANK('Timeless Wisdom'!G34),\"\",TEXT('Timeless Wisdom'!G34, \"General\"))","v":""},null,"HIDE",null,null,null,null,null,"",null,null,null,null,null,{"$f":"IFERROR(VLOOKUP($AF237,Lists!$A$2:$B$6,2,FALSE),IF(PresentationSortBy=ListsSortExpHigh,-9999999,9999999))","v":9999999},"",999999,999999,"!",false,false,false,false,null,null,null,null," "]
[{"$f":"IF(ISBLANK('Timeless Wisdom'!A35),\"\",'Timeless Wisdom'!A35)","v":"St. Patrick"},{"$f":"IF(ISBLANK('Timeless Wisdom'!B35),\"\",'Timeless Wisdom'!B35)","v":"Christ Be With Me"},{"$f":"IF(ISBLANK('Timeless Wisdom'!C35),\"\",'Timeless Wisdom'!C35)","v":90},{"$f":"IF(ISBLANK('Timeless Wisdom'!D35),\"\",'Timeless Wisdom'!D35)","v":""},{"$f":"IF(ISBLANK('Timeless Wisdom'!E35),\"\",'Timeless Wisdom'!E35)","v":""},{"$f":"IF(ISBLANK('Timeless Wisdom'!F35),\"\",'Timeless Wisdom'!F35)","v":""},{"$f":"IF(ISBLANK('Timeless Wisdom'!G35),\"\",TEXT('Timeless Wisdom'!G35, \"General\"))","v":""},null,"HIDE",null,null,null,null,null,"",null,null,null,null,null,{"$f":"IFERROR(VLOOKUP($AF238,Lists!$A$2:$B$6,2,FALSE),IF(PresentationSortBy=ListsSortExpHigh,-9999999,9999999))","v":9999999},"",999999,999999,"!",false,false,false,false,null,null,null,null," "]
[{"$f":"IF(ISBLANK('Timeless Wisdom'!A36),\"\",'Timeless Wisdom'!A36)","v":"Jewish Liturgy"},{"$f":"IF(ISBLANK('Timeless Wisdom'!B36),\"\",'Timeless Wisdom'!B36)","v":"Sabbath Prayer"},{"$f":"IF(ISBLANK('Timeless Wisdom'!C36),\"\",'Timeless Wisdom'!C36)","v":91},{"$f":"IF(ISBLANK('Timeless Wisdom'!D36),\"\",'Timeless Wisdom'!D36)","v":""},{"$f":"IF(ISBLANK('Timeless Wisdom'!E36),\"\",'Timeless Wisdom'!E36)","v":""},{"$f":"IF(ISBLANK('Timeless Wisdom'!F36),\"\",'Timeless Wisdom'!F36)","v":""},{"$f":"IF(ISBLANK('Timeless Wisdom'!G36),\"\",TEXT('Timeless Wisdom'!G36, \"General\"))","v":""},null,"HIDE",null,null,null,null,null,"",null,null,null,null,null,{"$f":"IFERROR(VLOOKUP($AF239,Lists!$A$2:$B$6,2,FALSE),IF(PresentationSortBy=ListsSortExpHigh,-9999999,9999999))","v":9999999},"",999999,999999,"!",false,false,false,false,null,null,null,null," "]
[{"$f":"IF(ISBLANK('Timeless Wisdom'!A37),\"\",'Timeless Wisdom'!A37)","v":"Thomas à Kempis"},{"$f":"IF(ISBLANK('Timeless Wisdom'!B37),\"\",'Timeless Wisdom'!B37)","v":"Lord That Giveth Strength"},{"$f":"IF(ISBLANK('Timeless Wisdom'!C37),\"\",'Timeless Wisdom'!C37)","v":92},{"$f":"IF(ISBLANK('Timeless Wisdom'!D37),\"\",'Timeless Wisdom'!D37)","v":""},{"$f":"IF(ISBLANK('Timeless Wisdom'!E37),\"\",'Timeless Wisdom'!E37)","v":""},{"$f":"IF(ISBLANK('Timeless Wisdom'!F37),\"\",'Timeless Wisdom'!F37)","v":""},{"$f":"IF(ISBLANK('Timeless Wisdom'!G37),\"\",TEXT('Timeless Wisdom'!G37, \"General\"))","v":""},null,"HIDE",null,null,null,null,null,"",null,null,null,null,null,{"$f":"IFERROR(VLOOKUP($AF240,Lists!$A$2:$B$6,2,FALSE),IF(PresentationSortBy=ListsSortExpHigh,-9999999,9999999))","v":9999999},"",999999,999999,"!",false,false,false,false,null,null,null,null," "]
[{"$f":"IF(ISBLANK('Timeless Wisdom'!A38),\"\",'Timeless Wisdom'!A38)","v":"Mahmud Shabestari"},{"$f":"IF(ISBLANK('Timeless Wisdom'!B38),\"\",'Timeless Wisdom'!B38)","v":"The Mirror of this World"},{"$f":"IF(ISBLANK('Timeless Wisdom'!C38),\"\",'Timeless Wisdom'!C38)","v":96},{"$f":"IF(ISBLANK('Timeless Wisdom'!D38),\"\",'Timeless Wisdom'!D38)","v":""},{"$f":"IF(ISBLANK('Timeless Wisdom'!E38),\"\",'Timeless Wisdom'!E38)","v":""},{"$f":"IF(ISBLANK('Timeless Wisdom'!F38),\"\",'Timeless Wisdom'!F38)","v":""},{"$f":"IF(ISBLANK('Timeless Wisdom'!G38),\"\",TEXT('Timeless Wisdom'!G38, \"General\"))","v":""},null,"HIDE",null,null,null,null,null,"",null,null,null,null,null,{"$f":"IFERROR(VLOOKUP($AF241,Lists!$A$2:$B$6,2,FALSE),IF(PresentationSortBy=ListsSortExpHigh,-9999999,9999999))","v":9999999},"",999999,999999,"!",false,false,false,false,null,null,null,null," "]
[{"$f":"IF(ISBLANK('Timeless Wisdom'!A39),\"\",'Timeless Wisdom'!A39)","v":"Katha Upanishad"},{"$f":"IF(ISBLANK('Timeless Wisdom'!B39),\"\",'Timeless Wisdom'!B39)","v":"Perennial Joy"},{"$f":"IF(ISBLANK('Timeless Wisdom'!C39),\"\",'Timeless Wisdom'!C39)","v":97},{"$f":"IF(ISBLANK('Timeless Wisdom'!D39),\"\",'Timeless Wisdom'!D39)","v":""},{"$f":"IF(ISBLANK('Timeless Wisdom'!E39),\"\",'Timeless Wisdom'!E39)","v":""},{"$f":"IF(ISBLANK('Timeless Wisdom'!F39),\"\",'Timeless Wisdom'!F39)","v":""},{"$f":"IF(ISBLANK('Timeless Wisdom'!G39),\"\",TEXT('Timeless Wisdom'!G39, \"General\"))","v":""},null,"HIDE",null,null,null,null,null,"",null,null,null,null,null,{"$f":"IFERROR(VLOOKUP($AF242,Lists!$A$2:$B$6,2,FALSE),IF(PresentationSortBy=ListsSortExpHigh,-9999999,9999999))","v":9999999},"",999999,999999,"!",false,false,false,false,null,null,null,null," "]
[{"$f":"IF(ISBLANK('Timeless Wisdom'!A40),\"\",'Timeless Wisdom'!A40)","v":"Solomon ibn Gabirol"},{"$f":"IF(ISBLANK('Timeless Wisdom'!B40),\"\",'Timeless Wisdom'!B40)","v":"The Living God"},{"$f":"IF(ISBLANK('Timeless Wisdom'!C40),\"\",'Timeless Wisdom'!C40)","v":103},{"$f":"IF(ISBLANK('Timeless Wisdom'!D40),\"\",'Timeless Wisdom'!D40)","v":""},{"$f":"IF(ISBLANK('Timeless Wisdom'!E40),\"\",'Timeless Wisdom'!E40)","v":""},{"$f":"IF(ISBLANK('Timeless Wisdom'!F40),\"\",'Timeless Wisdom'!F40)","v":""},{"$f":"IF(ISBLANK('Timeless Wisdom'!G40),\"\",TEXT('Timeless Wisdom'!G40, \"General\"))","v":""},null,"HIDE",null,null,null,null,null,"",null,null,null,null,null,{"$f":"IFERROR(VLOOKUP($AF243,Lists!$A$2:$B$6,2,FALSE),IF(PresentationSortBy=ListsSortExpHigh,-9999999,9999999))","v":9999999},"",999999,999999,"!",false,false,false,false,null,null,null,null," "]
[{"$f":"IF(ISBLANK('Timeless Wisdom'!A41),\"\",'Timeless Wisdom'!A41)","v":"St. Catherine of Genoa"},{"$f":"IF(ISBLANK('Timeless Wisdom'!B41),\"\",'Timeless Wisdom'!B41)","v":"A Sea of Peace"},{"$f":"IF(ISBLANK('Timeless Wisdom'!C41),\"\",'Timeless Wisdom'!C41)","v":104},{"$f":"IF(ISBLANK('Timeless Wisdom'!D41),\"\",'Timeless Wisdom'!D41)","v":""},{"$f":"IF(ISBLANK('Timeless Wisdom'!E41),\"\",'Timeless Wisdom'!E41)","v":""},{"$f":"IF(ISBLANK('Timeless Wisdom'!F41),\"\",'Timeless Wisdom'!F41)","v":""},{"$f":"IF(ISBLANK('Timeless Wisdom'!G41),\"\",TEXT('Timeless Wisdom'!G41, \"General\"))","v":""},null,"HIDE",null,null,null,null,null,"",null,null,null,null,null,{"$f":"IFERROR(VLOOKUP($AF244,Lists!$A$2:$B$6,2,FALSE),IF(PresentationSortBy=ListsSortExpHigh,-9999999,9999999))","v":9999999},"",999999,999999,"!",false,false,false,false,null,null,null,null," "]
[{"$f":"IF(ISBLANK('Timeless Wisdom'!A42),\"\",'Timeless Wisdom'!A42)","v":"Chandogya Upanishad"},{"$f":"IF(ISBLANK('Timeless Wisdom'!B42),\"\",'Timeless Wisdom'!B42)","v":"You Are That"},{"$f":"IF(ISBLANK('Timeless Wisdom'!C42),\"\",'Timeless Wisdom'!C42)","v":105},{"$f":"IF(ISBLANK('Timeless Wisdom'!D42),\"\",'Timeless Wisdom'!D42)","v":""},{"$f":"IF(ISBLANK('Timeless Wisdom'!E42),\"\",'Timeless Wisdom'!E42)","v":""},{"$f":"IF(ISBLANK('Timeless Wisdom'!F42),\"\",'Timeless Wisdom'!F42)","v":""},{"$f":"IF(ISBLANK('Timeless Wisdom'!G42),\"\",TEXT('Timeless Wisdom'!G42, \"General\"))","v":""},null,"HIDE",null,null,null,null,null,"",null,null,null,null,null,{"$f":"IFERROR(VLOOKUP($AF245,Lists!$A$2:$B$6,2,FALSE),IF(PresentationSortBy=ListsSortExpHigh,-9999999,9999999))","v":9999999},"",999999,999999,"!",false,false,false,false,null,null,null,null," "]
[{"$f":"IF(ISBLANK('Timeless Wisdom'!A43),\"\",'Timeless Wisdom'!A43)","v":"The Buddha"},{"$f":"IF(ISBLANK('Timeless Wisdom'!B43),\"\",'Timeless Wisdom'!B43)","v":"Cross the River Bravely"},{"$f":"IF(ISBLANK('Timeless Wisdom'!C43),\"\",'Timeless Wisdom'!C43)","v":108},{"$f":"IF(ISBLANK('Timeless Wisdom'!D43),\"\",'Timeless Wisdom'!D43)","v":""},{"$f":"IF(ISBLANK('Timeless Wisdom'!E43),\"\",'Timeless Wisdom'!E43)","v":""},{"$f":"IF(ISBLANK('Timeless Wisdom'!F43),\"\",'Timeless Wisdom'!F43)","v":""},{"$f":"IF(ISBLANK('Timeless Wisdom'!G43),\"\",TEXT('Timeless Wisdom'!G43, \"General\"))","v":""},null,"HIDE",null,null,null,null,null,"",null,null,null,null,null,{"$f":"IFERROR(VLOOKUP($AF246,Lists!$A$2:$B$6,2,FALSE),IF(PresentationSortBy=ListsSortExpHigh,-9999999,9999999))","v":9999999},"",999999,999999,"!",false,false,false,false,null,null,null,null," "]
[{"$f":"IF(ISBLANK('Timeless Wisdom'!A44),\"\",'Timeless Wisdom'!A44)","v":"St. Francis de Sales"},{"$f":"IF(ISBLANK('Timeless Wisdom'!B44),\"\",'Timeless Wisdom'!B44)","v":"Do Not Look with Fear"},{"$f":"IF(ISBLANK('Timeless Wisdom'!C44),\"\",'Timeless Wisdom'!C44)","v":114},{"$f":"IF(ISBLANK('Timeless Wisdom'!D44),\"\",'Timeless Wisdom'!D44)","v":""},{"$f":"IF(ISBLANK('Timeless Wisdom'!E44),\"\",'Timeless Wisdom'!E44)","v":""},{"$f":"IF(ISBLANK('Timeless Wisdom'!F44),\"\",'Timeless Wisdom'!F44)","v":""},{"$f":"IF(ISBLANK('Timeless Wisdom'!G44),\"\",TEXT('Timeless Wisdom'!G44, \"General\"))","v":""},null,"HIDE",null,null,null,null,null,"",null,null,null,null,null,{"$f":"IFERROR(VLOOKUP($AF247,Lists!$A$2:$B$6,2,FALSE),IF(PresentationSortBy=ListsSortExpHigh,-9999999,9999999))","v":9999999},"",999999,999999,"!",false,false,false,false,null,null,null,null," "]
[{"$f":"IF(ISBLANK('Timeless Wisdom'!A45),\"\",'Timeless Wisdom'!A45)","v":"Bhagavad Gita"},{"$f":"IF(ISBLANK('Timeless Wisdom'!B45),\"\",'Timeless Wisdom'!B45)","v":"Living in Wisdom"},{"$f":"IF(ISBLANK('Timeless Wisdom'!C45),\"\",'Timeless Wisdom'!C45)","v":115},{"$f":"IF(ISBLANK('Timeless Wisdom'!D45),\"\",'Timeless Wisdom'!D45)","v":""},{"$f":"IF(ISBLANK('Timeless Wisdom'!E45),\"\",'Timeless Wisdom'!E45)","v":""},{"$f":"IF(ISBLANK('Timeless Wisdom'!F45),\"\",'Timeless Wisdom'!F45)","v":""},{"$f":"IF(ISBLANK('Timeless Wisdom'!G45),\"\",TEXT('Timeless Wisdom'!G45, \"General\"))","v":""},null,"HIDE",null,null,null,null,null,"",null,null,null,null,null,{"$f":"IFERROR(VLOOKUP($AF248,Lists!$A$2:$B$6,2,FALSE),IF(PresentationSortBy=ListsSortExpHigh,-9999999,9999999))","v":9999999},"",999999,999999,"!",false,false,false,false,null,null,null,null," "]
[{"$f":"IF(ISBLANK('Timeless Wisdom'!A46),\"\",'Timeless Wisdom'!A46)","v":"Native American"},{"$f":"IF(ISBLANK('Timeless Wisdom'!B46),\"\",'Timeless Wisdom'!B46)","v":"Great Life-Giving Spirit"},{"$f":"IF(ISBLANK('Timeless Wisdom'!C46),\"\",'Timeless Wisdom'!C46)","v":116},{"$f":"IF(ISBLANK('Timeless Wisdom'!D46),\"\",'Timeless Wisdom'!D46)","v":""},{"$f":"IF(ISBLANK('Timeless Wisdom'!E46),\"\",'Timeless Wisdom'!E46)","v":""},{"$f":"IF(ISBLANK('Timeless Wisdom'!F46),\"\",'Timeless Wisdom'!F46)","v":""},{"$f":"IF(ISBLANK('Timeless Wisdom'!G46),\"\",TEXT('Timeless Wisdom'!G46, \"General\"))","v":""},null,"HIDE",null,null,null,null,null,"",null,null,null,null,null,{"$f":"IFERROR(VLOOKUP($AF249,Lists!$A$2:$B$6,2,FALSE),IF(PresentationSortBy=ListsSortExpHigh,-9999999,9999999))","v":9999999},"",999999,999999,"!",false,false,false,false,null,null,null,null," "]
[{"$f":"IF(ISBLANK('Timeless Wisdom'!A47),\"\",'Timeless Wisdom'!A47)","v":"Gospel of St. Matthew"},{"$f":"IF(ISBLANK('Timeless Wisdom'!B47),\"\",'Timeless Wisdom'!B47)","v":"The Lord's Prayer"},{"$f":"IF(ISBLANK('Timeless Wisdom'!C47),\"\",'Timeless Wisdom'!C47)","v":121},{"$f":"IF(ISBLANK('Timeless Wisdom'!D47),\"\",'Timeless Wisdom'!D47)","v":""},{"$f":"IF(ISBLANK('Timeless Wisdom'!E47),\"\",'Timeless Wisdom'!E47)","v":""},{"$f":"IF(ISBLANK('Timeless Wisdom'!F47),\"\",'Timeless Wisdom'!F47)","v":""},{"$f":"IF(ISBLANK('Timeless Wisdom'!G47),\"\",TEXT('Timeless Wisdom'!G47, \"General\"))","v":""},null,"HIDE",null,null,null,null,null,"",null,null,null,null,null,{"$f":"IFERROR(VLOOKUP($AF250,Lists!$A$2:$B$6,2,FALSE),IF(PresentationSortBy=ListsSortExpHigh,-9999999,9999999))","v":9999999},"",999999,999999,"!",false,false,false,false,null,null,null,null," "]
[{"$f":"IF(ISBLANK('Timeless Wisdom'!A48),\"\",'Timeless Wisdom'!A48)","v":"Mahatma Gandhi"},{"$f":"IF(ISBLANK('Timeless Wisdom'!B48),\"\",'Timeless Wisdom'!B48)","v":"The Path"},{"$f":"IF(ISBLANK('Timeless Wisdom'!C48),\"\",'Timeless Wisdom'!C48)","v":122},{"$f":"IF(ISBLANK('Timeless Wisdom'!D48),\"\",'Timeless Wisdom'!D48)","v":""},{"$f":"IF(ISBLANK('Timeless Wisdom'!E48),\"\",'Timeless Wisdom'!E48)","v":""},{"$f":"IF(ISBLANK('Timeless Wisdom'!F48),\"\",'Timeless Wisdom'!F48)","v":""},{"$f":"IF(ISBLANK('Timeless Wisdom'!G48),\"\",TEXT('Timeless Wisdom'!G48, \"General\"))","v":""},null,"HIDE",null,null,null,null,null,"",null,null,null,null,null,{"$f":"IFERROR(VLOOKUP($AF251,Lists!$A$2:$B$6,2,FALSE),IF(PresentationSortBy=ListsSortExpHigh,-9999999,9999999))","v":9999999},"",999999,999999,"!",false,false,false,false,null,null,null,null," "]
[{"$f":"IF(ISBLANK('Timeless Wisdom'!A49),\"\",'Timeless Wisdom'!A49)","v":"Baba Kuhi ofShiraz"},{"$f":"IF(ISBLANK('Timeless Wisdom'!B49),\"\",'Timeless Wisdom'!B49)","v":"Only God I Saw"},{"$f":"IF(ISBLANK('Timeless Wisdom'!C49),\"\",'Timeless Wisdom'!C49)","v":123},{"$f":"IF(ISBLANK('Timeless Wisdom'!D49),\"\",'Timeless Wisdom'!D49)","v":""},{"$f":"IF(ISBLANK('Timeless Wisdom'!E49),\"\",'Timeless Wisdom'!E49)","v":""},{"$f":"IF(ISBLANK('Timeless Wisdom'!F49),\"\",'Timeless Wisdom'!F49)","v":""},{"$f":"IF(ISBLANK('Timeless Wisdom'!G49),\"\",TEXT('Timeless Wisdom'!G49, \"General\"))","v":""},null,"HIDE",null,null,null,null,null,"",null,null,null,null,null,{"$f":"IFERROR(VLOOKUP($AF252,Lists!$A$2:$B$6,2,FALSE),IF(PresentationSortBy=ListsSortExpHigh,-9999999,9999999))","v":9999999},"",999999,999999,"!",false,false,false,false,null,null,null,null," "]
[{"$f":"IF(ISBLANK('Timeless Wisdom'!A50),\"\",'Timeless Wisdom'!A50)","v":"Psalm 139"},{"$f":"IF(ISBLANK('Timeless Wisdom'!B50),\"\",'Timeless Wisdom'!B50)","v":"Lord, Thou Hast Searched Me"},{"$f":"IF(ISBLANK('Timeless Wisdom'!C50),\"\",'Timeless Wisdom'!C50)","v":124},{"$f":"IF(ISBLANK('Timeless Wisdom'!D50),\"\",'Timeless Wisdom'!D50)","v":""},{"$f":"IF(ISBLANK('Timeless Wisdom'!E50),\"\",'Timeless Wisdom'!E50)","v":""},{"$f":"IF(ISBLANK('Timeless Wisdom'!F50),\"\",'Timeless Wisdom'!F50)","v":""},{"$f":"IF(ISBLANK('Timeless Wisdom'!G50),\"\",TEXT('Timeless Wisdom'!G50, \"General\"))","v":""},null,"HIDE",null,null,null,null,null,"",null,null,null,null,null,{"$f":"IFERROR(VLOOKUP($AF253,Lists!$A$2:$B$6,2,FALSE),IF(PresentationSortBy=ListsSortExpHigh,-9999999,9999999))","v":9999999},"",999999,999999,"!",false,false,false,false,null,null,null,null," "]
[{"$f":"IF(ISBLANK('Timeless Wisdom'!A51),\"\",'Timeless Wisdom'!A51)","v":"Chandogya Upanishad"},{"$f":"IF(ISBLANK('Timeless Wisdom'!B51),\"\",'Timeless Wisdom'!B51)","v":"The City of Brahman"},{"$f":"IF(ISBLANK('Timeless Wisdom'!C51),\"\",'Timeless Wisdom'!C51)","v":127},{"$f":"IF(ISBLANK('Timeless Wisdom'!D51),\"\",'Timeless Wisdom'!D51)","v":""},{"$f":"IF(ISBLANK('Timeless Wisdom'!E51),\"\",'Timeless Wisdom'!E51)","v":""},{"$f":"IF(ISBLANK('Timeless Wisdom'!F51),\"\",'Timeless Wisdom'!F51)","v":""},{"$f":"IF(ISBLANK('Timeless Wisdom'!G51),\"\",TEXT('Timeless Wisdom'!G51, \"General\"))","v":""},null,"HIDE",null,null,null,null,null,"",null,null,null,null,null,{"$f":"IFERROR(VLOOKUP($AF254,Lists!$A$2:$B$6,2,FALSE),IF(PresentationSortBy=ListsSortExpHigh,-9999999,9999999))","v":9999999},"",999999,999999,"!",false,false,false,false,null,null,null,null," "]
[{"$f":"IF(ISBLANK('Timeless Wisdom'!A52),\"\",'Timeless Wisdom'!A52)","v":"Lao Tzu"},{"$f":"IF(ISBLANK('Timeless Wisdom'!B52),\"\",'Timeless Wisdom'!B52)","v":"Finding Unity"},{"$f":"IF(ISBLANK('Timeless Wisdom'!C52),\"\",'Timeless Wisdom'!C52)","v":130},{"$f":"IF(ISBLANK('Timeless Wisdom'!D52),\"\",'Timeless Wisdom'!D52)","v":""},{"$f":"IF(ISBLANK('Timeless Wisdom'!E52),\"\",'Timeless Wisdom'!E52)","v":""},{"$f":"IF(ISBLANK('Timeless Wisdom'!F52),\"\",'Timeless Wisdom'!F52)","v":""},{"$f":"IF(ISBLANK('Timeless Wisdom'!G52),\"\",TEXT('Timeless Wisdom'!G52, \"General\"))","v":""},null,"HIDE",null,null,null,null,null,"",null,null,null,null,null,{"$f":"IFERROR(VLOOKUP($AF255,Lists!$A$2:$B$6,2,FALSE),IF(PresentationSortBy=ListsSortExpHigh,-9999999,9999999))","v":9999999},"",999999,999999,"!",false,false,false,false,null,null,null,null," "]
[{"$f":"IF(ISBLANK('Timeless Wisdom'!A53),\"\",'Timeless Wisdom'!A53)","v":"Book of Common Prayer"},{"$f":"IF(ISBLANK('Timeless Wisdom'!B53),\"\",'Timeless Wisdom'!B53)","v":"I Am the Resurrection and the Life"},{"$f":"IF(ISBLANK('Timeless Wisdom'!C53),\"\",'Timeless Wisdom'!C53)","v":131},{"$f":"IF(ISBLANK('Timeless Wisdom'!D53),\"\",'Timeless Wisdom'!D53)","v":""},{"$f":"IF(ISBLANK('Timeless Wisdom'!E53),\"\",'Timeless Wisdom'!E53)","v":""},{"$f":"IF(ISBLANK('Timeless Wisdom'!F53),\"\",'Timeless Wisdom'!F53)","v":""},{"$f":"IF(ISBLANK('Timeless Wisdom'!G53),\"\",TEXT('Timeless Wisdom'!G53, \"General\"))","v":""},null,"HIDE",null,null,null,null,null,"",null,null,null,null,null,{"$f":"IFERROR(VLOOKUP($AF256,Lists!$A$2:$B$6,2,FALSE),IF(PresentationSortBy=ListsSortExpHigh,-9999999,9999999))","v":9999999},"",999999,999999,"!",false,false,false,false,null,null,null,null," "]
[{"$f":"IF(ISBLANK('Timeless Wisdom'!A54),\"\",'Timeless Wisdom'!A54)","v":"The Qur'an"},{"$f":"IF(ISBLANK('Timeless Wisdom'!B54),\"\",'Timeless Wisdom'!B54)","v":"The Opening"},{"$f":"IF(ISBLANK('Timeless Wisdom'!C54),\"\",'Timeless Wisdom'!C54)","v":133},{"$f":"IF(ISBLANK('Timeless Wisdom'!D54),\"\",'Timeless Wisdom'!D54)","v":""},{"$f":"IF(ISBLANK('Timeless Wisdom'!E54),\"\",'Timeless Wisdom'!E54)","v":""},{"$f":"IF(ISBLANK('Timeless Wisdom'!F54),\"\",'Timeless Wisdom'!F54)","v":""},{"$f":"IF(ISBLANK('Timeless Wisdom'!G54),\"\",TEXT('Timeless Wisdom'!G54, \"General\"))","v":""},null,"HIDE",null,null,null,null,null,"",null,null,null,null,null,{"$f":"IFERROR(VLOOKUP($AF257,Lists!$A$2:$B$6,2,FALSE),IF(PresentationSortBy=ListsSortExpHigh,-9999999,9999999))","v":9999999},"",999999,999999,"!",false,false,false,false,null,null,null,null," "]
[{"$f":"IF(ISBLANK('Timeless Wisdom'!A55),\"\",'Timeless Wisdom'!A55)","v":"Psalm 100"},{"$f":"IF(ISBLANK('Timeless Wisdom'!B55),\"\",'Timeless Wisdom'!B55)","v":"Worship the Lord in Gladness"},{"$f":"IF(ISBLANK('Timeless Wisdom'!C55),\"\",'Timeless Wisdom'!C55)","v":134},{"$f":"IF(ISBLANK('Timeless Wisdom'!D55),\"\",'Timeless Wisdom'!D55)","v":""},{"$f":"IF(ISBLANK('Timeless Wisdom'!E55),\"\",'Timeless Wisdom'!E55)","v":""},{"$f":"IF(ISBLANK('Timeless Wisdom'!F55),\"\",'Timeless Wisdom'!F55)","v":""},{"$f":"IF(ISBLANK('Timeless Wisdom'!G55),\"\",TEXT('Timeless Wisdom'!G55, \"General\"))","v":""},null,"HIDE",null,null,null,null,null,"",null,null,null,null,null,{"$f":"IFERROR(VLOOKUP($AF258,Lists!$A$2:$B$6,2,FALSE),IF(PresentationSortBy=ListsSortExpHigh,-9999999,9999999))","v":9999999},"",999999,999999,"!",false,false,false,false,null,null,null,null," "]
[{"$f":"IF(ISBLANK('Timeless Wisdom'!A56),\"\",'Timeless Wisdom'!A56)","v":"RigVeda"},{"$f":"IF(ISBLANK('Timeless Wisdom'!B56),\"\",'Timeless Wisdom'!B56)","v":"United in Heart"},{"$f":"IF(ISBLANK('Timeless Wisdom'!C56),\"\",'Timeless Wisdom'!C56)","v":135},{"$f":"IF(ISBLANK('Timeless Wisdom'!D56),\"\",'Timeless Wisdom'!D56)","v":""},{"$f":"IF(ISBLANK('Timeless Wisdom'!E56),\"\",'Timeless Wisdom'!E56)","v":""},{"$f":"IF(ISBLANK('Timeless Wisdom'!F56),\"\",'Timeless Wisdom'!F56)","v":""},{"$f":"IF(ISBLANK('Timeless Wisdom'!G56),\"\",TEXT('Timeless Wisdom'!G56, \"General\"))","v":""},null,"HIDE",null,null,null,null,null,"",null,null,null,null,null,{"$f":"IFERROR(VLOOKUP($AF259,Lists!$A$2:$B$6,2,FALSE),IF(PresentationSortBy=ListsSortExpHigh,-9999999,9999999))","v":9999999},"",999999,999999,"!",false,false,false,false,null,null,null,null," "]
[{"$f":"IF(ISBLANK('Timeless Wisdom'!A57),\"\",'Timeless Wisdom'!A57)","v":"Hazrat Inayat Khan"},{"$f":"IF(ISBLANK('Timeless Wisdom'!B57),\"\",'Timeless Wisdom'!B57)","v":"Prayer for the Peace of the World"},{"$f":"IF(ISBLANK('Timeless Wisdom'!C57),\"\",'Timeless Wisdom'!C57)","v":136},{"$f":"IF(ISBLANK('Timeless Wisdom'!D57),\"\",'Timeless Wisdom'!D57)","v":""},{"$f":"IF(ISBLANK('Timeless Wisdom'!E57),\"\",'Timeless Wisdom'!E57)","v":""},{"$f":"IF(ISBLANK('Timeless Wisdom'!F57),\"\",'Timeless Wisdom'!F57)","v":""},{"$f":"IF(ISBLANK('Timeless Wisdom'!G57),\"\",TEXT('Timeless Wisdom'!G57, \"General\"))","v":""},null,"HIDE",null,null,null,null,null,"",null,null,null,null,null,{"$f":"IFERROR(VLOOKUP($AF260,Lists!$A$2:$B$6,2,FALSE),IF(PresentationSortBy=ListsSortExpHigh,-9999999,9999999))","v":9999999},{"$f":"IFERROR(IF(ISBLANK($AD260),\"\",IF((TODAY()-$AD260)/365.25>=0.05,(TODAY()-$AD260)/365.25,\"< 0.1 yrs\")),\"\")","v":""},{"$f":"IF(OR(ISBLANK($V260),$V260=\"\"),IF(PresentationSortBy=ListsSortYearsOld,-999999,999999),TODAY()-$AD260)","v":999999},{"$f":"IF(OR(ISBLANK($AE260),$AE260=\"\"),IF(PresentationSortBy=ListsSortMemHigh,-999999,999999),$AE260)","v":999999},{"$f":"IF(OR(ISBLANK($AG260),$AG260=\"\"),IF(PresentationSortBy=ListsSortCustomCategoriesA,\"ZZZZZZZZZZZZZZZZZZZZZZZZZZZZZ\",\"!\"), $AG260)","v":"!"},{"$f":"AND(PresentationHighlightYearsMaster=\"Yes\", PresentationHighlightYearsNum<>\"\", IF(PresentationHighlightYearsMoreLess=\"or less\",OR($V260=\"< 0.1 yrs\",AND(ISNUMBER($V260),$V260<=(PresentationHighlightYearsNum+0.05))),AND(ISNUMBER($V260),$V260>=(PresentationHighlightYearsNum-0.05))))","v":false},{"$f":"AND(PresentationHighlightMemorizedMaster=\"Yes\", PresentationHighlightMemorizedNum<>\"\",IF(OR(ISBLANK($AE260),$AE260=\"\"),FALSE,IF(PresentationHighlightMemorizedMoreLess=\"or less\",$AE260<=PresentationHighlightMemorizedNum,$AE260>=PresentationHighlightMemorizedNum)))","v":false},{"$f":"IFERROR(AND(PresentationHighlightExpertiseMaster=\"Yes\",PresentationHighlightExpertiseVal<>\"\",IF(OR(ISBLANK($AF260),$AF260=\"\"),FALSE,IF(PresentationHighlightExpertiseMoreLess=\"or less\",VLOOKUP($AF260,ListsLevelsOfExpertise,2,FALSE)<=VLOOKUP(PresentationHighlightExpertiseVal,ListsLevelsOfExpertise,2,FALSE),VLOOKUP($AF260,ListsLevelsOfExpertise,2,FALSE)>=VLOOKUP(PresentationHighlightExpertiseVal,ListsLevelsOfExpertise,2,FALSE)))),FALSE)","v":false},{"$f":"AND(PresentationHighlightCategoriesMaster=\"Yes\",_xlfn.IFNA(PresentationHighlightCategoriesVal,\"\")<>\"\",IF(OR(ISBLANK($AG260),$AG260=\"\"),FALSE,NOT(ISERR(SEARCH(PresentationHighlightCategoriesVal,$AG260)))))","v":false},null,null,null,null," "]
[{"$f":"IF(ISBLANK('Timeless Wisdom'!A58),\"\",'Timeless Wisdom'!A58)","v":"Solomon ibn Gabirol"},{"$f":"IF(ISBLANK('Timeless Wisdom'!B58),\"\",'Timeless Wisdom'!B58)","v":"Adon Olam"},{"$f":"IF(ISBLANK('Timeless Wisdom'!C58),\"\",'Timeless Wisdom'!C58)","v":137},{"$f":"IF(ISBLANK('Timeless Wisdom'!D58),\"\",'Timeless Wisdom'!D58)","v":""},{"$f":"IF(ISBLANK('Timeless Wisdom'!E58),\"\",'Timeless Wisdom'!E58)","v":""},{"$f":"IF(ISBLANK('Timeless Wisdom'!F58),\"\",'Timeless Wisdom'!F58)","v":""},{"$f":"IF(ISBLANK('Timeless Wisdom'!G58),\"\",TEXT('Timeless Wisdom'!G58, \"General\"))","v":""},null,"HIDE",null,null,null,null,null,"",null,null,null,null,null,{"$f":"IFERROR(VLOOKUP($AF261,Lists!$A$2:$B$6,2,FALSE),IF(PresentationSortBy=ListsSortExpHigh,-9999999,9999999))","v":9999999},"",999999,999999,"!",false,false,false,false,null,null,null,null," "]
[{"$f":"IF(ISBLANK('Timeless Wisdom'!A59),\"\",'Timeless Wisdom'!A59)","v":"Saint Thérèse of Lisieux"},{"$f":"IF(ISBLANK('Timeless Wisdom'!B59),\"\",'Timeless Wisdom'!B59)","v":"Living on Love"},{"$f":"IF(ISBLANK('Timeless Wisdom'!C59),\"\",'Timeless Wisdom'!C59)","v":138},{"$f":"IF(ISBLANK('Timeless Wisdom'!D59),\"\",'Timeless Wisdom'!D59)","v":""},{"$f":"IF(ISBLANK('Timeless Wisdom'!E59),\"\",'Timeless Wisdom'!E59)","v":""},{"$f":"IF(ISBLANK('Timeless Wisdom'!F59),\"\",'Timeless Wisdom'!F59)","v":""},{"$f":"IF(ISBLANK('Timeless Wisdom'!G59),\"\",TEXT('Timeless Wisdom'!G59, \"General\"))","v":""},null,"HIDE",null,null,null,null,null,"",null,null,null,null,null,{"$f":"IFERROR(VLOOKUP($AF262,Lists!$A$2:$B$6,2,FALSE),IF(PresentationSortBy=ListsSortExpHigh,-9999999,9999999))","v":9999999},"",999999,999999,"!",false,false,false,false,null,null,null,null," "]
[{"$f":"IF(ISBLANK('Timeless Wisdom'!A60),\"\",'Timeless Wisdom'!A60)","v":"Lao Tzu"},{"$f":"IF(ISBLANK('Timeless Wisdom'!B60),\"\",'Timeless Wisdom'!B60)","v":"Mother of All Things"},{"$f":"IF(ISBLANK('Timeless Wisdom'!C60),\"\",'Timeless Wisdom'!C60)","v":141},{"$f":"IF(ISBLANK('Timeless Wisdom'!D60),\"\",'Timeless Wisdom'!D60)","v":""},{"$f":"IF(ISBLANK('Timeless Wisdom'!E60),\"\",'Timeless Wisdom'!E60)","v":""},{"$f":"IF(ISBLANK('Timeless Wisdom'!F60),\"\",'Timeless Wisdom'!F60)","v":""},{"$f":"IF(ISBLANK('Timeless Wisdom'!G60),\"\",TEXT('Timeless Wisdom'!G60, \"General\"))","v":""},null,"HIDE",null,null,null,null,null,"",null,null,null,null,null,{"$f":"IFERROR(VLOOKUP($AF263,Lists!$A$2:$B$6,2,FALSE),IF(PresentationSortBy=ListsSortExpHigh,-9999999,9999999))","v":9999999},"",999999,999999,"!",false,false,false,false,null,null,null,null," "]
[{"$f":"IF(ISBLANK('Timeless Wisdom'!A61),\"\",'Timeless Wisdom'!A61)","v":"Katha Upanishad"},{"$f":"IF(ISBLANK('Timeless Wisdom'!B61),\"\",'Timeless Wisdom'!B61)","v":"The Razor's Edge"},{"$f":"IF(ISBLANK('Timeless Wisdom'!C61),\"\",'Timeless Wisdom'!C61)","v":142},{"$f":"IF(ISBLANK('Timeless Wisdom'!D61),\"\",'Timeless Wisdom'!D61)","v":""},{"$f":"IF(ISBLANK('Timeless Wisdom'!E61),\"\",'Timeless Wisdom'!E61)","v":""},{"$f":"IF(ISBLANK('Timeless Wisdom'!F61),\"\",'Timeless Wisdom'!F61)","v":""},{"$f":"IF(ISBLANK('Timeless Wisdom'!G61),\"\",TEXT('Timeless Wisdom'!G61, \"General\"))","v":""},null,"HIDE",null,null,null,null,null,"",null,null,null,null,null,{"$f":"IFERROR(VLOOKUP($AF264,Lists!$A$2:$B$6,2,FALSE),IF(PresentationSortBy=ListsSortExpHigh,-9999999,9999999))","v":9999999},"",999999,999999,"!",false,false,false,false,null,null,null,null," "]
[{"$f":"IF(ISBLANK('Timeless Wisdom'!A62),\"\",'Timeless Wisdom'!A62)","v":"St. Augustine"},{"$f":"IF(ISBLANK('Timeless Wisdom'!B62),\"\",'Timeless Wisdom'!B62)","v":"Entering into Joy"},{"$f":"IF(ISBLANK('Timeless Wisdom'!C62),\"\",'Timeless Wisdom'!C62)","v":145},{"$f":"IF(ISBLANK('Timeless Wisdom'!D62),\"\",'Timeless Wisdom'!D62)","v":""},{"$f":"IF(ISBLANK('Timeless Wisdom'!E62),\"\",'Timeless Wisdom'!E62)","v":""},{"$f":"IF(ISBLANK('Timeless Wisdom'!F62),\"\",'Timeless Wisdom'!F62)","v":""},{"$f":"IF(ISBLANK('Timeless Wisdom'!G62),\"\",TEXT('Timeless Wisdom'!G62, \"General\"))","v":""},null,"HIDE",null,null,null,null,null,"",null,null,null,null,null,{"$f":"IFERROR(VLOOKUP($AF265,Lists!$A$2:$B$6,2,FALSE),IF(PresentationSortBy=ListsSortExpHigh,-9999999,9999999))","v":9999999},"",999999,999999,"!",false,false,false,false,null,null,null,null," "]
[{"$f":"IF(ISBLANK('Timeless Wisdom'!A63),\"\",'Timeless Wisdom'!A63)","v":"Hazrat Inayat Khan"},{"$f":"IF(ISBLANK('Timeless Wisdom'!B63),\"\",'Timeless Wisdom'!B63)","v":"Prayer for Peace"},{"$f":"IF(ISBLANK('Timeless Wisdom'!C63),\"\",'Timeless Wisdom'!C63)","v":147},{"$f":"IF(ISBLANK('Timeless Wisdom'!D63),\"\",'Timeless Wisdom'!D63)","v":""},{"$f":"IF(ISBLANK('Timeless Wisdom'!E63),\"\",'Timeless Wisdom'!E63)","v":""},{"$f":"IF(ISBLANK('Timeless Wisdom'!F63),\"\",'Timeless Wisdom'!F63)","v":""},{"$f":"IF(ISBLANK('Timeless Wisdom'!G63),\"\",TEXT('Timeless Wisdom'!G63, \"General\"))","v":""},null,"HIDE",null,null,null,null,null,"",null,null,null,null,null,{"$f":"IFERROR(VLOOKUP($AF266,Lists!$A$2:$B$6,2,FALSE),IF(PresentationSortBy=ListsSortExpHigh,-9999999,9999999))","v":9999999},"",999999,999999,"!",false,false,false,false,null,null,null,null," "]
[{"$f":"IF(ISBLANK('Timeless Wisdom'!A64),\"\",'Timeless Wisdom'!A64)","v":"Psalm 63"},{"$f":"IF(ISBLANK('Timeless Wisdom'!B64),\"\",'Timeless Wisdom'!B64)","v":"Lord, You Are My God"},{"$f":"IF(ISBLANK('Timeless Wisdom'!C64),\"\",'Timeless Wisdom'!C64)","v":148},{"$f":"IF(ISBLANK('Timeless Wisdom'!D64),\"\",'Timeless Wisdom'!D64)","v":""},{"$f":"IF(ISBLANK('Timeless Wisdom'!E64),\"\",'Timeless Wisdom'!E64)","v":""},{"$f":"IF(ISBLANK('Timeless Wisdom'!F64),\"\",'Timeless Wisdom'!F64)","v":""},{"$f":"IF(ISBLANK('Timeless Wisdom'!G64),\"\",TEXT('Timeless Wisdom'!G64, \"General\"))","v":""},null,"HIDE",null,null,null,null,null,"",null,null,null,null,null,{"$f":"IFERROR(VLOOKUP($AF267,Lists!$A$2:$B$6,2,FALSE),IF(PresentationSortBy=ListsSortExpHigh,-9999999,9999999))","v":9999999},"",999999,999999,"!",false,false,false,false,null,null,null,null," "]
[{"$f":"IF(ISBLANK('Timeless Wisdom'!A65),\"\",'Timeless Wisdom'!A65)","v":"Jalaluddin Rumi"},{"$f":"IF(ISBLANK('Timeless Wisdom'!B65),\"\",'Timeless Wisdom'!B65)","v":"A Garden Beyond Paradise"},{"$f":"IF(ISBLANK('Timeless Wisdom'!C65),\"\",'Timeless Wisdom'!C65)","v":149},{"$f":"IF(ISBLANK('Timeless Wisdom'!D65),\"\",'Timeless Wisdom'!D65)","v":""},{"$f":"IF(ISBLANK('Timeless Wisdom'!E65),\"\",'Timeless Wisdom'!E65)","v":""},{"$f":"IF(ISBLANK('Timeless Wisdom'!F65),\"\",'Timeless Wisdom'!F65)","v":""},{"$f":"IF(ISBLANK('Timeless Wisdom'!G65),\"\",TEXT('Timeless Wisdom'!G65, \"General\"))","v":""},null,"HIDE",null,null,null,null,null,"",null,null,null,null,null,{"$f":"IFERROR(VLOOKUP($AF268,Lists!$A$2:$B$6,2,FALSE),IF(PresentationSortBy=ListsSortExpHigh,-9999999,9999999))","v":9999999},"",999999,999999,"!",false,false,false,false,null,null,null,null," "]
[{"$f":"IF(ISBLANK('Timeless Wisdom'!A66),\"\",'Timeless Wisdom'!A66)","v":"Gaelic Tradition"},{"$f":"IF(ISBLANK('Timeless Wisdom'!B66),\"\",'Timeless Wisdom'!B66)","v":"Silence"},{"$f":"IF(ISBLANK('Timeless Wisdom'!C66),\"\",'Timeless Wisdom'!C66)","v":151},{"$f":"IF(ISBLANK('Timeless Wisdom'!D66),\"\",'Timeless Wisdom'!D66)","v":""},{"$f":"IF(ISBLANK('Timeless Wisdom'!E66),\"\",'Timeless Wisdom'!E66)","v":""},{"$f":"IF(ISBLANK('Timeless Wisdom'!F66),\"\",'Timeless Wisdom'!F66)","v":""},{"$f":"IF(ISBLANK('Timeless Wisdom'!G66),\"\",TEXT('Timeless Wisdom'!G66, \"General\"))","v":""},null,"HIDE",null,null,null,null,null,"",null,null,null,null,null,{"$f":"IFERROR(VLOOKUP($AF269,Lists!$A$2:$B$6,2,FALSE),IF(PresentationSortBy=ListsSortExpHigh,-9999999,9999999))","v":9999999},"",999999,999999,"!",false,false,false,false,null,null,null,null," "]
[{"$f":"IF(ISBLANK('Timeless Wisdom'!A67),\"\",'Timeless Wisdom'!A67)","v":"Fakhruddin Araqi"},{"$f":"IF(ISBLANK('Timeless Wisdom'!B67),\"\",'Timeless Wisdom'!B67)","v":"The Shining Essence"},{"$f":"IF(ISBLANK('Timeless Wisdom'!C67),\"\",'Timeless Wisdom'!C67)","v":152},{"$f":"IF(ISBLANK('Timeless Wisdom'!D67),\"\",'Timeless Wisdom'!D67)","v":""},{"$f":"IF(ISBLANK('Timeless Wisdom'!E67),\"\",'Timeless Wisdom'!E67)","v":""},{"$f":"IF(ISBLANK('Timeless Wisdom'!F67),\"\",'Timeless Wisdom'!F67)","v":""},{"$f":"IF(ISBLANK('Timeless Wisdom'!G67),\"\",TEXT('Timeless Wisdom'!G67, \"General\"))","v":""},null,"HIDE",null,null,null,null,null,"",null,null,null,null,null,{"$f":"IFERROR(VLOOKUP($AF270,Lists!$A$2:$B$6,2,FALSE),IF(PresentationSortBy=ListsSortExpHigh,-9999999,9999999))","v":9999999},"",999999,999999,"!",false,false,false,false,null,null,null,null," "]
[{"$f":"IF(ISBLANK('Timeless Wisdom'!A68),\"\",'Timeless Wisdom'!A68)","v":"Psalm 24"},{"$f":"IF(ISBLANK('Timeless Wisdom'!B68),\"\",'Timeless Wisdom'!B68)","v":"The Earth Is the Lord's"},{"$f":"IF(ISBLANK('Timeless Wisdom'!C68),\"\",'Timeless Wisdom'!C68)","v":154},{"$f":"IF(ISBLANK('Timeless Wisdom'!D68),\"\",'Timeless Wisdom'!D68)","v":""},{"$f":"IF(ISBLANK('Timeless Wisdom'!E68),\"\",'Timeless Wisdom'!E68)","v":""},{"$f":"IF(ISBLANK('Timeless Wisdom'!F68),\"\",'Timeless Wisdom'!F68)","v":""},{"$f":"IF(ISBLANK('Timeless Wisdom'!G68),\"\",TEXT('Timeless Wisdom'!G68, \"General\"))","v":""},null,"HIDE",null,null,null,null,null,"",null,null,null,null,null,{"$f":"IFERROR(VLOOKUP($AF271,Lists!$A$2:$B$6,2,FALSE),IF(PresentationSortBy=ListsSortExpHigh,-9999999,9999999))","v":9999999},"",999999,999999,"!",false,false,false,false,null,null,null,null," "]
[{"$f":"IF(ISBLANK('Timeless Wisdom'!A69),\"\",'Timeless Wisdom'!A69)","v":"Bhagavad Gita"},{"$f":"IF(ISBLANK('Timeless Wisdom'!B69),\"\",'Timeless Wisdom'!B69)","v":"Be Aware of Me Always"},{"$f":"IF(ISBLANK('Timeless Wisdom'!C69),\"\",'Timeless Wisdom'!C69)","v":155},{"$f":"IF(ISBLANK('Timeless Wisdom'!D69),\"\",'Timeless Wisdom'!D69)","v":""},{"$f":"IF(ISBLANK('Timeless Wisdom'!E69),\"\",'Timeless Wisdom'!E69)","v":""},{"$f":"IF(ISBLANK('Timeless Wisdom'!F69),\"\",'Timeless Wisdom'!F69)","v":""},{"$f":"IF(ISBLANK('Timeless Wisdom'!G69),\"\",TEXT('Timeless Wisdom'!G69, \"General\"))","v":""},null,"HIDE",null,null,null,null,null,"",null,null,null,null,null,{"$f":"IFERROR(VLOOKUP($AF272,Lists!$A$2:$B$6,2,FALSE),IF(PresentationSortBy=ListsSortExpHigh,-9999999,9999999))","v":9999999},"",999999,999999,"!",false,false,false,false,null,null,null,null," "]
[{"$f":"IF(ISBLANK('Timeless Wisdom'!A70),\"\",'Timeless Wisdom'!A70)","v":"Gospel of St. Matthew"},{"$f":"IF(ISBLANK('Timeless Wisdom'!B70),\"\",'Timeless Wisdom'!B70)","v":"The Sermon on the Mount"},{"$f":"IF(ISBLANK('Timeless Wisdom'!C70),\"\",'Timeless Wisdom'!C70)","v":159},{"$f":"IF(ISBLANK('Timeless Wisdom'!D70),\"\",'Timeless Wisdom'!D70)","v":""},{"$f":"IF(ISBLANK('Timeless Wisdom'!E70),\"\",'Timeless Wisdom'!E70)","v":""},{"$f":"IF(ISBLANK('Timeless Wisdom'!F70),\"\",'Timeless Wisdom'!F70)","v":""},{"$f":"IF(ISBLANK('Timeless Wisdom'!G70),\"\",TEXT('Timeless Wisdom'!G70, \"General\"))","v":""},null,"HIDE",null,null,null,null,null,"",null,null,null,null,null,{"$f":"IFERROR(VLOOKUP($AF273,Lists!$A$2:$B$6,2,FALSE),IF(PresentationSortBy=ListsSortExpHigh,-9999999,9999999))","v":9999999},"",999999,999999,"!",false,false,false,false,null,null,null,null," "]
[{"$f":"IF(ISBLANK('Timeless Wisdom'!A71),\"\",'Timeless Wisdom'!A71)","v":"Hasan al-Basri"},{"$f":"IF(ISBLANK('Timeless Wisdom'!B71),\"\",'Timeless Wisdom'!B71)","v":"Remembrance of God"},{"$f":"IF(ISBLANK('Timeless Wisdom'!C71),\"\",'Timeless Wisdom'!C71)","v":160},{"$f":"IF(ISBLANK('Timeless Wisdom'!D71),\"\",'Timeless Wisdom'!D71)","v":""},{"$f":"IF(ISBLANK('Timeless Wisdom'!E71),\"\",'Timeless Wisdom'!E71)","v":""},{"$f":"IF(ISBLANK('Timeless Wisdom'!F71),\"\",'Timeless Wisdom'!F71)","v":""},{"$f":"IF(ISBLANK('Timeless Wisdom'!G71),\"\",TEXT('Timeless Wisdom'!G71, \"General\"))","v":""},null,"HIDE",null,null,null,null,null,"",null,null,null,null,null,{"$f":"IFERROR(VLOOKUP($AF274,Lists!$A$2:$B$6,2,FALSE),IF(PresentationSortBy=ListsSortExpHigh,-9999999,9999999))","v":9999999},"",999999,999999,"!",false,false,false,false,null,null,null,null," "]
[{"$f":"IF(ISBLANK('Timeless Wisdom'!A72),\"\",'Timeless Wisdom'!A72)","v":"Seng Ts'an"},{"$f":"IF(ISBLANK('Timeless Wisdom'!B72),\"\",'Timeless Wisdom'!B72)","v":"Believing in Mind"},{"$f":"IF(ISBLANK('Timeless Wisdom'!C72),\"\",'Timeless Wisdom'!C72)","v":161},{"$f":"IF(ISBLANK('Timeless Wisdom'!D72),\"\",'Timeless Wisdom'!D72)","v":""},{"$f":"IF(ISBLANK('Timeless Wisdom'!E72),\"\",'Timeless Wisdom'!E72)","v":""},{"$f":"IF(ISBLANK('Timeless Wisdom'!F72),\"\",'Timeless Wisdom'!F72)","v":""},{"$f":"IF(ISBLANK('Timeless Wisdom'!G72),\"\",TEXT('Timeless Wisdom'!G72, \"General\"))","v":""},null,{"$f":"IF(OR(ISNUMBER(D275),ISNUMBER(E275),F275<>\"\",G275<>\"\"),\"\\\\SHOW\",\"HIDE\")","v":"HIDE"},null,null,null,null,null,"",null,null,null,null,null,{"$f":"IFERROR(VLOOKUP($AF275,Lists!$A$2:$B$6,2,FALSE),IF(PresentationSortBy=ListsSortExpHigh,-9999999,9999999))","v":9999999},"",999999,999999,"!",false,false,false,false,null,null,null,null," "]
[{"$f":"IF(ISBLANK('Timeless Wisdom'!A73),\"\",'Timeless Wisdom'!A73)","v":"Bahya ibn Pakuda"},{"$f":"IF(ISBLANK('Timeless Wisdom'!B73),\"\",'Timeless Wisdom'!B73)","v":"Duties of the Heart"},{"$f":"IF(ISBLANK('Timeless Wisdom'!C73),\"\",'Timeless Wisdom'!C73)","v":164},{"$f":"IF(ISBLANK('Timeless Wisdom'!D73),\"\",'Timeless Wisdom'!D73)","v":""},{"$f":"IF(ISBLANK('Timeless Wisdom'!E73),\"\",'Timeless Wisdom'!E73)","v":""},{"$f":"IF(ISBLANK('Timeless Wisdom'!F73),\"\",'Timeless Wisdom'!F73)","v":""},{"$f":"IF(ISBLANK('Timeless Wisdom'!G73),\"\",TEXT('Timeless Wisdom'!G73, \"General\"))","v":""},null,"HIDE",null,null,null,null,null,"",null,null,null,null,null,{"$f":"IFERROR(VLOOKUP($AF276,Lists!$A$2:$B$6,2,FALSE),IF(PresentationSortBy=ListsSortExpHigh,-9999999,9999999))","v":9999999},"",999999,999999,"!",false,false,false,false,null,null,null,null," "]
[{"$f":"IF(ISBLANK('Timeless Wisdom'!A74),\"\",'Timeless Wisdom'!A74)","v":"Isaiah"},{"$f":"IF(ISBLANK('Timeless Wisdom'!B74),\"\",'Timeless Wisdom'!B74)","v":"When You Call"},{"$f":"IF(ISBLANK('Timeless Wisdom'!C74),\"\",'Timeless Wisdom'!C74)","v":166},{"$f":"IF(ISBLANK('Timeless Wisdom'!D74),\"\",'Timeless Wisdom'!D74)","v":""},{"$f":"IF(ISBLANK('Timeless Wisdom'!E74),\"\",'Timeless Wisdom'!E74)","v":""},{"$f":"IF(ISBLANK('Timeless Wisdom'!F74),\"\",'Timeless Wisdom'!F74)","v":""},{"$f":"IF(ISBLANK('Timeless Wisdom'!G74),\"\",TEXT('Timeless Wisdom'!G74, \"General\"))","v":""},null,"HIDE",null,null,null,null,null,"",null,null,null,null,null,{"$f":"IFERROR(VLOOKUP($AF277,Lists!$A$2:$B$6,2,FALSE),IF(PresentationSortBy=ListsSortExpHigh,-9999999,9999999))","v":9999999},"",999999,999999,"!",false,false,false,false,null,null,null,null," "]
[{"$f":"IF(ISBLANK('Timeless Wisdom'!A75),\"\",'Timeless Wisdom'!A75)","v":"Shvetashvatara Upanishad"},{"$f":"IF(ISBLANK('Timeless Wisdom'!B75),\"\",'Timeless Wisdom'!B75)","v":"The One Appearing as Many"},{"$f":"IF(ISBLANK('Timeless Wisdom'!C75),\"\",'Timeless Wisdom'!C75)","v":167},{"$f":"IF(ISBLANK('Timeless Wisdom'!D75),\"\",'Timeless Wisdom'!D75)","v":""},{"$f":"IF(ISBLANK('Timeless Wisdom'!E75),\"\",'Timeless Wisdom'!E75)","v":""},{"$f":"IF(ISBLANK('Timeless Wisdom'!F75),\"\",'Timeless Wisdom'!F75)","v":""},{"$f":"IF(ISBLANK('Timeless Wisdom'!G75),\"\",TEXT('Timeless Wisdom'!G75, \"General\"))","v":""},null,"HIDE",null,null,null,null,null,"",null,null,null,null,null,{"$f":"IFERROR(VLOOKUP($AF278,Lists!$A$2:$B$6,2,FALSE),IF(PresentationSortBy=ListsSortExpHigh,-9999999,9999999))","v":9999999},"",999999,999999,"!",false,false,false,false,null,null,null,null," "]
[{"$f":"IF(ISBLANK('Timeless Wisdom'!A76),\"\",'Timeless Wisdom'!A76)","v":"Judah Halevy"},{"$f":"IF(ISBLANK('Timeless Wisdom'!B76),\"\",'Timeless Wisdom'!B76)","v":"Lord, Where Shall I Find You?"},{"$f":"IF(ISBLANK('Timeless Wisdom'!C76),\"\",'Timeless Wisdom'!C76)","v":171},{"$f":"IF(ISBLANK('Timeless Wisdom'!D76),\"\",'Timeless Wisdom'!D76)","v":""},{"$f":"IF(ISBLANK('Timeless Wisdom'!E76),\"\",'Timeless Wisdom'!E76)","v":""},{"$f":"IF(ISBLANK('Timeless Wisdom'!F76),\"\",'Timeless Wisdom'!F76)","v":""},{"$f":"IF(ISBLANK('Timeless Wisdom'!G76),\"\",TEXT('Timeless Wisdom'!G76, \"General\"))","v":""},null,"HIDE",null,null,null,null,null,"",null,null,null,null,null,{"$f":"IFERROR(VLOOKUP($AF279,Lists!$A$2:$B$6,2,FALSE),IF(PresentationSortBy=ListsSortExpHigh,-9999999,9999999))","v":9999999},"",999999,999999,"!",false,false,false,false,null,null,null,null," "]
[{"$f":"IF(ISBLANK('Timeless Wisdom'!A77),\"\",'Timeless Wisdom'!A77)","v":"Upanishads"},{"$f":"IF(ISBLANK('Timeless Wisdom'!B77),\"\",'Timeless Wisdom'!B77)","v":"Invocation"},{"$f":"IF(ISBLANK('Timeless Wisdom'!C77),\"\",'Timeless Wisdom'!C77)","v":172},{"$f":"IF(ISBLANK('Timeless Wisdom'!D77),\"\",'Timeless Wisdom'!D77)","v":""},{"$f":"IF(ISBLANK('Timeless Wisdom'!E77),\"\",'Timeless Wisdom'!E77)","v":""},{"$f":"IF(ISBLANK('Timeless Wisdom'!F77),\"\",'Timeless Wisdom'!F77)","v":""},{"$f":"IF(ISBLANK('Timeless Wisdom'!G77),\"\",TEXT('Timeless Wisdom'!G77, \"General\"))","v":""},null,"HIDE",null,null,null,null,null,"",null,null,null,null,null,{"$f":"IFERROR(VLOOKUP($AF280,Lists!$A$2:$B$6,2,FALSE),IF(PresentationSortBy=ListsSortExpHigh,-9999999,9999999))","v":9999999},"",999999,999999,"!",false,false,false,false,null,null,null,null," "]
[{"$f":"IF(ISBLANK('Timeless Wisdom'!A78),\"\",'Timeless Wisdom'!A78)","v":"Gaelic Tradition"},{"$f":"IF(ISBLANK('Timeless Wisdom'!B78),\"\",'Timeless Wisdom'!B78)","v":"This Morning I Pray"},{"$f":"IF(ISBLANK('Timeless Wisdom'!C78),\"\",'Timeless Wisdom'!C78)","v":173},{"$f":"IF(ISBLANK('Timeless Wisdom'!D78),\"\",'Timeless Wisdom'!D78)","v":""},{"$f":"IF(ISBLANK('Timeless Wisdom'!E78),\"\",'Timeless Wisdom'!E78)","v":""},{"$f":"IF(ISBLANK('Timeless Wisdom'!F78),\"\",'Timeless Wisdom'!F78)","v":""},{"$f":"IF(ISBLANK('Timeless Wisdom'!G78),\"\",TEXT('Timeless Wisdom'!G78, \"General\"))","v":""},null,"HIDE",null,null,null,null,null,"",null,null,null,null,null,{"$f":"IFERROR(VLOOKUP($AF281,Lists!$A$2:$B$6,2,FALSE),IF(PresentationSortBy=ListsSortExpHigh,-9999999,9999999))","v":9999999},"",999999,999999,"!",false,false,false,false,null,null,null,null," "]
[{"$f":"IF(ISBLANK('Timeless Wisdom'!A79),\"\",'Timeless Wisdom'!A79)","v":"Katha Upanishad"},{"$f":"IF(ISBLANK('Timeless Wisdom'!B79),\"\",'Timeless Wisdom'!B79)","v":"The Immortal"},{"$f":"IF(ISBLANK('Timeless Wisdom'!C79),\"\",'Timeless Wisdom'!C79)","v":174},{"$f":"IF(ISBLANK('Timeless Wisdom'!D79),\"\",'Timeless Wisdom'!D79)","v":""},{"$f":"IF(ISBLANK('Timeless Wisdom'!E79),\"\",'Timeless Wisdom'!E79)","v":""},{"$f":"IF(ISBLANK('Timeless Wisdom'!F79),\"\",'Timeless Wisdom'!F79)","v":""},{"$f":"IF(ISBLANK('Timeless Wisdom'!G79),\"\",TEXT('Timeless Wisdom'!G79, \"General\"))","v":""},null,"HIDE",null,null,null,null,null,"",null,null,null,null,null,{"$f":"IFERROR(VLOOKUP($AF282,Lists!$A$2:$B$6,2,FALSE),IF(PresentationSortBy=ListsSortExpHigh,-9999999,9999999))","v":9999999},"",999999,999999,"!",false,false,false,false,null,null,null,null," "]
[{"$f":"IF(ISBLANK('Timeless Wisdom'!A80),\"\",'Timeless Wisdom'!A80)","v":"Kabir"},{"$f":"IF(ISBLANK('Timeless Wisdom'!B80),\"\",'Timeless Wisdom'!B80)","v":"The Temple of the Lord"},{"$f":"IF(ISBLANK('Timeless Wisdom'!C80),\"\",'Timeless Wisdom'!C80)","v":177},{"$f":"IF(ISBLANK('Timeless Wisdom'!D80),\"\",'Timeless Wisdom'!D80)","v":""},{"$f":"IF(ISBLANK('Timeless Wisdom'!E80),\"\",'Timeless Wisdom'!E80)","v":""},{"$f":"IF(ISBLANK('Timeless Wisdom'!F80),\"\",'Timeless Wisdom'!F80)","v":""},{"$f":"IF(ISBLANK('Timeless Wisdom'!G80),\"\",TEXT('Timeless Wisdom'!G80, \"General\"))","v":""},null,"HIDE",null,null,null,null,null,"",null,null,null,null,null,{"$f":"IFERROR(VLOOKUP($AF283,Lists!$A$2:$B$6,2,FALSE),IF(PresentationSortBy=ListsSortExpHigh,-9999999,9999999))","v":9999999},"",999999,999999,"!",false,false,false,false,null,null,null,null," "]
[{"$f":"IF(ISBLANK('Timeless Wisdom'!A81),\"\",'Timeless Wisdom'!A81)","v":"Fakhraddin ar-Razi"},{"$f":"IF(ISBLANK('Timeless Wisdom'!B81),\"\",'Timeless Wisdom'!B81)","v":"Remember Me Through Grace"},{"$f":"IF(ISBLANK('Timeless Wisdom'!C81),\"\",'Timeless Wisdom'!C81)","v":179},{"$f":"IF(ISBLANK('Timeless Wisdom'!D81),\"\",'Timeless Wisdom'!D81)","v":""},{"$f":"IF(ISBLANK('Timeless Wisdom'!E81),\"\",'Timeless Wisdom'!E81)","v":""},{"$f":"IF(ISBLANK('Timeless Wisdom'!F81),\"\",'Timeless Wisdom'!F81)","v":""},{"$f":"IF(ISBLANK('Timeless Wisdom'!G81),\"\",TEXT('Timeless Wisdom'!G81, \"General\"))","v":""},null,"HIDE",null,null,null,null,null,"",null,null,null,null,null,{"$f":"IFERROR(VLOOKUP($AF284,Lists!$A$2:$B$6,2,FALSE),IF(PresentationSortBy=ListsSortExpHigh,-9999999,9999999))","v":9999999},"",999999,999999,"!",false,false,false,false,null,null,null,null," "]
[{"$f":"IF(ISBLANK('Timeless Wisdom'!A82),\"\",'Timeless Wisdom'!A82)","v":"Songs of Sri Ramakrishna"},{"$f":"IF(ISBLANK('Timeless Wisdom'!B82),\"\",'Timeless Wisdom'!B82)","v":"Dwell, O Mind, Within Yourself"},{"$f":"IF(ISBLANK('Timeless Wisdom'!C82),\"\",'Timeless Wisdom'!C82)","v":180},{"$f":"IF(ISBLANK('Timeless Wisdom'!D82),\"\",'Timeless Wisdom'!D82)","v":""},{"$f":"IF(ISBLANK('Timeless Wisdom'!E82),\"\",'Timeless Wisdom'!E82)","v":""},{"$f":"IF(ISBLANK('Timeless Wisdom'!F82),\"\",'Timeless Wisdom'!F82)","v":""},{"$f":"IF(ISBLANK('Timeless Wisdom'!G82),\"\",TEXT('Timeless Wisdom'!G82, \"General\"))","v":""},null,"HIDE",null,null,null,null,null,"",null,null,null,null,null,{"$f":"IFERROR(VLOOKUP($AF285,Lists!$A$2:$B$6,2,FALSE),IF(PresentationSortBy=ListsSortExpHigh,-9999999,9999999))","v":9999999},"",999999,999999,"!",false,false,false,false,null,null,null,null," "]
[{"$f":"IF(ISBLANK('Timeless Wisdom'!A83),\"\",'Timeless Wisdom'!A83)","v":"St. Clare of Assisi"},{"$f":"IF(ISBLANK('Timeless Wisdom'!B83),\"\",'Timeless Wisdom'!B83)","v":"The Mirror of Eternity"},{"$f":"IF(ISBLANK('Timeless Wisdom'!C83),\"\",'Timeless Wisdom'!C83)","v":181},{"$f":"IF(ISBLANK('Timeless Wisdom'!D83),\"\",'Timeless Wisdom'!D83)","v":""},{"$f":"IF(ISBLANK('Timeless Wisdom'!E83),\"\",'Timeless Wisdom'!E83)","v":""},{"$f":"IF(ISBLANK('Timeless Wisdom'!F83),\"\",'Timeless Wisdom'!F83)","v":""},{"$f":"IF(ISBLANK('Timeless Wisdom'!G83),\"\",TEXT('Timeless Wisdom'!G83, \"General\"))","v":""},null,"HIDE",null,null,null,null,null,"",null,null,null,null,null,{"$f":"IFERROR(VLOOKUP($AF286,Lists!$A$2:$B$6,2,FALSE),IF(PresentationSortBy=ListsSortExpHigh,-9999999,9999999))","v":9999999},"",999999,999999,"!",false,false,false,false,null,null,null,null," "]
[{"$f":"IF(ISBLANK('Timeless Wisdom'!A84),\"\",'Timeless Wisdom'!A84)","v":"Mishkat al-Masabih"},{"$f":"IF(ISBLANK('Timeless Wisdom'!B84),\"\",'Timeless Wisdom'!B84)","v":"I Come to Him Running"},{"$f":"IF(ISBLANK('Timeless Wisdom'!C84),\"\",'Timeless Wisdom'!C84)","v":182},{"$f":"IF(ISBLANK('Timeless Wisdom'!D84),\"\",'Timeless Wisdom'!D84)","v":""},{"$f":"IF(ISBLANK('Timeless Wisdom'!E84),\"\",'Timeless Wisdom'!E84)","v":""},{"$f":"IF(ISBLANK('Timeless Wisdom'!F84),\"\",'Timeless Wisdom'!F84)","v":""},{"$f":"IF(ISBLANK('Timeless Wisdom'!G84),\"\",TEXT('Timeless Wisdom'!G84, \"General\"))","v":""},null,"HIDE",null,null,null,null,null,"",null,null,null,null,null,{"$f":"IFERROR(VLOOKUP($AF287,Lists!$A$2:$B$6,2,FALSE),IF(PresentationSortBy=ListsSortExpHigh,-9999999,9999999))","v":9999999},"",999999,999999,"!",false,false,false,false,null,null,null,null," "]
[{"$f":"IF(ISBLANK('Timeless Wisdom'!A85),\"\",'Timeless Wisdom'!A85)","v":"The Buddha"},{"$f":"IF(ISBLANK('Timeless Wisdom'!B85),\"\",'Timeless Wisdom'!B85)","v":"The Saint"},{"$f":"IF(ISBLANK('Timeless Wisdom'!C85),\"\",'Timeless Wisdom'!C85)","v":183},{"$f":"IF(ISBLANK('Timeless Wisdom'!D85),\"\",'Timeless Wisdom'!D85)","v":""},{"$f":"IF(ISBLANK('Timeless Wisdom'!E85),\"\",'Timeless Wisdom'!E85)","v":""},{"$f":"IF(ISBLANK('Timeless Wisdom'!F85),\"\",'Timeless Wisdom'!F85)","v":""},{"$f":"IF(ISBLANK('Timeless Wisdom'!G85),\"\",TEXT('Timeless Wisdom'!G85, \"General\"))","v":""},null,"HIDE",null,null,null,null,null,"",null,null,null,null,null,{"$f":"IFERROR(VLOOKUP($AF288,Lists!$A$2:$B$6,2,FALSE),IF(PresentationSortBy=ListsSortExpHigh,-9999999,9999999))","v":9999999},"",999999,999999,"!",false,false,false,false,null,null,null,null," "]
[{"$f":"IF(ISBLANK('Timeless Wisdom'!A86),\"\",'Timeless Wisdom'!A86)","v":"Meera"},{"$f":"IF(ISBLANK('Timeless Wisdom'!B86),\"\",'Timeless Wisdom'!B86)","v":"Come, Beloved"},{"$f":"IF(ISBLANK('Timeless Wisdom'!C86),\"\",'Timeless Wisdom'!C86)","v":185},{"$f":"IF(ISBLANK('Timeless Wisdom'!D86),\"\",'Timeless Wisdom'!D86)","v":""},{"$f":"IF(ISBLANK('Timeless Wisdom'!E86),\"\",'Timeless Wisdom'!E86)","v":""},{"$f":"IF(ISBLANK('Timeless Wisdom'!F86),\"\",'Timeless Wisdom'!F86)","v":""},{"$f":"IF(ISBLANK('Timeless Wisdom'!G86),\"\",TEXT('Timeless Wisdom'!G86, \"General\"))","v":""},null,"HIDE",null,null,null,null,null,"",null,null,null,null,null,{"$f":"IFERROR(VLOOKUP($AF289,Lists!$A$2:$B$6,2,FALSE),IF(PresentationSortBy=ListsSortExpHigh,-9999999,9999999))","v":9999999},"",999999,999999,"!",false,false,false,false,null,null,null,null," "]
[{"$f":"IF(ISBLANK('Timeless Wisdom'!A87),\"\",'Timeless Wisdom'!A87)","v":"Meera"},{"$f":"IF(ISBLANK('Timeless Wisdom'!B87),\"\",'Timeless Wisdom'!B87)","v":"The Path to Your Dwelling"},{"$f":"IF(ISBLANK('Timeless Wisdom'!C87),\"\",'Timeless Wisdom'!C87)","v":186},{"$f":"IF(ISBLANK('Timeless Wisdom'!D87),\"\",'Timeless Wisdom'!D87)","v":""},{"$f":"IF(ISBLANK('Timeless Wisdom'!E87),\"\",'Timeless Wisdom'!E87)","v":""},{"$f":"IF(ISBLANK('Timeless Wisdom'!F87),\"\",'Timeless Wisdom'!F87)","v":""},{"$f":"IF(ISBLANK('Timeless Wisdom'!G87),\"\",TEXT('Timeless Wisdom'!G87, \"General\"))","v":""},null,"HIDE",null,null,null,null,null,"",null,null,null,null,null,{"$f":"IFERROR(VLOOKUP($AF290,Lists!$A$2:$B$6,2,FALSE),IF(PresentationSortBy=ListsSortExpHigh,-9999999,9999999))","v":9999999},"",999999,999999,"!",false,false,false,false,null,null,null,null," "]
[{"$f":"IF(ISBLANK('Timeless Wisdom'!A88),\"\",'Timeless Wisdom'!A88)","v":"Meera"},{"$f":"IF(ISBLANK('Timeless Wisdom'!B88),\"\",'Timeless Wisdom'!B88)","v":"Life of My Life"},{"$f":"IF(ISBLANK('Timeless Wisdom'!C88),\"\",'Timeless Wisdom'!C88)","v":187},{"$f":"IF(ISBLANK('Timeless Wisdom'!D88),\"\",'Timeless Wisdom'!D88)","v":""},{"$f":"IF(ISBLANK('Timeless Wisdom'!E88),\"\",'Timeless Wisdom'!E88)","v":""},{"$f":"IF(ISBLANK('Timeless Wisdom'!F88),\"\",'Timeless Wisdom'!F88)","v":""},{"$f":"IF(ISBLANK('Timeless Wisdom'!G88),\"\",TEXT('Timeless Wisdom'!G88, \"General\"))","v":""},null,"HIDE",null,null,null,null,null,"",null,null,null,null,null,{"$f":"IFERROR(VLOOKUP($AF291,Lists!$A$2:$B$6,2,FALSE),IF(PresentationSortBy=ListsSortExpHigh,-9999999,9999999))","v":9999999},"",999999,999999,"!",false,false,false,false,null,null,null,null," "]
[{"$f":"IF(ISBLANK('Timeless Wisdom'!A89),\"\",'Timeless Wisdom'!A89)","v":"Chief Yellow Lark"},{"$f":"IF(ISBLANK('Timeless Wisdom'!B89),\"\",'Timeless Wisdom'!B89)","v":"Let Me Walk in Beauty"},{"$f":"IF(ISBLANK('Timeless Wisdom'!C89),\"\",'Timeless Wisdom'!C89)","v":188},{"$f":"IF(ISBLANK('Timeless Wisdom'!D89),\"\",'Timeless Wisdom'!D89)","v":""},{"$f":"IF(ISBLANK('Timeless Wisdom'!E89),\"\",'Timeless Wisdom'!E89)","v":""},{"$f":"IF(ISBLANK('Timeless Wisdom'!F89),\"\",'Timeless Wisdom'!F89)","v":""},{"$f":"IF(ISBLANK('Timeless Wisdom'!G89),\"\",TEXT('Timeless Wisdom'!G89, \"General\"))","v":""},null,"HIDE",null,null,null,null,null,"",null,null,null,null,null,{"$f":"IFERROR(VLOOKUP($AF292,Lists!$A$2:$B$6,2,FALSE),IF(PresentationSortBy=ListsSortExpHigh,-9999999,9999999))","v":9999999},"",999999,999999,"!",false,false,false,false,null,null,null,null," "]
[{"$f":"IF(ISBLANK('Timeless Wisdom'!A90),\"\",'Timeless Wisdom'!A90)","v":"St. Teresa of Avila"},{"$f":"IF(ISBLANK('Timeless Wisdom'!B90),\"\",'Timeless Wisdom'!B90)","v":"Her Heart Is Full ofJoy"},{"$f":"IF(ISBLANK('Timeless Wisdom'!C90),\"\",'Timeless Wisdom'!C90)","v":189},{"$f":"IF(ISBLANK('Timeless Wisdom'!D90),\"\",'Timeless Wisdom'!D90)","v":""},{"$f":"IF(ISBLANK('Timeless Wisdom'!E90),\"\",'Timeless Wisdom'!E90)","v":""},{"$f":"IF(ISBLANK('Timeless Wisdom'!F90),\"\",'Timeless Wisdom'!F90)","v":""},{"$f":"IF(ISBLANK('Timeless Wisdom'!G90),\"\",TEXT('Timeless Wisdom'!G90, \"General\"))","v":""},null,"HIDE",null,null,null,null,null,"",null,null,null,null,null,{"$f":"IFERROR(VLOOKUP($AF293,Lists!$A$2:$B$6,2,FALSE),IF(PresentationSortBy=ListsSortExpHigh,-9999999,9999999))","v":9999999},"",999999,999999,"!",false,false,false,false,null,null,null,null," "]
[{"$f":"IF(ISBLANK('Timeless Wisdom'!A91),\"\",'Timeless Wisdom'!A91)","v":"Katha Upanishad"},{"$f":"IF(ISBLANK('Timeless Wisdom'!B91),\"\",'Timeless Wisdom'!B91)","v":"The Tree of Eternity"},{"$f":"IF(ISBLANK('Timeless Wisdom'!C91),\"\",'Timeless Wisdom'!C91)","v":190},{"$f":"IF(ISBLANK('Timeless Wisdom'!D91),\"\",'Timeless Wisdom'!D91)","v":""},{"$f":"IF(ISBLANK('Timeless Wisdom'!E91),\"\",'Timeless Wisdom'!E91)","v":""},{"$f":"IF(ISBLANK('Timeless Wisdom'!F91),\"\",'Timeless Wisdom'!F91)","v":""},{"$f":"IF(ISBLANK('Timeless Wisdom'!G91),\"\",TEXT('Timeless Wisdom'!G91, \"General\"))","v":""},null,"HIDE",null,null,null,null,null,"",null,null,null,null,null,{"$f":"IFERROR(VLOOKUP($AF294,Lists!$A$2:$B$6,2,FALSE),IF(PresentationSortBy=ListsSortExpHigh,-9999999,9999999))","v":9999999},"",999999,999999,"!",false,false,false,false,null,null,null,null," "]
[{"$f":"IF(ISBLANK('Timeless Wisdom'!A92),\"\",'Timeless Wisdom'!A92)","v":"TheBuddha"},{"$f":"IF(ISBLANK('Timeless Wisdom'!B92),\"\",'Timeless Wisdom'!B92)","v":"The Island"},{"$f":"IF(ISBLANK('Timeless Wisdom'!C92),\"\",'Timeless Wisdom'!C92)","v":193},{"$f":"IF(ISBLANK('Timeless Wisdom'!D92),\"\",'Timeless Wisdom'!D92)","v":""},{"$f":"IF(ISBLANK('Timeless Wisdom'!E92),\"\",'Timeless Wisdom'!E92)","v":""},{"$f":"IF(ISBLANK('Timeless Wisdom'!F92),\"\",'Timeless Wisdom'!F92)","v":""},{"$f":"IF(ISBLANK('Timeless Wisdom'!G92),\"\",TEXT('Timeless Wisdom'!G92, \"General\"))","v":""},null,"HIDE",null,null,null,null,null,"",null,null,null,null,null,{"$f":"IFERROR(VLOOKUP($AF295,Lists!$A$2:$B$6,2,FALSE),IF(PresentationSortBy=ListsSortExpHigh,-9999999,9999999))","v":9999999},"",999999,999999,"!",false,false,false,false,null,null,null,null," "]
[{"$f":"IF(ISBLANK('Timeless Wisdom'!A93),\"\",'Timeless Wisdom'!A93)","v":"Bhagavad Gita"},{"$f":"IF(ISBLANK('Timeless Wisdom'!B93),\"\",'Timeless Wisdom'!B93)","v":"All Paths Lead to Me"},{"$f":"IF(ISBLANK('Timeless Wisdom'!C93),\"\",'Timeless Wisdom'!C93)","v":194},{"$f":"IF(ISBLANK('Timeless Wisdom'!D93),\"\",'Timeless Wisdom'!D93)","v":""},{"$f":"IF(ISBLANK('Timeless Wisdom'!E93),\"\",'Timeless Wisdom'!E93)","v":""},{"$f":"IF(ISBLANK('Timeless Wisdom'!F93),\"\",'Timeless Wisdom'!F93)","v":""},{"$f":"IF(ISBLANK('Timeless Wisdom'!G93),\"\",TEXT('Timeless Wisdom'!G93, \"General\"))","v":""},null,"HIDE",null,null,null,null,null,"",null,null,null,null,null,{"$f":"IFERROR(VLOOKUP($AF296,Lists!$A$2:$B$6,2,FALSE),IF(PresentationSortBy=ListsSortExpHigh,-9999999,9999999))","v":9999999},"",999999,999999,"!",false,false,false,false,null,null,null,null," "]
[{"$f":"IF(ISBLANK('Timeless Wisdom'!A94),\"\",'Timeless Wisdom'!A94)","v":"Torah"},{"$f":"IF(ISBLANK('Timeless Wisdom'!B94),\"\",'Timeless Wisdom'!B94)","v":"The Shema"},{"$f":"IF(ISBLANK('Timeless Wisdom'!C94),\"\",'Timeless Wisdom'!C94)","v":195},{"$f":"IF(ISBLANK('Timeless Wisdom'!D94),\"\",'Timeless Wisdom'!D94)","v":""},{"$f":"IF(ISBLANK('Timeless Wisdom'!E94),\"\",'Timeless Wisdom'!E94)","v":""},{"$f":"IF(ISBLANK('Timeless Wisdom'!F94),\"\",'Timeless Wisdom'!F94)","v":""},{"$f":"IF(ISBLANK('Timeless Wisdom'!G94),\"\",TEXT('Timeless Wisdom'!G94, \"General\"))","v":""},null,"HIDE",null,null,null,null,null,"",null,null,null,null,null,{"$f":"IFERROR(VLOOKUP($AF297,Lists!$A$2:$B$6,2,FALSE),IF(PresentationSortBy=ListsSortExpHigh,-9999999,9999999))","v":9999999},"",999999,999999,"!",false,false,false,false,null,null,null,null," "]
[{"$f":"IF(ISBLANK('Timeless Wisdom'!A95),\"\",'Timeless Wisdom'!A95)","v":"Abu Sa 'id"},{"$f":"IF(ISBLANK('Timeless Wisdom'!B95),\"\",'Timeless Wisdom'!B95)","v":"If You Want to Draw Near to God"},{"$f":"IF(ISBLANK('Timeless Wisdom'!C95),\"\",'Timeless Wisdom'!C95)","v":196},{"$f":"IF(ISBLANK('Timeless Wisdom'!D95),\"\",'Timeless Wisdom'!D95)","v":"2015-12-01"},{"$f":"IF(ISBLANK('Timeless Wisdom'!E95),\"\",'Timeless Wisdom'!E95)","v":""},{"$f":"IF(ISBLANK('Timeless Wisdom'!F95),\"\",'Timeless Wisdom'!F95)","v":""},{"$f":"IF(ISBLANK('Timeless Wisdom'!G95),\"\",TEXT('Timeless Wisdom'!G95, \"General\"))","v":""},null,"\\\\SHOW",null,null,null,null,null,"",null,null,null,null,null,{"$f":"IFERROR(VLOOKUP($AF298,Lists!$A$2:$B$6,2,FALSE),IF(PresentationSortBy=ListsSortExpHigh,-9999999,9999999))","v":9999999},"",999999,999999,"!",false,false,false,false,null,null,null,null," "]
[{"$f":"IF(ISBLANK('Timeless Wisdom'!A96),\"\",'Timeless Wisdom'!A96)","v":"Mechthild of Magdeburg"},{"$f":"IF(ISBLANK('Timeless Wisdom'!B96),\"\",'Timeless Wisdom'!B96)","v":"Lord, I Bring Thee My Treasure"},{"$f":"IF(ISBLANK('Timeless Wisdom'!C96),\"\",'Timeless Wisdom'!C96)","v":197},{"$f":"IF(ISBLANK('Timeless Wisdom'!D96),\"\",'Timeless Wisdom'!D96)","v":""},{"$f":"IF(ISBLANK('Timeless Wisdom'!E96),\"\",'Timeless Wisdom'!E96)","v":""},{"$f":"IF(ISBLANK('Timeless Wisdom'!F96),\"\",'Timeless Wisdom'!F96)","v":""},{"$f":"IF(ISBLANK('Timeless Wisdom'!G96),\"\",TEXT('Timeless Wisdom'!G96, \"General\"))","v":""},null,"HIDE",null,null,null,null,null,"",null,null,null,null,null,{"$f":"IFERROR(VLOOKUP($AF299,Lists!$A$2:$B$6,2,FALSE),IF(PresentationSortBy=ListsSortExpHigh,-9999999,9999999))","v":9999999},"",999999,999999,"!",false,false,false,false,null,null,null,null," "]
[{"$f":"IF(ISBLANK('Timeless Wisdom'!A97),\"\",'Timeless Wisdom'!A97)","v":"Kabir"},{"$f":"IF(ISBLANK('Timeless Wisdom'!B97),\"\",'Timeless Wisdom'!B97)","v":"Simple Union"},{"$f":"IF(ISBLANK('Timeless Wisdom'!C97),\"\",'Timeless Wisdom'!C97)","v":198},{"$f":"IF(ISBLANK('Timeless Wisdom'!D97),\"\",'Timeless Wisdom'!D97)","v":""},{"$f":"IF(ISBLANK('Timeless Wisdom'!E97),\"\",'Timeless Wisdom'!E97)","v":""},{"$f":"IF(ISBLANK('Timeless Wisdom'!F97),\"\",'Timeless Wisdom'!F97)","v":""},{"$f":"IF(ISBLANK('Timeless Wisdom'!G97),\"\",TEXT('Timeless Wisdom'!G97, \"General\"))","v":""},null,"HIDE",null,null,null,null,null,"",null,null,null,null,null,{"$f":"IFERROR(VLOOKUP($AF300,Lists!$A$2:$B$6,2,FALSE),IF(PresentationSortBy=ListsSortExpHigh,-9999999,9999999))","v":9999999},"",999999,999999,"!",false,false,false,false,null,null,null,null," "]
[{"$f":"IF(ISBLANK('Timeless Wisdom'!A98),\"\",'Timeless Wisdom'!A98)","v":"Tukaram"},{"$f":"IF(ISBLANK('Timeless Wisdom'!B98),\"\",'Timeless Wisdom'!B98)","v":"Think on His Name"},{"$f":"IF(ISBLANK('Timeless Wisdom'!C98),\"\",'Timeless Wisdom'!C98)","v":199},{"$f":"IF(ISBLANK('Timeless Wisdom'!D98),\"\",'Timeless Wisdom'!D98)","v":""},{"$f":"IF(ISBLANK('Timeless Wisdom'!E98),\"\",'Timeless Wisdom'!E98)","v":""},{"$f":"IF(ISBLANK('Timeless Wisdom'!F98),\"\",'Timeless Wisdom'!F98)","v":""},{"$f":"IF(ISBLANK('Timeless Wisdom'!G98),\"\",TEXT('Timeless Wisdom'!G98, \"General\"))","v":""},null,"HIDE",null,null,null,null,null,"",null,null,null,null,null,{"$f":"IFERROR(VLOOKUP($AF301,Lists!$A$2:$B$6,2,FALSE),IF(PresentationSortBy=ListsSortExpHigh,-9999999,9999999))","v":9999999},"",999999,999999,"!",false,false,false,false,null,null,null,null," "]
[{"$f":"IF(ISBLANK('Timeless Wisdom'!A99),\"\",'Timeless Wisdom'!A99)","v":"Jewish Liturgy"},{"$f":"IF(ISBLANK('Timeless Wisdom'!B99),\"\",'Timeless Wisdom'!B99)","v":"Evening Prayer for the Sabbath"},{"$f":"IF(ISBLANK('Timeless Wisdom'!C99),\"\",'Timeless Wisdom'!C99)","v":200},{"$f":"IF(ISBLANK('Timeless Wisdom'!D99),\"\",'Timeless Wisdom'!D99)","v":""},{"$f":"IF(ISBLANK('Timeless Wisdom'!E99),\"\",'Timeless Wisdom'!E99)","v":""},{"$f":"IF(ISBLANK('Timeless Wisdom'!F99),\"\",'Timeless Wisdom'!F99)","v":""},{"$f":"IF(ISBLANK('Timeless Wisdom'!G99),\"\",TEXT('Timeless Wisdom'!G99, \"General\"))","v":""},null,"HIDE",null,null,null,null,null,"",null,null,null,null,null,{"$f":"IFERROR(VLOOKUP($AF302,Lists!$A$2:$B$6,2,FALSE),IF(PresentationSortBy=ListsSortExpHigh,-9999999,9999999))","v":9999999},"",999999,999999,"!",false,false,false,false,null,null,null,null," "]
[{"$f":"IF(ISBLANK('Timeless Wisdom'!A100),\"\",'Timeless Wisdom'!A100)","v":"Kabir"},{"$f":"IF(ISBLANK('Timeless Wisdom'!B100),\"\",'Timeless Wisdom'!B100)","v":"The River of Love"},{"$f":"IF(ISBLANK('Timeless Wisdom'!C100),\"\",'Timeless Wisdom'!C100)","v":201},{"$f":"IF(ISBLANK('Timeless Wisdom'!D100),\"\",'Timeless Wisdom'!D100)","v":""},{"$f":"IF(ISBLANK('Timeless Wisdom'!E100),\"\",'Timeless Wisdom'!E100)","v":""},{"$f":"IF(ISBLANK('Timeless Wisdom'!F100),\"\",'Timeless Wisdom'!F100)","v":""},{"$f":"IF(ISBLANK('Timeless Wisdom'!G100),\"\",TEXT('Timeless Wisdom'!G100, \"General\"))","v":""},null,"HIDE",null,null,null,null,null,"",null,null,null,null,null,{"$f":"IFERROR(VLOOKUP($AF303,Lists!$A$2:$B$6,2,FALSE),IF(PresentationSortBy=ListsSortExpHigh,-9999999,9999999))","v":9999999},"",999999,999999,"!",false,false,false,false,null,null,null,null," "]
[{"$f":"IF(ISBLANK('Timeless Wisdom'!A101),\"\",'Timeless Wisdom'!A101)","v":"Thomas à Kempis"},{"$f":"IF(ISBLANK('Timeless Wisdom'!B101),\"\",'Timeless Wisdom'!B101)","v":"Four Things that Bring Much Inward Peace"},{"$f":"IF(ISBLANK('Timeless Wisdom'!C101),\"\",'Timeless Wisdom'!C101)","v":202},{"$f":"IF(ISBLANK('Timeless Wisdom'!D101),\"\",'Timeless Wisdom'!D101)","v":""},{"$f":"IF(ISBLANK('Timeless Wisdom'!E101),\"\",'Timeless Wisdom'!E101)","v":""},{"$f":"IF(ISBLANK('Timeless Wisdom'!F101),\"\",'Timeless Wisdom'!F101)","v":""},{"$f":"IF(ISBLANK('Timeless Wisdom'!G101),\"\",TEXT('Timeless Wisdom'!G101, \"General\"))","v":""},null,"HIDE",null,null,null,null,null,"",null,null,null,null,null,{"$f":"IFERROR(VLOOKUP($AF304,Lists!$A$2:$B$6,2,FALSE),IF(PresentationSortBy=ListsSortExpHigh,-9999999,9999999))","v":9999999},"",999999,999999,"!",false,false,false,false,null,null,null,null," "]
[{"$f":"IF(ISBLANK('Timeless Wisdom'!A102),\"\",'Timeless Wisdom'!A102)","v":"Guru Nanak"},{"$f":"IF(ISBLANK('Timeless Wisdom'!B102),\"\",'Timeless Wisdom'!B102)","v":"There Is But One God"},{"$f":"IF(ISBLANK('Timeless Wisdom'!C102),\"\",'Timeless Wisdom'!C102)","v":203},{"$f":"IF(ISBLANK('Timeless Wisdom'!D102),\"\",'Timeless Wisdom'!D102)","v":""},{"$f":"IF(ISBLANK('Timeless Wisdom'!E102),\"\",'Timeless Wisdom'!E102)","v":""},{"$f":"IF(ISBLANK('Timeless Wisdom'!F102),\"\",'Timeless Wisdom'!F102)","v":""},{"$f":"IF(ISBLANK('Timeless Wisdom'!G102),\"\",TEXT('Timeless Wisdom'!G102, \"General\"))","v":""},null,"HIDE",null,null,null,null,null,"",null,null,null,null,null,{"$f":"IFERROR(VLOOKUP($AF305,Lists!$A$2:$B$6,2,FALSE),IF(PresentationSortBy=ListsSortExpHigh,-9999999,9999999))","v":9999999},"",999999,999999,"!",false,false,false,false,null,null,null,null," "]
[{"$f":"IF(ISBLANK('Timeless Wisdom'!A103),\"\",'Timeless Wisdom'!A103)","v":"St. Teresa of Avila"},{"$f":"IF(ISBLANK('Timeless Wisdom'!B103),\"\",'Timeless Wisdom'!B103)","v":"I Gave All My Heart"},{"$f":"IF(ISBLANK('Timeless Wisdom'!C103),\"\",'Timeless Wisdom'!C103)","v":204},{"$f":"IF(ISBLANK('Timeless Wisdom'!D103),\"\",'Timeless Wisdom'!D103)","v":""},{"$f":"IF(ISBLANK('Timeless Wisdom'!E103),\"\",'Timeless Wisdom'!E103)","v":""},{"$f":"IF(ISBLANK('Timeless Wisdom'!F103),\"\",'Timeless Wisdom'!F103)","v":""},{"$f":"IF(ISBLANK('Timeless Wisdom'!G103),\"\",TEXT('Timeless Wisdom'!G103, \"General\"))","v":""},null,"HIDE",null,null,null,null,null,"",null,null,null,null,null,{"$f":"IFERROR(VLOOKUP($AF306,Lists!$A$2:$B$6,2,FALSE),IF(PresentationSortBy=ListsSortExpHigh,-9999999,9999999))","v":9999999},"",999999,999999,"!",false,false,false,false,null,null,null,null," "]
[{"$f":"IF(ISBLANK('Timeless Wisdom'!A104),\"\",'Timeless Wisdom'!A104)","v":"Rabi'a"},{"$f":"IF(ISBLANK('Timeless Wisdom'!B104),\"\",'Timeless Wisdom'!B104)","v":"Night Prayer"},{"$f":"IF(ISBLANK('Timeless Wisdom'!C104),\"\",'Timeless Wisdom'!C104)","v":205},{"$f":"IF(ISBLANK('Timeless Wisdom'!D104),\"\",'Timeless Wisdom'!D104)","v":""},{"$f":"IF(ISBLANK('Timeless Wisdom'!E104),\"\",'Timeless Wisdom'!E104)","v":""},{"$f":"IF(ISBLANK('Timeless Wisdom'!F104),\"\",'Timeless Wisdom'!F104)","v":""},{"$f":"IF(ISBLANK('Timeless Wisdom'!G104),\"\",TEXT('Timeless Wisdom'!G104, \"General\"))","v":""},null,"HIDE",null,null,null,null,null,"",null,null,null,null,null,{"$f":"IFERROR(VLOOKUP($AF307,Lists!$A$2:$B$6,2,FALSE),IF(PresentationSortBy=ListsSortExpHigh,-9999999,9999999))","v":9999999},"",999999,999999,"!",false,false,false,false,null,null,null,null," "]
[{"$f":"IF(ISBLANK('Timeless Wisdom'!A105),\"\",'Timeless Wisdom'!A105)","v":"Rig Veda"},{"$f":"IF(ISBLANK('Timeless Wisdom'!B105),\"\",'Timeless Wisdom'!B105)","v":"God Makes the Rivers to Flow"},{"$f":"IF(ISBLANK('Timeless Wisdom'!C105),\"\",'Timeless Wisdom'!C105)","v":206},{"$f":"IF(ISBLANK('Timeless Wisdom'!D105),\"\",'Timeless Wisdom'!D105)","v":""},{"$f":"IF(ISBLANK('Timeless Wisdom'!E105),\"\",'Timeless Wisdom'!E105)","v":""},{"$f":"IF(ISBLANK('Timeless Wisdom'!F105),\"\",'Timeless Wisdom'!F105)","v":""},{"$f":"IF(ISBLANK('Timeless Wisdom'!G105),\"\",TEXT('Timeless Wisdom'!G105, \"General\"))","v":""},null,"HIDE",null,null,null,null,null,"",null,null,null,null,null,{"$f":"IFERROR(VLOOKUP($AF308,Lists!$A$2:$B$6,2,FALSE),IF(PresentationSortBy=ListsSortExpHigh,-9999999,9999999))","v":9999999},"",999999,999999,"!",false,false,false,false,null,null,null,null," "]
[{"$f":"IF(ISBLANK('Timeless Wisdom'!A106),\"\",'Timeless Wisdom'!A106)","v":"St. Bernard of Clairvaux"},{"$f":"IF(ISBLANK('Timeless Wisdom'!B106),\"\",'Timeless Wisdom'!B106)","v":"That Wondrous Star"},{"$f":"IF(ISBLANK('Timeless Wisdom'!C106),\"\",'Timeless Wisdom'!C106)","v":207},{"$f":"IF(ISBLANK('Timeless Wisdom'!D106),\"\",'Timeless Wisdom'!D106)","v":""},{"$f":"IF(ISBLANK('Timeless Wisdom'!E106),\"\",'Timeless Wisdom'!E106)","v":""},{"$f":"IF(ISBLANK('Timeless Wisdom'!F106),\"\",'Timeless Wisdom'!F106)","v":""},{"$f":"IF(ISBLANK('Timeless Wisdom'!G106),\"\",TEXT('Timeless Wisdom'!G106, \"General\"))","v":""},null,"HIDE",null,null,null,null,null,"",null,null,null,null,null,{"$f":"IFERROR(VLOOKUP($AF309,Lists!$A$2:$B$6,2,FALSE),IF(PresentationSortBy=ListsSortExpHigh,-9999999,9999999))","v":9999999},"",999999,999999,"!",false,false,false,false,null,null,null,null," "]
[{"$f":"IF(ISBLANK('Timeless Wisdom'!A107),\"\",'Timeless Wisdom'!A107)","v":"Meera"},{"$f":"IF(ISBLANK('Timeless Wisdom'!B107),\"\",'Timeless Wisdom'!B107)","v":"Singing Your Name"},{"$f":"IF(ISBLANK('Timeless Wisdom'!C107),\"\",'Timeless Wisdom'!C107)","v":209},{"$f":"IF(ISBLANK('Timeless Wisdom'!D107),\"\",'Timeless Wisdom'!D107)","v":""},{"$f":"IF(ISBLANK('Timeless Wisdom'!E107),\"\",'Timeless Wisdom'!E107)","v":""},{"$f":"IF(ISBLANK('Timeless Wisdom'!F107),\"\",'Timeless Wisdom'!F107)","v":""},{"$f":"IF(ISBLANK('Timeless Wisdom'!G107),\"\",TEXT('Timeless Wisdom'!G107, \"General\"))","v":""},null,"HIDE",null,null,null,null,null,"",null,null,null,null,null,{"$f":"IFERROR(VLOOKUP($AF310,Lists!$A$2:$B$6,2,FALSE),IF(PresentationSortBy=ListsSortExpHigh,-9999999,9999999))","v":9999999},"",999999,999999,"!",false,false,false,false,null,null,null,null," "]
[{"$f":"IF(ISBLANK('Timeless Wisdom'!A108),\"\",'Timeless Wisdom'!A108)","v":"Jewish Liturgy"},{"$f":"IF(ISBLANK('Timeless Wisdom'!B108),\"\",'Timeless Wisdom'!B108)","v":"Mourner's Kaddish"},{"$f":"IF(ISBLANK('Timeless Wisdom'!C108),\"\",'Timeless Wisdom'!C108)","v":210},{"$f":"IF(ISBLANK('Timeless Wisdom'!D108),\"\",'Timeless Wisdom'!D108)","v":""},{"$f":"IF(ISBLANK('Timeless Wisdom'!E108),\"\",'Timeless Wisdom'!E108)","v":""},{"$f":"IF(ISBLANK('Timeless Wisdom'!F108),\"\",'Timeless Wisdom'!F108)","v":""},{"$f":"IF(ISBLANK('Timeless Wisdom'!G108),\"\",TEXT('Timeless Wisdom'!G108, \"General\"))","v":""},null,"HIDE",null,null,null,null,null,"",null,null,null,null,null,{"$f":"IFERROR(VLOOKUP($AF311,Lists!$A$2:$B$6,2,FALSE),IF(PresentationSortBy=ListsSortExpHigh,-9999999,9999999))","v":9999999},"",999999,999999,"!",false,false,false,false,null,null,null,null," "]
[{"$f":"IF(ISBLANK('Timeless Wisdom'!A109),\"\",'Timeless Wisdom'!A109)","v":"Kabir"},{"$f":"IF(ISBLANK('Timeless Wisdom'!B109),\"\",'Timeless Wisdom'!B109)","v":"Weaving Your Name"},{"$f":"IF(ISBLANK('Timeless Wisdom'!C109),\"\",'Timeless Wisdom'!C109)","v":211},{"$f":"IF(ISBLANK('Timeless Wisdom'!D109),\"\",'Timeless Wisdom'!D109)","v":""},{"$f":"IF(ISBLANK('Timeless Wisdom'!E109),\"\",'Timeless Wisdom'!E109)","v":""},{"$f":"IF(ISBLANK('Timeless Wisdom'!F109),\"\",'Timeless Wisdom'!F109)","v":""},{"$f":"IF(ISBLANK('Timeless Wisdom'!G109),\"\",TEXT('Timeless Wisdom'!G109, \"General\"))","v":""},null,"HIDE",null,null,null,null,null,"",null,null,null,null,null,{"$f":"IFERROR(VLOOKUP($AF312,Lists!$A$2:$B$6,2,FALSE),IF(PresentationSortBy=ListsSortExpHigh,-9999999,9999999))","v":9999999},"",999999,999999,"!",false,false,false,false,null,null,null,null," "]
[{"$f":"IF(ISBLANK('Timeless Wisdom'!A110),\"\",'Timeless Wisdom'!A110)","v":"Kabir"},{"$f":"IF(ISBLANK('Timeless Wisdom'!B110),\"\",'Timeless Wisdom'!B110)","v":"The Fruit of the Tree"},{"$f":"IF(ISBLANK('Timeless Wisdom'!C110),\"\",'Timeless Wisdom'!C110)","v":212},{"$f":"IF(ISBLANK('Timeless Wisdom'!D110),\"\",'Timeless Wisdom'!D110)","v":""},{"$f":"IF(ISBLANK('Timeless Wisdom'!E110),\"\",'Timeless Wisdom'!E110)","v":""},{"$f":"IF(ISBLANK('Timeless Wisdom'!F110),\"\",'Timeless Wisdom'!F110)","v":""},{"$f":"IF(ISBLANK('Timeless Wisdom'!G110),\"\",TEXT('Timeless Wisdom'!G110, \"General\"))","v":""},null,"HIDE",null,null,null,null,null,"",null,null,null,null,null,{"$f":"IFERROR(VLOOKUP($AF313,Lists!$A$2:$B$6,2,FALSE),IF(PresentationSortBy=ListsSortExpHigh,-9999999,9999999))","v":9999999},"",999999,999999,"!",false,false,false,false,null,null,null,null," "]
[{"$f":"IF(ISBLANK('Timeless Wisdom'!A111),\"\",'Timeless Wisdom'!A111)","v":"Ravidas"},{"$f":"IF(ISBLANK('Timeless Wisdom'!B111),\"\",'Timeless Wisdom'!B111)","v":"Grieve Not"},{"$f":"IF(ISBLANK('Timeless Wisdom'!C111),\"\",'Timeless Wisdom'!C111)","v":213},{"$f":"IF(ISBLANK('Timeless Wisdom'!D111),\"\",'Timeless Wisdom'!D111)","v":""},{"$f":"IF(ISBLANK('Timeless Wisdom'!E111),\"\",'Timeless Wisdom'!E111)","v":""},{"$f":"IF(ISBLANK('Timeless Wisdom'!F111),\"\",'Timeless Wisdom'!F111)","v":""},{"$f":"IF(ISBLANK('Timeless Wisdom'!G111),\"\",TEXT('Timeless Wisdom'!G111, \"General\"))","v":""},null,"HIDE",null,null,null,null,null,"",null,null,null,null,null,{"$f":"IFERROR(VLOOKUP($AF314,Lists!$A$2:$B$6,2,FALSE),IF(PresentationSortBy=ListsSortExpHigh,-9999999,9999999))","v":9999999},"",999999,999999,"!",false,false,false,false,null,null,null,null," "]
[null,null,null,null,null,null,null,"SPECIALOP",null,null,null,null,null,null,"",null,null,null,null,null,{"$f":"IFERROR(VLOOKUP($AF315,Lists!$A$2:$B$6,2,FALSE),IF(PresentationSortBy=ListsSortExpHigh,-9999999,9999999))","v":9999999},"",999999,999999,"!",false,false,false,false,null,null,null,null," "]
["Other Passages",null,null,null,null,null,null,"SPECIALOP",null,null,null,null,null,null,"",null,null,null,null,null,{"$f":"IFERROR(VLOOKUP($AF316,Lists!$A$2:$B$6,2,FALSE),IF(PresentationSortBy=ListsSortExpHigh,-9999999,9999999))","v":9999999},"",999999,999999,"!",false,false,false,false,null,null,null,null," "]
[null,null,null,null,null,null,null,"SPECIALOP",null,null,null,null,null,null,"",null,null,null,null,null,{"$f":"IFERROR(VLOOKUP($AF317,Lists!$A$2:$B$6,2,FALSE),IF(PresentationSortBy=ListsSortExpHigh,-9999999,9999999))","v":9999999},"",999999,999999,"!",false,false,false,false,null,null,null,null," "]
[{"$f":"IF(ISBLANK('Other Passages'!A8),\"\",'Other Passages'!A8)","v":"Eknath Easwaran"},{"$f":"IF(ISBLANK('Other Passages'!B8),\"\",'Other Passages'!B8)","v":"A Prayer for Meditation"},{"$f":"IF(ISBLANK('Other Passages'!C8),\"\",'Other Passages'!C8)","v":""},{"$f":"IF(ISBLANK('Other Passages'!D8),\"\",'Other Passages'!D8)","v":"2016-08-01"},{"$f":"IF(ISBLANK('Other Passages'!E8),\"\",'Other Passages'!E8)","v":1},{"$f":"IF(ISBLANK('Other Passages'!F8),\"\",'Other Passages'!F8)","v":"Skill"},{"$f":"IF(ISBLANK('Other Passages'!G8),\"\",TEXT('Other Passages'!G8,\"General\"))","v":""},null,{"$f":"IF(B318<>\"\",\"\\\\SHOW\",\"HIDE\")","v":"\\\\SHOW"},null,null,null,null,null,"",null,null,null,null,null,{"$f":"IFERROR(VLOOKUP($AF318,Lists!$A$2:$B$6,2,FALSE),IF(PresentationSortBy=ListsSortExpHigh,-9999999,9999999))","v":9999999},"",999999,999999,"!",false,false,false,false,null,null,null,null," "]
[{"$f":"IF(ISBLANK('Other Passages'!A9),\"\",'Other Passages'!A9)","v":""},{"$f":"IF(ISBLANK('Other Passages'!B9),\"\",'Other Passages'!B9)","v":"Paramahamsa Upanishad"},{"$f":"IF(ISBLANK('Other Passages'!C9),\"\",'Other Passages'!C9)","v":""},{"$f":"IF(ISBLANK('Other Passages'!D9),\"\",'Other Passages'!D9)","v":""},{"$f":"IF(ISBLANK('Other Passages'!E9),\"\",'Other Passages'!E9)","v":""},{"$f":"IF(ISBLANK('Other Passages'!F9),\"\",'Other Passages'!F9)","v":"Planning to learn"},{"$f":"IF(ISBLANK('Other Passages'!G9),\"\",TEXT('Other Passages'!G9,\"General\"))","v":"Long"},null,{"$f":"IF(B319<>\"\",\"\\\\SHOW\",\"HIDE\")","v":"\\\\SHOW"},null,null,null,null,null,"",null,null,null,null,null,{"$f":"IFERROR(VLOOKUP($AF319,Lists!$A$2:$B$6,2,FALSE),IF(PresentationSortBy=ListsSortExpHigh,-9999999,9999999))","v":9999999},"",999999,999999,"!",false,false,false,false,null,null,null,null," "]
[{"$f":"IF(ISBLANK('Other Passages'!A10),\"\",'Other Passages'!A10)","v":""},{"$f":"IF(ISBLANK('Other Passages'!B10),\"\",'Other Passages'!B10)","v":""},{"$f":"IF(ISBLANK('Other Passages'!C10),\"\",'Other Passages'!C10)","v":""},{"$f":"IF(ISBLANK('Other Passages'!D10),\"\",'Other Passages'!D10)","v":""},{"$f":"IF(ISBLANK('Other Passages'!E10),\"\",'Other Passages'!E10)","v":""},{"$f":"IF(ISBLANK('Other Passages'!F10),\"\",'Other Passages'!F10)","v":""},{"$f":"IF(ISBLANK('Other Passages'!G10),\"\",TEXT('Other Passages'!G10,\"General\"))","v":""},null,"HIDE",null,null,null,null,null,null,null,null,null,null,null,null,null,null,null,null,null,null,null,null,null,null,null,null," "]
[{"$f":"IF(ISBLANK('Other Passages'!A11),\"\",'Other Passages'!A11)","v":""},{"$f":"IF(ISBLANK('Other Passages'!B11),\"\",'Other Passages'!B11)","v":""},{"$f":"IF(ISBLANK('Other Passages'!C11),\"\",'Other Passages'!C11)","v":""},{"$f":"IF(ISBLANK('Other Passages'!D11),\"\",'Other Passages'!D11)","v":""},{"$f":"IF(ISBLANK('Other Passages'!E11),\"\",'Other Passages'!E11)","v":""},{"$f":"IF(ISBLANK('Other Passages'!F11),\"\",'Other Passages'!F11)","v":""},{"$f":"IF(ISBLANK('Other Passages'!G11),\"\",TEXT('Other Passages'!G11,\"General\"))","v":""},null,"HIDE",null,null,null,null,null,null,null,null,null,null,null,null,null,null,null,null,null,null,null,null,null,null,null,null," "]
[{"$f":"IF(ISBLANK('Other Passages'!A12),\"\",'Other Passages'!A12)","v":""},{"$f":"IF(ISBLANK('Other Passages'!B12),\"\",'Other Passages'!B12)","v":""},{"$f":"IF(ISBLANK('Other Passages'!C12),\"\",'Other Passages'!C12)","v":""},{"$f":"IF(ISBLANK('Other Passages'!D12),\"\",'Other Passages'!D12)","v":""},{"$f":"IF(ISBLANK('Other Passages'!E12),\"\",'Other Passages'!E12)","v":""},{"$f":"IF(ISBLANK('Other Passages'!F12),\"\",'Other Passages'!F12)","v":""},{"$f":"IF(ISBLANK('Other Passages'!G12),\"\",TEXT('Other Passages'!G12,\"General\"))","v":""},null,"HIDE",null,null,null,null,null,null,null,null,null,null,null,null,null,null,null,null,null,null,null,null,null,null,null,null," "]
[{"$f":"IF(ISBLANK('Other Passages'!A13),\"\",'Other Passages'!A13)","v":""},{"$f":"IF(ISBLANK('Other Passages'!B13),\"\",'Other Passages'!B13)","v":""},{"$f":"IF(ISBLANK('Other Passages'!C13),\"\",'Other Passages'!C13)","v":""},{"$f":"IF(ISBLANK('Other Passages'!D13),\"\",'Other Passages'!D13)","v":""},{"$f":"IF(ISBLANK('Other Passages'!E13),\"\",'Other Passages'!E13)","v":""},{"$f":"IF(ISBLANK('Other Passages'!F13),\"\",'Other Passages'!F13)","v":""},{"$f":"IF(ISBLANK('Other Passages'!G13),\"\",TEXT('Other Passages'!G13,\"General\"))","v":""},null,"HIDE",null,null,null,null,null,null,null,null,null,null,null,null,null,null,null,null,null,null,null,null,null,null,null,null," "]
[{"$f":"IF(ISBLANK('Other Passages'!A14),\"\",'Other Passages'!A14)","v":""},{"$f":"IF(ISBLANK('Other Passages'!B14),\"\",'Other Passages'!B14)","v":""},{"$f":"IF(ISBLANK('Other Passages'!C14),\"\",'Other Passages'!C14)","v":""},{"$f":"IF(ISBLANK('Other Passages'!D14),\"\",'Other Passages'!D14)","v":""},{"$f":"IF(ISBLANK('Other Passages'!E14),\"\",'Other Passages'!E14)","v":""},{"$f":"IF(ISBLANK('Other Passages'!F14),\"\",'Other Passages'!F14)","v":""},{"$f":"IF(ISBLANK('Other Passages'!G14),\"\",TEXT('Other Passages'!G14,\"General\"))","v":""},null,"HIDE",null,null,null,null,null,null,null,null,null,null,null,null,null,null,null,null,null,null,null,null,null,null,null,null," "]
[{"$f":"IF(ISBLANK('Other Passages'!A15),\"\",'Other Passages'!A15)","v":""},{"$f":"IF(ISBLANK('Other Passages'!B15),\"\",'Other Passages'!B15)","v":""},{"$f":"IF(ISBLANK('Other Passages'!C15),\"\",'Other Passages'!C15)","v":""},{"$f":"IF(ISBLANK('Other Passages'!D15),\"\",'Other Passages'!D15)","v":""},{"$f":"IF(ISBLANK('Other Passages'!E15),\"\",'Other Passages'!E15)","v":""},{"$f":"IF(ISBLANK('Other Passages'!F15),\"\",'Other Passages'!F15)","v":""},{"$f":"IF(ISBLANK('Other Passages'!G15),\"\",TEXT('Other Passages'!G15,\"General\"))","v":""},null,"HIDE",null,null,null,null,null,null,null,null,null,null,null,null,null,null,null,null,null,null,null,null,null,null,null,null," "]
[{"$f":"IF(ISBLANK('Other Passages'!A16),\"\",'Other Passages'!A16)","v":""},{"$f":"IF(ISBLANK('Other Passages'!B16),\"\",'Other Passages'!B16)","v":""},{"$f":"IF(ISBLANK('Other Passages'!C16),\"\",'Other Passages'!C16)","v":""},{"$f":"IF(ISBLANK('Other Passages'!D16),\"\",'Other Passages'!D16)","v":""},{"$f":"IF(ISBLANK('Other Passages'!E16),\"\",'Other Passages'!E16)","v":""},{"$f":"IF(ISBLANK('Other Passages'!F16),\"\",'Other Passages'!F16)","v":""},{"$f":"IF(ISBLANK('Other Passages'!G16),\"\",TEXT('Other Passages'!G16,\"General\"))","v":""},null,"HIDE",null,null,null,null,null,null,null,null,null,null,null,null,null,null,null,null,null,null,null,null,null,null,null,null," "]
[{"$f":"IF(ISBLANK('Other Passages'!A17),\"\",'Other Passages'!A17)","v":""},{"$f":"IF(ISBLANK('Other Passages'!B17),\"\",'Other Passages'!B17)","v":""},{"$f":"IF(ISBLANK('Other Passages'!C17),\"\",'Other Passages'!C17)","v":""},{"$f":"IF(ISBLANK('Other Passages'!D17),\"\",'Other Passages'!D17)","v":""},{"$f":"IF(ISBLANK('Other Passages'!E17),\"\",'Other Passages'!E17)","v":""},{"$f":"IF(ISBLANK('Other Passages'!F17),\"\",'Other Passages'!F17)","v":""},{"$f":"IF(ISBLANK('Other Passages'!G17),\"\",TEXT('Other Passages'!G17,\"General\"))","v":""},null,"HIDE",null,null,null,null,null,null,null,null,null,null,null,null,null,null,null,null,null,null,null,null,null,null,null,null," "]
[{"$f":"IF(ISBLANK('Other Passages'!A18),\"\",'Other Passages'!A18)","v":""},{"$f":"IF(ISBLANK('Other Passages'!B18),\"\",'Other Passages'!B18)","v":""},{"$f":"IF(ISBLANK('Other Passages'!C18),\"\",'Other Passages'!C18)","v":""},{"$f":"IF(ISBLANK('Other Passages'!D18),\"\",'Other Passages'!D18)","v":""},{"$f":"IF(ISBLANK('Other Passages'!E18),\"\",'Other Passages'!E18)","v":""},{"$f":"IF(ISBLANK('Other Passages'!F18),\"\",'Other Passages'!F18)","v":""},{"$f":"IF(ISBLANK('Other Passages'!G18),\"\",TEXT('Other Passages'!G18,\"General\"))","v":""},null,"HIDE",null,null,null,null,null,null,null,null,null,null,null,null,null,null,null,null,null,null,null,null,null,null,null,null," "]
[{"$f":"IF(ISBLANK('Other Passages'!A19),\"\",'Other Passages'!A19)","v":""},{"$f":"IF(ISBLANK('Other Passages'!B19),\"\",'Other Passages'!B19)","v":""},{"$f":"IF(ISBLANK('Other Passages'!C19),\"\",'Other Passages'!C19)","v":""},{"$f":"IF(ISBLANK('Other Passages'!D19),\"\",'Other Passages'!D19)","v":""},{"$f":"IF(ISBLANK('Other Passages'!E19),\"\",'Other Passages'!E19)","v":""},{"$f":"IF(ISBLANK('Other Passages'!F19),\"\",'Other Passages'!F19)","v":""},{"$f":"IF(ISBLANK('Other Passages'!G19),\"\",TEXT('Other Passages'!G19,\"General\"))","v":""},null,"HIDE",null,null,null,null,null,null,null,null,null,null,null,null,null,null,null,null,null,null,null,null,null,null,null,null," "]
[{"$f":"IF(ISBLANK('Other Passages'!A20),\"\",'Other Passages'!A20)","v":""},{"$f":"IF(ISBLANK('Other Passages'!B20),\"\",'Other Passages'!B20)","v":""},{"$f":"IF(ISBLANK('Other Passages'!C20),\"\",'Other Passages'!C20)","v":""},{"$f":"IF(ISBLANK('Other Passages'!D20),\"\",'Other Passages'!D20)","v":""},{"$f":"IF(ISBLANK('Other Passages'!E20),\"\",'Other Passages'!E20)","v":""},{"$f":"IF(ISBLANK('Other Passages'!F20),\"\",'Other Passages'!F20)","v":""},{"$f":"IF(ISBLANK('Other Passages'!G20),\"\",TEXT('Other Passages'!G20,\"General\"))","v":""},null,"HIDE",null,null,null,null,null,null,null,null,null,null,null,null,null,null,null,null,null,null,null,null,null,null,null,null," "]
[{"$f":"IF(ISBLANK('Other Passages'!A21),\"\",'Other Passages'!A21)","v":""},{"$f":"IF(ISBLANK('Other Passages'!B21),\"\",'Other Passages'!B21)","v":""},{"$f":"IF(ISBLANK('Other Passages'!C21),\"\",'Other Passages'!C21)","v":""},{"$f":"IF(ISBLANK('Other Passages'!D21),\"\",'Other Passages'!D21)","v":""},{"$f":"IF(ISBLANK('Other Passages'!E21),\"\",'Other Passages'!E21)","v":""},{"$f":"IF(ISBLANK('Other Passages'!F21),\"\",'Other Passages'!F21)","v":""},{"$f":"IF(ISBLANK('Other Passages'!G21),\"\",TEXT('Other Passages'!G21,\"General\"))","v":""},null,"HIDE",null,null,null,null,null,null,null,null,null,null,null,null,null,null,null,null,null,null,null,null,null,null,null,null," "]
[{"$f":"IF(ISBLANK('Other Passages'!A22),\"\",'Other Passages'!A22)","v":""},{"$f":"IF(ISBLANK('Other Passages'!B22),\"\",'Other Passages'!B22)","v":""},{"$f":"IF(ISBLANK('Other Passages'!C22),\"\",'Other Passages'!C22)","v":""},{"$f":"IF(ISBLANK('Other Passages'!D22),\"\",'Other Passages'!D22)","v":""},{"$f":"IF(ISBLANK('Other Passages'!E22),\"\",'Other Passages'!E22)","v":""},{"$f":"IF(ISBLANK('Other Passages'!F22),\"\",'Other Passages'!F22)","v":""},{"$f":"IF(ISBLANK('Other Passages'!G22),\"\",TEXT('Other Passages'!G22,\"General\"))","v":""},null,"HIDE",null,null,null,null,null,null,null,null,null,null,null,null,null,null,null,null,null,null,null,null,null,null,null,null," "]
[{"$f":"IF(ISBLANK('Other Passages'!A23),\"\",'Other Passages'!A23)","v":""},{"$f":"IF(ISBLANK('Other Passages'!B23),\"\",'Other Passages'!B23)","v":""},{"$f":"IF(ISBLANK('Other Passages'!C23),\"\",'Other Passages'!C23)","v":""},{"$f":"IF(ISBLANK('Other Passages'!D23),\"\",'Other Passages'!D23)","v":""},{"$f":"IF(ISBLANK('Other Passages'!E23),\"\",'Other Passages'!E23)","v":""},{"$f":"IF(ISBLANK('Other Passages'!F23),\"\",'Other Passages'!F23)","v":""},{"$f":"IF(ISBLANK('Other Passages'!G23),\"\",TEXT('Other Passages'!G23,\"General\"))","v":""},null,"HIDE",null,null,null,null,null,null,null,null,null,null,null,null,null,null,null,null,null,null,null,null,null,null,null,null," "]
[{"$f":"IF(ISBLANK('Other Passages'!A24),\"\",'Other Passages'!A24)","v":""},{"$f":"IF(ISBLANK('Other Passages'!B24),\"\",'Other Passages'!B24)","v":""},{"$f":"IF(ISBLANK('Other Passages'!C24),\"\",'Other Passages'!C24)","v":""},{"$f":"IF(ISBLANK('Other Passages'!D24),\"\",'Other Passages'!D24)","v":""},{"$f":"IF(ISBLANK('Other Passages'!E24),\"\",'Other Passages'!E24)","v":""},{"$f":"IF(ISBLANK('Other Passages'!F24),\"\",'Other Passages'!F24)","v":""},{"$f":"IF(ISBLANK('Other Passages'!G24),\"\",TEXT('Other Passages'!G24,\"General\"))","v":""},null,"HIDE",null,null,null,null,null,null,null,null,null,null,null,null,null,null,null,null,null,null,null,null,null,null,null,null," "]
[{"$f":"IF(ISBLANK('Other Passages'!A25),\"\",'Other Passages'!A25)","v":""},{"$f":"IF(ISBLANK('Other Passages'!B25),\"\",'Other Passages'!B25)","v":""},{"$f":"IF(ISBLANK('Other Passages'!C25),\"\",'Other Passages'!C25)","v":""},{"$f":"IF(ISBLANK('Other Passages'!D25),\"\",'Other Passages'!D25)","v":""},{"$f":"IF(ISBLANK('Other Passages'!E25),\"\",'Other Passages'!E25)","v":""},{"$f":"IF(ISBLANK('Other Passages'!F25),\"\",'Other Passages'!F25)","v":""},{"$f":"IF(ISBLANK('Other Passages'!G25),\"\",TEXT('Other Passages'!G25,\"General\"))","v":""},null,"HIDE",null,null,null,null,null,null,null,null,null,null,null,null,null,null,null,null,null,null,null,null,null,null,null,null," "]
[{"$f":"IF(ISBLANK('Other Passages'!A26),\"\",'Other Passages'!A26)","v":""},{"$f":"IF(ISBLANK('Other Passages'!B26),\"\",'Other Passages'!B26)","v":""},{"$f":"IF(ISBLANK('Other Passages'!C26),\"\",'Other Passages'!C26)","v":""},{"$f":"IF(ISBLANK('Other Passages'!D26),\"\",'Other Passages'!D26)","v":""},{"$f":"IF(ISBLANK('Other Passages'!E26),\"\",'Other Passages'!E26)","v":""},{"$f":"IF(ISBLANK('Other Passages'!F26),\"\",'Other Passages'!F26)","v":""},{"$f":"IF(ISBLANK('Other Passages'!G26),\"\",TEXT('Other Passages'!G26,\"General\"))","v":""},null,"HIDE",null,null,null,null,null,null,null,null,null,null,null,null,null,null,null,null,null,null,null,null,null,null,null,null," "]
[{"$f":"IF(ISBLANK('Other Passages'!A27),\"\",'Other Passages'!A27)","v":""},{"$f":"IF(ISBLANK('Other Passages'!B27),\"\",'Other Passages'!B27)","v":""},{"$f":"IF(ISBLANK('Other Passages'!C27),\"\",'Other Passages'!C27)","v":""},{"$f":"IF(ISBLANK('Other Passages'!D27),\"\",'Other Passages'!D27)","v":""},{"$f":"IF(ISBLANK('Other Passages'!E27),\"\",'Other Passages'!E27)","v":""},{"$f":"IF(ISBLANK('Other Passages'!F27),\"\",'Other Passages'!F27)","v":""},{"$f":"IF(ISBLANK('Other Passages'!G27),\"\",TEXT('Other Passages'!G27,\"General\"))","v":""},null,"HIDE",null,null,null,null,null,null,null,null,null,null,null,null,null,null,null,null,null,null,null,null,null,null,null,null," "]
[{"$f":"IF(ISBLANK('Other Passages'!A28),\"\",'Other Passages'!A28)","v":""},{"$f":"IF(ISBLANK('Other Passages'!B28),\"\",'Other Passages'!B28)","v":""},{"$f":"IF(ISBLANK('Other Passages'!C28),\"\",'Other Passages'!C28)","v":""},{"$f":"IF(ISBLANK('Other Passages'!D28),\"\",'Other Passages'!D28)","v":""},{"$f":"IF(ISBLANK('Other Passages'!E28),\"\",'Other Passages'!E28)","v":""},{"$f":"IF(ISBLANK('Other Passages'!F28),\"\",'Other Passages'!F28)","v":""},{"$f":"IF(ISBLANK('Other Passages'!G28),\"\",TEXT('Other Passages'!G28,\"General\"))","v":""},null,"HIDE",null,null,null,null,null,null,null,null,null,null,null,null,null,null,null,null,null,null,null,null,null,null,null,null," "]
[{"$f":"IF(ISBLANK('Other Passages'!A29),\"\",'Other Passages'!A29)","v":""},{"$f":"IF(ISBLANK('Other Passages'!B29),\"\",'Other Passages'!B29)","v":""},{"$f":"IF(ISBLANK('Other Passages'!C29),\"\",'Other Passages'!C29)","v":""},{"$f":"IF(ISBLANK('Other Passages'!D29),\"\",'Other Passages'!D29)","v":""},{"$f":"IF(ISBLANK('Other Passages'!E29),\"\",'Other Passages'!E29)","v":""},{"$f":"IF(ISBLANK('Other Passages'!F29),\"\",'Other Passages'!F29)","v":""},{"$f":"IF(ISBLANK('Other Passages'!G29),\"\",TEXT('Other Passages'!G29,\"General\"))","v":""},null,"HIDE",null,null,null,null,null,null,null,null,null,null,null,null,null,null,null,null,null,null,null,null,null,null,null,null," "]
[{"$f":"IF(ISBLANK('Other Passages'!A30),\"\",'Other Passages'!A30)","v":""},{"$f":"IF(ISBLANK('Other Passages'!B30),\"\",'Other Passages'!B30)","v":""},{"$f":"IF(ISBLANK('Other Passages'!C30),\"\",'Other Passages'!C30)","v":""},{"$f":"IF(ISBLANK('Other Passages'!D30),\"\",'Other Passages'!D30)","v":""},{"$f":"IF(ISBLANK('Other Passages'!E30),\"\",'Other Passages'!E30)","v":""},{"$f":"IF(ISBLANK('Other Passages'!F30),\"\",'Other Passages'!F30)","v":""},{"$f":"IF(ISBLANK('Other Passages'!G30),\"\",TEXT('Other Passages'!G30,\"General\"))","v":""},null,"HIDE",null,null,null,null,null,null,null,null,null,null,null,null,null,null,null,null,null,null,null,null,null,null,null,null," "]
[{"$f":"IF(ISBLANK('Other Passages'!A31),\"\",'Other Passages'!A31)","v":""},{"$f":"IF(ISBLANK('Other Passages'!B31),\"\",'Other Passages'!B31)","v":""},{"$f":"IF(ISBLANK('Other Passages'!C31),\"\",'Other Passages'!C31)","v":""},{"$f":"IF(ISBLANK('Other Passages'!D31),\"\",'Other Passages'!D31)","v":""},{"$f":"IF(ISBLANK('Other Passages'!E31),\"\",'Other Passages'!E31)","v":""},{"$f":"IF(ISBLANK('Other Passages'!F31),\"\",'Other Passages'!F31)","v":""},{"$f":"IF(ISBLANK('Other Passages'!G31),\"\",TEXT('Other Passages'!G31,\"General\"))","v":""},null,"HIDE",null,null,null,null,null,null,null,null,null,null,null,null,null,null,null,null,null,null,null,null,null,null,null,null," "]
[{"$f":"IF(ISBLANK('Other Passages'!A32),\"\",'Other Passages'!A32)","v":""},{"$f":"IF(ISBLANK('Other Passages'!B32),\"\",'Other Passages'!B32)","v":""},{"$f":"IF(ISBLANK('Other Passages'!C32),\"\",'Other Passages'!C32)","v":""},{"$f":"IF(ISBLANK('Other Passages'!D32),\"\",'Other Passages'!D32)","v":""},{"$f":"IF(ISBLANK('Other Passages'!E32),\"\",'Other Passages'!E32)","v":""},{"$f":"IF(ISBLANK('Other Passages'!F32),\"\",'Other Passages'!F32)","v":""},{"$f":"IF(ISBLANK('Other Passages'!G32),\"\",TEXT('Other Passages'!G32,\"General\"))","v":""},null,"HIDE",null,null,null,null,null,null,null,null,null,null,null,null,null,null,null,null,null,null,null,null,null,null,null,null," "]
[{"$f":"IF(ISBLANK('Other Passages'!A33),\"\",'Other Passages'!A33)","v":""},{"$f":"IF(ISBLANK('Other Passages'!B33),\"\",'Other Passages'!B33)","v":""},{"$f":"IF(ISBLANK('Other Passages'!C33),\"\",'Other Passages'!C33)","v":""},{"$f":"IF(ISBLANK('Other Passages'!D33),\"\",'Other Passages'!D33)","v":""},{"$f":"IF(ISBLANK('Other Passages'!E33),\"\",'Other Passages'!E33)","v":""},{"$f":"IF(ISBLANK('Other Passages'!F33),\"\",'Other Passages'!F33)","v":""},{"$f":"IF(ISBLANK('Other Passages'!G33),\"\",TEXT('Other Passages'!G33,\"General\"))","v":""},null,"HIDE",null,null,null,null,null,null,null,null,null,null,null,null,null,null,null,null,null,null,null,null,null,null,null,null," "]
[{"$f":"IF(ISBLANK('Other Passages'!A34),\"\",'Other Passages'!A34)","v":""},{"$f":"IF(ISBLANK('Other Passages'!B34),\"\",'Other Passages'!B34)","v":""},{"$f":"IF(ISBLANK('Other Passages'!C34),\"\",'Other Passages'!C34)","v":""},{"$f":"IF(ISBLANK('Other Passages'!D34),\"\",'Other Passages'!D34)","v":""},{"$f":"IF(ISBLANK('Other Passages'!E34),\"\",'Other Passages'!E34)","v":""},{"$f":"IF(ISBLANK('Other Passages'!F34),\"\",'Other Passages'!F34)","v":""},{"$f":"IF(ISBLANK('Other Passages'!G34),\"\",TEXT('Other Passages'!G34,\"General\"))","v":""},null,"HIDE",null,null,null,null,null,null,null,null,null,null,null,null,null,null,null,null,null,null,null,null,null,null,null,null," "]
[{"$f":"IF(ISBLANK('Other Passages'!A35),\"\",'Other Passages'!A35)","v":""},{"$f":"IF(ISBLANK('Other Passages'!B35),\"\",'Other Passages'!B35)","v":""},{"$f":"IF(ISBLANK('Other Passages'!C35),\"\",'Other Passages'!C35)","v":""},{"$f":"IF(ISBLANK('Other Passages'!D35),\"\",'Other Passages'!D35)","v":""},{"$f":"IF(ISBLANK('Other Passages'!E35),\"\",'Other Passages'!E35)","v":""},{"$f":"IF(ISBLANK('Other Passages'!F35),\"\",'Other Passages'!F35)","v":""},{"$f":"IF(ISBLANK('Other Passages'!G35),\"\",TEXT('Other Passages'!G35,\"General\"))","v":""},null,"HIDE",null,null,null,null,null,null,null,null,null,null,null,null,null,null,null,null,null,null,null,null,null,null,null,null," "]
[{"$f":"IF(ISBLANK('Other Passages'!A36),\"\",'Other Passages'!A36)","v":""},{"$f":"IF(ISBLANK('Other Passages'!B36),\"\",'Other Passages'!B36)","v":""},{"$f":"IF(ISBLANK('Other Passages'!C36),\"\",'Other Passages'!C36)","v":""},{"$f":"IF(ISBLANK('Other Passages'!D36),\"\",'Other Passages'!D36)","v":""},{"$f":"IF(ISBLANK('Other Passages'!E36),\"\",'Other Passages'!E36)","v":""},{"$f":"IF(ISBLANK('Other Passages'!F36),\"\",'Other Passages'!F36)","v":""},{"$f":"IF(ISBLANK('Other Passages'!G36),\"\",TEXT('Other Passages'!G36,\"General\"))","v":""},null,"HIDE",null,null,null,null,null,null,null,null,null,null,null,null,null,null,null,null,null,null,null,null,null,null,null,null," "]
[{"$f":"IF(ISBLANK('Other Passages'!A37),\"\",'Other Passages'!A37)","v":""},{"$f":"IF(ISBLANK('Other Passages'!B37),\"\",'Other Passages'!B37)","v":""},{"$f":"IF(ISBLANK('Other Passages'!C37),\"\",'Other Passages'!C37)","v":""},{"$f":"IF(ISBLANK('Other Passages'!D37),\"\",'Other Passages'!D37)","v":""},{"$f":"IF(ISBLANK('Other Passages'!E37),\"\",'Other Passages'!E37)","v":""},{"$f":"IF(ISBLANK('Other Passages'!F37),\"\",'Other Passages'!F37)","v":""},{"$f":"IF(ISBLANK('Other Passages'!G37),\"\",TEXT('Other Passages'!G37,\"General\"))","v":""},null,"HIDE",null,null,null,null,null,null,null,null,null,null,null,null,null,null,null,null,null,null,null,null,null,null,null,null," "]
[{"$f":"IF(ISBLANK('Other Passages'!A38),\"\",'Other Passages'!A38)","v":""},{"$f":"IF(ISBLANK('Other Passages'!B38),\"\",'Other Passages'!B38)","v":""},{"$f":"IF(ISBLANK('Other Passages'!C38),\"\",'Other Passages'!C38)","v":""},{"$f":"IF(ISBLANK('Other Passages'!D38),\"\",'Other Passages'!D38)","v":""},{"$f":"IF(ISBLANK('Other Passages'!E38),\"\",'Other Passages'!E38)","v":""},{"$f":"IF(ISBLANK('Other Passages'!F38),\"\",'Other Passages'!F38)","v":""},{"$f":"IF(ISBLANK('Other Passages'!G38),\"\",TEXT('Other Passages'!G38,\"General\"))","v":""},null,"HIDE",null,null,null,null,null,null,null,null,null,null,null,null,null,null,null,null,null,null,null,null,null,null,null,null," "]
[{"$f":"IF(ISBLANK('Other Passages'!A39),\"\",'Other Passages'!A39)","v":""},{"$f":"IF(ISBLANK('Other Passages'!B39),\"\",'Other Passages'!B39)","v":""},{"$f":"IF(ISBLANK('Other Passages'!C39),\"\",'Other Passages'!C39)","v":""},{"$f":"IF(ISBLANK('Other Passages'!D39),\"\",'Other Passages'!D39)","v":""},{"$f":"IF(ISBLANK('Other Passages'!E39),\"\",'Other Passages'!E39)","v":""},{"$f":"IF(ISBLANK('Other Passages'!F39),\"\",'Other Passages'!F39)","v":""},{"$f":"IF(ISBLANK('Other Passages'!G39),\"\",TEXT('Other Passages'!G39,\"General\"))","v":""},null,"HIDE",null,null,null,null,null,null,null,null,null,null,null,null,null,null,null,null,null,null,null,null,null,null,null,null," "]
[{"$f":"IF(ISBLANK('Other Passages'!A40),\"\",'Other Passages'!A40)","v":""},{"$f":"IF(ISBLANK('Other Passages'!B40),\"\",'Other Passages'!B40)","v":""},{"$f":"IF(ISBLANK('Other Passages'!C40),\"\",'Other Passages'!C40)","v":""},{"$f":"IF(ISBLANK('Other Passages'!D40),\"\",'Other Passages'!D40)","v":""},{"$f":"IF(ISBLANK('Other Passages'!E40),\"\",'Other Passages'!E40)","v":""},{"$f":"IF(ISBLANK('Other Passages'!F40),\"\",'Other Passages'!F40)","v":""},{"$f":"IF(ISBLANK('Other Passages'!G40),\"\",TEXT('Other Passages'!G40,\"General\"))","v":""},null,"HIDE",null,null,null,null,null,null,null,null,null,null,null,null,null,null,null,null,null,null,null,null,null,null,null,null," "]
[{"$f":"IF(ISBLANK('Other Passages'!A41),\"\",'Other Passages'!A41)","v":""},{"$f":"IF(ISBLANK('Other Passages'!B41),\"\",'Other Passages'!B41)","v":""},{"$f":"IF(ISBLANK('Other Passages'!C41),\"\",'Other Passages'!C41)","v":""},{"$f":"IF(ISBLANK('Other Passages'!D41),\"\",'Other Passages'!D41)","v":""},{"$f":"IF(ISBLANK('Other Passages'!E41),\"\",'Other Passages'!E41)","v":""},{"$f":"IF(ISBLANK('Other Passages'!F41),\"\",'Other Passages'!F41)","v":""},{"$f":"IF(ISBLANK('Other Passages'!G41),\"\",TEXT('Other Passages'!G41,\"General\"))","v":""},null,"HIDE",null,null,null,null,null,null,null,null,null,null,null,null,null,null,null,null,null,null,null,null,null,null,null,null," "]
[{"$f":"IF(ISBLANK('Other Passages'!A42),\"\",'Other Passages'!A42)","v":""},{"$f":"IF(ISBLANK('Other Passages'!B42),\"\",'Other Passages'!B42)","v":""},{"$f":"IF(ISBLANK('Other Passages'!C42),\"\",'Other Passages'!C42)","v":""},{"$f":"IF(ISBLANK('Other Passages'!D42),\"\",'Other Passages'!D42)","v":""},{"$f":"IF(ISBLANK('Other Passages'!E42),\"\",'Other Passages'!E42)","v":""},{"$f":"IF(ISBLANK('Other Passages'!F42),\"\",'Other Passages'!F42)","v":""},{"$f":"IF(ISBLANK('Other Passages'!G42),\"\",TEXT('Other Passages'!G42,\"General\"))","v":""},null,"HIDE",null,null,null,null,null,null,null,null,null,null,null,null,null,null,null,null,null,null,null,null,null,null,null,null," "]
[{"$f":"IF(ISBLANK('Other Passages'!A43),\"\",'Other Passages'!A43)","v":""},{"$f":"IF(ISBLANK('Other Passages'!B43),\"\",'Other Passages'!B43)","v":""},{"$f":"IF(ISBLANK('Other Passages'!C43),\"\",'Other Passages'!C43)","v":""},{"$f":"IF(ISBLANK('Other Passages'!D43),\"\",'Other Passages'!D43)","v":""},{"$f":"IF(ISBLANK('Other Passages'!E43),\"\",'Other Passages'!E43)","v":""},{"$f":"IF(ISBLANK('Other Passages'!F43),\"\",'Other Passages'!F43)","v":""},{"$f":"IF(ISBLANK('Other Passages'!G43),\"\",TEXT('Other Passages'!G43,\"General\"))","v":""},null,"HIDE",null,null,null,null,null,null,null,null,null,null,null,null,null,null,null,null,null,null,null,null,null,null,null,null," "]
[{"$f":"IF(ISBLANK('Other Passages'!A44),\"\",'Other Passages'!A44)","v":""},{"$f":"IF(ISBLANK('Other Passages'!B44),\"\",'Other Passages'!B44)","v":""},{"$f":"IF(ISBLANK('Other Passages'!C44),\"\",'Other Passages'!C44)","v":""},{"$f":"IF(ISBLANK('Other Passages'!D44),\"\",'Other Passages'!D44)","v":""},{"$f":"IF(ISBLANK('Other Passages'!E44),\"\",'Other Passages'!E44)","v":""},{"$f":"IF(ISBLANK('Other Passages'!F44),\"\",'Other Passages'!F44)","v":""},{"$f":"IF(ISBLANK('Other Passages'!G44),\"\",TEXT('Other Passages'!G44,\"General\"))","v":""},null,"HIDE",null,null,null,null,null,null,null,null,null,null,null,null,null,null,null,null,null,null,null,null,null,null,null,null," "]
[{"$f":"IF(ISBLANK('Other Passages'!A45),\"\",'Other Passages'!A45)","v":""},{"$f":"IF(ISBLANK('Other Passages'!B45),\"\",'Other Passages'!B45)","v":""},{"$f":"IF(ISBLANK('Other Passages'!C45),\"\",'Other Passages'!C45)","v":""},{"$f":"IF(ISBLANK('Other Passages'!D45),\"\",'Other Passages'!D45)","v":""},{"$f":"IF(ISBLANK('Other Passages'!E45),\"\",'Other Passages'!E45)","v":""},{"$f":"IF(ISBLANK('Other Passages'!F45),\"\",'Other Passages'!F45)","v":""},{"$f":"IF(ISBLANK('Other Passages'!G45),\"\",TEXT('Other Passages'!G45,\"General\"))","v":""},null,"HIDE",null,null,null,null,null,null,null,null,null,null,null,null,null,null,null,null,null,null,null,null,null,null,null,null," "]
[{"$f":"IF(ISBLANK('Other Passages'!A46),\"\",'Other Passages'!A46)","v":""},{"$f":"IF(ISBLANK('Other Passages'!B46),\"\",'Other Passages'!B46)","v":""},{"$f":"IF(ISBLANK('Other Passages'!C46),\"\",'Other Passages'!C46)","v":""},{"$f":"IF(ISBLANK('Other Passages'!D46),\"\",'Other Passages'!D46)","v":""},{"$f":"IF(ISBLANK('Other Passages'!E46),\"\",'Other Passages'!E46)","v":""},{"$f":"IF(ISBLANK('Other Passages'!F46),\"\",'Other Passages'!F46)","v":""},{"$f":"IF(ISBLANK('Other Passages'!G46),\"\",TEXT('Other Passages'!G46,\"General\"))","v":""},null,"HIDE",null,null,null,null,null,null,null,null,null,null,null,null,null,null,null,null,null,null,null,null,null,null,null,null," "]
[{"$f":"IF(ISBLANK('Other Passages'!A47),\"\",'Other Passages'!A47)","v":""},{"$f":"IF(ISBLANK('Other Passages'!B47),\"\",'Other Passages'!B47)","v":""},{"$f":"IF(ISBLANK('Other Passages'!C47),\"\",'Other Passages'!C47)","v":""},{"$f":"IF(ISBLANK('Other Passages'!D47),\"\",'Other Passages'!D47)","v":""},{"$f":"IF(ISBLANK('Other Passages'!E47),\"\",'Other Passages'!E47)","v":""},{"$f":"IF(ISBLANK('Other Passages'!F47),\"\",'Other Passages'!F47)","v":""},{"$f":"IF(ISBLANK('Other Passages'!G47),\"\",TEXT('Other Passages'!G47,\"General\"))","v":""},null,"HIDE",null,null,null,null,null,null,null,null,null,null,null,null,null,null,null,null,null,null,null,null,null,null,null,null," "]
[{"$f":"IF(ISBLANK('Other Passages'!A48),\"\",'Other Passages'!A48)","v":""},{"$f":"IF(ISBLANK('Other Passages'!B48),\"\",'Other Passages'!B48)","v":""},{"$f":"IF(ISBLANK('Other Passages'!C48),\"\",'Other Passages'!C48)","v":""},{"$f":"IF(ISBLANK('Other Passages'!D48),\"\",'Other Passages'!D48)","v":""},{"$f":"IF(ISBLANK('Other Passages'!E48),\"\",'Other Passages'!E48)","v":""},{"$f":"IF(ISBLANK('Other Passages'!F48),\"\",'Other Passages'!F48)","v":""},{"$f":"IF(ISBLANK('Other Passages'!G48),\"\",TEXT('Other Passages'!G48,\"General\"))","v":""},null,"HIDE",null,null,null,null,null,null,null,null,null,null,null,null,null,null,null,null,null,null,null,null,null,null,null,null," "]
[{"$f":"IF(ISBLANK('Other Passages'!A49),\"\",'Other Passages'!A49)","v":""},{"$f":"IF(ISBLANK('Other Passages'!B49),\"\",'Other Passages'!B49)","v":""},{"$f":"IF(ISBLANK('Other Passages'!C49),\"\",'Other Passages'!C49)","v":""},{"$f":"IF(ISBLANK('Other Passages'!D49),\"\",'Other Passages'!D49)","v":""},{"$f":"IF(ISBLANK('Other Passages'!E49),\"\",'Other Passages'!E49)","v":""},{"$f":"IF(ISBLANK('Other Passages'!F49),\"\",'Other Passages'!F49)","v":""},{"$f":"IF(ISBLANK('Other Passages'!G49),\"\",TEXT('Other Passages'!G49,\"General\"))","v":""},null,"HIDE",null,null,null,null,null,null,null,null,null,null,null,null,null,null,null,null,null,null,null,null,null,null,null,null," "]
[{"$f":"IF(ISBLANK('Other Passages'!A50),\"\",'Other Passages'!A50)","v":""},{"$f":"IF(ISBLANK('Other Passages'!B50),\"\",'Other Passages'!B50)","v":""},{"$f":"IF(ISBLANK('Other Passages'!C50),\"\",'Other Passages'!C50)","v":""},{"$f":"IF(ISBLANK('Other Passages'!D50),\"\",'Other Passages'!D50)","v":""},{"$f":"IF(ISBLANK('Other Passages'!E50),\"\",'Other Passages'!E50)","v":""},{"$f":"IF(ISBLANK('Other Passages'!F50),\"\",'Other Passages'!F50)","v":""},{"$f":"IF(ISBLANK('Other Passages'!G50),\"\",TEXT('Other Passages'!G50,\"General\"))","v":""},null,"HIDE",null,null,null,null,null,null,null,null,null,null,null,null,null,null,null,null,null,null,null,null,null,null,null,null," "]
[{"$f":"IF(ISBLANK('Other Passages'!A51),\"\",'Other Passages'!A51)","v":""},{"$f":"IF(ISBLANK('Other Passages'!B51),\"\",'Other Passages'!B51)","v":""},{"$f":"IF(ISBLANK('Other Passages'!C51),\"\",'Other Passages'!C51)","v":""},{"$f":"IF(ISBLANK('Other Passages'!D51),\"\",'Other Passages'!D51)","v":""},{"$f":"IF(ISBLANK('Other Passages'!E51),\"\",'Other Passages'!E51)","v":""},{"$f":"IF(ISBLANK('Other Passages'!F51),\"\",'Other Passages'!F51)","v":""},{"$f":"IF(ISBLANK('Other Passages'!G51),\"\",TEXT('Other Passages'!G51,\"General\"))","v":""},null,"HIDE",null,null,null,null,null,null,null,null,null,null,null,null,null,null,null,null,null,null,null,null,null,null,null,null," "]
[{"$f":"IF(ISBLANK('Other Passages'!A52),\"\",'Other Passages'!A52)","v":""},{"$f":"IF(ISBLANK('Other Passages'!B52),\"\",'Other Passages'!B52)","v":""},{"$f":"IF(ISBLANK('Other Passages'!C52),\"\",'Other Passages'!C52)","v":""},{"$f":"IF(ISBLANK('Other Passages'!D52),\"\",'Other Passages'!D52)","v":""},{"$f":"IF(ISBLANK('Other Passages'!E52),\"\",'Other Passages'!E52)","v":""},{"$f":"IF(ISBLANK('Other Passages'!F52),\"\",'Other Passages'!F52)","v":""},{"$f":"IF(ISBLANK('Other Passages'!G52),\"\",TEXT('Other Passages'!G52,\"General\"))","v":""},null,"HIDE",null,null,null,null,null,null,null,null,null,null,null,null,null,null,null,null,null,null,null,null,null,null,null,null," "]
[{"$f":"IF(ISBLANK('Other Passages'!A53),\"\",'Other Passages'!A53)","v":""},{"$f":"IF(ISBLANK('Other Passages'!B53),\"\",'Other Passages'!B53)","v":""},{"$f":"IF(ISBLANK('Other Passages'!C53),\"\",'Other Passages'!C53)","v":""},{"$f":"IF(ISBLANK('Other Passages'!D53),\"\",'Other Passages'!D53)","v":""},{"$f":"IF(ISBLANK('Other Passages'!E53),\"\",'Other Passages'!E53)","v":""},{"$f":"IF(ISBLANK('Other Passages'!F53),\"\",'Other Passages'!F53)","v":""},{"$f":"IF(ISBLANK('Other Passages'!G53),\"\",TEXT('Other Passages'!G53,\"General\"))","v":""},null,"HIDE",null,null,null,null,null,null,null,null,null,null,null,null,null,null,null,null,null,null,null,null,null,null,null,null," "]
[{"$f":"IF(ISBLANK('Other Passages'!A54),\"\",'Other Passages'!A54)","v":""},{"$f":"IF(ISBLANK('Other Passages'!B54),\"\",'Other Passages'!B54)","v":""},{"$f":"IF(ISBLANK('Other Passages'!C54),\"\",'Other Passages'!C54)","v":""},{"$f":"IF(ISBLANK('Other Passages'!D54),\"\",'Other Passages'!D54)","v":""},{"$f":"IF(ISBLANK('Other Passages'!E54),\"\",'Other Passages'!E54)","v":""},{"$f":"IF(ISBLANK('Other Passages'!F54),\"\",'Other Passages'!F54)","v":""},{"$f":"IF(ISBLANK('Other Passages'!G54),\"\",TEXT('Other Passages'!G54,\"General\"))","v":""},null,"HIDE",null,null,null,null,null,null,null,null,null,null,null,null,null,null,null,null,null,null,null,null,null,null,null,null," "]
[{"$f":"IF(ISBLANK('Other Passages'!A55),\"\",'Other Passages'!A55)","v":""},{"$f":"IF(ISBLANK('Other Passages'!B55),\"\",'Other Passages'!B55)","v":""},{"$f":"IF(ISBLANK('Other Passages'!C55),\"\",'Other Passages'!C55)","v":""},{"$f":"IF(ISBLANK('Other Passages'!D55),\"\",'Other Passages'!D55)","v":""},{"$f":"IF(ISBLANK('Other Passages'!E55),\"\",'Other Passages'!E55)","v":""},{"$f":"IF(ISBLANK('Other Passages'!F55),\"\",'Other Passages'!F55)","v":""},{"$f":"IF(ISBLANK('Other Passages'!G55),\"\",TEXT('Other Passages'!G55,\"General\"))","v":""},null,"HIDE",null,null,null,null,null,null,null,null,null,null,null,null,null,null,null,null,null,null,null,null,null,null,null,null," "]
[{"$f":"IF(ISBLANK('Other Passages'!A56),\"\",'Other Passages'!A56)","v":""},{"$f":"IF(ISBLANK('Other Passages'!B56),\"\",'Other Passages'!B56)","v":""},{"$f":"IF(ISBLANK('Other Passages'!C56),\"\",'Other Passages'!C56)","v":""},{"$f":"IF(ISBLANK('Other Passages'!D56),\"\",'Other Passages'!D56)","v":""},{"$f":"IF(ISBLANK('Other Passages'!E56),\"\",'Other Passages'!E56)","v":""},{"$f":"IF(ISBLANK('Other Passages'!F56),\"\",'Other Passages'!F56)","v":""},{"$f":"IF(ISBLANK('Other Passages'!G56),\"\",TEXT('Other Passages'!G56,\"General\"))","v":""},null,"HIDE",null,null,null,null,null,null,null,null,null,null,null,null,null,null,null,null,null,null,null,null,null,null,null,null," "]
[{"$f":"IF(ISBLANK('Other Passages'!A57),\"\",'Other Passages'!A57)","v":""},{"$f":"IF(ISBLANK('Other Passages'!B57),\"\",'Other Passages'!B57)","v":""},{"$f":"IF(ISBLANK('Other Passages'!C57),\"\",'Other Passages'!C57)","v":""},{"$f":"IF(ISBLANK('Other Passages'!D57),\"\",'Other Passages'!D57)","v":""},{"$f":"IF(ISBLANK('Other Passages'!E57),\"\",'Other Passages'!E57)","v":""},{"$f":"IF(ISBLANK('Other Passages'!F57),\"\",'Other Passages'!F57)","v":""},{"$f":"IF(ISBLANK('Other Passages'!G57),\"\",TEXT('Other Passages'!G57,\"General\"))","v":""},null,"HIDE",null,null,null,null,null,null,null,null,null,null,null,null,null,null,null,null,null,null,null,null,null,null,null,null," "]
[null,null,null,null,null,null,null,null,null,null,null,null,null,null,null,null,null,null,null,null,null,null,null,null,null,null,null,null,null,null,null,null,null," "]
[null,null,null,null,null,null,null,null,null,null,null,null,null,null,null,null,null,null,null,null,null,null,null,null,null,null,null,null,null,null,null,null,null," "]
[null,null,null,null,null,null,null,null,null,null,null,null,null,null,null,null,null,null,null,null,null,null,null,null,null,null,null,null,null,null,null,null,null," "]
[null,null,null,null,null,null,null,null,null,null,null,null,null,null,null,null,null,null,null,null,null,null,null,null,null,null,null,null,null,null,null,null,null," "]
[null,null,null,null,null,null,null,null,null,null,null,null,null,null,null,null,null,null,null,null,null,null,null,null,null,null,null,null,null,null,null,null,null," "]
[null,null,null,null,null,null,null,null,null,null,null,null,null,null,null,null,null,null,null,null,null,null,null,null,null,null,null,null,null,null,null,null,null," "]
[null,null,null,null,null,null,null,null,null,null,null,null,null,null,null,null,null,null,null,null,null,null,null,null,null,null,null,null,null,null,null,null,null," "]
[null,null,null,null,null,null,null,null,null,null,null,null,null,null,null,null,null,null,null,null,null,null,null,null,null,null,null,null,null,null,null,null,null," "]
[null,null,null,null,null,null,null,null,null,null,null,null,null,null,null,null,null,null,null,null,null,null,null,null,null,null,null,null,null,null,null,null,null," "]
[null,null,null,null,null,null,null,null,null,null,null,null,null,null,null,null,null,null,null,null,null,null,null,null,null,null,null,null,null,null,null,null,null," "]
[null,null,null,null,null,null,null,null,null,null,null,null,null,null,null,null,null,null,null,null,null,null,null,null,null,null,null,null,null,null,null,null,null," "]
[null,null,null,null,null,null,null,null,null,null,null,null,null,null,null,null,null,null,null,null,null,null,null,null,null,null,null,null,null,null,null,null,null," "]
[null,null,null,null,null,null,null,null,null,null,null,null,null,null,null,null,null,null,null,null,null,null,null,null,null,null,null,null,null,null,null,null,null," "]
[null,null,null,null,null,null,null,null,null,null,null,null,null,null,null,null,null,null,null,null,null,null,null,null,null,null,null,null,null,null,null,null,null," "]
[null,null,null,null,null,null,null,null,null,null,null,null,null,null,null,null,null,null,null,null,null,null,null,null,null,null,null,null,null,null,null,null,null," "]
[null,null,null,null,null,null,null,null,null,null,null,null,null,null,null,null,null,null,null,null,null,null,null,null,null,null,null,null,null,null,null,null,null," "]
[null,null,null,null,null,null,null,null,null,null,null,null,null,null,null,null,null,null,null,null,null,null,null,null,null,null,null,null,null,null,null,null,null," "]
[null,null,null,null,null,null,null,null,null,null,null,null,null,null,null,null,null,null,null,null,null,null,null,null,null,null,null,null,null,null,null,null,null," "]
[null,null,null,null,null,null,null,null,null,null,null,null,null,null,null,null,null,null,null,null,null,null,null,null,null,null,null,null,null,null,null,null,null," "]
[null,null,null,null,null,null,null,null,null,null,null,null,null,null,null,null,null,null,null,null,null,null,null,null,null,null,null,null,null,null,null,null,null," "]
[null,null,null,null,null,null,null,null,null,null,null,null,null,null,null,null,null,null,null,null,null,null,null,null,null,null,null,null,null,null,null,null,null," "]
[null,null,null,null,null,null,null,null,null,null,null,null,null,null,null,null,null,null,null,null,null,null,null,null,null,null,null,null,null,null,null,null,null," "]
[null,null,null,null,null,null,null,null,null,null,null,null,null,null,null,null,null,null,null,null,null,null,null,null,null,null,null,null,null,null,null,null,null," "]
[null,null,null,null,null,null,null,null,null,null,null,null,null,null,null,null,null,null,null,null,null,null,null,null,null,null,null,null,null,null,null,null,null," "]
[null,null,null,null,null,null,null,null,null,null,null,null,null,null,null,null,null,null,null,null,null,null,null,null,null,null,null,null,null,null,null,null,null," "]
[null,null,null,null,null,null,null,null,null,null,null,null,null,null,null,null,null,null,null,null,null,null,null,null,null,null,null,null,null,null,null,null,null," "]
[null,null,null,null,null,null,null,null,null,null,null,null,null,null,null,null,null,null,null,null,null,null,null,null,null,null,null,null,null,null,null,null,null," "]
[null,null,null,null,null,null,null,null,null,null,null,null,null,null,null,null,null,null,null,null,null,null,null,null,null,null,null,null,null,null,null,null,null," "]
[null,null,null,null,null,null,null,null,null,null,null,null,null,null,null,null,null,null,null,null,null,null,null,null,null,null,null,null,null,null,null,null,null," "]
[null,null,null,null,null,null,null,null,null,null,null,null,null,null,null,null,null,null,null,null,null,null,null,null,null,null,null,null,null,null,null,null,null," "]
[null,null,null,null,null,null,null,null,null,null,null,null,null,null,null,null,null,null,null,null,null,null,null,null,null,null,null,null,null,null,null,null,null," "]
[null,null,null,null,null,null,null,null,null,null,null,null,null,null,null,null,null,null,null,null,null,null,null,null,null,null,null,null,null,null,null,null,null," "]
[null,null,null,null,null,null,null,null,null,null,null,null,null,null,null,null,null,null,null,null,null,null,null,null,null,null,null,null,null,null,null,null,null," "]
[null,null,null,null,null,null,null,null,null,null,null,null,null,null,null,null,null,null,null,null,null,null,null,null,null,null,null,null,null,null,null,null,null," "]
[null,null,null,null,null,null,null,null,null,null,null,null,null,null,null,null,null,null,null,null,null,null,null,null,null,null,null,null,null,null,null,null,null," "]
[null,null,null,null,null,null,null,null,null,null,null,null,null,null,null,null,null,null,null,null,null,null,null,null,null,null,null,null,null,null,null,null,null," "]
[null,null,null,null,null,null,null,null,null,null,null,null,null,null,null,null,null,null,null,null,null,null,null,null,null,null,null,null,null,null,null,null,null," "]
[null,null,null,null,null,null,null,null,null,null,null,null,null,null,null,null,null,null,null,null,null,null,null,null,null,null,null,null,null,null,null,null,null," "]
[null,null,null,null,null,null,null,null,null,null,null,null,null,null,null,null,null,null,null,null,null,null,null,null,null,null,null,null,null,null,null,null,null," "]
[null,null,null,null,null,null,null,null,null,null,null,null,null,null,null,null,null,null,null,null,null,null,null,null,null,null,null,null,null,null,null,null,null," "]
[null,null,null,null,null,null,null,null,null,null,null,null,null,null,null,null,null,null,null,null,null,null,null,null,null,null,null,null,null,null,null,null,null," "]
[null,null,null,null,null,null,null,null,null,null,null,null,null,null,null,null,null,null,null,null,null,null,null,null,null,null,null,null,null,null,null,null,null," "]
[null,null,null,null,null,null,null,null,null,null,null,null,null,null,null,null,null,null,null,null,null,null,null,null,null,null,null,null,null,null,null,null,null," "]
[null,null,null,null,null,null,null,null,null,null,null,null,null,null,null,null,null,null,null,null,null,null,null,null,null,null,null,null,null,null,null,null,null," "]
[null,null,null,null,null,null,null,null,null,null,null,null,null,null,null,null,null,null,null,null,null,null,null,null,null,null,null,null,null,null,null,null,null," "]
[null,null,null,null,null,null,null,null,null,null,null,null,null,null,null,null,null,null,null,null,null,null,null,null,null,null,null,null,null,null,null,null,null," "]
[null,null,null,null,null,null,null,null,null,null,null,null,null,null,null,null,null,null,null,null,null,null,null,null,null,null,null,null,null,null,null,null,null," "]
[null,null,null,null,null,null,null,null,null,null,null,null,null,null,null,null,null,null,null,null,null,null,null,null,null,null,null,null,null,null,null,null,null," "]
[null,null,null,null,null,null,null,null,null,null,null,null,null,null,null,null,null,null,null,null,null,null,null,null,null,null,null,null,null,null,null,null,null," "]
[null,null,null,null,null,null,null,null,null,null,null,null,null,null,null,null,null,null,null,null,null,null,null,null,null,null,null,null,null,null,null,null,null," "]
[null,null,null,null,null,null,null,null,null,null,null,null,null,null,null,null,null,null,null,null,null,null,null,null,null,null,null,null,null,null,null,null,null," "]
[null,null,null,null,null,null,null,null,null,null,null,null,null,null,null,null,null,null,null,null,null,null,null,null,null,null,null,null,null,null,null,null,null," "]
[null,null,null,null,null,null,null,null,null,null,null,null,null,null,null,null,null,null,null,null,null,null,null,null,null,null,null,null,null,null,null,null,null," "]
[null,null,null,null,null,null,null,null,null,null,null,null,null,null,null,null,null,null,null,null,null,null,null,null,null,null,null,null,null,null,null,null,null," "]
[null,null,null,null,null,null,null,null,null,null,null,null,null,null,null,null,null,null,null,null,null,null,null,null,null,null,null,null,null,null,null,null,null," "]
[null,null,null,null,null,null,null,null,null,null,null,null,null,null,null,null,null,null,null,null,null,null,null,null,null,null,null,null,null,null,null,null,null," "]
[null,null,null,null,null,null,null,null,null,null,null,null,null,null,null,null,null,null,null,null,null,null,null,null,null,null,null,null,null,null,null,null,null," "]
[null,null,null,null,null,null,null,null,null,null,null,null,null,null,null,null,null,null,null,null,null,null,null,null,null,null,null,null,null,null,null,null,null," "]
[null,null,null,null,null,null,null,null,null,null,null,null,null,null,null,null,null,null,null,null,null,null,null,null,null,null,null,null,null,null,null,null,null," "]
[null,null,null,null,null,null,null,null,null,null,null,null,null,null,null,null,null,null,null,null,null,null,null,null,null,null,null,null,null,null,null,null,null," "]
[null,null,null,null,null,null,null,null,null,null,null,null,null,null,null,null,null,null,null,null,null,null,null,null,null,null,null,null,null,null,null,null,null," "]
[null,null,null,null,null,null,null,null,null,null,null,null,null,null,null,null,null,null,null,null,null,null,null,null,null,null,null,null,null,null,null,null,null," "]
[null,null,null,null,null,null,null,null,null,null,null,null,null,null,null,null,null,null,null,null,null,null,null,null,null,null,null,null,null,null,null,null,null," "]
[null,null,null,null,null,null,null,null,null,null,null,null,null,null,null,null,null,null,null,null,null,null,null,null,null,null,null,null,null,null,null,null,null," "]
[null,null,null,null,null,null,null,null,null,null,null,null,null,null,null,null,null,null,null,null,null,null,null,null,null,null,null,null,null,null,null,null,null," "]
[null,null,null,null,null,null,null,null,null,null,null,null,null,null,null,null,null,null,null,null,null,null,null,null,null,null,null,null,null,null,null,null,null," "]
[null,null,null,null,null,null,null,null,null,null,null,null,null,null,null,null,null,null,null,null,null,null,null,null,null,null,null,null,null,null,null,null,null," "]
[null,null,null,null,null,null,null,null,null,null,null,null,null,null,null,null,null,null,null,null,null,null,null,null,null,null,null,null,null,null,null,null,null," "]
[null,null,null,null,null,null,null,null,null,null,null,null,null,null,null,null,null,null,null,null,null,null,null,null,null,null,null,null,null,null,null,null,null," "]
[null,null,null,null,null,null,null,null,null,null,null,null,null,null,null,null,null,null,null,null,null,null,null,null,null,null,null,null,null,null,null,null,null," "]
[null,null,null,null,null,null,null,null,null,null,null,null,null,null,null,null,null,null,null,null,null,null,null,null,null,null,null,null,null,null,null,null,null," "]
[null,null,null,null,null,null,null,null,null,null,null,null,null,null,null,null,null,null,null,null,null,null,null,null,null,null,null,null,null,null,null,null,null," "]
[null,null,null,null,null,null,null,null,null,null,null,null,null,null,null,null,null,null,null,null,null,null,null,null,null,null,null,null,null,null,null,null,null," "]
[null,null,null,null,null,null,null,null,null,null,null,null,null,null,null,null,null,null,null,null,null,null,null,null,null,null,null,null,null,null,null,null,null," "]
[null,null,null,null,null,null,null,null,null,null,null,null,null,null,null,null,null,null,null,null,null,null,null,null,null,null,null,null,null,null,null,null,null," "]
[null,null,null,null,null,null,null,null,null,null,null,null,null,null,null,null,null,null,null,null,null,null,null,null,null,null,null,null,null,null,null,null,null," "]
[null,null,null,null,null,null,null,null,null,null,null,null,null,null,null,null,null,null,null,null,null,null,null,null,null,null,null,null,null,null,null,null,null," "]
[null,null,null,null,null,null,null,null,null,null,null,null,null,null,null,null,null,null,null,null,null,null,null,null,null,null,null,null,null,null,null,null,null," "]
[null,null,null,null,null,null,null,null,null,null,null,null,null,null,null,null,null,null,null,null,null,null,null,null,null,null,null,null,null,null,null,null,null," "]
[null,null,null,null,null,null,null,null,null,null,null,null,null,null,null,null,null,null,null,null,null,null,null,null,null,null,null,null,null,null,null,null,null," "]
[null,null,null,null,null,null,null,null,null,null,null,null,null,null,null,null,null,null,null,null,null,null,null,null,null,null,null,null,null,null,null,null,null," "]
[null,null,null,null,null,null,null,null,null,null,null,null,null,null,null,null,null,null,null,null,null,null,null,null,null,null,null,null,null,null,null,null,null," "]
[null,null,null,null,null,null,null,null,null,null,null,null,null,null,null,null,null,null,null,null,null,null,null,null,null,null,null,null,null,null,null,null,null," "]
[null,null,null,null,null,null,null,null,null,null,null,null,null,null,null,null,null,null,null,null,null,null,null,null,null,null,null,null,null,null,null,null,null," "]
[null,null,null,null,null,null,null,null,null,null,null,null,null,null,null,null,null,null,null,null,null,null,null,null,null,null,null,null,null,null,null,null,null," "]
[null,null,null,null,null,null,null,null,null,null,null,null,null,null,null,null,null,null,null,null,null,null,null,null,null,null,null,null,null,null,null,null,null," "]
[null,null,null,null,null,null,null,null,null,null,null,null,null,null,null,null,null,null,null,null,null,null,null,null,null,null,null,null,null,null,null,null,null," "]
[null,null,null,null,null,null,null,null,null,null,null,null,null,null,null,null,null,null,null,null,null,null,null,null,null,null,null,null,null,null,null,null,null," "]
[null,null,null,null,null,null,null,null,null,null,null,null,null,null,null,null,null,null,null,null,null,null,null,null,null,null,null,null,null,null,null,null,null," "]
[null,null,null,null,null,null,null,null,null,null,null,null,null,null,null,null,null,null,null,null,null,null,null,null,null,null,null,null,null,null,null,null,null," "]
[null,null,null,null,null,null,null,null,null,null,null,null,null,null,null,null,null,null,null,null,null,null,null,null,null,null,null,null,null,null,null,null,null," "]
[null,null,null,null,null,null,null,null,null,null,null,null,null,null,null,null,null,null,null,null,null,null,null,null,null,null,null,null,null,null,null,null,null," "]
[null,null,null,null,null,null,null,null,null,null,null,null,null,null,null,null,null,null,null,null,null,null,null,null,null,null,null,null,null,null,null,null,null," "]
[null,null,null,null,null,null,null,null,null,null,null,null,null,null,null,null,null,null,null,null,null,null,null,null,null,null,null,null,null,null,null,null,null," "]
[null,null,null,null,null,null,null,null,null,null,null,null,null,null,null,null,null,null,null,null,null,null,null,null,null,null,null,null,null,null,null,null,null," "]
[null,null,null,null,null,null,null,null,null,null,null,null,null,null,null,null,null,null,null,null,null,null,null,null,null,null,null,null,null,null,null,null,null," "]
[null,null,null,null,null,null,null,null,null,null,null,null,null,null,null,null,null,null,null,null,null,null,null,null,null,null,null,null,null,null,null,null,null," "]
[null,null,null,null,null,null,null,null,null,null,null,null,null,null,null,null,null,null,null,null,null,null,null,null,null,null,null,null,null,null,null,null,null," "]
[null,null,null,null,null,null,null,null,null,null,null,null,null,null,null,null,null,null,null,null,null,null,null,null,null,null,null,null,null,null,null,null,null," "]
[null,null,null,null,null,null,null,null,null,null,null,null,null,null,null,null,null,null,null,null,null,null,null,null,null,null,null,null,null,null,null,null,null," "]
[null,null,null,null,null,null,null,null,null,null,null,null,null,null,null,null,null,null,null,null,null,null,null,null,null,null,null,null,null,null,null,null,null," "]
[null,null,null,null,null,null,null,null,null,null,null,null,null,null,null,null,null,null,null,null,null,null,null,null,null,null,null,null,null,null,null,null,null," "]
[null,null,null,null,null,null,null,null,null,null,null,null,null,null,null,null,null,null,null,null,null,null,null,null,null,null,null,null,null,null,null,null,null," "]
[null,null,null,null,null,null,null,null,null,null,null,null,null,null,null,null,null,null,null,null,null,null,null,null,null,null,null,null,null,null,null,null,null," "]
[null,null,null,null,null,null,null,null,null,null,null,null,null,null,null,null,null,null,null,null,null,null,null,null,null,null,null,null,null,null,null,null,null," "]
[null,null,null,null,null,null,null,null,null,null,null,null,null,null,null,null,null,null,null,null,null,null,null,null,null,null,null,null,null,null,null,null,null," "]
[null,null,null,null,null,null,null,null,null,null,null,null,null,null,null,null,null,null,null,null,null,null,null,null,null,null,null,null,null,null,null,null,null," "]
[null,null,null,null,null,null,null,null,null,null,null,null,null,null,null,null,null,null,null,null,null,null,null,null,null,null,null,null,null,null,null,null,null," "]
[null,null,null,null,null,null,null,null,null,null,null,null,null,null,null,null,null,null,null,null,null,null,null,null,null,null,null,null,null,null,null,null,null," "]
[null,null,null,null,null,null,null,null,null,null,null,null,null,null,null,null,null,null,null,null,null,null,null,null,null,null,null,null,null,null,null,null,null," "]
[null,null,null,null,null,null,null,null,null,null,null,null,null,null,null,null,null,null,null,null,null,null,null,null,null,null,null,null,null,null,null,null,null," "]
[null,null,null,null,null,null,null,null,null,null,null,null,null,null,null,null,null,null,null,null,null,null,null,null,null,null,null,null,null,null,null,null,null," "]
[null,null,null,null,null,null,null,null,null,null,null,null,null,null,null,null,null,null,null,null,null,null,null,null,null,null,null,null,null,null,null,null,null," "]
[null,null,null,null,null,null,null,null,null,null,null,null,null,null,null,null,null,null,null,null,null,null,null,null,null,null,null,null,null,null,null,null,null," "]
[null,null,null,null,null,null,null,null,null,null,null,null,null,null,null,null,null,null,null,null,null,null,null,null,null,null,null,null,null,null,null,null,null," "]
[null,null,null,null,null,null,null,null,null,null,null,null,null,null,null,null,null,null,null,null,null,null,null,null,null,null,null,null,null,null,null,null,null," "]
[null,null,null,null,null,null,null,null,null,null,null,null,null,null,null,null,null,null,null,null,null,null,null,null,null,null,null,null,null,null,null,null,null," "]
[null,null,null,null,null,null,null,null,null,null,null,null,null,null,null,null,null,null,null,null,null,null,null,null,null,null,null,null,null,null,null,null,null," "]
[null,null,null,null,null,null,null,null,null,null,null,null,null,null,null,null,null,null,null,null,null,null,null,null,null,null,null,null,null,null,null,null,null," "]
[null,null,null,null,null,null,null,null,null,null,null,null,null,null,null,null,null,null,null,null,null,null,null,null,null,null,null,null,null,null,null,null,null," "]
[null,null,null,null,null,null,null,null,null,null,null,null,null,null,null,null,null,null,null,null,null,null,null,null,null,null,null,null,null,null,null,null,null," "]
[null,null,null,null,null,null,null,null,null,null,null,null,null,null,null,null,null,null,null,null,null,null,null,null,null,null,null,null,null,null,null,null,null," "]
[null,null,null,null,null,null,null,null,null,null,null,null,null,null,null,null,null,null,null,null,null,null,null,null,null,null,null,null,null,null,null,null,null," "]
[null,null,null,null,null,null,null,null,null,null,null,null,null,null,null,null,null,null,null,null,null,null,null,null,null,null,null,null,null,null,null,null,null," "]
[null,null,null,null,null,null,null,null,null,null,null,null,null,null,null,null,null,null,null,null,null,null,null,null,null,null,null,null,null,null,null,null,null," "]
[null,null,null,null,null,null,null,null,null,null,null,null,null,null,null,null,null,null,null,null,null,null,null,null,null,null,null,null,null,null,null,null,null," "]
[null,null,null,null,null,null,null,null,null,null,null,null,null,null,null,null,null,null,null,null,null,null,null,null,null,null,null,null,null,null,null,null,null," "]
[null,null,null,null,null,null,null,null,null,null,null,null,null,null,null,null,null,null,null,null,null,null,null,null,null,null,null,null,null,null,null,null,null," "]
[null,null,null,null,null,null,null,null,null,null,null,null,null,null,null,null,null,null,null,null,null,null,null,null,null,null,null,null,null,null,null,null,null," "]
[null,null,null,null,null,null,null,null,null,null,null,null,null,null,null,null,null,null,null,null,null,null,null,null,null,null,null,null,null,null,null,null,null," "]
[null,null,null,null,null,null,null,null,null,null,null,null,null,null,null,null,null,null,null,null,null,null,null,null,null,null,null,null,null,null,null,null,null," "]
[null,null,null,null,null,null,null,null,null,null,null,null,null,null,null,null,null,null,null,null,null,null,null,null,null,null,null,null,null,null,null,null,null," "]
[null,null,null,null,null,null,null,null,null,null,null,null,null,null,null,null,null,null,null,null,null,null,null,null,null,null,null,null,null,null,null,null,null," "]